Workbook

Sheet Design the Converter
A1: LM76005/-Q1 60VIN, 5AOUT Converter Design Tool
O2: http://www.ti.com/product/lm5175
A3: About | C3: xx | F3: = Input Box | O3: TERMS OF USE
A5: Step 1: Operating Specifications
D6: Input Voltage – Min, VIN(min) | E6: 18 | F6: V
D7: Input Voltage – Nom, VIN(nom) | E7: 24 | F7: V
D8: Input Voltage – Max, VIN(max) | E8: 60 | F8: V
D9: Output Voltage, VOUT | E9: 5 | F9: V
D10: Full Load Output Current, IOUT | E10: 3.5 | F10: A
D11: Switching Frequency, FSW | E11: 400 | F11: kHz
D12: Frequency Set Resistor, RT | E12: ='Variable Management'!C344 -> 100 | F12: ='Variable Management'!E344 -> kΩ
D13: Ambient Temperature, TA | E13: 25 | F13: °C
A15: Step 2: Buck Inductor
D16: Inductance for 35% Ripple Current at VIN(nom) | E16: =Lopt*1000000 -> 8.078231293 | F16: µH
D17: Buck Inductance, LO | E17: 6.8 | F17: µH
D18: Inductor DCR at 25°C | E18: 27 | F18: mΩ
D19: Inductor Pk-Pk Ripple Current at VIN(nom) | E19: ='Variable Management'!B60 -> 1.495556996 | F19: APK-PK
D20: DIL as a % of Full Load at VIN(nom) | E20: ='Variable Management'!D60*100 -> 42.73019989 | F20: %
D21: Peak Inductor Current at VIN(max) and Full Load | E21: ='Variable Management'!B97 -> 4.373286509 | F21: APK
D22: Peak Inductor Current Limit at VIN(nom) | E22: =Ipk_OCP_Vinnom -> 6.8 | F22: APK
D23: Estimate Inductor Core Loss at VIN(nom) | E23: 0.1 | F23: W
A25: Step 3: Output Capacitors
D26: Desired Output Voltage Ripple | E26: 24 | F26: mVPK-PK
D27: Effective COUT Value to Meet Ripple Spec | E27: ='Variable Management'!B111 -> 19.47339839 | F27: µF
D28: Desired Crossover Frequency | E28: 40 | F28: =" kHz " -> kHz
D29: Effective COUT Value to Meet Crossover Spec | E29: ='Variable Management'!B204 -> 78.78169692 | F29: µF
D30: Output Capacitance (derated), COUT | E30: 125 | F30: µF
D31: Output Cap ESR (Max) to Meet Ripple Spec | E31: ='Variable Management'!B115 -> 15.85160276 | F31: mΩ
D32: Output Capacitor ESR | E32: 2 | F32: mΩ
D33: Resulting Output Voltage Ripple (max) | E33: ='Variable Management'!B117*1000 -> 4.788118625 | F33: mVPK-PK
D34: Output Capacitor RMS Current (max) | E34: ='Variable Management'!B104 -> 0.5041922012 | F34: ARMS
A36: Step 4: Input Capacitors
D37: Input Voltage Ripple Spec | E37: 120 | F37: mVPK-PK
D38: Minimum Input Capacitance | E38: ='Variable Management'!B134 -> 18.22916667 | F38: µF
D39: Input Capacitance (derated), CIN | E39: 47 | F39: µF
D40: Maximum Permitted ESR | E40: ='Variable Management'!B139 -> 16.79685213 | F40: mΩ | L40: =CHOOSE(SCH_MODE, "", "** For Single-Output Operation in 2-Phase Mode, tie MODE to VDDA and use FB1 to set VOUT **", "** For Single-Output Operation in 3-Phase Mode, tie both MODE pins to VDDA. Use FB1 of master IC to set VOUT. Connect FB2 of master IC to AGND. Connect FB2 of slave IC to VDDA to configure it as a slave **", "** For Single-Output Operation in 4-Phase Mode, tie both MODE pins to VDDA. Use FB1 of master IC to set VOUT. Connect FB2 of master IC to AGND. Connect FB2 of slave IC to VDDA to configure it as a slave **") -> 
D41: Input Capacitor ESR | E41: 2 | F41: mΩ
D42: Resulting Input Voltage Ripple (max) | E42: ='Variable Management'!B144*1000 -> 55.28912621 | F42: mVPK-PK | L42: =CHOOSE(SCH_MODE, "", "** For Single-Output Operation in 2-Phase Mode, tie MODE to VDDA and use FB1 to set VOUT **", "** For Single-Output Operation in 3-Phase Mode, tie both MODE pins to VDDA. Use FB1 of master IC to set VOUT. Connect FB2 of master IC to AGND. Connect FB2 of slave IC to VDDA to configure it as a slave **", "** For Single-Output Operation in 4-Phase Mode, tie both MODE pins to VDDA. Use FB1 of master IC to set VOUT. Connect FB2 of master IC to AGND. Connect FB2 of slave IC to VDDA to configure it as a slave **") -> 
D43: Input Capacitor RMS Current (max) | E43: ='Variable Management'!B127 -> 1.604539005 | F43: ARMS
A45: Step 5: Feedback Network
D46: =CHOOSE(LM64k_Fixed_Vout, "Upper Feedback Resistance", "* Tie FB to VOUT for a Fixed 5V Output", "* Tie FB to VOUT for a Fixed 3.3V Output") -> Upper Feedback Resistance | E46: 100 | F46: kΩ
D47: Lower Feedback Resistance (E96), RFBB | E47: =IF(Vout=Vref,"OPEN",Rfb2_u/1000) -> 24.9 | F47: =IF(Vout=Vref,"","kΩ") -> kΩ
D48: Feedforward Capacitance, CFF | E48: 10 | F48: pF
A50: Step 6: VIN UVLO, VOUT Soft Start
D51: Desired VIN UVLO Turn-On Threshold | E51: 12 | F51: V
D52: UVLO Divider Lower Resistance, RENB | E52: 100 | F52: kΩ
D53: UVLO Divider Upper Resistance (E96), RENT | E53: =Rent1_u/1000 -> 887 | F53: =IF(Vout=Vref,"","kΩ") -> kΩ
D54: Actual VIN UVLO Turn-On Threshold | E54: ='Variable Management'!B232 -> 12.02166 | F54: V
D55: Actual VIN UVLO Turn-Off Threshold | E55: ='Variable Management'!B233 -> 9.7713 | F55: V
D56: Soft-start Time, tSS | E56: 11 | F56: ms
D57: Soft-start Capacitance | E57: =IF(Css_u > 12, Css_u, "N/A") -> 22 | F57: nF
A59: Step 7: Power Loss & Thermals
D60: IC Power Dissipation | E60: ='Efficiency Calculations'!BE109 -> 0.9154031914 | F60: W
D61: Thermal Impedance, RqJA | E61: 30 | F61: °C/W
D62: Junction Temperature (estimate) | E62: ='Variable Management'!B286 -> 52.46209574 | F62: °C
E63: =CHOOSE(Ext_VCC, "* Connect a 1µF Capacitor From BIAS to GND", "* Tie BIAS to GND") -> * Connect a 1µF Capacitor From BIAS to GND
A68: Pole/Zero Frequencies
D69: Load Pole Frequency, FP-LOAD | E69: =Fp_dominant/1000 -> 1.295642319 | F69: kHz
D70: Output Cap ESR Zero Frequency, FZ-ESR | E70: =Fesr/1000000 -> 0.6366197731 | F70: MHz
D71: Error Amp Dominant Pole Frequency, FP-EA | E71: =Fp1_u -> 148.6040553 | F71: Hz
D72: Compensator Zero Frequency, FZ-COMP | E72: =Fz1_u/1000 -> 7.578806823 | F72: kHz
D73: Compensator Pole Frequency, FP-COMP | E73: =Fp2_u/1000 -> 275.5627261 | F73: kHz

Sheet Schematic & BOM
A34: ="VIN = "&VIN_min&" V to "&VIN_max&" V, VOUT = "&Vout&" V, IOUT = "&Iout&" A, Fsw = "&Fsw/1000&" kHz" -> VIN = 18 V to 60 V, VOUT = 5 V, IOUT = 3.5 A, Fsw = 400 kHz
A35: High-Efficiency Synchronous Buck DC/DC Converter BOM
A36: Count | B36: Ref Des | C36: Value | D36: Description | H36: Size | I36: Part Number | J36: MFR
A37: =ROUNDUP('Design the Converter'!E39/10,0) -> 5 | B37: CIN1 | C37: 10 | D37: =C37 -> 10 | H37: 1210 | I37: Std | J37: Std
A38: 2 | B38: COUT | C38: 22 | D38: =C38 -> 22 | H38: 1210 | I38: Std | J38: Std
A39: 1 | B39: CVCC | C39: 2.2 | D39: =C39 -> 2.2 | H39: 0402 | I39: Std | J39: Std
A40: 1 | B40: CSYNC | C40: 1 | D40: =C40 -> 1 | H40: 0402 | I40: Std | J40: Std
A41: 1 | B41: CSS | C41: ='Design the Converter'!E57 -> 22 | D41: 22 | H41: 0402 | I41: Std | J41: Std
A42: 1 | B42: CFF | C42: ='Variable Management'!D300 -> 10 | D42: 10 | H42: 0402 | I42: Std | J42: Std
A43: 1 | B43: LO | C43: ='Design the Converter'!E17 -> 6.8 | D43: ="Buck Inductor, "&Lf*1000000&" µH, "&Rdcr*1000&" mΩ, >"&ROUNDUP(Ipk_OCP_Vinmin*1.05,0)&" A" -> Buck Inductor, 6.8 µH, 27 mΩ, >8 A | H43: -- | I43: -- | J43: Various
A44: 1 | B44: RT | C44: ='Design the Converter'!E12 -> 100 | D44: =C44 -> 100 | H44: 0402 | I44: Std | J44: Std
A45: 1 | B45: RFBT | C45: ='Design the Converter'!E46 -> 100 | D45: =C45 -> 100 | H45: 0402 | I45: Std | J45: Std
A46: 1 | B46: RFBB | C46: ='Design the Converter'!E47 -> 24.9 | D46: 24.9 | H46: 0402 | I46: Std | J46: Std
A47: 1 | B47: RENB | C47: ='Variable Management'!D305 -> 100 | D47: =C47 -> 100 | H47: 0402 | I47: Std | J47: Std
A48: 1 | B48: RENT | C48: ='Variable Management'!D306 -> 887 | D48: 887 | H48: 0402 | I48: Std | J48: Std
A49: 1 | B49: RPG | C49: 100 | D49: 100 | H49: 0402 | I49: Std | J49: Std
A50: 1 | B50: U1 | C50: ='Variable Management'!N19 -> LM76005-Q1 | D50: =CHOOSE(GPN, "IC, LM76005-Q1 Synchronous Buck DC/DC Converter, 3.5V–60V Input, 5A Output", "IC, LM76005 Synchronous Buck DC/DC Converter,60V Input, 5A Output", "IC, LM76005 Synchronous Buck DC/DC Converter, 3V–36V Input, 6A Output") -> IC, LM76005-Q1 Synchronous Buck DC/DC Converter, 3.5V–60V Input, 5A Output | H50: VQFN-22 | I50: =CHOOSE(VARIANT, "LM76005QRNPRQ1", "LM76005", "LM76005", "LM76005", "LM76005") -> LM76005QRNPRQ1 | J50: TI
A53: NOTES:
A54: ** Effective input and output capacitances should be appropriately derated for applied voltage and temperature, particularly with ceramics **

Sheet EVMs (hidden)
A1: LM63460-Q1 & LM64460-Q1 Converter Design Tool
B6: LM64460EVM-2MHZ (BSR173) PCB Layout

Sheet Variable Management (hidden)
A1: EXCEL Variables Names/Calculations
B2: Input from user =
B3: Output =
B4: Constant
A5: Variable Name | B5: Value | C5: STD Units | E5: Notes | I5: Iteration
A6: Step 1: Operational Specs
A7: VIN_min | B7: ='Design the Converter'!E6 -> 18 | C7: V | D7: Minimum input voltage | I7: 1
A8: VIN_nom | B8: ='Design the Converter'!E7 -> 24 | C8: V | D8: Nominal input voltage | K8: Use CFF | L8: 1 | N8: LM64460-Q1 3.3Vout | O8: =IF(Vout = 3.3, 1, 0) -> 0 | T8: Dual Outputs | U8: 1 | W8: FPWM | X8: 1 | Z8: =CHOOSE(SCH_MODE, "Bode Plot (Ch1)", "Bode Plot - 2 Ph", "Bode Plot - 3 Ph", "Bode Plot - 4 Ph") -> Bode Plot (Ch1) | AA8: 1
A9: VIN_max | B9: ='Design the Converter'!E8 -> 60 | C9: V | D9: Maximum input voltage | K9: No CFF | L9: 2 | N9: LM64460-Q1 5Vout | O9: =IF(Vout = 5, 1, 0) -> 1 | T9: Single Output – 2 Phases | U9: 2 | W9: DEM | X9: 2 | Z9: =IF(MODE=1, "Bode Plot (Ch2)", "N/A - Do Not Use") -> Bode Plot (Ch2) | AA9: 2
L10: 2 | N10: LM64460 Fixed Vout | O10: =IF(AND(GPN=3,Vout=3.3),3,IF(AND(GPN=3,Vout=5),2,1)) -> 1 | P10: 1 = No, 2 = 5V, 3 = 3.3V | T10: Single Output – 3 Phases | U10: 3 | W10: FPWM/DEM | X10: 2 | Z10: BODE_PLOT_TYPE | AA10: 1
A11: Vout | B11: ='Design the Converter'!E9 -> 5 | C11: V | D11: Output voltage | K11: NO_FF_CAP | L11: =IF(L10=2, TRUE, FALSE) -> TRUE | O11: =AND(GPN=3, OR(O8,O9)) -> FALSE | T11: Single Output – 4 Phases | U11: 4
A12: Iout | B12: ='Design the Converter'!E10 -> 3.5 | C12: A | D12: Output current | F12: Iout-max | G12: =CHOOSE(GPN, 6, 6) -> 6 | H12: A | I12: 1 | T12: Single/Dual Yes/No | U12: 1
I13: 1 | T13: MODE (Single/Dual), DUAL = 1, SINGLE = 2 | U13: =IF(U12=1, 1, 2) -> 1 | W13: External BIAS | X13: 1
A14: Rout | B14: =Vout/Iout -> 1.428571429 | C14: W | D14: Load resistance | N14: LM63460-Q1 AUTO | O14: 1 | T14: SINGLE OUTPUT (1 = YES) | U14: =IF(U12=1, 2, 1) -> 2 | W14: No External BIAS | X14: 2
A15: Pout | B15: =Vout*Iout -> 17.5 | C15: W | D15: Output power | N15: LM63460-Q1 FPWM | O15: 2 | T15: Number of Phases | U15: =SCH_MODE -> 1 | W15: Ext_VCC | X15: 1
N16: LM64460-Q1 | O16: 3
A17: Efficiency | B17: 0.9 | D17: Estimate of efficiency | N17: LM64460-Q1 5V | O17: 4
A18: Pin | B18: =Pout/Efficiency -> 19.44444444 | C18: W | D18: Calculate input power assuming finite efficiency | N18: LM64460-Q1 3.3V | O18: 5
L19: GPN | N19: =CHOOSE(GPN, "LM76005-Q1", "LM76003-Q1", "LM76002-Q1") -> LM76005-Q1 | O19: 1 | W19: 2.2 MHz Fsw Setting | X19: 1
A20: Iin_Vinmin | B20: =Pin/VIN_min -> 1.080246914 | C20: A | W20: 440 kHz Fsw Setting | X20: 2
A21: Iin_Vinnom | B21: =Pin/VIN_nom -> 0.8101851852 | C21: A | D21: Input currents at min, nom, max Vin | H21: =AND(OSC=1, OR(Fsw/1000>2530, Fsw/1000<1800)) -> FALSE | K21: Variant | L21: VARIANT | N21: =CHOOSE(VARIANT, "LM63460AAS","LM63460AFS", "LM64460APP", "LM64460BPP", "LM63460CPP") -> LM63460AAS | O21: =IF(AND(GPN=3,Vout=5),4,IF(AND(GPN=3,Vout=3.3),5,GPN)) -> 1 | W21: OSC | X21: 2
A22: Iin_Vinmax | B22: =Pin/VIN_max -> 0.3240740741 | C22: A | H22: =AND(OSC=2, OR(Fsw/1000>500, Fsw/1000<300)) -> FALSE
H23: =OR(H21,H22) -> FALSE
A24: Fsw | B24: ='Design the Converter'!E11*1000 -> 400000 | C24: Hz | D24: Nominal switching frequency - determines RT resistor
A25: RT resistor to AGND | B25: =38400/((Fsw/1000)-14.33) -> 99.56698732 | C25: kΩ | I25: 1
A26: Tsw | B26: =1/Fsw -> 2.5e-06 | C26: sec | D26: Switching period
A27: Max crossover frequency = 20% Fsw | B27: =Fsw*0.2/1000 -> 80 | C27: kHz | F27: Min Crossover | G27: 10 | K27: Adjustable | L27: 1
A28: Vref | B28: 1 | C28: V | D28: Reference voltage | K28: 5V | L28: 2
A29: Rt | B29: ='Standard Value Calculator'!L12/1000 -> 100 | C29: kΩ | D29: Frequency set resistor | F29: =IF(OR((Fsw=440000),(Fsw=2200000)),"N/A",Rfadj/1000) -> 0.1 | K29: 3.3V | L29: 3
K30: Adjustable_NoRT | L30: 4
K31: 5V_NoRT | L31: 5
K32: 3.3V_NoRT | L32: 6
A33: Step 2: Buck Inductor | B33: Channel 1 | K33: Schematic setting | L33: =IF(No_RT, IF(Vout=3.3, 6, IF(Vout=5, 5, 4)),IF(Vout=3.3, 3, IF(Vout=5, 2, 1))) -> 2
A34: Don1 | B34: =Vout/VIN_nom -> 0.2083333333 | F34: Ideal Duty Cycle at VIN(nom)
A35: Doff1 | B35: =1-34:34 -> 0.7916666667 | F35: Ideal 1- Duty Cycle at VIN(nom)
A37: D_Vinmin | B37: =Vout/VIN_min -> 0.2777777778
A38: D_Vinnom | B38: =Vout/VIN_nom -> 0.2083333333
A39: D_Vinmax | B39: =Vout/VIN_max -> 0.08333333333
A41: L_Vinnom | B41: =(VIN_nom-Vout)*D1_Vinnom/(Fsw*Iout*0.35) -> 8.078231293e-06 | C41: H | F41: Calculated inductance for 35% ripple at VIN(nom)
A42: L_slopecomp | C42: H | F42: Calculated inductance based on one times inductor downslope
A44: Lopt | B44: =B41 -> 8.078231293e-06 | C44: H | F44: min of calculated inductances at VIN(min) and VIN(nom)
A45: L_actual_TPSM63602-03 | B45: =-0.0238*Iout^2-0.0868*Iout+2.0073 -> 1.41195 | C45: uH | F45: Calculate TOKO chip inductance based on entered load current value
A46: L_actual_TPSM63604-06 | B46: =-0.1304*Iout+2.32 -> 1.8636 | C46: uH | F46: Calculate MagLayers inductance based on entered load current value
A48: Lo | B48: ='Design the Converter'!E17*0.000001 -> 6.8e-06 | C48: H | F48: Chosen inductance
A49: Rdcr | B49: ='Design the Converter'!E18/1000 -> 0.027 | C49: W | F49: Chosen inductor DCR
A51: Don2 | B51: =(Vout+Iout*(Rdcr+Rdson2))/(Vin+Iout*(Rdson2-Rdson1)) -> 0.2181597098
A52: Doff2 | B52: =1-_Don2 -> 0.7818402902
A54: D_Vinmin_2 | B54: =(Vout+Iout*(Rdcr+Rdson2))/(VIN_min+Iout*(Rdson2-Rdson1)) -> 0.2914927589 | D54: =Vout/VIN_min -> 0.2777777778 | F54: Duty cycles adjusted for DCR/Rdson voltage drops
A55: D_Vinnom_2 | B55: =(Vout+Iout*(Rdcr+Rdson2))/(VIN_nom+Iout*(Rdson2-Rdson1)) -> 0.2181597098 | D55: =Vout/VIN_nom -> 0.2083333333
A56: D_Vinmax_2 | B56: =(Vout+Iout*(Rdcr+Rdson2))/(VIN_max+Iout*(Rdson2-Rdson1)) -> 0.08693472794 | D56: =Vout/VIN_max -> 0.08333333333 | F56: =(Ts-0.000000085)/Ts -> 0.966 | G56: Dmax = [Ts-toff(min)]/Ts
A59: Iripple_Vinmin | B59: =(VIN_min-Vout-Iout*(Rdcr+Rdson1))*D1_Vinmin_2/(Fsw*Lf) -> 1.355280579 | C59: A | D59: =B59/Iout -> 0.3872230226 | F59: Ripple calculations include DCR and Rdson
A60: Iripple_Vinnom | B60: =(VIN_nom-Vout-Iout*(Rdcr+Rdson1))*D1_Vinnom_2/(Fsw*Lf) -> 1.495556996 | C60: A | D60: =B60/Iout -> 0.4273019989 | F60: % ripple current at Vin-nom
A61: Iripple_Vinmax | B61: =(VIN_max-Vout-Iout*(Rdcr+Rdson1))*D1_Vinmax_2/(Fsw*Lf) -> 1.746573019 | C61: A | D61: =B61/Iout -> 0.4990208624 | F61: Max inductor ripple current - it's at Vin-max
A63: Iinductor_rms_Vinmin | B63: =SQRT(Iout^2+(Iripple_Vinmin^2)/12) -> 3.521798611 | C63: A
A64: Iinductor_rms_Vinnom | B64: =SQRT(Iout^2+(Iripple_Vinnom^2)/12) -> 3.526526747 | C64: A
A65: Iinudctor_rms_Vinmax | B65: =SQRT(Iout^2+(Iripple_Vinmax^2)/12) -> 3.536129208 | C65: A
A68: Core loss estimate - Vin(nom) | B68: ='Design the Converter'!E23 -> 0.1 | C68: W
A71: Inductor copper temperature | B71: 125 | C71: °C
A72: Inductor DCR at hot | B72: =Rdcr*(1+Ltc*(B71-25))*1000 -> 37.611 | C72: mW
A75: Step 2b: Sense Resistors, Slope Comp, Current Limit
A77: Ilimit_inductor_Vinmin | B77: =Ipk_OCP_Vinmin -> 6.8 | C77: A | F77: Peak inductor current at current limit inception
A78: Ilimit_inductor_Vinnom | B78: =Ipk_OCP_Vinmin -> 6.8 | C78: A
A79: Ilimit_inductor_Vinmax | B79: =Ipk_OCP_Vinmin -> 6.8 | C79: A
A81: CS threshold_min | B81: 0.068 | C81: V | D81: not applicable here
A82: CS threshold | B82: 0.075 | C82: V
A83: CS threshold_max | B83: 0.082 | C83: V
A85: Rs | B85: 0.01 | C85: W | F85: Current sense resistance Rs = high-side MOSFET Rdson
A87: Current limit setpoint - peak - Vin(min) | B87: 6.8 | C87: A | F87: Peak current limit (10.3A trimmed at ATE minus slope comp contribution) = min inductor sat current at hot
A88: Current limit setpoint - peak - Vin(nom) | B88: 6.8 | C88: A
A89: Current limit setpoint - peak - Vin(max) | B89: 6.8 | C89: A
A91: Iout_OCP_Vinmin | B91: =Ipk_OCP_Vinmin-Iripple_Vinmin/2 -> 6.12235971 | C91: A | F91: Current limit setpoints (i.e. IOUT) assuming no CS delay
A92: Iout_OCP_Vinnom | B92: =Ipk_OCP_Vinnom-Iripple_Vinnom/2 -> 6.052221502 | C92: A
A93: Iout_OCP_Vinmax | B93: =Ipk_OCP_Vinmax-Iripple_Vinmax/2 -> 5.926713491 | C93: A
A95: Ipk_full-load_Vinmin | B95: =Iout+Iripple_Vinmin/2 -> 4.17764029 | C95: A
A96: Ipk_full-load_Vinnom | B96: =Iout+Iripple_Vinnom/2 -> 4.247778498 | C96: A
A97: Ipk_full-load_Vinmax | B97: =Iout+Iripple_Vinmax/2 -> 4.373286509 | C97: A
A100: Step 3: Output Capacitor
A101: Icoutrms_VINmin | B101: =Iripple_Vinmin/SQRT(12) -> 0.3912358036 | C101: A | F101: Output cap RMS current
A102: Icoutrms_VINnom | B102: =Iripple_Vinnom/SQRT(12) -> 0.4317301172 | C102: A
A103: Icoutrms_VINmax | B103: =Iripple_Vinmax/SQRT(12) -> 0.5041922012 | C103: A
A104: Max Cout rms current | B104: =MAX(B101:B103) -> 0.5041922012 | C104: A
A106: Vripple1 | B106: ='Design the Converter'!E26/1000 -> 0.024 | C106: V | F106: Output voltage ripple spec(pk-pk)
A108: Output Ripple Spec (pk-pk) | B108: =Vo1_ripple*1000 -> 24 | C108: mV | F108: Vout ripple spec at Vin(nom)
A110: Coutmin | B110: =Iripple_Vinnom/(Fsw*8*Vo1_ripple) -> 1.947339839e-05 | C110: F | F110: Minimum output capacitnace | H110: =Vo2_ripple -> 0 | I110: 1
A111: Reported Coutmin | B111: =IF(Cout_min*1000000<2, 2.2,Cout_min*1000000) -> 19.47339839 | C111: uF
A112: Cout | B112: ='Design the Converter'!E30/1000000 -> 0.000125 | C112: F | F112: Chosen output capacitance | I112: 1
A113: Resrmax | B113: =SQRT((Vo1_ripple/Iripple_Vinnom)^2-(1/(Fsw*Cout*8))^2) -> 0.01585160276 | C113: W | F113: Max ESR before ripple exceeds Vripple1 | I113: 1
A115: Reported Cout ESR max | B115: =IF(OR(CoutEsrMax>0.3, CoutEsrMax<0, (ISERROR(CoutEsrMax))), "N/A", CoutEsrMax*1000) -> 15.85160276 | C115: mΩ
A116: CoutEsr | B116: ='Design the Converter'!E32/1000 -> 0.002 | C116: W | F116: Chosen ESR | I116: 1 | K116: =ISERROR(CoutEsrMax) -> FALSE | L116: =ISERROR(B115) -> FALSE
A117: Vripple | B117: =Iripple_Vinnom*SQRT(Cout_ESR^2+(1/(8*Fsw*Cout))^2) -> 0.004788118625 | C117: Vp-p | L117: =OR(CoutEsrMax>0.3,CoutEsrMax<0) -> FALSE
K118: =OR(TRUE, FALSE, TRUE) -> TRUE
A119: Step 4: Input Capacitor
A121: Icinrms_VINmin | B121: =SQRT(D1_Vinmin_2*(Iout^2*(1-D1_Vinmin_2)+Iripple_Vinmin^2/12)) -> 1.604539005 | C121: A | F121: Calculate input cap rms current | N121: A
A122: Icinrms_VINnom | B122: =SQRT(D1_Vinnom_2*(Iout^2*(1-D1_Vinnom_2)+Iripple_Vinnom^2/12)) -> 1.45948522 | C122: A
A123: Icinrms_VINmax | B123: =SQRT(D1_Vinmax_2*(Iout^2*(1-D1_Vinmax_2)+Iripple_Vinmax^2/12)) -> 0.9972306154 | C123: A
A124: Max Cin rms current | B124: =MAX(B121:B123) -> 1.604539005 | C124: A
A126: Icinrms - max at D = 0.5 | B126: =Iout/2 -> 1.75 | C126: A
A127: Final result | B127: =IF(VIN_min<2*Vout, Iout/2, B121) -> 1.604539005 | C127: A | D127: …report this
A129: Vinripple1 | B129: ='Design the Converter'!E37/1000 -> 0.12 | C129: Vp-p | F129: Input voltage ripple spec (pk-pk)
F130: =Number_of_Phases -> 1
A131: Cinmin_Vinmax | B131: =Iout*D1_Vinmax*(1-D1_Vinmax)/(Vinripple1*Fsw) -> 5.570023148e-06 | C131: F | F131: Calculate cap at Vinmax and 50% duty cycle (Vin = 2*Vout)
A132: Cinmin_50%D | B132: =Iout*0.5*(1-0.5)/(Vinripple1*Fsw) -> 1.822916667e-05 | C132: F | F132: Buck 50% typically worst case
A133: Cinmin | B133: =IF(VIN_max<2*Vout, B131,B132) -> 1.822916667e-05 | C133: F
A134: Reported Cinmin | B134: =IF(Cinmin*1000000<4.7, 4.7,Cinmin*1000000) -> 18.22916667 | C134: uF | F134: …report this
A135: Cin | B135: ='Design the Converter'!E39/1000000 -> 4.7e-05 | C135: F | F135: Input capacitance
A136: CinEsrMax_Vinmax | B136: =-(Iout*D1_Vinmax*(1-D1_Vinmax)/(Cin*Fsw)-Vinripple1)/(Iout+Iripple_Vinmax/2) -> 0.02418745355 | C136: W
A137: CinEsrMax_50%D | B137: =-(Iout*0.5*(1-0.5)/(Cin*Fsw)-Vinripple1)/(Iout+Iripple_Vinmax/2) -> 0.01679685213 | C137: W | F137: Calculate ESR at Vinmax and 50% duty cycle (Vin = 2*Vout)
A138: CinEsrMax | B138: =IF(VIN_max<2*Vout, B136,B137) -> 0.01679685213 | C138: W
A139: Reported Cin ESR max | B139: =IF(OR(CinEsrMax>0.3, CinEsrMax<0), "N/A",CinEsrMax*1000) -> 16.79685213 | C139: mΩ | F139: …report this
A140: RCinEsr | B140: ='Design the Converter'!E41/1000 -> 0.002 | C140: W | F140: Input capacitance series resistance (ESR)
A142: Vinripple2_Vinmax | B142: =Iout*D1_Vinmax_2*(1-D1_Vinmax_2)/(Cin*Fsw)+(Iout +Iripple_Vinmax/2)*RCinEsr -> 0.02352422108 | C142: Vp-p
A143: Vinripple2_50%D | B143: =Iout*0.5*(1-0.5)/(Cin*Fsw)+(Iout +Iripple_Vinmax/2)*RCinEsr -> 0.05528912621 | C143: Vp-p | F143: Calculate ripple at Vinmax and 50% duty cycle (Vin = 2*Vout)
A144: Vinripple2 | B144: =IF(VIN_max<2*Vout, B142,B143) -> 0.05528912621 | C144: Vp-p | F144: …report highest of these
B146: =Iout*D1_Vinmax_2*(1-D1_Vinmax_2)/(Cin*Fsw) -> 0.01477764806 | C146: Vp-p
A148: Step ?: Other Components - Soft start, SYNC, PG
A150: RPG | B150: 100 | C150: kΩ | D150: PGOOd pull-up resistance
A151: RSYNC | B151: 100 | C151: W | D151: SYNC termination resistance
A152: Soft-start time | B152: ='Design the Converter'!E56 -> 11 | C152: ms
A153: Css | B153: =2*B152*0.000000001 -> 2.2e-08 | C153: F | D153: Soft-start capacitance based on 2uA charging current to 1V
A154: Css - std value | B154: ='Standard Value Calculator'!L22*1000000000 -> 22 | C154: nF | D154: Standard value for Css
A156: Step 5: Feedback Network and Internal Compensation
A157: Pi | B157: 3.14159265 | D157: p
A158: CS Amp Gain (effective value) | B158: 3.276 | F158: Effective CS gain - depending on control architecture = 1/(Imod*Rdson_HS*0.73) = 1/(6*1.7*41mΩ*0.73)
A159: Ri | B159: 0.2 | C159: W | D159: Use slightly higher value to match bench | F159: Current Sense effective resistance = shunt resistor Rs * CS amp gain = 0.1343Ω
A161: Se_ext | B161: =B165/Ri*1000 -> 2080000 | C161: A/s | F161: Slope Comp Slope - referred to inductor current
A162: Sn | B162: =(Vin-Vout)/Lf -> 2794117.647 | C162: A/s | F162: On-time Slope
A163: Sf | B163: =Vout/Lf -> 735294.1176 | C163: A/s | F163: Off-time Slope
A165: Se_int | B165: =5.2*Ri*Fsw/1000 -> 416 | C165: mV/μs | F165: Slope Comp Slope - referred to IC
A166: Sn_int | B166: =Sn*Ri/1000 -> 558.8235294 | C166: mV/μs | F166: Upslope
A167: Sf_int | B167: =Sf*Ri/1000 -> 147.0588235 | C167: mV/μs | F167: Downslope
A169: mc_buck | B169: =1+Se_ext/Sn -> 1.744421053 | F169: mc = 1 + Se/Sn for peak current-mode buck
A170: k_buck | B170: =mc_buck*(1-D1_Vinnom_2) -> 1.363858662 | F170: mc*(1-d)
A172: mc | B172: =1+Se_ext/Sn -> 1.744421053
A173: k | B173: =mc_buck*(1-D1_Vinnom_2) -> 1.363858662
A174: Q | B174: =1/Pi/(k-0.5) -> 0.3684744977 | F174: 1/(Pi*(k-0.5)) | H174: Q = 2/Pi = 0.636 gives ideal one-cycle damping
A176: Error Amp (EA)
A177: gm | B177: =33/1000000 -> 3.3e-05 | C177: S | F177: Error amp transconductance
A178: GBW | B178: 20 | C178: MHz | F178: EA gain-bandwidth product
A179: Cbw | B179: =gm/(2*Pi*GBW*1000000) -> 2.626056564e-13 | C179: F | F179: EA effective bandwidth limiting capacitance = gm/(2*Pi*GBW)
A181: RoEA | B181: =30000000 -> 30000000 | C181: W | F181: EA output resistance
A182: AEA | B182: =gm*RoEA -> 990 | C182: V/V | F182: EA DC gain = gm*RoEA
A183: Afb | B183: =Vref/Vout -> 0.2 | C183: V/V | F183: Feedback gain from Vout to FB
A184: Acs | B184: =1/Ri -> 5 | F184: Acs = 1/Ri
A185: Am_buck | B185: =(Ro/Number_of_Phases)/Ri/((1+Ro/Number_of_Phases*(k-0.5)/(Fsw*Lf))) -> 4.91354569
A186: Am | B186: =Ro/Ri/((1+Ro*(k-0.5)/(Fsw*Lf))) -> 4.91354569 | F186: Buck modulator gain
A188: Scaling factor to calculate Rcomp - buck | B188: =2*Pi*Ri/gm -> 38079.91091 | F188: 2*Pi*Ri/gm -- scaling factor to calculate Rcomp given desired buck crossover frequency
A189: DC Gain is Adc = AEA*Afb*Am
A191: Rout | B191: =Rout -> 1.428571429 | C191: W | F191: Output Resistance (Load)
A193: Fp_load_buck | B193: =1/(2*Pi*Ro*Cout)+(k-0.5)/(2*Pi*Fsw*Lf*Cout) -> 1295.642319 | C193: Hz | F193: Buck dominant pole frequency -- note slope comp influence
A194: Fp_dominant | B194: =Fload_u -> 1295.642319 | C194: Hz
A195: Cbw | B195: =Cbw -> 2.626056564e-13 | C195: F | F195: Cbw
A196: Fp_EA | B196: =1/(2*Pi*(RoEA+Rcea1_u)*Cc1ea_u) -> 148.6040553 | C196: Hz | F196: Error Amp LF pole -- related to amplifier ouptut resistance and comp cap
A197: Fp_HF | B197: =1/(2*Pi*Rcea1_u*(Cc2ea_u+Cbw)) -> 275562.7261 | C197: Hz | F197: Error Amp HF pole cancels zero related to Output Cap ESR
A198: Fesr | B198: =1/(2*Pi*Cout*Cout_ESR) -> 636619.7731 | C198: Hz | F198: Cout ESR zero frequency
A199: F_mod | B199: =Fsw/2 -> 200000 | C199: Hz | F199: Zero-order sample-and-hold effects of current-mode control modeled as pole at Fsw/2
A200: Fz_ff | B200: =IF(NO_FF_CAP=TRUE, 1000000000, 1/(2*Pi*Rfb1_*Cff_u*0.000000000001)) -> 1000000000 | C200: Hz | D200: =Fz_ff/1000 -> 1000000 | E200: kHz
A201: Fp_ff | B201: =IF(NO_FF_CAP=TRUE, 1000000000, 1/(2*Pi*Rfb4_u*Cff_u*0.000000000001)) -> 1000000000 | C201: Hz | D201: =Fp_ff/1000 -> 1000000 | E201: kHz
A203: Desired Crossover Frequency | B203: ='Design the Converter'!E28*1000 -> 40000 | C203: Hz
A204: Cout - for the Fc spec | B204: =Rcea1_u/Fcross/(2*Pi*Ri/(gm*Afb))*1000000 -> 78.78169692 | C204: uF | F204: Output cap to meet the crossover frequeny spec
A205: Rcea1 | B205: =Fcross*Cout*2*Pi*Ri/(gm*Afb) -> 951997.7727 | C205: W | F205: This component will largely determine the crossover frequency | K205: =Fcross/Fp_dominant/(gm*Afb*Am) -> 951997.7727
A206: Cc1ea, Cc3ea | B206: =10/(Rcea1*Fcross*2*Pi) -> 4.179498835e-11 | C206: F | F206: This along with Rcea1 will set a zero at Fcrossover/5 to optimize phase margin
A207: Cc2ea, Cc4ea | B207: =MAX(1/(Rcea1*2*Pi*Fesr)-Cbw, 1/(Rcea1*2*Pi*(Fsw/2))-Cbw) -> 5.732941106e-13 | C207: F | F207: This along with Rcea1 places a pole at the output cap ESR zero
A209: Chosen Compensation Components from the standard value sheet
A210: Rcea1_u | B210: 600000 | C210: W | F210: =1/(Rcea1*2*Pi*(Fsw/2))-Cbw -> 5.732941106e-13
A211: Cc1ea_u | B211: 3.5e-11 | C211: F
A212: Cc2ea_u | B212: 7e-13 | C212: F
A214: Resulting Pole/Zero Locations | F214: =Cout -> 0.000125 | G214: =Cout_ESR -> 0.002
A215: Fz1 | B215: =1/(2*Pi*Rcea1_u*Cc1ea_u) -> 7578.806823 | C215: Hz | F215: This zero is set at or close to the dominant load pole
A216: Fp2 | B216: =1/(2*Pi*Rcea1_u*(Cc1ea_u*(Cc2ea_u+Cbw)/(Cc1ea_u+Cc2ea_u+Cbw))) -> 283141.5329 | C216: Hz | F216: This pole cancels the zero from the Output Cap ESR
A218: Rfb1 | B218: ='Design the Converter'!E46*1000 -> 100000 | C218: W | F218: Lower Feedback Resistance - chosen by user
A219: Rfb2 | B219: =IF(Vout=Vref, "N/A", Vref/(Vout-Vref)*B218) -> 25000 | C219: W | D219: =Rfb2_u -> 24900 | F219: Upper Feedback Resistance
A220: Rfb2_u | B220: =IF(Vout=Vref,"N/A",'Standard Value Calculator'!L11) -> 24900 | C220: W | F220: Std Value Upper Feedback Resistance
A221: Cff | B221: =1/(2*Pi*200000)/Rfb1_ -> 7.957747164e-12 | C221: F | D221: =1/(1/Rfb1_+1/Rfb2_u) -> 19935.94876 | E221: W | F221: Based on a 200kHz zero frequency
A222: Cff_u | B222: =IF('Design the Converter'!E48<0.1, 0.1, 'Design the Converter'!E48) -> 10 | C222: pF
A224: Fcross based on datasheet equation | B224: =15.46/(Vout*Cout) -> 24736 | C224: Hz
A227: Step 6: UVLO Divider
A228: VIN UVLO turn-on voltage | B228: ='Design the Converter'!E51 -> 12 | C228: V
A229: Renb | B229: ='Design the Converter'!E52*1000 -> 100000 | C229: W
A230: Rent | B230: =(B228/1.218 - 1)*Renb -> 885221.6749 | C230: W
A231: Rent_u | B231: ='Standard Value Calculator'!L7 -> 887000 | C231: W
A232: Actual VIN UVLO turn-on voltage | B232: =1.218/Renb*(Renb+Rent1_u) -> 12.02166 | C232: V
A233: Actual VIN UVLO turn-off voltage | B233: =0.99/Renb*(Renb+Rent1_u) -> 9.7713 | C233: V
A235: Step 7: Efficiency
A236: VAR | B236: 0
A237: Design
A238: Ta | B238: ='Design the Converter'!E13 -> 25 | C238: °C | D238: Ambient Temperature
A239: Components
A240: LTc | B240: =3930/1000000 -> 0.00393 | C240: %/°C | D240: Inductor DCR Temp Co
A241: θCA | B241: 22 | C241: °C/W | D241: Inductor Core-to-Ambient Thermal Resistance
A242: RCinEsr | B242: =RCinEsr -> 0.002 | C242: W | D242: Input Capacitor ESR
A244: Controller Characteristics
A245: VCC | B245: 3.3 | C245: V
A246: Top Driver
A247: RdsonDRT | B247: 0.5 | C247: W | D247: Drain-Source Resistance of Pullup High-side FET Driver
A248: RdsonDRT2 | B248: 0.5 | C248: W | D248: Drain-Source Resistance of Pulldown High-side FET Driver
A249: Bottom Driver
A250: RdsonDRB | B250: 0.5 | C250: W | D250: Drain-Source Resistance of Pullup Low-side FET Driver
A251: RdsonDRB2 | B251: 0.5 | C251: W | D251: Drain-Source Resistance of Pulldown Low-side FET Driver
A252: Deadtime
A253: Deadtime | B253: 8e-09 | C253: s | D253: Total Deadtime | G253: 8ns
... 73 more rows

Sheet MOSFET Parameters (hidden)
A3: MOSFET Parameters
E4: Internal Power MOSFETs
E5: High-side | F5: Low-side
D6: On-State Resistance, RDS(on) | E6: 74 | F6: 31 | G6: mΩ
D7: Total Gate Charge, QG | E7: 4.1 | F7: 8.6 | G7: nC
D8: Gate-Drain Charge, QGD | E8: 1.7 | F8: 8.56 | G8: nC
D9: Gate-Source Charge, QGS | E9: 2.39 | F9: 5.8 | G9: nC
D10: Output Charge, QOSS | F10: 6.88 | G10: nC
D11: Output Capacitance, COSS | E11: 530 | F11: 509 | G11: pF
D12: Gate Resistance, RGATE | E12: 0.158 | F12: 0.24 | G12: Ω
D13: Transconductance, gFS | E13: 100 | F13: 100 | G13: S
D14: Gate-Source Miller Plateau Voltage, VTH | E14: 1.5 | F14: 1.5 | G14: V
D15: Body Diode Forward Voltage, VBD | E15: 0.7 | F15: 0.7 | G15: V
D16: Body Diode Rev Recovery Charge, QRR | F16: 23 | G16: nC
D17: Thermal Resistance, θJA | E17: 23 | F17: 23 | G17: °C/W

Sheet Schematic Management (hidden)
A1: =VARIANT -> 1 | N1: 3.3V or 5V fixed (FB1/2)
A2: =CHOOSE(VARIANT, "LM63460_sch", "LM63460_sch", "LM64460_sch", "LM64460_fixed_VOUT_sch", "LM64460_fixed_VOUT_sch") -> LM63460_sch | N2: With/without VOUT connected to VCCX

Sheet Stability Calculations (hidden)
A2: Divider Network & EA Poles/Zeros | E2: Modulator | J2: Power Stage Poles/Zeros | M2: Complex Pole Pair | P2: Total System
B3: Afb1 | C3: =Afb -> 0.2 | D3: V/V | E3: Acs | F3: =Acs -> 5 | G3: A/V | H3: gm | I3: =gm -> 3.3e-05 | J3: z_ESR | K3: =Fesr -> 636619.7731 | L3: Hz | M3: p3 | N3: =Fsw/2 -> 200000 | O3: Hz | P3: Adc | Q3: =Am*Afb*AEA -> 972.8820467 | R3: V/V
B4: EA zero, z1 | C4: =Fz1_u -> 7578.806823 | D4: Hz | E4: Am | F4: =Am -> 4.91354569 | G4: V/V | J4: p_dom | K4: =Fp_dominant -> 1295.642319 | L4: Hz | M4: pterm1 | N4: =Q*pole3 -> 73694.89954 | P4: Crossover | Q4: =AJ7 -> 24.69 | R4: kHz
B5: EA pole, p1 | C5: =Fp1_u -> 148.6040553 | D5: Hz | E5: Q | F5: =Q -> 0.3684744977 | M5: pterm2 | N5: =pole3^2 -> 40000000000 | P5: Phase Margin | Q5: =AJ9 -> 54.59784559 | R5: °
B6: Aea | C6: =AEA -> 990 | D6: V/V | E6: mc | F6: =mc -> 1.744421053 | H6: FF zero, z5 | I6: =Fz_ff -> 1000000000 | P6: radconv | Q6: =180/Pi -> 57.29577958 | U6: =AB13+AE13 -> 59.76100461 | AB6: =Adc -> 972.8820467 | AI6: XOVER SEARCH
B7: EA pole, p2 | C7: =Fp2_u -> 275562.7261 | D7: Hz | E7: k | F7: =k -> 1.363858662 | H7: FF pole, p5 | I7: =Fp_ff -> 1000000000 | AI7: xover | AJ7: =SUM(AI12:AI613)/1000 -> 24.69
AI9: phase margin | AJ9: =SUM(AJ13:AJ613) -> 54.59784559
A10: Freq (Hz) | C10: Power Stage | I10: Error Amplifier | P10: FF Network | S10: Sampling Double Pole | U10: System Response | AB10: Compensator Response | AE10: PLANT Response | AG10: total
C11: p_dom | E11: z_ESR | G11: z_RHP | I11: p1 | K11: z1 | M11: p2 | O11: z3 | Q11: p3 | S11: p3
C12: Gain(V/V) | D12: Phase(rad) | E12: Gain(V/V) | F12: Phase(rad) | G12: Gain(V/V) | H12: Phase(rad) | I12: Gain(V/V) | J12: Phase(rad) | K12: Gain(V/V) | L12: Phase(rad) | M12: Gain(V/V) | N12: Phase(rad) | O12: Gain(V/V) | P12: Phase(rad) | Q12: Gain(V/V) | R12: Phase(rad) | S12: Gain(V/V) | T12: Phase(rad) | U12: Gain (dB) | V12: Phase (°) | W12: Phase Margin (°) | Z12: Fsquare | AB12: Gain(dB) | AC12: Phase(Deg) | AE12: Gain(dB) | AF12: Phase(Deg)
A13: 1 | B13: =A13/1000 -> 0.001 | C13: =SQRT(1+(A13/pole1)^2) -> 1.000000298 | D13: =ATAN(A13/pole1) -> 0.0007718177981 | E13: =SQRT(1+(A13/Zero1)^2) -> 1 | F13: =ATAN(A13/Zero1) -> 1.570796325e-06 | G13: =IF(VIN_nom>Vout, 1, SQRT(1+(A13/z_RHP)^2)) -> 1 | H13: =IF(VIN_nom>Vout, 0, -ATAN(A13/z_RHP)) -> 0 | I13: =SQRT(1+(A13/Pole2)^2) -> 1.000022641 | J13: =ATAN(A13/Pole2) -> 0.006729189884 | K13: =SQRT(1+(A13/Zero2)^2) -> 1.000000009 | L13: =ATAN(A13/Zero2) -> 0.0001319468905 | M13: =SQRT(1+(A13/pole4)^2) -> 1 | N13: =ATAN(A13/pole4) -> 3.628937826e-06 | O13: =SQRT(1+(A13/Zero3)^2) -> 1 | P13: =ATAN(A13/Zero3) -> 1e-09 | Q13: =SQRT(1+(A13/pole5)^2) -> 1 | R13: =ATAN(A13/pole5) -> 1e-09 | S13: =SQRT((1-(Z13/pterm2))^2+(A13/pterm1)^2) -> 1 | T13: =IF((ATAN((A13/pterm1)/(1-A13^2/pterm2))>0),ATAN((A13/pterm1)/(1-A13^2/pterm2)),PI()+ATAN((A13/pterm1)/(1-A13^2/pterm2))) -> 1.356946011e-05 | U13: =20*LOG10(((E13*K13*G13*O13)/(C13*I13*S13*M13*Q13))*Adc) -> 59.76100461 | V13: =((F13+L13+H13+R13)-(D13+J13+T13+N13))*radconv -> -0.4231114211 | W13: =IF(V13>0,V13,V13+180) -> 179.5768886 | Y13: =IF(U13<0,A13,1000000000) -> 1000000000 | Z13: =A13^2 -> 1 | AB13: =20*LOG10((K13/(I13*M13))*AEA*Afb) -> 45.93310722 | AC13: =(L13-(J13+N13))*radconv -> -0.3782021032 | AE13: =20*LOG10((E13*G13/(C13*S13))*Am) -> 13.82789739 | AF13: =(F13+H13-(D13+T13))*radconv -> -0.04490937523 | AG13: =AB13+AE13 -> 59.76100461 | AH13: =AC13+AF13 -> -0.4231114784 | AI13: =SUM((U14<0)*(U13>0))*A13 -> 0 | AJ13: =IF(AI13>0,W11,0) -> 0
A14: 1.0965 | B14: =A14/1000 -> 0.0010965 | C14: 1.000000358 | D14: 0.0008462981816 | E14: 1 | F14: 1.72237817e-06 | G14: 1 | H14: 0 | I14: 1.000027222 | J14: 0.007378534176 | K14: 1.00000001 | L14: 0.0001446797653 | M14: 1 | N14: 3.979130326e-06 | O14: 1 | P14: 1.0965e-09 | Q14: 1 | R14: 1.0965e-09 | S14: 1 | T14: 1.487891302e-05 | U14: =20*LOG10(((E14*K14*G14*O14)/(C14*I14*S14*M14*Q14))*Adc) -> 59.76096432 | V14: -0.4639403804 | W14: 179.5360596 | Y14: 1000000000 | Z14: 1.20231225 | AB14: 45.93306745 | AC14: -0.4146973152 | AE14: 13.82789687 | AF14: -0.04924312799 | AG14: =AB14+AE14 -> 59.76096432 | AH14: =AC14+AF14 -> -0.4639404432 | AI14: =SUM((U15<0)*(U14>0))*A14 -> 0 | AJ14: 0
A15: 1.2023 | B15: 0.0012023 | C15: 1.000000431 | D15: 0.0009279564565 | E15: 1 | F15: 1.888568422e-06 | G15: 1 | H15: 0 | I15: 1.000032729 | J15: 0.008090450592 | K15: 1.000000013 | L15: 0.0001586397461 | M15: 1 | N15: 4.363071948e-06 | O15: 1 | P15: 1.2023e-09 | Q15: 1 | R15: 1.2023e-09 | S15: 1 | T15: 1.63145619e-05 | U15: 59.76091588 | V15: -0.5087037397 | W15: 179.4912963 | Y15: 1000000000 | Z15: 1.44552529 | AB15: 45.93301964 | AC15: -0.4547092715 | AE15: 13.82789624 | AF15: =(F15+H15-(D15+T15))*radconv -> -0.05399453713 | AG15: 59.76091588 | AH15: -0.5087038086 | AI15: 0 | AJ15: 0
A16: 1.3183 | B16: 0.0013183 | C16: 1.000000518 | D16: 0.001017487254 | E16: 1 | F16: 2.070780795e-06 | G16: 1 | H16: 0 | I16: 1.000039349 | J16: 0.00887099222 | K16: 1.000000015 | L16: 0.000173945585 | M16: 1 | N16: 4.784028736e-06 | O16: 1 | P16: 1.3183e-09 | Q16: 1 | R16: 1.3183e-09 | S16: 1 | T16: 1.788861927e-05 | U16: 59.76085765 | V16: -0.5577821169 | W16: 179.4422179 | Y16: 1000000000 | Z16: 1.73791489 | AB16: 45.93296217 | AC16: -0.4985781716 | AE16: 13.82789548 | AF16: -0.05920402082 | AG16: 59.76085765 | AH16: -0.5577821925 | AI16: 0 | AJ16: 0
A17: 1.4454 | B17: 0.0014454 | C17: 1.000000622 | D17: 0.001115585204 | E17: 1 | F17: 2.270429008e-06 | G17: 1 | H17: 0 | I17: 1.000047301 | J17: 0.009726211162 | K17: 1.000000018 | L17: 0.0001907160344 | M17: 1 | N17: 5.245266734e-06 | O17: 1 | P17: 1.4454e-09 | Q17: 1 | R17: 1.4454e-09 | S17: 1 | T17: 1.961329765e-05 | U17: 59.76078769 | V17: -0.611556073 | W17: 179.3884439 | Y17: 1000000000 | Z17: 2.08918116 | AB17: 45.93289312 | AC17: -0.5466441587 | AE17: 13.82789457 | AF17: -0.06491199713 | AG17: 59.76078769 | AH17: -0.6115561558 | AI17: 0 | AJ17: 0
A18: 1.5849 | B18: 0.0015849 | C18: 1.000000748 | D18: 0.001223253661 | E18: 1 | F18: 2.489555095e-06 | G18: 1 | H18: 0 | I18: 1.000056872 | J18: 0.01066484967 | K18: 1.000000022 | L18: 0.000209122625 | M18: 1 | N18: 5.75150356e-06 | O18: 1 | P18: 1.5849e-09 | Q18: 1 | R18: 1.5849e-09 | S18: 1 | T18: 2.150623733e-05 | U18: 59.7607035 | V18: -0.6705753262 | W18: 179.3294247 | Y18: 1000000000 | Z18: 2.51190801 | AB18: 45.93281002 | AC18: -0.5993985692 | AE18: 13.82789348 | AF18: -0.07117684776 | AG18: 59.7607035 | AH18: -0.670575417 | AI18: 0 | AJ18: 0
A19: 1.7378 | B19: 0.0017378 | C19: 1.000000899 | D19: 0.001341264431 | E19: 1 | F19: 2.729729854e-06 | G19: 1 | H19: 0 | I19: 1.000068374 | J19: 0.01169362966 | K19: 1.000000026 | L19: 0.0002292973037 | M19: 1 | N19: 6.306368154e-06 | O19: 1 | P19: 1.7378e-09 | Q19: 1 | R19: 1.7378e-09 | S19: 1 | T19: 2.358100779e-05 | U19: 59.76060232 | V19: -0.7352625701 | W19: 179.2647374 | Y19: 1000000000 | Z19: 3.01994884 | AB19: 45.93271016 | AC19: -0.6572191882 | AE19: 13.82789216 | AF19: -0.07804348145 | AG19: =AB19+AE19 -> 59.76060232 | AH19: -0.7352626697 | AI19: 0 | AJ19: 0
A20: 1.9055 | B20: 0.0019055 | C20: 1.000001081 | D20: 0.001470698046 | E20: 1 | F20: 2.993152397e-06 | G20: 1 | H20: 0 | I20: 1.000082207 | J20: 0.01282196217 | K20: 1.000000032 | L20: 0.0002514247961 | M20: 1 | N20: 6.914941027e-06 | O20: 1 | P20: 1.9055e-09 | Q20: 1 | R20: 1.9055e-09 | S20: 1 | T20: 2.585660625e-05 | U20: 59.76048065 | V20: -0.8062095967 | W20: 179.1937904 | Y20: 1000000000 | Z20: 3.63093025 | AB20: 45.93259007 | AC20: -0.7206349354 | AE20: 13.82789058 | AF20: -0.08557477048 | AG20: 59.76048065 | AH20: -0.8062097059 | AI20: 0 | AJ20: 0
A21: 2.0893 | B21: 0.0020893 | C21: 1.0000013 | D21: 0.001612557848 | E21: 1 | F21: 3.281864762e-06 | G21: 1 | H21: 0 | I21: 1.00009883 | J21: 0.01405858237 | K21: 1.000000038 | L21: 0.000275676633 | M21: 1 | N21: 7.5819398e-06 | O21: 1 | P21: 2.0893e-09 | Q21: 1 | R21: 2.0893e-09 | S21: 1 | T21: 2.835067301e-05 | U21: 59.76033443 | V21: -0.8839657184 | W21: 179.1160343 | Y21: 1000000000 | Z21: 4.36517449 | AB21: 45.93244575 | AC21: -0.7901367422 | AE21: 13.82788868 | AF21: -0.09382909593 | AG21: 59.76033443 | AH21: -0.8839658381 | AI21: 0 | AJ21: 0
A22: 2.2909 | B22: 0.0022909 | C22: 1.000001563 | D22: 0.001768155902 | E22: 1 | F22: 3.598537301e-06 | G22: 1 | H22: 0 | I22: 1.000118822 | J22: 0.01541491272 | K22: 1.000000046 | L22: 0.0003022771241 | M22: 1 | N22: 8.313533665e-06 | O22: 1 | P22: 2.2909e-09 | Q22: 1 | R22: 2.2909e-09 | S22: 1 | T22: 3.108627617e-05 | U22: 59.76015859 | V22: -0.9692492393 | W22: 179.0307508 | Y22: 1000000000 | Z22: 5.24822281 | AB22: 45.93227219 | AC22: -0.8663665683 | AE22: 13.8278864 | AF22: -0.1028828023 | AG22: 59.76015859 | AH22: -0.9692493706 | AI22: 0 | AJ22: 0
A23: 2.5119 | B23: 0.0025119 | C23: 1.000001879 | D23: 0.001938727083 | E23: 1 | F23: 3.945683289e-06 | G23: 1 | H23: 0 | I23: 1.000142851 | J23: 0.0169016976 | K23: 1.000000055 | L23: 0.0003314373841 | M23: 1 | N23: 9.115528925e-06 | O23: 1 | P23: 2.5119e-09 | Q23: 1 | R23: 2.5119e-09 | S23: 1 | T23: 3.408512685e-05 | U23: 59.75994723 | V23: -1.062735857 | W23: 178.9372641 | Y23: 1000000000 | Z23: 6.30964161 | AB23: 45.93206359 | AC23: -0.9499282584 | AE23: 13.82788365 | AF23: -0.1128077425 | AG23: 59.75994723 | AH23: -1.062736001 | AI23: 0 | AJ23: 0
A24: 2.7542 | B24: 0.0027542 | C24: 1.000002259 | D24: 0.0021257378 | E24: 1 | F24: 4.326287238e-06 | G24: 1 | H24: 0 | I24: 1.000171736 | J24: 0.01853169283 | K24: 1.000000066 | L24: 0.000363408112 | M24: 1 | N24: 9.99482056e-06 | O24: 1 | P24: 2.7542e-09 | Q24: 1 | R24: 2.7542e-09 | S24: 1.000000001 | T24: 3.737300704e-05 | U24: 59.75969317 | V24: -1.165227782 | W24: 178.8347722 | Y24: 1000000000 | Z24: 7.58561764 | AB24: 45.93181282 | AC24: -1.041538698 | AE24: 13.82788035 | AF24: -0.123689242 | AG24: 59.75969317 | AH24: -1.16522794 | AI24: 0 | AJ24: 0
A25: 3.02 | B25: 0.00302 | C25: 1.000002717 | D25: 0.002330885992 | E25: 1 | F25: 4.743804901e-06 | G25: 1 | H25: 0 | I25: 1.00020648 | J25: 0.02031966315 | K25: 1.000000079 | L25: 0.0003984795906 | M25: 1 | N25: 1.095939223e-05 | O25: 1 | P25: 3.02e-09 | Q25: 1 | R25: 3.02e-09 | S25: 1.000000001 | T25: 4.097976953e-05 | U25: 59.75938759 | V25: -1.277653594 | W25: 178.7223464 | Y25: 1000000000 | Z25: 9.1204 | AB25: 45.93151122 | AC25: -1.142027669 | AE25: 13.82787638 | AF25: -0.1356260978 | AG25: 59.75938759 | AH25: -1.277653767 | AI25: 0 | AJ25: 0
A26: 3.3113 | B26: 0.0033113 | C26: 1.000003266 | D26: 0.002555715218 | E26: 1 | F26: 5.201377871e-06 | G26: 1 | H26: 0 | I26: 1.000248229 | J26: 0.02227901597 | K26: 1.000000095 | L26: 0.0004369157134 | M26: 1 | N26: 1.201650182e-05 | O26: 1 | P26: 3.3113e-09 | Q26: 1 | R26: 3.3113e-09 | S26: 1.000000001 | T26: 4.493255326e-05 | U26: 59.75902042 | V26: -1.400856591 | W26: 178.5991434 | Y26: 1000000000 | Z26: 10.96470769 | AB26: 45.93114881 | AC26: -1.252148657 | AE26: 13.8278716 | AF26: -0.1487081245 | AG26: 59.75902042 | AH26: -1.400856781 | AI26: 0 | AJ26: 0
A27: 3.6308 | B27: 0.0036308 | C27: 1.000003926 | D27: 0.002802309282 | E27: 1 | F27: 5.703247297e-06 | G27: 1 | H27: 0 | I27: 1.000298434 | J27: 0.0244278514 | K27: 1.000000115 | L27: 0.0004790727363 | M27: 1 | N27: 1.317594746e-05 | O27: 1 | P27: 3.6308e-09 | Q27: 1 | R27: 3.6308e-09 | S27: 1.000000001 | T27: 4.926799576e-05 | U27: 59.75857889 | V27: -1.535975233 | W27: 178.4640248 | Y27: 1000000000 | Z27: 13.18270864 | AB27: 45.93071302 | AC27: -1.37291887 | AE27: 13.82786586 | AF27: -0.1630565712 | AG27: 59.75857889 | AH27: -1.535975441 | AI27: 0 | AJ27: 0
A28: 3.9811 | B28: 0.0039811 | C28: 1.000004721 | D28: 0.003072674776 | E28: 1 | F28: 6.253497249e-06 | G28: 1 | H28: 0 | I28: 1.000358787 | J28: 0.02678357589 | K28: 1.000000138 | L28: 0.0005252937206 | M28: 1 | N28: 1.444716438e-05 | O28: 1 | P28: 3.9811e-09 | Q28: 1 | R28: 3.9811e-09 | S28: 1.000000001 | T28: 5.402137763e-05 | U28: 59.75804814 | V28: -1.684104475 | W28: 178.3158955 | Y28: 1000000000 | Z28: 15.84915721 | AB28: 45.93018918 | AC28: -1.505316509 | AE28: 13.82785896 | AF28: -0.1787881946 | AG28: 59.75804814 | AH28: -1.684104703 | AI28: 0 | AJ28: 0
A29: 4.3652 | B29: 0.0043652 | C29: 1.000005676 | D29: 0.003369126973 | E29: 1 | F29: 6.856840118e-06 | G29: 1 | H29: 0 | I29: 1.000431344 | J29: 0.02936625856 | K29: 1.000000166 | L29: 0.0005759745062 | M29: 1 | N29: 1.58410394e-05 | O29: 1 | P29: 4.3652e-09 | Q29: 1 | R29: 4.3652e-09 | S29: 1.000000001 | T29: 5.923340725e-05 | U29: 59.75741012 | V29: -1.846506856 | W29: 178.1534931 | Y29: 1000000000 | Z29: 19.05497104 | AB29: 45.92955945 | AC29: -1.650469394 | AE29: 13.82785067 | AF29: -0.1960377127 | AG29: 59.75741012 | AH29: -1.846507106 | AI29: 0 | AJ29: 0
A30: 4.7863 | B30: 0.0047863 | C30: 1.000006823 | D30: 0.003694135456 | E30: 1 | F30: 7.51830245e-06 | G30: 1 | H30: 0 | I30: 1.000518556 | J30: 0.03219727716 | K30: 1.000000199 | L30: 0.0006315373219 | M30: 1 | N30: 1.736918511e-05 | O30: 1 | P30: 4.7863e-09 | Q30: 1 | R30: 4.7863e-09 | S30: 1.000000002 | T30: 6.494750689e-05 | U30: 59.75664328 | V30: -2.0245274 | W30: 177.9754726 | Y30: 1000000000 | Z30: 22.90866769 | AB30: 45.92880258 | AC30: -1.809578853 | AE30: 13.8278407 | AF30: -0.2149488219 | AG30: 59.75664328 | AH30: -2.024527675 | AI30: 0 | AJ30: 0
A31: 5.2481 | B31: 0.0052481 | C31: 1.000008204 | D31: 0.004050555638 | E31: 1 | F31: 8.243696193e-06 | G31: 1 | H31: 0 | I31: 1.000623415 | J31: 0.0353013232 | K31: 1.00000024 | L31: 0.0006924703695 | M31: 1 | N31: 1.90450286e-05 | O31: 1 | P31: 5.2481e-09 | Q31: 1 | R31: 5.2481e-09 | S31: 1.000000002 | T31: 7.121388356e-05 | U31: 59.75572136 | V31: -2.219719771 | W31: 177.7802802 | Y31: 1000000000 | Z31: 27.54255361 | AB31: 45.92789266 | AC31: -1.984032403 | AE31: 13.82782871 | AF31: -0.235687669 | AG31: 59.75572136 | AH31: -2.219720072 | AI31: 0 | AJ31: 0
A32: 5.7544 | B32: 0.0057544 | C32: 1.000009863 | D32: 0.004441320017 | E32: 1 | F32: 9.038990372e-06 | G32: 1 | H32: 0 | I32: 1.000749456 | J32: 0.03870369743 | K32: 1.000000288 | L32: 0.0007592750454 | M32: 1 | N32: 2.088235982e-05 | O32: 1 | P32: 5.7544e-09 | Q32: 1 | R32: 5.7544e-09 | S32: 1.000000002 | T32: 7.808410119e-05 | U32: 59.75461335 | V32: -2.433676289 | W32: 177.5663237 | Y32: 1000000000 | Z32: 33.11311936 | AB32: 45.92679905 | AC32: -2.175251732 | AE32: 13.82781429 | AF32: -0.2584248862 | AG32: 59.75461335 | AH32: -2.433676618 | AI32: 0 | AJ32: 0
A33: 6.3096 | B33: 0.0063096 | C33: 1.000011858 | D33: 0.004869824049 | E33: 1 | F33: 9.911096492e-06 | G33: 1 | H33: 0 | I33: 1.000900983 | J33: 0.04243365013 | K33: 1.000000347 | L33: 0.000832531913 | M33: 1 | N33: 2.28971461e-05 | O33: 1 | P33: 6.3096e-09 | Q33: 1 | R33: 6.3096e-09 | S33: 1.000000003 | T33: 8.561786542e-05 | U33: 59.75328146 | V33: -2.668238092 | W33: 177.3317619 | Y33: 1000000000 | Z33: 39.81105216 | AB33: 45.9254845 | AC33: -2.384880409 | AE33: 13.82779696 | AF33: -0.2833580436 | AG33: 59.75328146 | AH33: -2.668238453 | AI33: 0 | AJ33: 0
A34: 6.9183 | B34: 0.0069183 | C34: 1.000014256 | D34: 0.005339617385 | E34: 1 | F34: 1.086724021e-05 | G34: 1 | H34: 0 | I34: 1.001083109 | J34: 0.04652166626 | K34: 1.000000417 | L34: 0.0009128479245 | M34: 1 | N34: 2.510608056e-05 | O34: 1 | P34: 6.9183e-09 | Q34: 1 | R34: 6.9183e-09 | S34: 1.000000003 | T34: 9.387759575e-05 | U34: 59.75168087 | V34: -2.925324562 | W34: 177.0746754 | Y34: 1000000000 | Z34: 47.86287489 | AB34: 45.92390474 | AC34: -2.614631274 | AE34: 13.82777613 | AF34: -0.3106936838 | AG34: 59.75168087 | AH34: -2.925324958 | AI34: 0 | AJ34: 0
A35: 7.5858 | B35: 0.0075858 | C35: 1.00001714 | D35: 0.005854789716 | E35: 1 | F35: 1.191574676e-05 | G35: 1 | H35: 0 | I35: 1.001302053 | J35: 0.05100278881 | K35: 1.000000501 | L35: 0.001000922394 | M35: 1 | N35: 2.752839655e-05 | O35: 1 | P35: 7.5858e-09 | Q35: 1 | R35: 7.5858e-09 | S35: 1.000000004 | T35: 0.0001029352103 | U35: 59.74975709 | V35: -3.207142515 | W35: 176.7928575 | Y35: 1000000000 | Z35: 57.54436164 | AB35: 45.92200602 | AC35: -2.866473178 | AE35: 13.82775107 | AF35: -0.3406697722 | AG35: 59.74975709 | AH35: -3.20714295 | AI35: 0 | AJ35: 0
A36: 8.3176 | B36: 0.0083176 | C36: 1.000020606 | D36: 0.006419584804 | E36: 1 | F36: 1.306525551e-05 | G36: 1 | H36: 0 | I36: 1.001565183 | J36: 0.05591321473 | K36: 1.000000602 | L36: 0.001097481022 | M36: 1 | N36: 3.018405325e-05 | O36: 1 | P36: 8.3176e-09 | Q36: 1 | R36: 8.3176e-09 | S36: 1.000000005 | T36: 0.0001128653412 | U36: 59.74744562 | V36: -3.515972378 | W36: 176.4840276 | Y36: 1000000000 | Z36: 69.18246976 | AB36: 45.91972466 | AC36: -3.142439615 | AE36: 13.82772096 | AF36: -0.3735332397 | AG36: 59.74744562 | AH36: -3.515972855 | AI36: 0 | AJ36: 0
A37: 9.1201 | B37: 0.0091201 | C37: 1.000024774 | D37: 0.007038940643 | E37: 1 | F37: 1.432581956e-05 | G37: 1 | H37: 0 | I37: 1.00188148 | J37: 0.06129493238 | K37: 1.000000724 | L37: 0.001203368262 | M37: 1.000000001 | N37: 3.309627585e-05 | O37: 1 | P37: 9.1201e-09 | Q37: 1 | R37: 9.1201e-09 | S37: 1.000000006 | T37: 0.0001237548328 | U37: 59.74466787 | V37: -3.854460179 | W37: 176.1455398 | Y37: 1000000000 | Z37: 83.17622401 | AB37: 45.91698312 | AC37: -3.444889289 | AE37: 13.82768475 | AF37: -0.4095714122 | AG37: 59.74466787 | AH37: -3.854460701 | AI37: 0 | AJ37: 0
A38: 10 | B38: 0.01 | C38: 1.000029785 | D38: 0.007718026261 | E38: 1 | F38: 1.570796325e-05 | G38: 1 | H38: 0 | I38: 1.002261611 | J38: 0.06719161467 | K38: 1.00000087 | L38: 0.001319468147 | M38: 1.000000001 | N38: 3.628937824e-05 | O38: 1 | P38: 1e-08 | Q38: 1 | R38: 1e-08 | S38: 1.000000007 | T38: 0.0001356946007 | U38: 59.74133066 | V38: -4.225359702 | W38: 175.7746403 | Y38: 1000000000 | Z38: 100 | AB38: 45.91368944 | AC38: -3.776275216 | AE38: 13.82764122 | AF38: -0.4490850593 | AG38: 59.74133066 | AH38: -4.225360275 | AI38: 0 | AJ38: 0
A39: 10.965 | B39: 0.010965 | C39: 1.00003581 | D39: 0.008462781799 | E39: 1 | F39: 1.72237817e-05 | G39: 1 | H39: 0 | I39: 1.002718542 | J39: 0.07365320667 | K39: 1.000001047 | L39: 0.001446796654 | M39: 1.000000001 | N39: 3.979130324e-05 | O39: 1 | P39: 1.0965e-08 | Q39: 1 | R39: 1.0965e-08 | S39: 1.000000008 | T39: 0.0001487891295 | U39: 59.73732084 | V39: -4.631821618 | W39: 175.3681784 | Y39: 1000000000 | Z39: 120.231225 | AB39: 45.90973197 | AC39: -4.139402426 | AE39: 13.82758887 | AF39: -0.4924198198 | AG39: 59.73732084 | AH39: -4.631822246 | AI39: 0 | AJ39: 0
A40: 12.023 | B40: 0.012023 | C40: 1.000043054 | D40: 0.009279300887 | E40: 1 | F40: 1.888568421e-05 | G40: 1 | H40: 0 | I40: 1.003267574 | J40: 0.08073042853 | K40: 1.000001258 | L40: 0.001586396143 | M40: 1.000000001 | N40: 4.363071945e-05 | O40: 1 | P40: 1.2023e-08 | Q40: 1 | R40: 1.2023e-08 | S40: 1.00000001 | T40: 0.0001631456181 | U40: 59.73250515 | V40: -5.077048465 | W40: 174.9229515 | Y40: 1000000000 | Z40: 144.552529 | AB40: 45.90497921 | AC40: -4.537118891 | AE40: 13.82752594 | AF40: -0.5399302636 | AG40: 59.73250515 | AH40: -5.077049154 | AI40: 0 | AJ40: 0
A41: 13.183 | B41: 0.013183 | C41: 1.000051763 | D41: 0.01017452495 | E41: 1 | F41: 2.070780795e-05 | G41: 1 | H41: 0 | I41: 1.00392722 | J41: 0.08848062425 | K41: 1.000001513 | L41: 0.001739454114 | M41: 1.000000001 | N41: 4.784028732e-05 | O41: 1 | P41: 1.3183e-08 | Q41: 1 | R41: 1.3183e-08 | S41: 1.000000012 | T41: 0.0001788861916 | U41: 59.72672263 | V41: -5.564663548 | W41: 174.4353365 | Y41: 1000000000 | Z41: 173.791489 | AB41: 45.89927234 | AC41: -4.972644011 | AE41: 13.82745028 | AF41: -0.5920202924 | AG41: 59.72672263 | AH41: -5.564664303 | AI41: 0 | AJ41: 0
A42: 14.454 | B42: 0.014454 | C42: 1.000062225 | D42: 0.01115539391 | E42: 1 | F42: 2.270429008e-05 | G42: 1 | H42: 0 | I42: 1.004719122 | J42: 0.09696018188 | K42: 1.000001819 | L42: 0.001907158055 | M42: 1.000000001 | N42: 5.245266729e-05 | O42: 1 | P42: 1.4454e-08 | Q42: 1 | R42: 1.4454e-08 | S42: 1.000000014 | T42: 0.000196132975 | U42: 59.71978563 | V42: -6.098235312 | W42: 173.9017647 | Y42: 1000000000 | Z42: 208.918116 | AB42: 45.89242623 | AC42: -5.449142418 | AE42: 13.8273594 | AF42: -0.6490937222 | AG42: 59.71978563 | AH42: -6.09823614 | AI42: 0 | AJ42: 0
A43: 15.849 | B43: 0.015849 | C43: 1.000074815 | D43: 0.01223193263 | E43: 1 | F43: 2.489555095e-05 | G43: 1 | H43: 0 | I43: 1.0056713 | J43: 0.1062508954 | K43: 1.000002187 | L43: 0.002091223232 | M43: 1.000000002 | N43: 5.751503554e-05 | O43: 1 | P43: 1.5849e-08 | Q43: 1 | R43: 1.5849e-08 | S43: 1.000000017 | T43: 0.0002150623714 | U43: 59.71145168 | V43: -6.682937951 | W43: 173.317062 | Y43: 1000000000 | Z43: 251.190801 | AB43: 45.88420165 | AC43: -5.971204987 | AE43: 13.82725003 | AF43: -0.7117338718 | AG43: 59.71145168 | AH43: -6.682938859 | AI43: 0 | AJ43: 0
A44: 17.378 | B44: 0.017378 | C44: 1.000089946 | D44: 0.01341184814 | E44: 1 | F44: 2.729729853e-05 | G44: 1 | H44: 0 | I44: 1.006814454 | J44: 0.1164128863 | K44: 1.000002629 | L44: 0.002292969058 | M44: 1.000000002 | N44: 6.306368146e-05 | O44: 1 | P44: 1.7378e-08 | Q44: 1 | R44: 1.7378e-08 | S44: 1.00000002 | T44: 0.0002358100753 | U44: 59.70145637 | V44: -7.322591107 | W44: 172.6774089 | Y44: 1000000000 | Z44: 301.994884 | AB44: 45.87433779 | AC44: -6.542202906 | AE44: 13.82711858 | AF44: -0.7803891966 | AG44: 59.70145637 | AH44: -7.322592103 | AI44: 0 | AJ44: 0
A45: 19.055 | B45: 0.019055 | C45: 1.000108142 | D45: 0.01470593085 | E45: 1 | F45: 2.993152396e-05 | G45: 1 | H45: 0 | I45: 1.008187519 | J45: 0.1275307306 | K45: 1.000003161 | L45: 0.002514242716 | M45: 1.000000002 | N45: 6.914941016e-05 | O45: 1 | P45: 1.9055e-08 | Q45: 1 | R45: 1.9055e-08 | S45: 1.000000024 | T45: 0.0002585660591 | U45: 59.68946541 | V45: -8.02256558 | W45: 171.9774344 | Y45: 1000000000 | Z45: 363.093025 | AB45: 45.8625049 | AC45: -7.166879106 | AE45: 13.82696051 | AF45: -0.8556875663 | AG45: 59.68946541 | AH45: -8.022566672 | AI45: 0 | AJ45: =IF(AI45>0,W43,0) -> 0
A46: 20.893 | B46: 0.020893 | C46: 1.000130009 | D46: 0.01612419494 | E46: 1.000000001 | F46: 3.281864761e-05 | G46: 1 | H46: 0 | I46: 1.009835124 | J46: 0.1396795406 | K46: 1.0000038 | L46: 0.002756759416 | M46: 1.000000003 | N46: 7.581939785e-05 | O46: 1 | P46: 2.0893e-08 | Q46: 1 | R46: 2.0893e-08 | S46: 1.000000029 | T46: 0.0002835067257 | U46: 59.6750979 | V46: -8.787652115 | W46: 171.2123479 | Y46: 1000000000 | Z46: 436.517449 | AB46: 45.84832734 | AC46: -7.849441624 | AE46: 13.82677056 | AF46: -0.9382116879 | AG46: 59.6750979 | AH46: -8.787653312 | AI46: 0 | AJ46: 0
A47: 22.909 | B47: 0.022909 | C47: 1.000156307 | D47: 0.01767973515 | E47: 1.000000001 | F47: 3.598537299e-05 | G47: 1 | H47: 0 | I47: 1.011813085 | J47: 0.1529572104 | K47: 1.000004569 | L47: 0.003022762126 | M47: 1.000000003 | N47: 8.313533646e-05 | O47: 1 | P47: 2.2909e-08 | Q47: 1 | R47: 2.2909e-08 | S47: 1.000000035 | T47: 0.0003108627558 | U47: 59.65787975 | V47: -9.624096615 | W47: 170.3759034 | Y47: 1000000000 | Z47: 524.822281 | AB47: 45.83133763 | AC47: -8.595374405 | AE47: 13.82654212 | AF47: -1.028723522 | AG47: 59.65787975 | AH47: -9.624097927 | AI47: 0 | AJ47: 0
A48: 25.119 | B48: 0.025119 | C48: 1.000187916 | D48: 0.01938486665 | E48: 1.000000001 | F48: 3.945683287e-05 | G48: 1 | H48: 0 | I48: 1.014185476 | J48: 0.1674502387 | K48: 1.000005493 | L48: 0.003314361826 | M48: 1.000000004 | N48: 9.1155289e-05 | O48: 1 | P48: 2.5119e-08 | Q48: 1 | R48: 2.5119e-08 | S48: 1.000000042 | T48: 0.0003408512608 | U48: 59.63727129 | V48: -10.53745407 | W48: 169.4625459 | Y48: 1000000000 | Z48: 630.964161 | AB48: 45.81100374 | AC48: -9.409515834 | AE48: 13.82626755 | AF48: -1.127939675 | AG48: 59.63727129 | AH48: -10.53745551 | AI48: 0 | AJ48: 0
A49: 27.542 | B49: 0.027542 | C49: 1.000225913 | D49: 0.02125420897 | E49: 1.000000001 | F49: 4.326287236e-05 | G49: 1 | H49: 0 | I49: 1.017030102 | J49: 0.1832587017 | K49: 1.000006603 | L49: 0.003634065282 | M49: 1.000000005 | N49: 9.994820527e-05 | O49: 1 | P49: 2.7542e-08 | Q49: 1 | R49: 2.7542e-08 | S49: 1.000000051 | T49: 0.0003737300602 | U49: 59.61262248 | V49: -11.53416945 | W49: 168.4658305 | Y49: 1000000000 | Z49: 758.561764 | AB49: 45.78668497 | AC49: -10.29746019 | AE49: 13.82593751 | AF49: -1.236710847 | AG49: 59.61262248 | AH49: -11.53417103 | AI49: 0 | AJ49: 0
A50: 30.2 | B50: 0.0302 | C50: 1.000271616 | D50: 0.02330468223 | E50: 1.000000001 | F50: 4.743804898e-05 | G50: 1 | H50: 0 | I50: 1.020441198 | J50: 0.2004942072 | K50: 1.000007939 | L50: 0.003984775026 | M50: 1.000000006 | N50: 0.0001095939219 | O50: 1 | P50: 3.02e-08 | Q50: 1 | R50: 3.02e-08 | S50: 1.000000061 | T50: 0.0004097976819 | U50: 59.58315359 | V50: -12.62146027 | W50: 167.3785397 | Y50: 1000000000 | Z50: 912.04 | AB50: 45.75761303 | AC50: -11.26544038 | AE50: 13.82554055 | AF50: -1.356021614 | AG50: 59.58315359 | AH50: -12.621462 | AI50: 0 | AJ50: 0
A51: 33.113 | B51: 0.033113 | C51: 1.000326532 | D51: 0.02555164559 | E51: 1.000000001 | F51: 5.201377866e-05 | G51: 1 | H51: 0 | I51: 1.024525199 | J51: 0.2192452163 | K51: 1.000009545 | L51: 0.00436912961 | M51: 1.000000007 | N51: 0.0001201650177 | O51: 1 | P51: 3.3113e-08 | Q51: 1 | R51: 3.3113e-08 | S51: 1.000000074 | T51: 0.0004493255149 | U51: 59.54799734 | V51: -13.80514169 | W51: 166.1948583 | Y51: 1000000000 | Z51: 1096.470769 | AB51: 45.72293375 | AC51: -12.31837785 | AE51: 13.82506359 | AF51: -1.486765739 | AG51: 59.54799734 | AH51: -13.80514359 | AI51: 0 | AJ51: 0
A52: 36.308 | B52: 0.036308 | C52: 1.000392572 | D52: 0.02801583412 | E52: 1.000000002 | F52: 5.703247291e-05 | G52: 1 | H52: 0 | I52: 1.029415241 | J52: 0.2396323912 | K52: 1.000011475 | L52: 0.004790691079 | M52: 1.000000009 | N52: 0.0001317594738 | O52: 1 | P52: 3.6308e-08 | Q52: 1 | R52: 3.6308e-08 | S52: 1.000000088 | T52: 0.0004926799342 | U52: 59.50608158 | V52: -15.09313528 | W52: 164.9068647 | Y52: 1000000000 | Z52: 1318.270864 | AB52: 45.68159152 | AC52: -13.46298755 | AE52: 13.82449006 | AF52: -1.630149817 | AG52: 59.50608158 | AH52: -15.09313736 | AI52: 0 | AJ52: 0
A53: 39.811 | B53: 0.039811 | C53: 1.000471958 | D53: 0.0307171798 | E53: 1.000000002 | F53: 6.253497241e-05 | G53: 1 | H53: 0 | I53: 1.035263404 | J53: 0.2617533241 | K53: 1.000013797 | L53: 0.005252889375 | M53: 1.00000001 | N53: 0.0001444716428 | O53: 1 | P53: 3.9811e-08 | Q53: 1 | R53: 3.9811e-08 | S53: 1.000000106 | T53: 0.0005402137455 | U53: 59.45620697 | V53: -16.49200145 | W53: 163.5079986 | Y53: 1000000000 | Z53: 1584.915721 | AB53: 45.63240631 | AC53: -14.70466999 | AE53: 13.82380066 | AF53: -1.787333741 | AG53: 59.45620697 | AH53: -16.49200373 | AI53: 0 | AJ53: 0
A54: 43.652 | B54: 0.043652 | C54: 1.000567394 | D54: 0.03367865807 | E54: 1.000000002 | F54: 6.856840107e-05 | G54: 1 | H54: 0 | I54: 1.042251082 | J54: 0.2857102988 | K54: 1.000016587 | L54: 0.005759682008 | M54: 1.000000013 | N54: 0.0001584103927 | O54: 1 | P54: 4.3652e-08 | Q54: 1 | R54: 4.3652e-08 | S54: 1.000000128 | T54: 0.0005923340319 | U54: 59.39697264 | V54: -18.00871711 | W54: 161.9912829 | Y54: 1000000000 | Z54: 1905.497104 | AB54: 45.57400068 | AC54: -16.04906508 | AE54: 13.82297196 | AF54: -1.959654529 | AG54: 59.39697264 | AH54: -18.00871961 | AI54: 0 | AJ54: 0
A55: 47.863 | B55: 0.047863 | C55: 1.000682105 | D55: 0.03692473195 | E55: 1.000000003 | F55: 7.518302436e-05 | G55: 1 | H55: 0 | I55: 1.050589431 | J55: 0.31159229 | K55: 1.000019942 | L55: 0.0063152901 | M55: 1.000000015 | N55: 0.0001736918494 | O55: 1 | P55: 4.7863e-08 | Q55: 1 | R55: 4.7863e-08 | S55: 1.000000154 | T55: 0.0006494750154 | U55: 59.32679233 | V55: -19.64956858 | W55: 160.3504314 | Y55: 1000000000 | Z55: 2290.866769 | AB55: 45.50481633 | AC55: -17.50103551 | AE55: 13.82197599 | AF55: -2.14853581 | AG55: 59.32679233 | AH55: -19.64957132 | AI55: 0 | AJ55: 0
A56: 52.481 | B56: 0.052481 | C56: 1.000820023 | D56: 0.04048364683 | E56: 1.000000003 | F56: 8.243696175e-05 | G56: 1 | H56: 0 | I56: 1.060529088 | J56: 0.3394871367 | K56: 1.000023975 | L56: 0.006924594122 | M56: 1.000000018 | N56: 0.0001904502837 | O56: 1 | P56: 5.2481e-08 | Q56: 1 | R56: 5.2481e-08 | S56: 1.000000185 | T56: 0.0007121387649 | U56: 59.24383889 | V56: -21.42096049 | W56: 158.5790395 | Y56: 1000000000 | Z56: 2754.255361 | AB56: 45.4230602 | AC56: -19.06534213 | AE56: 13.82077869 | AF56: -2.355621361 | AG56: 59.24383889 | AH56: -21.4209635 | AI56: 0 | AJ56: 0
A57: 57.544 | B57: 0.057544 | C57: 1.000985793 | D57: 0.04438432397 | E57: 1.000000004 | F57: 9.038990348e-05 | G57: 1 | H57: 0 | I57: 1.072355977 | J57: 0.369449819 | K57: 1.000028825 | L57: 0.007592606011 | M57: 1.000000022 | N57: 0.0002088235952 | O57: 1 | P57: 5.7544e-08 | Q57: 1 | R57: 5.7544e-08 | S57: 1.000000222 | T57: 0.0007808409188 | U57: 59.14611425 | V57: -23.3274469 | W57: 156.6725531 | Y57: 1000000000 | Z57: 3311.311936 | AB57: 45.32677444 | AC57: -20.74485582 | AE57: 13.81933981 | AF57: -2.582594372 | AG57: 59.14611425 | AH57: -23.3274502 | AI57: 0 | AJ57: 0
A58: 63.096 | B58: 0.063096 | C58: 1.001185076 | D58: 0.04866018297 | E58: 1.000000005 | F58: 9.91109646e-05 | G58: 1 | H58: 0 | I58: 1.086405925 | J58: 0.4015244864 | K58: 1.000034655 | L58: 0.008325128716 | M58: 1.000000026 | N58: 0.0002289714571 | O58: 1 | P58: 6.3096e-08 | Q58: 1 | R58: 6.3096e-08 | S58: 1.000000267 | T58: 0.0008561785314 | U58: 59.03137243 | V58: -25.37317911 | W58: 154.6268209 | Y58: 1000000000 | Z58: 3981.105216 | AB58: 45.21376207 | AC58: -22.54178283 | AE58: 13.81761036 | AF58: -2.831399894 | AG58: 59.03137243 | AH58: -25.37318272 | AI58: 0 | AJ58: 0
A59: 69.183 | B59: 0.069183 | C59: 1.001424588 | D59: 0.05334601966 | E59: 1.000000006 | F59: 0.0001086724017 | G59: 1 | H59: 0 | I59: 1.103059018 | J59: 0.4357119096 | K59: 1.000041664 | L59: 0.009128228237 | M59: 1.000000032 | N59: 0.0002510608003 | O59: 1 | P59: 6.9183e-08 | Q59: 1 | R59: 6.9183e-08 | S59: 1.000000321 | T59: 0.0009387757957 | U59: 58.89722265 | V59: -27.55988854 | W59: 152.4401115 | Y59: 1000000000 | Z59: 4786.287489 | AB59: 45.08169042 | AC59: -24.4558293 | AE59: 13.81553223 | AF59: -3.104063205 | AG59: 58.89722265 | AH59: -27.55989251 | AI59: 0 | AJ59: 0
A60: 75.858 | B60: 0.075858 | C60: 1.001712501 | D60: 0.05848180319 | E60: 1.000000007 | F60: 0.0001191574671 | G60: 1 | H60: 0 | I60: 1.122755639 | J60: 0.4719889522 | K60: 1.000050091 | L60: 0.01000889304 | M60: 1.000000038 | N60: 0.0002752839587 | O60: 1 | P60: 7.5858e-08 | Q60: 1 | R60: 7.5858e-08 | S60: 1.000000386 | T60: 0.00102935189 | U60: 58.74106847 | V60: -29.88818671 | W60: 150.1118133 | Y60: 1000000000 | Z60: 5754.436164 | AB60: 44.92803365 | AC60: -26.48528025 | AE60: 13.81303481 | AF60: -3.402910804 | AG60: 58.74106847 | AH60: -29.88819105 | AI60: 0 | AJ60: 0
A61: 83.176 | B61: 0.083176 | C61: 1.002058491 | D61: 0.06410875773 | E61: 1.000000009 | F61: 0.0001306525544 | G61: 1 | H61: 0 | I61: 1.145984944 | J61: 0.5102717504 | K61: 1.000060221 | L61: 0.01097437404 | M61: 1.000000046 | N61: 0.0003018405234 | O61: 1 | P61: 8.3176e-08 | Q61: 1 | R61: 8.3176e-08 | S61: 1.000000464 | T61: 0.00112865313 | U61: 58.5602828 | V61: -32.35526432 | W61: 147.6447357 | Y61: 1000000000 | Z61: 6918.246976 | AB61: 44.75024823 | AC61: -28.62492661 | AE61: 13.81003457 | AF61: -3.730342473 | AG61: 58.5602828 | AH61: -32.35526908 | AI61: 0 | AJ61: 0
A62: 91.201 | B62: 0.091201 | C62: 1.002474355 | D62: 0.07027465556 | E62: 1.00000001 | F62: 0.0001432581947 | G62: 1 | H62: 0 | I62: 1.173307257 | J62: 0.5504453306 | K62: 1.000072402 | L62: 0.01203310762 | M62: 1.000000055 | N62: 0.0003309627466 | O62: 1 | P62: 9.1201e-08 | Q62: 1 | R62: 9.1201e-08 | S62: 1.000000558 | T62: 0.001237547957 | U62: 58.35212684 | V62: -34.95684495 | W62: 145.043155 | Y62: 1000000000 | Z62: 8317.622401 | AB62: 44.54569705 | AC62: -30.86771082 | AE62: 13.80642979 | AF62: -4.08913936 | AG62: 58.35212684 | AH62: -34.95685018 | AI62: 0 | AJ62: 0
A63: 100 | B63: 0.1 | C63: 1.002974092 | D63: 0.07702908251 | E63: 1.000000012 | F63: 0.0001570796312 | G63: 1 | H63: 0 | I63: 1.205335487 | J63: 0.5923256437 | K63: 1.000087046 | L63: 0.01319392348 | M63: 1.000000066 | N63: 0.0003628937667 | O63: 1 | P63: 1e-07 | Q63: 1 | R63: 1e-07 | S63: 1.000000671 | T63: 0.001356945518 | U63: 58.11400038 | V63: -37.68477852 | W63: 142.3152215 | Y63: 1000000000 | Z63: 10000 | AB63: 44.31190042 | AC63: -33.20259567 | AE63: 13.80209996 | AF63: -4.482188584 | AG63: 58.11400038 | AH63: -37.68478425 | AI63: 0 | AJ63: 0
A64: 109.65 | B64: 0.10965 | C64: 1.003574715 | D64: 0.08442865666 | E64: 1.000000015 | F64: 0.0001722378153 | G64: 1 | H64: 0 | I64: 1.242757992 | J64: 0.6356905357 | K64: 1.000104656 | L64: 0.01446696727 | M64: 1.000000079 | N64: 0.0003979130116 | O64: 1 | P64: 1.0965e-07 | Q64: 1 | R64: 1.0965e-07 | S64: 1.000000806 | T64: 0.001487890651 | U64: 57.84337969 | V64: -40.52906816 | W64: 139.4709318 | Y64: 1000000000 | Z64: 12023.1225 | AB64: 44.0464808 | AC64: -35.61628738 | AE64: 13.79689888 | AF64: -4.912787057 | AG64: 57.84337969 | AH64: -40.52907444 | AI64: 0 | AJ64: 0
A65: 120.23 | B65: 0.12023 | C65: 1.004296289 | D65: 0.09253068439 | E65: 1.000000018 | F65: 0.0001888568399 | G65: 1 | H65: 0 | I65: 1.286305746 | J65: 0.6802426083 | K65: 1.000125825 | L65: 0.01586264414 | M65: 1.000000095 | N65: 0.0004363071671 | O65: 1 | P65: 1.2023e-07 | Q65: 1 | R65: 1.2023e-07 | S65: 1.000000969 | T65: 0.001631455332 | U65: 57.53816617 | V65: -43.47543216 | W65: 136.5245678 | Y65: 1000000000 | Z65: 14455.2529 | AB65: 43.74751162 | AC65: -38.09116654 | AE65: 13.79065455 | AF65: -5.384272502 | AG65: 57.53816617 | AH65: -43.47543904 | AI65: 0 | AJ65: 0
A66: 131.83 | B66: 0.13183 | C66: 1.005163076 | D66: 0.1013997971 | E66: 1.000000021 | F66: 0.0002070780766 | G66: 1 | H66: 0 | I66: 1.336782075 | J66: 0.7256547293 | K66: 1.000151274 | L66: 0.01739280464 | M66: 1.000000114 | N66: 0.0004784028371 | O66: 1 | P66: 1.3183e-07 | Q66: 1 | R66: 1.3183e-07 | S66: 1.000001166 | T66: 0.001788860796 | U66: 57.19656389 | V66: -46.50823193 | W66: 133.4917681 | Y66: 1000000000 | Z66: 17379.1489 | AB66: 43.41340439 | AC66: -40.60782958 | AE66: 13.7831595 | AF66: -5.900409897 | AG66: 57.19656389 | AH66: -46.50823948 | AI66: 0 | AJ66: 0
A67: 144.54 | B67: 0.14454 | C67: 1.006203416 | D67: 0.1110991982 | E67: 1.000000026 | F67: 0.0002270428969 | G67: 1 | H67: 0 | I67: 1.395009498 | J67: 0.7715353716 | K67: 1.000181846 | L67: 0.01906929189 | M67: 1.000000138 | N67: 0.0005245266253 | O67: 1 | P67: 1.4454e-07 | Q67: 1 | R67: 1.4454e-07 | S67: 1.000001401 | T67: 0.001961328274 | U67: 56.81751096 | V67: -49.60805793 | W67: 130.3919421 | Y67: 1000000000 | Z67: 20891.8116 | AB67: 43.04333868 | AC67: -43.14318381 | AE67: 13.77417229 | AF67: -6.464882406 | AG67: 56.81751096 | AH67: -49.60806621 | AI67: 0 | AJ67: 0
A68: 158.49 | B68: 0.15849 | C68: 1.007453974 | D68: 0.1217207079 | E68: 1.000000031 | F68: 0.0002489555044 | G68: 1 | H68: 0 | I68: 1.462011093 | J68: 0.8175789615 | K68: 1.000218637 | L68: 0.02090921513 | M68: 1.000000165 | N68: 0.0005751502926 | O68: 1 | P68: 1.5849e-07 | Q68: 1 | R68: 1.5849e-07 | S68: 1.000001685 | T68: 0.002150621768 | U68: 56.39956919 | V68: -52.76179909 | W68: 127.2382009 | Y68: 1000000000 | Z68: 25119.0801 | AB68: 42.63618787 | AC68: -45.67876787 | AE68: 13.76338133 | AF68: -7.083040299 | AG68: 56.39956919 | AH68: -52.76180817 | AI68: 0 | AJ68: 0
A69: 173.78 | B69: 0.17378 | C69: 1.008954867 | D69: 0.1333307866 | E69: 1.000000037 | F69: 0.0002729729786 | G69: 1 | H69: 0 | I69: 1.538679437 | J69: 0.8633330117 | K69: 1.000262852 | L69: 0.02292571343 | M69: 1.000000199 | N69: 0.0006306367318 | O69: 1 | P69: 1.7378e-07 | Q69: 1 | R69: 1.7378e-07 | S69: 1.000002025 | T69: 0.002358098188 | U69: 55.94306979 | V69: -55.94667442 | W69: 124.0533256 | Y69: 1000000000 | Z69: 30199.4884 | AB69: 42.19262188 | AC69: -48.18792414 | AE69: 13.75044791 | AF69: -7.758760232 | AG69: 55.94306979 | AH69: -55.94668437 | AI69: 0 | AJ69: 0
A70: 190.55 | B70: 0.19055 | C70: 1.010756924 | D70: 0.1460231101 | E70: 1.000000045 | F70: 0.0002993152308 | G70: 1 | H70: 0 | I70: 1.626101886 | J70: 0.9084514288 | K70: 1.000316022 | L70: 0.02513718425 | M70: 1.000000239 | N70: 0.0006914939925 | O70: 1 | P70: 1.9055e-07 | Q70: 1 | R70: 1.9055e-07 | S70: 1.000002435 | T70: 0.00258565721 | U70: 55.44803588 | V70: -59.1472927 | W70: 120.8527073 | Y70: 1000000000 | Z70: 36309.3025 | AB70: 41.71309116 | AC70: -50.64979794 | AE70: 13.73494472 | AF70: -8.497505675 | AG70: 55.44803588 | AH70: -59.14730362 | AI70: 0 | AJ70: 0
A71: 208.93 | B71: 0.20893 | C71: 1.012918295 | D71: 0.1598795971 | E71: 1.000000054 | F71: 0.0003281864644 | G71: 1 | H71: 0 | I71: 1.725310938 | J71: 0.9525516225 | K71: 1.000379916 | L71: 0.02756068359 | M71: 1.000000287 | N71: 0.0007581938347 | O71: 1 | P71: 2.0893e-07 | Q71: 1 | R71: 2.0893e-07 | S71: 1.000002928 | T71: 0.0028350628 | U71: 54.91563979 | V71: -62.34556587 | W71: 117.6544341 | Y71: 1000000000 | Z71: 43651.7449 | AB71: 41.19925308 | AC71: -53.04151825 | AE71: 13.71638671 | AF71: -9.30405959 | AG71: 54.91563979 | AH71: -62.34557784 | AI71: 0 | AJ71: 0
A72: 229.09 | B72: 0.22909 | C72: 1.015511604 | D72: 0.1750069404 | E72: 1.000000065 | F72: 0.0003598537146 | G72: 1 | H72: 0 | I72: 1.83754505 | J72: 0.9953558953 | K72: 1.000456753 | L72: 0.03021851187 | M72: 1.000000346 | N72: 0.000831353175 | O72: 1 | P72: 2.2909e-07 | Q72: 1 | R72: 2.2909e-07 | S72: 1.00000352 | T72: 0.003108621683 | U72: 54.34667946 | V72: -65.53057057 | W72: 114.4694294 | Y72: 1000000000 | Z72: 52482.2281 | AB72: 40.6525073 | AC72: -55.34593181 | AE72: 13.69417216 | AF72: -10.18465188 | AG72: 54.34667946 | AH72: -65.53058369 | AI72: 0 | AJ72: 0
A73: 251.19 | B73: 0.25119 | C73: 1.018620008 | D73: 0.1914972853 | E73: 1.000000078 | F73: 0.0003945683084 | G73: 1 | H73: 0 | I73: 1.963980129 | J73: 1.036576041 | K73: 1.000549103 | L73: 0.0331316114 | M73: 1.000000415 | N73: 0.00091155264 | O73: 1 | P73: 2.5119e-07 | Q73: 1 | R73: 2.5119e-07 | S73: 1.000004232 | T73: 0.003408504863 | U73: 53.7429464 | V73: -68.69001666 | W73: 111.3099833 | Y73: 1000000000 | Z73: 63096.4161 | AB73: 40.07532655 | AC73: -57.54535896 | AE73: 13.66761985 | AF73: -11.14467209 | AG73: 53.7429464 | AH73: -68.69003105 | AI73: 0 | AJ73: 0
A74: 275.42 | B74: 0.27542 | C74: 1.022344241 | D74: 0.2094562905 | E74: 1.000000094 | F74: 0.0004326286968 | G74: 1 | H74: 0 | I74: 2.105949384 | J74: 1.076008175 | K74: 1.000660109 | L74: 0.03632482758 | M74: 1.000000499 | N74: 0.0009994817232 | O74: 1 | P74: 2.7542e-07 | Q74: 1 | R74: 2.7542e-07 | S74: 1.000005087 | T74: 0.003737290392 | U74: 53.10598614 | V74: -71.81702285 | W74: 108.1829772 | Y74: 1000000000 | Z74: 75856.1764 | AB74: 39.47007264 | AC74: -59.62673401 | AE74: 13.6359135 | AF74: -12.19030462 | AG74: 53.10598614 | AH74: -71.81703863 | AI74: 0 | AJ74: 0
A75: 302 | B75: 0.302 | C75: 1.026805966 | D75: 0.2290002234 | E75: 1.000000113 | F75: 0.0004743804546 | G75: 1 | H75: 0 | I75: 2.264955603 | J75: 1.113515711 | K75: 1.000793615 | L75: 0.03982689025 | M75: 1.000000601 | N75: 0.001095938785 | O75: 1 | P75: 3.02e-07 | Q75: 1 | R75: 3.02e-07 | S75: 1.000006117 | T75: 0.004097963359 | U75: 52.4370754 | V75: -74.90897568 | W75: 105.0910243 | Y75: 1000000000 | Z75: 91204 | AB75: 38.83899524 | AC75: -61.58063065 | AE75: 13.59808016 | AF75: -13.32836233 | AG75: 52.4370754 | AH75: -74.90899298 | AI75: 0 | AJ75: 0
A76: 331.13 | B76: 0.33113 | C76: 1.03214199 | D76: 0.2502160575 | E76: 1.000000135 | F76: 0.0005201377402 | G76: 1 | H76: 0 | I76: 2.442373526 | J76: 1.148958588 | K76: 1.000954022 | L76: 0.04366380419 | M76: 1.000000722 | N76: 0.001201649604 | O76: 1 | P76: 3.3113e-07 | Q76: 1 | R76: 3.3113e-07 | S76: 1.000007353 | T76: 0.004493237406 | U76: 51.73838679 | V76: -77.96152271 | W76: 102.0384773 | Y76: 1000000000 | Z76: 109647.0769 | AB76: 38.18533844 | AC76: -63.39757577 | AE76: 13.55304835 | AF76: -14.56396592 | AG76: 51.73838679 | AH76: -77.96154169 | AI76: 0 | AJ76: 0
A77: 363.08 | B77: 0.36308 | C77: =SQRT(1+(A77/pole1)^2) -> 1.038522886 | D77: =ATAN(A77/pole1) -> 0.27322351 | E77: =SQRT(1+(A77/Zero1)^2) -> 1.000000163 | F77: =ATAN(A77/Zero1) -> 0.0005703246678 | G77: =IF(VIN_nom>Vout, 1, SQRT(1+(A77/z_RHP)^2)) -> 1 | H77: =IF(VIN_nom>Vout, 0, -ATAN(A77/z_RHP)) -> 0 | I77: =SQRT(1+(A77/Pole2)^2) -> 2.639995052 | J77: =ATAN(A77/Pole2) -> 1.182309331 | K77: =SQRT(1+(A77/Zero2)^2) -> 1.001146896 | L77: =ATAN(A77/Zero2) -> 0.0478706769 | M77: =SQRT(1+(A77/pole4)^2) -> 1.000000868 | N77: =ATAN(A77/pole4) -> 0.001317593983 | O77: =SQRT(1+(A77/Zero3)^2) -> 1 | P77: =ATAN(A77/Zero3) -> 3.6308e-07 | Q77: =SQRT(1+(A77/pole5)^2) -> 1 | R77: =ATAN(A77/pole5) -> 3.6308e-07 | S77: =SQRT((1-(Z77/pterm2))^2+(A77/pterm1)^2) -> 1.000008841 | T77: =IF((ATAN((A77/pterm1)/(1-A77^2/pterm2))>0),ATAN((A77/pterm1)/(1-A77^2/pterm2)),PI()+ATAN((A77/pterm1)/(1-A77^2/pterm2))) -> 0.004926775953 | U77: =20*LOG10(((E77*K77*G77*O77)/(C77*I77*S77*M77*Q77))*Adc) -> 51.01069328 | V77: =((F77+L77+H77+R77)-(D77+J77+T77+N77))*radconv -> -80.97817915 | W77: =IF(V77>0,V77,V77+180) -> 99.02182085 | Y77: =IF(U77<0,A77,1000000000) -> 1000000000 | Z77: =A77^2 -> 131827.0864 | AB77: =20*LOG10((K77/(I77*M77))*AEA*Afb) -> 37.51119011 | AC77: =(L77-(J77+N77))*radconv -> -65.07403967 | AE77: =20*LOG10((E77*G77/(C77*S77))*Am) -> 13.49950317 | AF77: =(F77+H77-(D77+T77))*radconv -> -15.90416028 | AG77: 51.01069328 | AH77: -80.97819995 | AI77: 0 | AJ77: =IF(AI77>0,W75,0) -> 0
A78: 398.11 | B78: =A78/1000 -> 0.39811 | C78: 1.046142389 | D78: 0.2981116808 | E78: 1.000000196 | F78: 0.0006253496434 | G78: 1 | H78: 0 | I78: 2.859550921 | J78: 1.213539845 | K78: 1.001378717 | L78: 0.05248114134 | M78: 1.000001044 | N78: 0.001444715433 | O78: 1 | P78: 3.9811e-07 | Q78: 1 | R78: 3.9811e-07 | S78: 1.000010629 | T78: 0.005402106621 | U78: 50.25529855 | V78: -83.96074603 | W78: 96.03925397 | Y78: 1000000000 | Z78: 158491.5721 | AB78: 36.81930519 | AC78: -66.60653967 | AE78: 13.43599336 | AF78: -17.35422917 | AG78: =AB78+AE78 -> 50.25529855 | AH78: -83.96076884 | AI78: =SUM((U79<0)*(U78>0))*A78 -> 0 | AJ78: 0
A79: 436.52 | B79: 0.43652 | C79: 1.055230318 | D79: 0.3249696602 | E79: 1.000000235 | F79: 0.0006856839043 | G79: 1 | H79: 0 | I79: 3.103019787 | J79: 1.242673348 | K79: 1.00165736 | L79: 0.05753389091 | M79: 1.000001255 | N79: 0.001584102615 | O79: 1 | P79: 4.3652e-07 | Q79: 1 | R79: 4.3652e-07 | S79: 1.000012779 | T79: 0.005923299672 | U79: 49.47283155 | V79: -86.91370979 | W79: 93.08629021 | Y79: 1000000000 | Z79: 190549.7104 | AB79: 36.11198574 | AC79: -67.9942515 | AE79: 13.36084581 | AF79: -18.9194833 | AG79: 49.47283155 | AH79: -86.9137348 | AI79: 0 | AJ79: 0
A80: 478.63 | B80: 0.47863 | C80: 1.066052348 | D80: 0.353865463 | E80: 1.000000283 | F80: 0.0007518301034 | G80: 1 | H80: 0 | I80: 3.372508749 | J80: 1.269754681 | K80: 1.001992213 | L80: 0.06306998025 | M80: 1.000001508 | N80: 0.001736916765 | O80: 1 | P80: 4.7863e-07 | Q80: 1 | R80: 4.7863e-07 | S80: 1.000015364 | T80: 0.006494696572 | U80: 48.66371429 | V80: -89.84147078 | W80: 90.15852922 | Y80: 1000000000 | Z80: 229086.6769 | AB80: 35.39151593 | AC80: -69.23745863 | AE80: 13.27219836 | AF80: -20.60403958 | AG80: 48.66371429 | AH80: -89.84149821 | AI80: 0 | AJ80: 0
A81: 524.81 | B81: 0.52481 | C81: 1.078921593 | D81: 0.3848589128 | E81: 1.00000034 | F81: 0.0008243694326 | G81: 1 | H81: 0 | I81: 3.670448838 | J81: 1.294861786 | K81: 1.00239471 | L81: 0.06913668197 | M81: 1.000001814 | N81: 0.001904500558 | O81: 1 | P81: 5.2481e-07 | Q81: 1 | R81: 5.2481e-07 | S81: 1.000018471 | T81: 0.007121317015 | U81: 47.82762466 | V81: -92.7495451 | W81: 87.2504549 | Y81: 1000000000 | Z81: 275425.5361 | AB81: 34.65967987 | AC81: -70.33799521 | AE81: 13.16794479 | AF81: -22.41157996 | AG81: 47.82762466 | AH81: -92.74957517 | AI81: 0 | AJ81: 0
A82: 575.44 | B82: 0.57544 | C82: 1.094191861 | D82: 0.4179658326 | E82: 1.000000409 | F82: 0.0009038987911 | G82: 1 | H82: 0 | I82: 3.999341722 | J82: 1.318073573 | K82: 1.002878352 | L82: 0.07578211467 | M82: 1.00000218 | N82: 0.002088232947 | O82: 1 | P82: 5.7544e-07 | Q82: 1 | R82: 5.7544e-07 | S82: 1.000022207 | T82: 0.007808316075 | U82: 46.96432076 | V82: -95.64094371 | W82: 84.35905629 | Y82: 1000000000 | Z82: 331131.1936 | AB82: 33.91847972 | AC82: -71.29770449 | AE82: 13.04584104 | AF82: -24.34327219 | AG82: 46.96432076 | AH82: -95.64097668 | AI82: 0 | AJ82: 0
A83: 630.96 | B83: 0.63096 | C83: 1.112274971 | D83: 0.4531825167 | E83: 1.000000491 | F83: 0.0009911093247 | G83: 1 | H83: 0 | I83: 4.362084761 | J83: 1.339491103 | K83: 1.003459564 | L83: 0.08306166113 | M83: 1.000002621 | N83: 0.002289710609 | O83: 1 | P83: 6.3096e-07 | Q83: 1 | R83: 6.3096e-07 | S83: 1.000026699 | T83: 0.008561662566 | U83: 46.07282561 | V83: -98.51846528 | W83: 81.48153472 | Y83: 1000000000 | Z83: 398110.5216 | AB83: 33.16939656 | AC83: -72.1192951 | AE83: 12.90342905 | AF83: -26.39920634 | AG83: 46.07282561 | AH83: -98.51850144 | AI83: 0 | AJ83: 0
A84: 691.83 | B84: 0.69183 | C84: 1.133631579 | D84: 0.4904503902 | E84: 1.00000059 | F84: 0.001086723594 | G84: 1 | H84: 0 | I84: 4.761713937 | J84: 1.359212759 | K84: 1.004157815 | L84: 0.09103252173 | M84: 1.000003152 | N84: 0.002510602781 | O84: 1 | P84: 6.9183e-07 | Q84: 1 | R84: 6.9183e-07 | S84: 1.000032099 | T84: 0.009387596147 | U84: 45.15223745 | V84: -101.3815251 | W84: 78.61847492 | Y84: 1000000000 | Z84: 478628.7489 | AB84: 32.41404986 | AC84: -72.80522231 | AE84: 12.73818759 | AF84: -28.57634242 | AG84: 45.15223745 | AH84: -101.3815647 | AI84: 0 | AJ84: 0
A85: 758.58 | B85: 0.75858 | C85: 1.158789653 | D85: 0.5296788263 | E85: 1.00000071 | F85: 0.001191574112 | G85: 1 | H85: 0 | I85: 5.20173264 | J85: 1.377348408 | K85: 1.004996748 | L85: 0.09976001087 | M85: 1.000003789 | N85: 0.002752832702 | O85: 1 | P85: 7.5858e-07 | Q85: 1 | R85: 7.5858e-07 | S85: 1.000038592 | T85: 0.01029330559 | U85: 44.20108227 | V85: -104.2279575 | W85: 75.77204251 | Y85: 1000000000 | Z85: 575443.6164 | AB85: 31.65360349 | AC85: -73.35814888 | AE85: 12.54747877 | AF85: -30.86985208 | AG85: 44.20108227 | AH85: -104.228001 | AI85: 0 | AJ85: 0
A86: 831.76 | B86: 0.83176 | C86: 1.188327402 | D86: 0.5707075883 | E86: 1.000000854 | F86: 0.001306524808 | G86: 1 | H86: 0 | I86: 5.685784841 | J86: 1.393999525 | K86: 1.006004302 | L86: 0.1093106773 | M86: 1.000004555 | N86: 0.00301839616 | O86: 1 | P86: 8.3176e-07 | Q86: 1 | R86: 8.3176e-07 | S86: 1.000046396 | T86: 0.01128625012 | U86: 43.21823474 | V86: -107.051075 | W86: 72.94892495 | Y86: 1000000000 | Z86: 691824.6976 | AB86: 30.88945257 | AC86: -73.78019038 | AE86: 12.32878217 | AF86: -33.27093232 | AG86: 43.21823474 | AH86: -107.0511227 | AI86: 0 | AJ86: 0
A87: 912.01 | B87: 0.91201 | C87: 1.222899513 | D87: 0.6133424258 | E87: 1.000001026 | F87: 0.001432580976 | G87: 1 | H87: 0 | I87: 6.218118033 | J87: 1.409274548 | K87: 1.007214459 | L87: 0.1197610148 | M87: 1.000005477 | N87: 0.003309615503 | O87: 1 | P87: 9.1201e-07 | Q87: 1 | R87: 9.1201e-07 | S87: 1.000055781 | T87: 0.0123751089 | U87: 42.20212498 | V87: -109.842151 | W87: 70.15784899 | Y87: 1000000000 | Z87: 831762.2401 | AB87: 30.12251603 | AC87: -74.07331016 | AE87: 12.07960895 | AF87: -35.7688931 | AG87: 42.20212498 | AH87: -109.8422033 | AI87: 0 | AJ87: 0
A88: 1000 | B88: 1 | C88: 1.263211364 | D88: 0.6573189995 | E88: 1.000001234 | F88: 0.001570795033 | G88: 1 | H88: 0 | I88: 6.803187746 | J88: 1.423271885 | K88: 1.008667429 | L88: 0.131189061 | M88: 1.000006585 | N88: 0.003628921896 | O88: 1 | P88: 1e-06 | Q88: 1 | R88: 1e-06 | S88: 1.000067063 | T88: 0.01356896654 | U88: 41.15176516 | V88: -112.5878064 | W88: 67.41219361 | Y88: 1000000000 | Z88: 1000000 | AB88: 29.35395743 | AC88: -74.23881459 | AE88: 11.79780773 | AF88: -38.3490491 | AG88: 41.15176516 | AH88: -112.5878637 | AI88: 0 | AJ88: 0
A89: 1096.5 | B89: 1.0965 | C89: 1.310046165 | D89: 0.702341156 | E89: 1.000001483 | F89: 0.001722376467 | G89: 1 | H89: 0 | I89: 7.44612266 | J89: 1.436091232 | K89: 1.010411913 | L89: 0.143682768 | M89: 1.000007917 | N89: 0.003979109325 | O89: 1 | P89: 1.0965e-06 | Q89: 1 | R89: 1.0965e-06 | S89: 1.00008063 | T89: 0.01487826233 | U89: 40.06608103 | V89: -115.2724346 | W89: 64.72756538 | Y89: 1000000000 | Z89: 1202312.25 | AB89: 28.58460048 | AC89: -74.27753665 | AE89: 11.48148054 | AF89: -40.9949608 | AG89: 40.06608103 | AH89: -115.2724974 | AI89: 0 | AJ89: 0
A90: 1202.3 | B90: 1.2023 | C90: 1.364222738 | D90: 0.7480478578 | E90: 1.000001783 | F90: 0.001888566176 | G90: 1 | H90: 0 | I90: 8.152192782 | J90: 1.447820215 | K90: 1.012505096 | L90: 0.1573286821 | M90: 1.000009518 | N90: 0.004363044263 | O90: 1 | P90: 1.2023e-06 | Q90: 1 | R90: 1.2023e-06 | S90: 1.00009694 | T90: 0.01631370411 | U90: 38.94504448 | V90: -117.8761182 | W90: 62.12388178 | Y90: 1000000000 | Z90: 1445525.29 | AB90: 27.81567666 | AC90: -74.18970241 | AE90: 11.12936782 | AF90: -43.6864847 | AG90: 38.94504448 | AH90: -117.8761871 | AI90: 0 | AJ90: =IF(AI90>0,W90,0) -> 0
A91: 1318.3 | B91: 1.3183 | C91: 1.426632758 | D91: 0.7940659576 | E91: 1.000002144 | F91: 0.002070777835 | G91: 1 | H91: 0 | I91: 8.927409014 | J91: 1.458546165 | K91: 1.015015797 | L91: 0.1722224023 | M91: 1.000011443 | N91: 0.004783992239 | O91: 1 | P91: 1.3183e-06 | Q91: 1 | R91: 1.3183e-06 | S91: 1.000116548 | T91: 0.01788748851 | U91: 37.78881428 | V91: -120.3778086 | W91: 59.62219136 | Y91: 1000000000 | Z91: 1737914.89 | AB91: 27.04815178 | AC91: -73.97502533 | AE91: 10.7406625 | AF91: -46.40285884 | AG91: 37.78881428 | AH91: -120.3778842 | AI91: 0 | AJ91: 0
A92: 1445.4 | B92: 1.4454 | C92: 1.498176018 | D92: 0.8399792025 | E92: 1.000002577 | F92: 0.002270425107 | G92: 1 | H92: 0 | I92: 9.777788599 | J92: 1.468344578 | K92: 1.018023873 | L92: 0.1884529441 | M92: 1.000013756 | N92: 0.00524521863 | O92: 1 | P92: 1.4454e-06 | Q92: 1 | R92: 1.4454e-06 | S92: 1.000140103 | T92: 0.01961180733 | U92: 36.59897942 | V92: -122.7536863 | W92: 57.24631371 | Y92: 1000000000 | Z92: 2089181.16 | AB92: 26.28353071 | AC92: -73.63291785 | AE92: 10.31544872 | AF92: -49.12085125 | AG92: 36.59897942 | AH92: -122.7537691 | AI92: 0 | AJ92: 0
A93: 1584.9 | B93: 1.5849 | C93: 1.579984497 | D93: 0.885480448 | E93: 1.000003099 | F93: 0.002489549952 | G93: 1 | H93: 0 | I93: 10.71203265 | J93: 1.477307236 | K93: 1.021632162 | L93: 0.206151732 | M93: 1.00001654 | N93: 0.005751440142 | O93: 1 | P93: 1.5849e-06 | Q93: 1 | R93: 1.5849e-06 | S93: 1.000168449 | T93: 0.02150427258 | U93: 35.37502089 | V93: -124.985044 | W93: 55.01495604 | Y93: 1000000000 | Z93: 2511908.01 | AB93: 25.52161352 | AC93: -73.16137884 | AE93: 9.853407372 | AF93: -51.82375593 | AG93: 35.37502089 | AH93: -124.9851348 | AI93: 0 | AJ93: 0
A94: 1737.8 | B94: 1.7378 | C94: 1.673018958 | D94: 0.9301398647 | E94: 1.000003726 | F94: 0.002729723073 | G94: 1 | H94: 0 | I94: 11.73684119 | J94: 1.485491103 | K94: 1.025951878 | L94: 0.2254008981 | M94: 1.000019885 | N94: 0.006306284554 | O94: 1 | P94: 1.7378e-06 | Q94: 1 | R94: 1.7378e-06 | S94: 1.000202516 | T94: 0.02357841788 | U94: 34.12080258 | V94: -127.0467055 | W94: 52.95329455 | Y94: 1000000000 | Z94: 3019948.84 | AB94: 24.76464634 | AC94: -72.55917413 | AE94: 9.356156245 | AF94: -54.48763089 | AG94: 34.12080258 | AH94: -127.046805 | AI94: 0 | AJ94: 0
A95: 1905.5 | B95: 1.9055 | C95: 1.77847009 | D95: 0.9736547235 | E95: 1.000004479 | F95: 0.002993143459 | G95: 1 | H95: 0 | I95: 12.86159922 | J95: 1.492966948 | K95: 1.031122898 | L95: 0.2463192024 | M95: 1.000023908 | N95: 0.006914830815 | O95: 1 | P95: 1.9055e-06 | Q95: 1 | R95: 1.9055e-06 | S95: 1.000243483 | T95: 0.02585319203 | U95: 32.83829829 | V95: -128.9198266 | W95: 51.08017341 | Y95: 1000000000 | Z95: 3630930.25 | AB95: 24.01340533 | AC95: -71.82384504 | AE95: 8.82489296 | AF95: -57.09609073 | AG95: 32.83829829 | AH95: -128.9199358 | AI95: 0 | AJ95: 0
A96: 2089.3 | B96: 2.0893 | C96: 1.897458121 | D96: 1.015705073 | E96: 1.000005385 | F96: 0.003281852979 | G96: 1 | H96: 0 | I96: 14.0950269 | J96: 1.499789664 | K96: 1.037303046 | L96: 0.2689951688 | M96: 1.000028742 | N96: 0.00758179452 | O96: 1 | P96: 2.0893e-06 | Q96: 1 | R96: 2.0893e-06 | S96: 1.000292714 | T96: 0.0283461727 | U96: 31.5318097 | V96: -130.585309 | W96: 49.41469103 | Y96: 1000000000 | Z96: 4365174.49 | AB96: 23.26984904 | AC96: -70.95373494 | AE96: 8.261960657 | AF96: -59.63169374 | AG96: 31.5318097 | AH96: -130.5854287 | AI96: 0 | AJ96: 0
A97: 2290.9 | B97: 2.2909 | C97: 2.031349751 | D97: 1.056085093 | E97: 1.000006475 | F97: 0.003598521768 | G97: 1 | H97: 0 | I97: 15.4485333 | J97: 1.506019972 | K97: 1.044687257 | L97: 0.293544596 | M97: 1.000034557 | N97: 0.008313342144 | O97: 1 | P97: 2.2909e-06 | Q97: 1 | R97: 2.2909e-06 | S97: 1.000351919 | T97: 0.03108034379 | U97: 30.20419045 | V97: -132.0297212 | W97: 47.97027881 | Y97: 1000000000 | Z97: 5248222.81 | AB97: 22.53498453 | AC97: -69.94604131 | AE97: 7.669205917 | AF97: -62.08381113 | AG97: 30.20419045 | AH97: -132.0298524 | AI97: 0 | AJ97: 0
A98: 2511.9 | B98: 2.5119 | C98: 2.181438085 | D98: 1.09458741 | E98: 1.000007784 | F98: 0.003945662813 | G98: 1 | H98: 0 | I98: 16.93286138 | J98: 1.51170518 | K98: 1.053494541 | L98: 0.3200432416 | M98: 1.000041546 | N98: 0.009115276459 | O98: 1 | P98: 2.5119e-06 | Q98: 1 | R98: 2.5119e-06 | S98: 1.00042308 | T98: 0.0340773073 | U98: 28.8604174 | V98: -133.2409777 | W98: 46.75902228 | Y98: 1000000000 | Z98: 6309641.61 | AB98: 21.81098168 | AC98: -68.79946663 | AE98: 7.049435719 | AF98: -64.44165502 | AG98: 28.8604174 | AH98: -133.2411216 | AI98: 0 | AJ98: 0
A99: 2754.2 | B99: 2.7542 | C99: 2.349207272 | D99: 1.131088052 | E99: 1.000009358 | F99: 0.004326260247 | G99: 1 | H99: 0 | I99: 18.56077264 | J99: 1.51689316 | K99: 1.063985652 | L99: 0.3485694084 | M99: 1.000049947 | N99: 0.009994487765 | O99: 1 | P99: 2.7542e-06 | Q99: 1 | R99: 2.7542e-06 | S99: 1.000508619 | T99: 0.03736270036 | U99: 27.50480224 | V99: -134.2119246 | W99: 45.78807541 | Y99: 1000000000 | Z99: 7585617.64 | AB99: 21.09966439 | AC99: -67.51266212 | AE99: 6.405137847 | AF99: -66.69942027 | AG99: 27.50480224 | AH99: -134.2120824 | AI99: 0 | AJ99: 0
A100: 3020 | B100: 3.02 | C100: 2.536345636 | D100: 1.1655251 | E100: 1.000011252 | F100: 0.004743769318 | G100: 1 | H100: 0 | I100: 20.34704864 | J100: 1.521629343 | K100: 1.076469229 | L100: 0.3791950108 | M100: 1.000060052 | N100: 0.01095895349 | O100: 1 | P100: 3.02e-06 | Q100: 1 | R100: 3.02e-06 | S100: 1.0006115 | T100: 0.04096618321 | U100: 26.14130534 | V100: -134.9394551 | W100: 45.06054491 | Y100: 1000000000 | Z100: 9120400 | AB100: 20.40278615 | AC100: -66.08456746 | AE100: 5.738519193 | AF100: -68.85506067 | AG100: 26.14130534 | AH100: -134.9396281 | AI100: 0 | AJ100: 0
A101: 3311.3 | B101: 3.3113 | C101: 2.744395875 | D101: 1.197830544 | E101: 1.000013527 | F101: 0.005201330965 | G101: 1 | H101: 0 | I101: 22.30513044 | J101: 1.52594856 | K101: 1.091281524 | L101: 0.4119199421 | M101: 1.000072196 | N101: 0.01201592349 | O101: 1 | P101: 3.3113e-06 | Q101: 1 | R101: 3.3113e-06 | S101: 1.000735117 | T101: 0.04491464659 | U101: 24.77601696 | V101: -135.4234503 | W101: 44.57654973 | Y101: 1000000000 | Z101: 10964707.69 | AB101: 19.72331745 | AC101: -64.51759981 | AE101: 5.052699516 | AF101: -70.90604018 | AG101: 24.77601696 | AH101: -135.42364 | AI101: 0 | AJ101: 0
A102: 3630.8 | B102: 3.6308 | C102: 2.975395507 | D102: 1.228034255 | E102: 1.000016263 | F102: 0.005703185461 | G102: 1 | H102: 0 | I102: 24.45316722 | J102: 1.529890422 | K102: 1.108833045 | L102: 0.4467661045 | M102: 1.000086799 | N102: 0.01317518507 | O102: 1 | P102: 3.6308e-06 | Q102: 1 | R102: 3.6308e-06 | S102: 1.000883764 | T102: 0.04924439358 | U102: 23.41264505 | V102: -135.6690341 | W102: 44.33096594 | Y102: 1000000000 | Z102: 13182708.64 | AB102: 19.06317076 | AC102: -62.81333463 | AE102: 4.349474295 | AF102: -72.85590745 | AG102: 23.41264505 | AH102: -135.6692421 | AI102: 0 | AJ102: 0
A103: 3981.1 | B103: 3.9811 | C103: 3.231313929 | D103: 1.256158988 | E103: 1.000019553 | F103: 0.006253415734 | G103: 1 | H103: 0 | I103: 26.80863941 | J103: 1.533486263 | K103: 1.129572284 | L103: 0.4836772679 | M103: 1.000104355 | N103: 0.01444615936 | O103: 1 | P103: 3.9811e-06 | Q103: 1 | R103: 3.9811e-06 | S103: 1.00106244 | T103: 0.05399027011 | U103: 22.05644594 | V103: -135.6848295 | W103: 44.31517055 | Y103: 1000000000 | Z103: 15849157.21 | AB103: 18.42518252 | AC103: -60.97732875 | AE103: 3.631263421 | AF103: -74.7077288 | AG103: 22.05644594 | AH103: -135.6850576 | AI103: 0 | AJ103: 0
A104: 4365.2 | B104: 4.3652 | C104: 3.51441353 | D104: 1.282267163 | E104: 1.000023508 | F104: 0.00685673266 | G104: 1 | H104: 0 | I104: 29.39171958 | J104: 1.536766571 | K104: 1.154013304 | L104: 0.5225663865 | M104: 1.000125461 | N104: 0.01583971456 | O104: 1 | P104: 4.3652e-06 | Q104: 1 | R104: 4.3652e-06 | S104: 1.001277222 | T104: 0.05919240936 | U104: 20.71189072 | V104: -135.483799 | W104: 44.51620095 | Y104: 1000000000 | Z104: 19054971.04 | AB104: 17.81193053 | AC104: -59.01693903 | AE104: 2.899960187 | AF104: -76.46711012 | AG104: 20.71189072 | AH104: -135.4840492 | AI104: 0 | AJ104: 0
A105: 4786.3 | B105: 4.7863 | C105: 3.82710869 | D105: 1.30643394 | E105: 1.000028262 | F105: 0.007518160798 | G105: 1 | H105: 0 | I105: 32.22392785 | J105: 1.539758504 | K105: 1.182725452 | L105: 0.5632865649 | M105: 1.000150833 | N105: 0.01736743874 | O105: 1 | P105: 4.7863e-06 | Q105: 1 | R105: 4.7863e-06 | S105: 1.001535358 | T105: 0.06489347873 | U105: 19.38350692 | V105: -135.0830423 | W105: 44.91695771 | Y105: 1000000000 | Z105: 22908667.69 | AB105: 17.22610311 | AC105: -56.94280191 | AE105: 2.157403805 | AF105: -78.14051462 | AG105: 19.38350692 | AH105: -135.0833165 | AI105: 0 | AJ105: 0
A106: 5248.1 | B106: 5.2481 | C106: 4.172191323 | D106: 1.328757829 | E106: 1.000033979 | F106: 0.008243509458 | G106: 1 | H106: 0 | I106: 35.33014955 | J106: 1.542488109 | K106: 1.216353306 | L106: 0.6056546999 | M106: 1.00018134 | N106: 0.01904272648 | O106: 1 | P106: 5.2481e-06 | Q106: 1 | R106: 5.2481e-06 | S106: 1.001845679 | T106: 0.07114268484 | U106: 18.07490835 | V106: -134.5034407 | W106: 45.49655934 | Y106: 1000000000 | Z106: 27542553.61 | AB106: 16.67001413 | AC106: -54.76766837 | AE106: 1.404894212 | AF106: -79.73607299 | AG106: 18.07490835 | AH106: -134.5037414 | AI106: 0 | AJ106: 0
A107: 5370.3 | B107: 5.3703 | C107: 4.263818219 | D107: 1.334059652 | E107: 1.000035579 | F107: 0.008435447419 | G107: 1 | H107: 0 | I107: 36.15214699 | J107: 1.543131924 | K107: 1.225604345 | L107: 0.6164707528 | M107: 1.000189882 | N107: 0.01948601812 | O107: 1 | P107: 5.3703e-06 | Q107: 1 | R107: 5.3703e-06 | S107: 1.001932559 | T107: 0.07279579026 | U107: 17.75144422 | V107: -134.3334969 | W107: 45.6665031 | Y107: 1000000000 | Z107: 28840122.09 | AB107: 16.53597862 | AC107: -54.21024079 | AE107: 1.215465597 | AF107: -80.1235638 | AG107: 17.75144422 | AH107: -134.3338046 | AI107: 0 | AJ107: 0
A108: 5432.85 | B108: 5.43285 | C108: 4.310763778 | D108: 1.336686227 | E108: 1.000036413 | F108: 0.008533693656 | G108: 1 | H108: 0 | I108: 36.57290497 | J108: 1.543450272 | K108: 1.230394481 | L108: 0.6219438603 | M108: 1.000194331 | N108: 0.019712921 | O108: 1 | P108: 5.43285e-06 | Q108: 1 | R108: 5.43285e-06 | S108: 1.001977801 | T108: 0.07364186748 | U108: 17.58928413 | V108: -134.2444872 | W108: 45.75551282 | Y108: 1000000000 | Z108: 29515859.12 | AB108: 16.46931437 | AC108: -53.92789545 | AE108: 1.119969755 | AF108: -80.31690301 | AG108: 17.58928413 | AH108: -134.2447985 | AI108: 0 | AJ108: 0
A109: 5495.4 | B109: 5.4954 | C109: 4.357738436 | D109: 1.339256193 | E109: 1.000037256 | F109: 0.008631939728 | G109: 1 | H109: 0 | I109: 36.99366657 | J109: 1.54376138 | K109: 1.235221188 | L109: 0.6273743564 | M109: 1.000198831 | N109: 0.01993982184 | O109: 1 | P109: 5.4954e-06 | Q109: 1 | R109: 5.4954e-06 | S109: 1.002023566 | T109: 0.07448788223 | U109: 17.42936573 | V109: -134.1542568 | W109: 45.84574317 | Y109: 1000000000 | Z109: 30199421.16 | AB109: 16.40392404 | AC109: -53.64757652 | AE109: 1.025441688 | AF109: -80.50699517 | AG109: 17.42936573 | AH109: -134.1545717 | AI109: 0 | AJ109: 0
A110: 5559.4 | B110: 5.5594 | C110: 4.405831181 | D110: 1.341828994 | E110: 1.000038129 | F110: 0.008732463115 | G110: 1 | H110: 0 | I110: 37.42418565 | J110: 1.544072458 | K110: 1.24019719 | L110: 0.6328868216 | M110: 1.000203489 | N110: 0.02017198045 | O110: 1 | P110: 5.5594e-06 | Q110: 1 | R110: 5.5594e-06 | S110: 1.002070931 | T110: 0.07535344342 | U110: 17.26800902 | V110: -134.0607815 | W110: 45.93921853 | Y110: 1000000000 | Z110: 30906928.36 | AB110: 16.33830419 | AC110: -53.36286071 | AE110: 0.9297048328 | AF110: -80.69823929 | AG110: 17.26800902 | AH110: -134.0611 | AI110: 0 | AJ110: 0
A111: 5623.4 | B111: 5.6234 | C111: 4.453952461 | D111: 1.344346218 | E111: 1.000039012 | F111: 0.008832986325 | G111: 1 | H111: 0 | I111: 37.85470828 | J111: 1.54437646 | K111: 1.245210577 | L111: 0.638355064 | M111: 1.000208201 | N111: 0.02040413689 | O111: 1 | P111: 5.6234e-06 | Q111: 1 | R111: 5.6234e-06 | S111: 1.002118843 | T111: 0.0762189377 | U111: 17.10889624 | V111: -133.9662462 | W111: 46.03375384 | Y111: 1000000000 | Z111: 31622627.56 | AB111: 16.27395353 | AC111: -53.08027314 | AE111: 0.8349427114 | AF111: -80.88629522 | AG111: 17.10889624 | AH111: -133.9665684 | AI111: 0 | AJ111: 0
A112: 5688.9 | B112: 5.6889 | C112: 4.503230173 | D112: 1.34686672 | E112: 1.000039926 | F112: 0.008935865364 | G112: 1 | H112: 0 | I112: 38.29532482 | J112: 1.54468051 | K112: 1.250379704 | L112: 0.6439058946 | M112: 1.000213078 | N112: 0.02064173221 | O112: 1 | P112: 5.6889e-06 | Q112: 1 | R112: 5.6889e-06 | S112: 1.002168444 | T112: 0.07710464693 | U112: 16.94832577 | V112: -133.8685042 | W112: 46.13149582 | Y112: 1000000000 | Z112: 32363583.21 | AB112: 16.20937639 | AC112: -52.79326796 | AE112: 0.7389493802 | AF112: -81.07556217 | AG112: 16.94832577 | AH112: -133.8688301 | AI112: 0 | AJ112: 0
A113: 5754.4 | B113: 5.7544 | C113: 4.552535874 | D113: 1.34933264 | E113: 1.000040851 | F113: 0.009038744213 | G113: 1 | H113: 0 | I113: 38.73594482 | J113: 1.544977643 | K113: 1.25558704 | L113: 0.6494108514 | M113: 1.000218013 | N113: 0.02087932521 | O113: 1 | P113: 5.7544e-06 | Q113: 1 | R113: 5.7544e-06 | S113: 1.002218617 | T113: 0.07799028448 | U113: 16.79000174 | V113: -133.7698628 | W113: 46.23013721 | Y113: 1000000000 | Z113: 33113119.36 | AB113: 16.1460638 | AC113: -52.50849471 | AE113: 0.6439379443 | AF113: -81.26169778 | AG113: 16.79000174 | AH113: -133.7701925 | AI113: 0 | AJ113: 0
A114: 5821.4 | B114: 5.8214 | C114: 4.602998734 | D114: 1.35180036 | E114: 1.000041808 | F114: 0.009143978868 | G114: 1 | H114: 0 | I114: 39.18665881 | J114: 1.545274667 | K114: 1.260952666 | L114: 0.6549946612 | M114: 1.000223118 | N114: 0.02112235683 | O114: 1 | P114: 5.8214e-06 | Q114: 1 | R114: 5.8214e-06 | S114: 1.002270531 | T114: 0.07889612879 | U114: 16.63032378 | V114: -133.6681346 | W114: 46.33186537 | Y114: 1000000000 | Z114: 33888697.96 | AB114: 16.08257701 | AC114: -52.21950889 | AE114: 0.5477467709 | AF114: -81.44895928 | AG114: 16.63032378 | AH114: -133.6684682 | AI114: 0 | AJ114: 0
A115: 5888.4 | B115: 5.8884 | C115: 4.653489017 | D115: 1.354214545 | E115: 1.000042775 | F115: 0.009249213321 | G115: 1 | H115: 0 | I115: 39.63737618 | J115: 1.545564936 | K115: 1.266357273 | L115: 0.6605309807 | M115: 1.000228283 | N115: 0.02136538595 | O115: 1 | P115: 5.8884e-06 | Q115: 1 | R115: 5.8884e-06 | S115: 1.002323044 | T115: 0.07980189637 | U115: 16.47289155 | V115: -133.5656686 | W115: 46.43433143 | Y115: 1000000000 | Z115: 34673254.56 | AB115: 16.0203482 | AC115: -51.93285689 | AE115: 0.4525433491 | AF115: -81.63314906 | AG115: 16.47289155 | AH115: -133.566006 | AI115: 0 | AJ115: 0
A116: 5957 | B116: 5.957 | C116: 4.705212528 | D116: 1.356632685 | E116: 1.000043778 | F116: 0.009356960623 | G116: 1 | H116: 0 | I116: 40.09886033 | J116: 1.545855376 | K116: 1.271930814 | L116: 0.6661505862 | M116: 1.000233633 | N116: 0.02161421613 | O116: 1 | P116: 5.957e-06 | Q116: 1 | R116: 5.957e-06 | S116: 1.00237743 | T116: 0.08072921381 | U116: 16.31397366 | V116: -133.46009 | W116: 46.53990999 | Y116: 1000000000 | Z116: 35485849 | AB116: 15.95790392 | AC116: -51.64177512 | AE116: 0.3560697369 | AF116: -81.8186562 | AG116: 16.31397366 | AH116: -133.4604313 | AI116: 0 | AJ116: 0
A117: 6025.6 | B117: 6.0256 | C117: 4.756962954 | D117: 1.358998226 | E117: 1.000044792 | F117: 0.009464707707 | G117: 1 | H117: 0 | I117: 40.56034778 | J117: 1.546139207 | K117: 1.277544173 | L117: 0.6717209827 | M117: 1.000239044 | N117: 0.02186304364 | O117: 1 | P117: 6.0256e-06 | Q117: 1 | R117: 6.0256e-06 | S117: 1.002432444 | T117: 0.08165644899 | U117: 16.1573042 | V117: -133.3539336 | W117: 46.64606635 | Y117: 1000000000 | Z117: 36307855.36 | AB117: 15.89671285 | AC117: -51.35313399 | AE117: 0.260591353 | AF117: -82.0011449 | AG117: 16.1573042 | AH117: -133.3542789 | AI117: 0 | AJ117: 0
A118: 6095.8 | B118: 6.0958 | C118: 4.809947345 | D118: 1.361366229 | E118: 1.000045842 | F118: 0.009574967616 | G118: 1 | H118: 0 | I118: 41.0326021 | J118: 1.546423049 | K118: 1.283329129 | L118: 0.6773706726 | M118: 1.000244646 | N118: 0.0221176719 | O118: 1 | P118: 6.0958e-06 | Q118: 1 | R118: 6.0958e-06 | S118: 1.002489391 | T118: 0.08260522449 | U118: 15.99925496 | V118: -133.2447983 | W118: 46.75520172 | Y118: 1000000000 | Z118: 37158777.64 | AB118: 15.83535897 | AC118: -51.06028265 | AE118: 0.163895996 | AF118: -82.1848649 | AG118: 15.99925496 | AH118: -133.2451475 | AI118: 0 | AJ118: 0
A119: 6166 | B119: 6.166 | C119: 4.862958119 | D119: 1.363682618 | E119: 1.000046904 | F119: 0.009685227292 | G119: 1 | H119: 0 | I119: 41.50485965 | J119: 1.546700431 | K119: 1.289154681 | L119: 0.6829694791 | M119: 1.000250312 | N119: 0.0223722973 | O119: 1 | P119: 6.166e-06 | Q119: 1 | R119: 6.166e-06 | S119: 1.002546994 | T119: 0.08355391187 | U119: 15.84345349 | V119: -133.1352457 | W119: 46.86475425 | Y119: 1000000000 | Z119: 38019556 | AB119: 15.7752515 | AC119: -50.76997645 | AE119: 0.06820199475 | AF119: -82.36562259 | AG119: 15.84345349 | AH119: -133.135599 | AI119: 0 | AJ119: 0
A120: 6237.8 | B120: 6.2378 | C120: 4.917203519 | D120: 1.366000125 | E120: 1.000048002 | F120: 0.009797999765 | G120: 1 | H120: 0 | I120: 41.98788413 | J120: 1.54697768 | K120: 1.295154429 | L120: 0.68864361 | M120: 1.000256175 | N120: 0.02263272312 | O120: 1 | P120: 6.2378e-06 | Q120: 1 | R120: 6.2378e-06 | S120: 1.00260659 | T120: 0.08452412955 | U120: 15.68637242 | V120: -133.0228558 | W120: 46.97714425 | Y120: 1000000000 | Z120: 38910148.84 | AB120: 15.71503029 | AC120: -50.47567922 | AE120: -0.02865786157 | AF120: -82.54753393 | AG120: 15.68637242 | AH120: -133.0232132 | AI120: 0 | AJ120: 0
A121: 6309.6 | B121: 6.3096 | C121: 4.971474752 | D121: 1.368267045 | E121: 1.000049114 | F121: 0.00991077199 | G121: 1 | H121: 0 | I121: 42.47091177 | J121: 1.547248624 | K121: 1.301195491 | L121: 0.694265234 | M121: 1.000262105 | N121: 0.02289314587 | O121: 1 | P121: 6.3096e-06 | Q121: 1 | R121: 6.3096e-06 | S121: 1.002666872 | T121: 0.08549425294 | U121: 15.53153526 | V121: -132.9102089 | W121: 47.08979109 | Y121: 1000000000 | Z121: 39811052.16 | AB121: 15.65604679 | AC121: -50.18402892 | AE121: -0.1245115266 | AF121: -82.72654151 | AG121: 15.53153526 | AH121: -132.9105704 | AI121: 0 | AJ121: 0
A122: 6383.05 | B122: 6.38305 | C122: 5.027019024 | D122: 1.370535402 | E122: 1.000050264 | F122: 0.01002613552 | G122: 1 | H122: 0 | I122: 42.96504277 | J122: 1.54751949 | K122: 1.307417531 | L122: 0.6999621059 | M122: 1.000268242 | N122: 0.02315955005 | O122: 1 | P122: 6.38305e-06 | Q122: 1 | R122: 6.38305e-06 | S122: 1.002729251 | T122: 0.08648657157 | U122: 15.3754076 | V122: -132.7947944 | W122: 47.20520564 | Y122: 1000000000 | Z122: 40743327.3 | AB122: 15.5969553 | AC122: -49.88840551 | AE122: -0.2215477018 | AF122: -82.90675458 | AG122: 15.3754076 | AH122: -132.7951601 | AI122: 0 | AJ122: 0
A123: 6456.5 | B123: 6.4565 | C123: 5.082588596 | D123: 1.372754168 | E123: 1.000051427 | F123: 0.01014149877 | G123: 1 | H123: 0 | I123: 43.45917686 | J123: 1.547784196 | K123: 1.313681599 | L123: 0.7056048304 | M123: 1.00027445 | N123: 0.02342595094 | O123: 1 | P123: 6.4565e-06 | Q123: 1 | R123: 6.4565e-06 | S123: 1.002792348 | T123: 0.08747878927 | U123: 15.22151998 | V123: -132.6792821 | W123: 47.32071794 | Y123: 1000000000 | Z123: 41686392.25 | AB123: 15.5390927 | AC123: -49.59553141 | AE123: -0.3175727196 | AF123: -83.08412058 | AG123: 15.22151998 | AH123: -132.679652 | AI123: 0 | AJ123: 0
A124: 6531.7 | B124: 6.5317 | C124: 5.139507509 | D124: 1.374976079 | E124: 1.000052632 | F124: 0.01025961037 | G124: 1 | H124: 0 | I124: 43.96508714 | J124: 1.548049045 | K124: 1.320137831 | L124: 0.7113263314 | M124: 1.00028088 | N124: 0.02369869558 | O124: 1 | P124: 6.5317e-06 | Q124: 1 | R124: 6.5317e-06 | S124: 1.002857692 | T124: 0.08849454153 | U124: 15.06623205 | V124: -132.5609988 | W124: 47.43900115 | Y124: 1000000000 | Z124: 42663104.89 | AB124: 15.48109123 | AC124: -49.29851538 | AE124: -0.4148591757 | AF124: -83.26285771 | AG124: 15.06623205 | AH124: -132.5613731 | AI124: 0 | AJ124: 0
A125: 6606.9 | B125: 6.6069 | C125: 5.19645124 | D125: 1.377149304 | E125: 1.000053851 | F125: 0.01037772167 | G125: 1 | H125: 0 | I125: 44.47100043 | J125: 1.548307867 | K125: 1.326636857 | L125: 0.7169919586 | M125: 1.000287384 | N125: 0.0239714367 | O125: 1 | P125: 6.6069e-06 | Q125: 1 | R125: 6.6069e-06 | S125: 1.002923789 | T125: 0.08951018558 | U125: 14.91318309 | V125: -132.4427758 | W125: 47.55722416 | Y125: 1000000000 | Z125: 43651127.61 | AB125: 15.42431117 | AC125: -49.00435522 | AE125: -0.5111280807 | AF125: -83.43879917 | AG125: 14.91318309 | AH125: -132.4431544 | AI125: 0 | AJ125: 0
A126: 6683.85 | B126: 6.68385 | C126: 5.254744972 | D126: 1.379324334 | E126: 1.000055113 | F126: 0.01049858128 | G126: 1 | H126: 0 | I126: 44.98868998 | J126: 1.548566687 | K126: 1.333330771 | L126: 0.7227320685 | M126: 1.000294116 | N126: 0.02425052116 | O126: 1 | P126: 6.68385e-06 | Q126: 1 | R126: 6.68385e-06 | S126: 1.002992204 | T126: 0.09054935169 | U126: 14.75883527 | V126: -132.3219422 | W126: 47.67805784 | Y126: 1000000000 | Z126: 44673850.82 | AB126: 15.36744062 | AC126: -48.70629079 | AE126: -0.6086053509 | AF126: -83.61603432 | AG126: 14.75883527 | AH126: -132.3223251 | AI126: 0 | AJ126: 0
A127: 6760.8 | B127: 6.7608 | C127: 5.313063018 | D127: 1.381451627 | E127: 1.000056389 | F127: 0.01061944058 | G127: 1 | H127: 0 | I127: 45.50638247 | J127: 1.548819618 | K127: 1.340068176 | L127: 0.7284146455 | M127: 1.000300926 | N127: 0.02452960184 | O127: 1 | P127: 6.7608e-06 | Q127: 1 | R127: 6.7608e-06 | S127: 1.003061407 | T127: 0.09158840191 | U127: 14.60672199 | V127: -132.2013255 | W127: 47.79867455 | Y127: 1000000000 | Z127: 45708416.64 | AB127: 15.31178201 | AC127: -48.41118515 | AE127: -0.7050600172 | AF127: -83.79052767 | AG127: 14.60672199 | AH127: -132.2017128 | AI127: 0 | AJ127: 0
A128: 6839.55 | B128: 6.83955 | C128: 5.372769575 | D128: 1.383580857 | E128: 1.00005771 | F128: 0.01074312668 | G128: 1 | H128: 0 | I128: 46.03618768 | J128: 1.549072576 | K128: 1.347007531 | L128: 0.7341711017 | M128: 1.000307976 | N128: 0.02481520676 | O128: 1 | P128: 6.83955e-06 | Q128: 1 | R128: 6.83955e-06 | S128: 1.003133045 | T128: 0.09265163606 | U128: 14.45330878 | V128: -132.0781857 | W128: 47.9218143 | Y128: 1000000000 | Z128: 46779444.2 | AB128: 15.2560426 | AC128: -48.11222188 | AE128: -0.8027338191 | AF128: -83.9663557 | AG128: 14.45330878 | AH128: -132.0785776 | AI128: 0 | AJ128: 0
A129: 6918.3 | B129: 6.9183 | C129: 5.432499955 | D129: 1.385663274 | E129: 1.000059047 | F129: 0.01086681245 | G129: 1 | H129: 0 | I129: 46.56599577 | J129: 1.549319778 | K129: 1.353991062 | L129: 0.7398683646 | M129: 1.000315108 | N129: 0.02510080764 | O129: 1 | P129: 6.9183e-06 | Q129: 1 | R129: 6.9183e-06 | S129: 1.003205508 | T129: 0.09371474609 | U129: 14.30212535 | V129: -131.9554182 | W129: 48.0445818 | Y129: 1000000000 | Z129: 47862874.89 | AB129: 15.20150531 | AC129: -47.81632011 | AE129: -0.8993799515 | AF129: -84.13949448 | AG129: 14.30212535 | AH129: -131.9558146 | AI129: 0 | AJ129: 0
A130: 6998.9 | B130: 6.9989 | C130: 5.493657383 | D130: 1.387747712 | E130: 1.000060431 | F130: 0.01099340351 | G130: 1 | H130: 0 | I130: 47.10825302 | J130: 1.549567029 | K130: 1.361183688 | L130: 0.7456387401 | M130: 1.000322492 | N130: 0.02539311363 | O130: 1 | P130: 6.9989e-06 | Q130: 1 | R130: 6.9989e-06 | S130: 1.003280527 | T130: 0.09480270077 | U130: 14.14964364 | V130: -131.8302213 | W130: 48.16977867 | Y130: 1000000000 | Z130: 48984601.21 | AB130: 15.14689787 | AC130: -47.51661629 | AE130: -0.9972542231 | AF130: -84.31400605 | AG130: 14.14964364 | AH130: -131.8306223 | AI130: 0 | AJ130: 0
A131: 7079.5 | B131: 7.0795 | C131: 5.554838155 | D131: 1.389786243 | E131: 1.00006183 | F131: 0.01111999422 | G131: 1 | H131: 0 | I131: 47.65051309 | J131: 1.549808653 | K131: 1.368421159 | L131: 0.751348266 | M131: 1.000329961 | N131: 0.02568541528 | O131: 1 | P131: 7.0795e-06 | Q131: 1 | R131: 7.0795e-06 | S131: 1.003356411 | T131: 0.09589052247 | U131: 13.99938648 | V131: -131.7055503 | W131: 48.29444967 | Y131: 1000000000 | Z131: 50119320.25 | AB131: 15.09348226 | AC131: -47.22007624 | AE131: -1.094095782 | AF131: -84.48587972 | AG131: 13.99938648 | AH131: -131.705956 | AI131: 0 | AJ131: 0
A132: 7161.95 | B132: 7.16195 | C132: 5.617446558 | D132: 1.39182561 | E132: 1.000063279 | F132: 0.01124949017 | G132: 1 | H132: 0 | I132: 48.20522238 | J132: 1.550050198 | K132: 1.375870416 | L132: 0.7571264974 | M132: 1.00033769 | N132: 0.02598442154 | O132: 1 | P132: 7.16195e-06 | Q132: 1 | R132: 7.16195e-06 | S132: 1.00343493 | T132: 0.09700317364 | U132: 13.84792631 | V132: -131.5786264 | W132: 48.42137355 | Y132: 1000000000 | Z132: 51293527.8 | AB132: 15.04004 | AC132: -46.91997928 | AE132: -1.19211369 | AF132: -84.65905752 | AG132: 13.84792631 | AH132: -131.5790368 | AI132: 0 | AJ132: 0
A133: 7244.4 | B133: 7.2444 | C133: 5.680077808 | D133: 1.393820012 | E133: 1.000064744 | F133: 0.01137898575 | G133: 1 | H133: 0 | I133: 48.75993443 | J133: 1.550286248 | K133: 1.383365115 | L133: 0.762842308 | M133: 1.000345509 | N133: 0.02628342316 | O133: 1 | P133: 7.2444e-06 | Q133: 1 | R133: 7.2444e-06 | S133: 1.003514352 | T133: 0.09811568249 | U133: 13.69868227 | V133: -131.4523794 | W133: 48.54762064 | Y133: 1000000000 | Z133: 52481331.36 | AB133: 14.98777741 | AC133: -46.62314361 | AE133: -1.289095143 | AF133: -84.82965081 | AG133: 13.69868227 | AH133: -131.4527944 | AI133: 0 | AJ133: 0
A134: 7328.75 | B134: 7.32875 | C134: 5.744175215 | D134: 1.395815358 | E134: 1.000066261 | F134: 0.01151146506 | G134: 1 | H134: 0 | I134: 49.32743215 | J134: 1.550522243 | K134: 1.391078782 | L134: 0.7686259064 | M134: 1.0003536 | N134: 0.02658931018 | O134: 1 | P134: 7.32875e-06 | Q134: 1 | R134: 7.32875e-06 | S134: 1.00359654 | T134: 0.09925367935 | U134: 13.54823619 | V134: -131.3239831 | W134: 48.67601686 | Y134: 1000000000 | Z134: 53710576.56 | AB134: 14.93549739 | AC134: -46.32281539 | AE134: -1.387261197 | AF134: -85.00158765 | AG134: 13.54823619 | AH134: -131.324403 | AI134: 0 | AJ134: 0
A135: 7413.1 | B135: 7.4131 | C135: 5.808294987 | D135: 1.397766657 | E135: 1.000067795 | F135: 0.01164394397 | G135: 1 | H135: 0 | I135: 49.89493256 | J135: 1.550752869 | K135: 1.398838467 | L135: 0.7743455283 | M135: 1.000361785 | N135: 0.02689519223 | O135: 1 | P135: 7.4131e-06 | Q135: 1 | R135: 7.4131e-06 | S135: 1.003679674 | T135: 0.1003915239 | U135: 13.39999742 | V135: -131.1964122 | W135: 48.80358779 | Y135: 1000000000 | Z135: 54954051.61 | AB135: 14.88438448 | AC135: -46.02584488 | AE135: -1.484387067 | AF135: -85.17099207 | AG135: 13.39999742 | AH135: -131.196837 | AI135: 0 | AJ135: 0
A136: 7499.45 | B136: 7.49945 | C136: 5.873957488 | D136: 1.399720088 | E136: 1.000069383 | F136: 0.01177956363 | G136: 1 | H136: 0 | I136: 50.4758915 | J136: 1.550983592 | K136: 1.406829011 | L136: 0.7801352148 | M136: 1.000370261 | N136: 0.02720832175 | O136: 1 | P136: 7.49945e-06 | Q136: 1 | R136: 7.49945e-06 | S136: 1.003765758 | T136: 0.101556188 | U136: 13.25047381 | V136: -131.0667264 | W136: 48.93327363 | Y136: 1000000000 | Z136: 56241750.3 | AB136: 14.83323471 | AC136: -45.72528074 | AE136: -1.582760896 | AF136: -85.34187532 | AG136: 13.25047381 | AH136: -131.0671561 | AI136: 0 | AJ136: 0
A137: 7585.8 | B137: 7.5858 | C137: 5.939641907 | D137: 1.401630321 | E137: 1.00007099 | F137: 0.01191518286 | G137: 1 | H137: 0 | I137: 51.05685307 | J137: 1.551209065 | K137: 1.41486618 | L137: 0.7858593146 | M137: 1.000378835 | N137: 0.02752144593 | O137: 1 | P137: 7.5858e-06 | Q137: 1 | R137: 7.5858e-06 | S137: 1.003852832 | T137: 0.1027206889 | U137: 13.1031507 | V137: -130.9380129 | W137: 49.06198713 | Y137: 1000000000 | Z137: 57544361.64 | AB137: 14.78324036 | AC137: -45.4281733 | AE137: -1.680089662 | AF137: -85.5102742 | AG137: 13.1031507 | AH137: -130.9384475 | AI137: 0 | AJ137: 0
A138: 7674.15 | B138: 7.67415 | C138: 6.006869616 | D138: 1.403541553 | E138: 1.000072653 | F138: 0.01205394278 | G138: 1 | H138: 0 | I138: 51.65127324 | J138: 1.55143451 | K138: 1.423136934 | L138: 0.7916488817 | M138: 1.000387709 | N138: 0.02784181697 | O138: 1 | P138: 7.67415e-06 | Q138: 1 | R138: 7.67415e-06 | S138: 1.003942948 | T138: 0.1039119905 | U138: 12.95463626 | V138: -130.8073747 | W138: 49.19262531 | Y138: 1000000000 | Z138: 58892578.22 | AB138: 14.73325003 | AC138: -45.1277285 | AE138: -1.778613768 | AF138: -85.68008588 | AG138: 12.95463626 | AH138: -130.8078144 | AI138: 0 | AJ138: 0
A139: 7762.5 | B139: 7.7625 | C139: 6.07411878 | D139: 1.40541047 | E139: 1.000074336 | F139: 0.01219270224 | G139: 1 | H139: 0 | I139: 52.24569597 | J139: 1.551654825 | K139: 1.431454839 | L139: 0.7973713546 | M139: 1.000396685 | N139: 0.02816218229 | O139: 1 | P139: 7.7625e-06 | Q139: 1 | R139: 7.7625e-06 | S139: 1.004034101 | T139: 0.1051031174 | U139: 12.80831231 | V139: -130.6778521 | W139: 49.3221479 | Y139: 1000000000 | Z139: 60256406.25 | AB139: 14.68440157 | AC139: -44.83083367 | AE139: -1.876089252 | AF139: -85.84746319 | AG139: 12.80831231 | AH139: -130.6782969 | AI139: 0 | AJ139: 0
A140: 7852.9 | B140: 7.8529 | C140: 6.142949813 | D140: 1.407280392 | E140: 1.000076077 | F140: 0.01233468087 | G140: 1 | H140: 0 | I140: 52.85391376 | J140: 1.551875123 | K140: 1.440013697 | L140: 0.803157985 | M140: 1.000405977 | N140: 0.02848997512 | O140: 1 | P140: 7.8529e-06 | Q140: 1 | R140: 7.8529e-06 | S140: 1.004128441 | T140: 0.1063216993 | U140: 12.66080371 | V140: -130.5465241 | W140: 49.45347588 | Y140: 1000000000 | Z140: 61668038.41 | AB140: 14.63556767 | AC140: -44.53068745 | AE140: -1.97476396 | AF140: -86.01628661 | AG140: 12.66080371 | AH140: -130.5469741 | AI140: 0 | AJ140: 0
A141: 7943.3 | B141: 7.9433 | C141: =SQRT(1+(A141/pole1)^2) -> 6.211801848 | D141: =ATAN(A141/pole1) -> 1.409108866 | E141: =SQRT(1+(A141/Zero1)^2) -> 1.000077839 | F141: =ATAN(A141/Zero1) -> 0.01247665901 | G141: =IF(VIN_nom>Vout, 1, SQRT(1+(A141/z_RHP)^2)) -> 1 | H141: =IF(VIN_nom>Vout, 0, -ATAN(A141/z_RHP)) -> 0 | I141: =SQRT(1+(A141/Pole2)^2) -> 53.46213406 | J141: =ATAN(A141/Pole2) -> 1.552090408 | K141: =SQRT(1+(A141/Zero2)^2) -> 1.448620203 | L141: =ATAN(A141/Zero2) -> 0.8088760462 | M141: =SQRT(1+(A141/pole4)^2) -> 1.000415375 | N141: =ATAN(A141/pole4) -> 0.02881776182 | O141: =SQRT(1+(A141/Zero3)^2) -> 1 | P141: =ATAN(A141/Zero3) -> 7.9433e-06 | Q141: =SQRT(1+(A141/pole5)^2) -> 1 | R141: =ATAN(A141/pole5) -> 7.9433e-06 | S141: =SQRT((1-(Z141/pterm2))^2+(A141/pterm1)^2) -> 1.004223866 | T141: =IF((ATAN((A141/pterm1)/(1-A141^2/pterm2))>0),ATAN((A141/pterm1)/(1-A141^2/pterm2)),PI()+ATAN((A141/pterm1)/(1-A141^2/pterm2))) -> 0.1075400941 | U141: =20*LOG10(((E141*K141*G141*O141)/(C141*I141*S141*M141*Q141))*Adc) -> 12.515475 | V141: =((F141+L141+H141+R141)-(D141+J141+T141+N141))*radconv -> -130.4164519 | W141: =IF(V141>0,V141,V141+180) -> 49.58354808 | Y141: =IF(U141<0,A141,1000000000) -> 1000000000 | Z141: =A141^2 -> 63096014.89 | AB141: =20*LOG10((K141/(I141*M141))*AEA*Afb) -> 14.58786159 | AC141: =(L141-(J141+N141))*radconv -> -44.2341824 | AE141: =20*LOG10((E141*G141/(C141*S141))*Am) -> -2.07238659 | AF141: =(F141+H141-(D141+T141))*radconv -> -86.18272463 | AG141: 12.515475 | AH141: -130.416907 | AI141: 0 | AJ141: 0
A142: 8035.8 | B142: =A142/1000 -> 8.0358 | C142: 6.282274343 | D142: 1.410938324 | E142: 1.000079662 | F142: 0.01262193479 | G142: 1 | H142: 0 | I142: 54.08448587 | J142: 1.552305683 | K142: 1.457475079 | L142: 0.8146568421 | M142: 1.000425104 | N142: 0.02915315662 | O142: 1 | P142: 8.0358e-06 | Q142: 1 | R142: 8.0358e-06 | S142: 1.004322629 | T142: 0.1087865964 | U142: 12.36896979 | V142: -130.2846983 | W142: 49.71530174 | Y142: 1000000000 | Z142: 64574081.64 | AB142: 14.54018083 | AC142: -43.93451821 | AE142: -2.171211039 | AF142: -86.35064047 | AG142: =AB142+AE142 -> 12.36896979 | AH142: -130.2851587 | AI142: =SUM((U143<0)*(U142>0))*A142 -> 0 | AJ142: 0
A143: 8128.3 | B143: 8.1283 | C143: 6.352767398 | D143: 1.412727187 | E143: 1.000081506 | F143: 0.01276721003 | G143: 1 | H143: 0 | I143: 54.70684013 | J143: 1.552516059 | K143: 1.466378072 | L143: 0.8203676317 | M143: 1.000434945 | N143: 0.02948854486 | O143: 1 | P143: 8.1283e-06 | Q143: 1 | R143: 8.1283e-06 | S143: 1.004422528 | T143: 0.1100328985 | U143: 12.22463321 | V143: -130.1543373 | W143: 49.84566271 | Y143: 1000000000 | Z143: 66069260.89 | AB143: 14.49361329 | AC143: -43.63858407 | AE143: -2.268980078 | AF143: -86.51621894 | AG143: 12.22463321 | AH143: -130.154803 | AI143: 0 | AJ143: 0
A144: 8222.95 | B144: 8.22295 | C144: 6.424919516 | D144: 1.414516989 | E144: 1.000083416 | F144: 0.01291586139 | G144: 1 | H144: 0 | I144: 55.34366238 | J144: 1.552726427 | K144: 1.475536898 | L144: 0.8261396295 | M144: 1.000445131 | N144: 0.02983172175 | O144: 1 | P144: 8.22295e-06 | Q144: 1 | R144: 8.22295e-06 | S144: 1.004525923 | T144: 0.111307959 | U144: 12.07912956 | V144: -130.0224232 | W144: 49.97757683 | Y144: 1000000000 | Z144: 67616906.7 | AB144: 14.44708188 | AC144: -43.33958876 | AE144: -2.367952324 | AF144: -86.68330555 | AG144: 12.07912956 | AH144: -130.0228943 | AI144: 0 | AJ144: 0
A145: 8270.275 | B145: 8.270275 | C145: 6.461003164 | D145: 1.415396898 | E145: 1.000084378 | F145: 0.01299018685 | G145: 1 | H145: 0 | I145: 55.6620744 | J145: 1.552829806 | K145: 1.480134574 | L145: 0.8289987938 | M145: 1.000450268 | N145: 0.03000330756 | O145: 1 | P145: 8.270275e-06 | Q145: 1 | R145: 8.270275e-06 | S145: 1.004578066 | T145: 0.111945409 | U145: 12.00718997 | V145: -129.9570365 | W145: 50.04296351 | Y145: 1000000000 | Z145: 68397448.58 | AB145: 14.42423002 | AC145: -43.19152504 | AE145: -2.417040057 | AF145: -86.7659853 | AG145: 12.00718997 | AH145: -129.9575103 | AI145: 0 | AJ145: 0
A146: 8317.6 | B146: 8.3176 | C146: 6.497091759 | D146: 1.416267033 | E146: 1.000085347 | F146: 0.01306451217 | G146: 1 | H146: 0 | I146: 55.98048701 | J146: 1.552932009 | K146: 1.484744275 | L146: 0.8318402273 | M146: 1.000455435 | N146: 0.0301748916 | O146: 1 | P146: 8.3176e-06 | Q146: 1 | R146: 8.3176e-06 | S146: 1.004630506 | T146: 0.1125828051 | U146: 11.93578261 | V146: -129.8920351 | W146: 50.10796489 | Y146: 1000000000 | Z146: 69182469.76 | AB146: 14.40164859 | AC146: -43.04440974 | AE146: -2.465865978 | AF146: -86.84810194 | AG146: 11.93578261 | AH146: -129.8925117 | AI146: 0 | AJ146: 0
A147: 8366.05 | B147: 8.36605 | C147: 6.534043283 | D147: 1.417147895 | E147: 1.000086344 | F147: 0.01314060419 | G147: 1 | H147: 0 | I147: 56.30646946 | J147: 1.553035444 | K147: 1.489475897 | L147: 0.8347309632 | M147: 1.000460755 | N147: 0.03035055267 | O147: 1 | P147: 8.36605e-06 | Q147: 1 | R147: 8.36605e-06 | S147: 1.0046845 | T147: 0.1132352971 | U147: 11.86322205 | V147: -129.8258913 | W147: 50.17410865 | Y147: 1000000000 | Z147: 69990792.6 | AB147: 14.37880632 | AC147: -42.89477381 | AE147: -2.515584262 | AF147: -86.93159688 | AG147: 11.86322205 | AH147: -129.8263707 | AI147: 0 | AJ147: 0
A148: 8414.5 | B148: 8.4145 | C148: 6.57099982 | D148: 1.418018849 | E148: 1.000087347 | F148: 0.01321669605 | G148: 1 | H148: 0 | I148: 56.63245251 | J148: 1.553137689 | K148: =SQRT(1+(A148/Zero2)^2) -> 1.494219887 | L148: =ATAN(A148/Zero2) -> 0.8376033674 | M148: 1.000466106 | N148: 0.03052621186 | O148: 1 | P148: 8.4145e-06 | Q148: 1 | R148: 8.4145e-06 | S148: 1.004738805 | T148: 0.1138877319 | U148: 11.79120507 | V148: -129.7601586 | W148: 50.23984135 | Y148: 1000000000 | Z148: 70803810.25 | AB148: 14.35623906 | AC148: -42.74611987 | AE148: -2.565033993 | AF148: -87.01452089 | AG148: 11.79120507 | AH148: -129.7606408 | AI148: 0 | AJ148: 0
A149: 8462.95 | B149: 8.46295 | C149: 6.607961286 | D149: 1.41888006 | E149: 1.000088356 | F149: 0.01329278777 | G149: 1 | H149: 0 | I149: 56.95843614 | J149: 1.553238763 | K149: 1.498976127 | L149: 0.8404575667 | M149: 1.000471488 | N149: 0.03070186916 | O149: 1 | P149: 8.46295e-06 | Q149: 1 | R149: 8.46295e-06 | S149: 1.004793421 | T149: 0.1145401093 | U149: 11.71972461 | V149: -129.6948403 | W149: 50.30515965 | Y149: 1000000000 | Z149: 71621522.7 | AB149: 14.33394267 | AC149: -42.59844183 | AE149: -2.614218063 | AF149: -87.09688341 | AG149: 11.71972461 | AH149: -129.6953252 | AI149: 0 | AJ149: 0
A150: 8511.4 | B150: 8.5114 | C150: 6.644927598 | D150: 1.41973169 | E150: 1.00008937 | F150: 0.01336887932 | G150: 1 | H150: 0 | I150: 57.28442034 | J150: 1.553338687 | K150: 1.503744501 | L150: 0.8432936877 | M150: 1.0004769 | N150: 0.03087752457 | O150: 1 | P150: 8.5114e-06 | Q150: 1 | R150: 8.5114e-06 | S150: 1.004848348 | T150: 0.1151924289 | U150: 11.64877376 | V150: -129.6299396 | W150: 50.37006043 | Y150: 1000000000 | Z150: 72443929.96 | AB150: 14.31191308 | AC150: -42.45173359 | AE150: -2.663139322 | AF150: -87.17869365 | AG150: 11.64877376 | AH150: -129.6304272 | AI150: 0 | AJ150: 0
A151: 8560.95 | B151: 8.56095 | C151: 6.682738116 | D151: 1.42059291 | E151: 1.000090414 | F151: 0.01344669829 | G151: 1 | H151: 0 | I151: 57.61780622 | J151: 1.55343971 | K151: 1.508633566 | L151: 0.8461756322 | M151: 1.000482468 | N151: 0.03105716606 | O151: 1 | P151: 8.56095e-06 | Q151: 1 | R151: 8.56095e-06 | S151: 1.004904844 | T151: 0.1158594986 | U151: 11.57675274 | V151: -129.5640002 | W151: 50.43599981 | Y151: 1000000000 | Z151: 73289864.9 | AB151: 14.28965511 | AC151: -42.30269122 | AE151: -2.712902372 | AF151: -87.26179948 | AG151: 11.57675274 | AH151: -129.5644907 | AI151: 0 | AJ151: 0
A152: 8610.5 | B152: 8.6105 | C152: 6.720553534 | D152: 1.421444438 | E152: 1.000091463 | F152: 0.01352451709 | G152: 1 | H152: 0 | I152: 57.95119268 | J152: 1.55353957 | K152: 1.513535081 | L152: 0.8490389342 | M152: 1.000488067 | N152: 0.03123680554 | O152: 1 | P152: 8.6105e-06 | Q152: 1 | R152: 8.6105e-06 | S152: 1.004961665 | T152: 0.1165265072 | U152: 11.50527137 | V152: -129.4985035 | W152: 50.50149653 | Y152: 1000000000 | Z152: 74140710.25 | AB152: 14.2676678 | AC152: -42.15465027 | AE152: -2.762396427 | AF152: -87.34434654 | AG152: 11.50527137 | AH152: -129.4989968 | AI152: 0 | AJ152: 0
A153: 8660.05 | B153: 8.66005 | C153: 6.758373772 | D153: 1.422286437 | E153: 1.000092519 | F153: 0.01360233573 | G153: 1 | H153: 0 | I153: 58.28457971 | J153: 1.553638288 | K153: 1.518448923 | L153: 0.8518837276 | M153: 1.000493699 | N153: 0.031416443 | O153: 1 | P153: 8.66005e-06 | Q153: 1 | R153: 8.66005e-06 | S153: 1.005018811 | T153: 0.1171934544 | U153: 11.43432263 | V153: -129.4334521 | W153: 50.56654788 | Y153: 1000000000 | Z153: 74996466 | AB153: 14.24594702 | AC153: -42.00760422 | AE153: -2.811624394 | AF153: -87.42634408 | AG153: 11.43432263 | AH153: -129.4339483 | AI153: 0 | AJ153: 0
A154: 8709.6 | B154: 8.7096 | C154: 6.796198747 | D154: 1.423119064 | E154: 1.000093581 | F154: 0.01368015421 | G154: 1 | H154: 0 | I154: 58.6179673 | J154: 1.553735883 | K154: 1.523374975 | L154: 0.8547101456 | M154: 1.000499364 | N154: 0.03159607844 | O154: 1 | P154: 8.7096e-06 | Q154: 1 | R154: 8.7096e-06 | S154: 1.005076282 | T154: 0.1178603397 | U154: 11.36389959 | V154: -129.3688486 | W154: 50.63115136 | Y154: 1000000000 | Z154: 75857132.16 | AB154: 14.22448872 | AC154: -41.86154654 | AE154: -2.860589136 | AF154: -87.50780112 | AG154: 11.36389959 | AH154: -129.3693477 | AI154: 0 | AJ154: =IF(AI154>0,W154,0) -> 0
A155: 8760.325 | B155: 8.760325 | C155: 6.834925507 | D155: 1.423961888 | E155: 1.000094674 | F155: 0.01375981786 | G155: 1 | H155: 0 | I155: 58.95926122 | J155: 1.55383465 | K155: 1.528430364 | L155: 0.8575846921 | M155: 1.000505196 | N155: 0.03177997153 | O155: 1 | P155: 8.760325e-06 | Q155: 1 | R155: 8.760325e-06 | S155: 1.005135453 | T155: 0.1185429749 | U155: 11.29234404 | V155: -129.3031795 | W155: 50.69682045 | Y155: 1000000000 | Z155: 76743294.11 | AB155: 14.20278932 | AC155: -41.71304234 | AE155: -2.910445277 | AF155: -87.59063913 | AG155: 11.29234404 | AH155: -129.3036815 | AI155: 0 | AJ155: 0
A156: 8811.05 | B156: 8.81105 | C156: 6.873657068 | D156: 1.424795215 | E156: 1.000095773 | F156: 0.01383948133 | G156: 1 | H156: 0 | I156: 59.30055571 | J156: 1.553932279 | K156: 1.5334983 | L156: 0.8604402624 | M156: 1.000511062 | N156: 0.03196386248 | O156: 1 | P156: 8.81105e-06 | Q156: 1 | R156: 8.81105e-06 | S156: 1.005194964 | T156: 0.1192255446 | U156: 11.22132513 | V156: -129.2379845 | W156: 50.76201547 | Y156: 1000000000 | Z156: 77634602.1 | AB156: 14.18135662 | AC156: -41.56556015 | AE156: -2.96003149 | AF156: -87.67292922 | AG156: 11.22132513 | AH156: -129.2384894 | AI156: 0 | AJ156: 0
A157: 8861.775 | B157: 8.861775 | C157: 6.912393349 | D157: 1.425619202 | E157: 1.000096879 | F157: 0.01391914462 | G157: 1 | H157: 0 | I157: 59.64185076 | J157: 1.554028791 | K157: 1.538578657 | L157: 0.8632769976 | M157: 1.000516962 | N157: 0.03214775126 | O157: 1 | P157: 8.861775e-06 | Q157: 1 | R157: 8.861775e-06 | S157: 1.005254816 | T157: 0.1199080485 | U157: 11.15083583 | V157: -129.1732657 | W157: 50.82673431 | Y157: 1000000000 | Z157: 78531056.15 | AB157: 14.16018653 | AC157: -41.41909298 | AE157: -3.009350701 | AF157: -87.75468045 | AG157: 11.15083583 | AH157: -129.1737734 | AI157: 0 | AJ157: 0
A158: 8912.5 | B158: 8.9125 | C158: 6.951134271 | D158: 1.426434006 | E158: 1.000097991 | F158: 0.01399880774 | G158: 1 | H158: 0 | I158: 59.98314636 | J158: 1.554124205 | K158: =SQRT(1+(A158/Zero2)^2) -> 1.543671314 | L158: =ATAN(A158/Zero2) -> 0.8660950383 | M158: 1.000522895 | N158: 0.03233163787 | O158: 1 | P158: 8.9125e-06 | Q158: 1 | R158: 8.9125e-06 | S158: 1.005315008 | T158: 0.1205904862 | U158: 11.08086921 | V158: -129.1090249 | W158: 50.89097509 | Y158: 1000000000 | Z158: 79432656.25 | AB158: 14.13927501 | AC158: -41.27363387 | AE158: -3.058405796 | AF158: -87.83590169 | AG158: 11.08086921 | AH158: -129.1095356 | AI158: 0 | AJ158: 0
A159: 8964.4 | B159: 8.9644 | C159: 6.990777315 | D159: 1.427258336 | E159: 1.000099136 | F159: 0.014080316 | G159: 1 | H159: 0 | I159: 60.33234833 | J159: 1.554220712 | K159: 1.548894541 | L159: 0.8689591531 | M159: 1.000529001 | N159: 0.03251978178 | O159: 1 | P159: 8.9644e-06 | Q159: 1 | R159: 8.9644e-06 | S159: 1.005376947 | T159: 0.1212886631 | U159: 11.00981576 | V159: -129.0437927 | W159: 50.95620733 | Y159: 1000000000 | Z159: 80360467.36 | AB159: 14.11814256 | AC159: -41.12584145 | AE159: -3.108326803 | AF159: -87.91846483 | AG159: 11.00981576 | AH159: -129.0443063 | AI159: 0 | AJ159: 0
A160: 9016.3 | B160: 9.0163 | C160: 7.030425056 | D160: 1.428073369 | E160: 1.000100287 | F160: 0.01416182408 | G160: 1 | H160: 0 | I160: 60.68155085 | J160: 1.554316107 | K160: 1.554130389 | L160: 0.8718039929 | M160: 1.000535143 | N160: 0.03270792339 | O160: 1 | P160: 9.0163e-06 | Q160: 1 | R160: 9.0163e-06 | S160: 1.005439242 | T160: 0.1219867699 | U160: 10.9392952 | V160: -128.9790643 | W160: 51.02093565 | Y160: 1000000000 | Z160: 81293665.69 | AB160: 14.09727248 | AC160: -40.97908965 | AE160: -3.15797728 | AF160: -88.00049129 | AG160: 10.9392952 | AH160: -128.9795809 | AI160: 0 | AJ160: 0
A161: 9068.2 | B161: 9.0682 | C161: 7.070077415 | D161: 1.42887926 | E161: 1.000101445 | F161: 0.01424333196 | G161: 1 | H161: 0 | I161: 61.03075392 | J161: 1.554410412 | K161: 1.55937873 | L161: 0.8746297058 | M161: 1.00054132 | N161: 0.03289606269 | O161: 1 | P161: 9.0682e-06 | Q161: 1 | R161: 9.0682e-06 | S161: 1.005501894 | T161: 0.1226848062 | U161: 10.86930049 | V161: -128.9148414 | W161: 51.08515857 | Y161: 1000000000 | Z161: 82232251.24 | AB161: 14.07666066 | AC161: -40.83337105 | AE161: -3.207360171 | AF161: -88.08198995 | AG161: 10.86930049 | AH161: -128.915361 | AI161: 0 | AJ161: 0
A162: 9120.1 | B162: 9.1201 | C162: 7.109734314 | D162: 1.429676162 | E162: 1.000102609 | F162: 0.01432483966 | G162: 1 | H162: 0 | I162: 61.37995753 | J162: 1.554503643 | K162: 1.564639439 | L162: 0.8774364395 | M162: 1.000547532 | N162: 0.03308419965 | O162: 1 | P162: 9.1201e-06 | Q162: 1 | R162: 9.1201e-06 | S162: 1.005564902 | T162: 0.1233827718 | U162: 10.79982472 | V162: -128.8511252 | W162: 51.1488748 | Y162: 1000000000 | Z162: 83176224.01 | AB162: 14.05630309 | AC162: -40.68867826 | AE162: -3.256478376 | AF162: -88.16296948 | AG162: 10.79982472 | AH162: -128.8516477 | AI162: 0 | AJ162: 0
A163: 9173.2 | B163: 9.1732 | C163: 7.150312756 | D163: 1.43048234 | E163: 1.000103808 | F163: 0.01440823173 | G163: 1 | H163: 0 | I163: 61.73723576 | J163: 1.554597938 | K163: 1.570034452 | L163: 0.8802885794 | M163: 1.000553924 | N163: 0.03327668418 | O163: 1 | P163: 9.1732e-06 | Q163: 1 | R163: 9.1732e-06 | S163: 1.005629735 | T163: 0.1240968015 | U163: 10.72927255 | V163: -128.7864613 | W163: 51.21353866 | Y163: 1000000000 | Z163: 84147598.24 | AB163: 14.03573385 | AC163: -40.54169396 | AE163: -3.306461301 | AF163: -88.24529297 | AG163: 10.72927255 | AH163: -128.7869869 | AI163: 0 | AJ163: 0
A164: 9226.3 | B164: 9.2263 | C164: 7.190895793 | D164: 1.431279419 | E164: 1.000105013 | F164: 0.0144916236 | G164: 1 | H164: 0 | I164: 62.09451453 | J164: 1.554691148 | K164: 1.57544215 | L164: 0.8831211622 | M164: 1.000560354 | N164: 0.03346916624 | O164: 1 | P164: 9.2263e-06 | Q164: 1 | R164: 9.2263e-06 | S164: 1.005694941 | T164: 0.1248107563 | U164: 10.65924933 | V164: -128.7223301 | W164: 51.27766993 | Y164: 1000000000 | Z164: 85124611.69 | AB164: 14.01542249 | AC164: -40.39576788 | AE164: -3.356173154 | AF164: -88.32709083 | AG164: 10.65924933 | AH164: -128.7228587 | AI164: 0 | AJ164: 0
A165: 9279.4 | B165: 9.2794 | C165: 7.231483347 | D165: 1.432067551 | E165: 1.000106225 | F165: 0.01457501527 | G165: 1 | H165: 0 | I165: 62.45179383 | J165: 1.554783292 | K165: 1.580862402 | L165: 0.8859343435 | M165: 1.000566821 | N165: 0.03366164582 | O165: 1 | P165: 9.2794e-06 | Q165: 1 | R165: 9.2794e-06 | S165: 1.00576052 | T165: 0.1255246356 | U165: 10.58974803 | V165: -128.6587323 | W165: 51.34126774 | Y165: 1000000000 | Z165: 86107264.36 | AB165: 13.99536492 | AC165: -40.25089217 | AE165: -3.405616896 | AF165: -88.40837176 | AG165: 10.58974803 | AH165: -128.6592639 | AI165: 0 | AJ165: 0
A166: 9332.5 | B166: 9.3325 | C166: 7.272075343 | D166: 1.432846886 | E166: 1.000107444 | F166: 0.01465840673 | G166: 1 | H166: 0 | I166: 62.80907365 | J166: 1.554874388 | K166: 1.586295079 | L166: 0.8887282779 | M166: 1.000573325 | N166: 0.03385412291 | O166: 1 | P166: 9.3325e-06 | Q166: 1 | R166: 9.3325e-06 | S166: 1.005826471 | T166: 0.1262384392 | U166: 10.52076173 | V166: -128.5956686 | W166: 51.40433141 | Y166: 1000000000 | Z166: 87095556.25 | AB166: 13.97555717 | AC166: -40.10705903 | AE166: -3.454795441 | AF166: -88.48914427 | AG166: 10.52076173 | AH166: -128.5962033 | AI166: 0 | AJ166: 0
A167: 9386.85 | B167: 9.38685 | C167: 7.313627416 | D167: 1.433635606 | E167: 1.000108699 | F167: 0.01474376106 | G167: 1 | H167: 0 | I167: 63.17476456 | J167: 1.55496656 | K167: 1.591868379 | L167: 0.8915682113 | M167: 1.00058002 | N167: 0.0340511284 | O167: 1 | P167: 9.38685e-06 | Q167: 1 | R167: 9.38685e-06 | S167: 1.005894361 | T167: 0.1269689671 | U167: 10.45067772 | V167: -128.5316741 | W167: 51.46832594 | Y167: 1000000000 | Z167: 88112952.92 | AB167: 13.95553775 | AC167: -39.96091153 | AE167: -3.504860032 | AF167: -88.57130036 | AG167: 10.45067772 | AH167: -128.5322119 | AI167: 0 | AJ167: 0
A168: 9441.2 | B168: 9.4412 | C168: 7.355183989 | D168: 1.434415415 | E168: 1.000109961 | F168: 0.01482911518 | G168: 1 | H168: 0 | I168: 63.54045599 | J168: 1.555057672 | K168: 1.597454428 | L168: 0.8943883058 | M168: 1.000586754 | N168: 0.03424813125 | O168: 1 | P168: 9.4412e-06 | Q168: 1 | R168: 9.4412e-06 | S168: 1.005962641 | T168: 0.1276994147 | U168: 10.381119 | V168: -128.4682401 | W168: 51.53175992 | Y168: 1000000000 | Z168: 89136257.44 | AB168: 13.93577182 | AC168: -39.81583977 | AE168: -3.554652826 | AF168: -88.65294125 | AG168: 10.381119 | AH168: -128.468781 | AI168: 0 | AJ168: 0
A169: 9495.55 | B169: 9.49555 | C169: 7.396744983 | D169: 1.435186461 | E169: 1.000111231 | F169: 0.01491446908 | G169: 1 | H169: 0 | I169: 63.90614794 | J169: 1.555147741 | K169: 1.603053093 | L169: 0.897188724 | M169: 1.000593527 | N169: 0.03444513143 | O169: 1 | P169: 9.49555e-06 | Q169: 1 | R169: 9.49555e-06 | S169: 1.006031311 | T169: 0.1284297816 | U169: 10.31207854 | V169: -128.4053669 | W169: 51.59463312 | Y169: 1000000000 | Z169: 90165469.8 | AB169: 13.91625534 | AC169: -39.67183549 | AE169: -3.604176802 | AF169: -88.73407545 | AG169: 10.31207854 | AH169: -128.4059109 | AI169: 0 | AJ169: 0
A170: 9549.9 | B170: 9.5499 | C170: 7.438310326 | D170: 1.43594889 | E170: 1.000112508 | F170: 0.01499982276 | G170: 1 | H170: 0 | I170: 64.27184041 | J170: 1.555236786 | K170: 1.608664241 | L170: 0.8999696278 | M170: 1.000600339 | N170: 0.03464212895 | O170: 1 | P170: 9.5499e-06 | Q170: 1 | R170: 9.5499e-06 | S170: 1.006100371 | T170: 0.1291600673 | U170: 10.24354944 | V170: -128.3430546 | W170: 51.65694544 | Y170: 1000000000 | Z170: 91200590.01 | AB170: 13.89698434 | AC170: -39.52889042 | AE170: -3.653434892 | AF170: -88.81471131 | AG170: 10.24354944 | AH170: -128.3436017 | AI170: 0 | AJ170: 0
A171: 9605.525 | B171: 9.605525 | C171: 7.48085518 | D171: 1.436720432 | E171: 1.000113822 | F171: 0.01508717854 | G171: 1 | H171: 0 | I171: 64.6461122 | J171: 1.555326875 | K171: 1.614419814 | L171: 0.90279573 | M171: 1.000607351 | N171: 0.03484374505 | O171: 1 | P171: 9.605525e-06 | Q171: 1 | R171: 9.605525e-06 | S171: 1.006171455 | T171: 0.1299074003 | U171: 10.17393515 | V171: -128.2798612 | W171: 51.72013884 | Y171: 1000000000 | Z171: 92266110.53 | AB171: 13.87751137 | AC171: -39.38368021 | AE171: -3.703576226 | AF171: -88.8967313 | AG171: 10.17393515 | AH171: -128.2804115 | AI171: 0 | AJ171: 0
A172: 9661.15 | B172: 9.66115 | C172: 7.523404436 | D172: 1.437483247 | E172: 1.000115144 | F172: 0.01517453408 | G172: 1 | H172: 0 | I172: 65.0203845 | J172: 1.555415928 | K172: 1.620188188 | L172: 0.905601731 | M172: 1.000614403 | N172: 0.03504535832 | O172: 1 | P172: 9.66115e-06 | Q172: 1 | R172: 9.66115e-06 | S172: 1.006242948 | T172: 0.1306546473 | U172: 10.10484225 | V172: -128.217255 | W172: 51.78274502 | Y172: 1000000000 | Z172: 93337819.32 | AB172: 13.85828737 | AC172: -39.23956214 | AE172: -3.75344512 | AF172: -88.97824638 | AG172: 10.10484225 | AH172: -128.2178085 | AI172: 0 | AJ172: 0
A173: 9716.775 | B173: 9.716775 | C173: 7.565958022 | D173: 1.438237482 | E173: 1.000116474 | F173: 0.01526188939 | G173: 1 | H173: 0 | I173: 65.39465732 | J173: 1.555503962 | K173: 1.625969229 | L173: 0.9083878006 | M173: 1.000621496 | N173: 0.03524696874 | O173: 1 | P173: 9.716775e-06 | Q173: 1 | R173: 9.716775e-06 | S173: 1.006314849 | T173: 0.1314018079 | U173: 10.03626375 | V173: -128.1552357 | W173: 51.84476434 | Y173: 1000000000 | Z173: 94415716.4 | AB173: 13.83930832 | AC173: -39.09652748 | AE173: -3.80304457 | AF173: -89.05926491 | AG173: 10.03626375 | AH173: -128.1557924 | AI173: 0 | AJ173: 0
A174: 9772.4 | B174: 9.7724 | C174: 7.608515863 | D174: 1.43898328 | E174: 1.000117811 | F174: 0.01534924447 | G174: 1 | H174: 0 | I174: 65.76893064 | J174: 1.555590993 | K174: 1.631762802 | L174: 0.9111541077 | M174: 1.00062863 | N174: 0.0354485763 | O174: 1 | P174: 9.7724e-06 | Q174: 1 | R174: 9.7724e-06 | S174: 1.006387158 | T174: 0.1321488816 | U174: 9.968192747 | V174: -128.0938027 | W174: 51.9061973 | Y174: 1000000000 | Z174: 95499801.76 | AB174: 13.82057027 | AC174: -38.95456755 | AE174: -3.852377524 | AF174: -89.13979507 | AG174: 9.968192747 | AH174: -128.0943626 | AI174: 0 | AJ174: 0
A175: 9829.3 | B175: 9.8293 | C175: 7.652053516 | D175: 1.439737588 | E175: 1.000119187 | F175: 0.0154386016 | G175: 1 | H175: 0 | I175: 66.15178332 | J175: 1.555679001 | K175: 1.637701998 | L175: 0.9139635499 | M175: 1.000635969 | N175: 0.03565480199 | O175: 1 | P175: 9.8293e-06 | Q175: 1 | R175: 9.8293e-06 | S175: 1.006461547 | T175: 0.1329129887 | U175: 9.899079498 | V175: -128.0315676 | W175: 51.96843238 | Y175: 1000000000 | Z175: 96615138.49 | AB175: 13.80164805 | AC175: -38.81045669 | AE175: -3.902568553 | AF175: -89.22167411 | AG175: 9.899079498 | AH175: -128.0321308 | AI175: 0 | AJ175: 0
A176: 9886.2 | B176: 9.8862 | C176: 7.695595474 | D176: 1.440483362 | E176: 1.000120571 | F176: 0.01552795849 | G176: 1 | H176: 0 | I176: 66.5346365 | J176: 1.555765995 | K176: 1.643654027 | L176: 0.9167526667 | M176: 1.000643351 | N176: 0.03586102464 | O176: 1 | P176: 9.8862e-06 | Q176: 1 | R176: 9.8862e-06 | S176: 1.006536364 | T176: 0.1336770039 | U176: 9.830483091 | V176: -127.9699446 | W176: 52.0300554 | Y176: 1000000000 | Z176: 97736950.44 | AB176: 13.78296991 | AC176: -38.66745218 | AE176: -3.952486823 | AF176: -89.30305886 | AG176: 9.830483091 | AH176: -127.970511 | AI176: 0 | AJ176: 0
A177: 9943.1 | B177: 9.9431 | C177: 7.739141664 | D177: 1.441220743 | E177: 1.000121963 | F177: 0.01561731512 | G177: 1 | H177: 0 | I177: 66.91749018 | J177: 1.555851994 | K177: 1.64961875 | L177: 0.919521635 | M177: 1.000650776 | N177: 0.03606724424 | O177: 1 | P177: 9.9431e-06 | Q177: 1 | R177: 9.9431e-06 | S177: 1.006611607 | T177: 0.1344409267 | U177: 9.762396543 | V177: -127.9089327 | W177: 52.09106733 | Y177: 1000000000 | Z177: 98865237.61 | AB177: 13.76453188 | AC177: -38.52554488 | AE177: -4.002135341 | AF177: -89.38395749 | AG177: 9.762396543 | AH177: -127.9095024 | AI177: 0 | AJ177: 0
A178: 10000 | B178: 10 | C178: 7.782692015 | D178: 1.441949873 | E178: 1.000123362 | F178: 0.01570667151 | G178: 1 | H178: 0 | I178: 67.30034436 | J178: 1.555937015 | K178: 1.655596029 | L178: 0.9222706304 | M178: 1.000658243 | N178: 0.03627346078 | O178: 1 | P178: 1e-05 | Q178: 1 | R178: 1e-05 | S178: 1.006687278 | T178: 0.1352047564 | U178: 9.694812991 | V178: -127.8485308 | W178: 52.15146925 | Y178: 1000000000 | Z178: 100000000 | AB178: 13.74633006 | AC178: -38.38472571 | AE178: -4.051517066 | AF178: -89.464378 | AG178: 9.694812991 | AH178: -127.8491037 | AI178: 0 | AJ178: 0
A179: 10058.25 | B179: 10.05825 | C179: 7.827279872 | D179: 1.442687896 | E179: 1.000124804 | F179: 0.0157981477 | G179: 1 | H179: 0 | I179: 67.69228256 | J179: 1.556023057 | K179: 1.661727991 | L179: 0.9250643406 | M179: 1.000665931 | N179: 0.03648456677 | O179: 1 | P179: 1.005825e-05 | Q179: 1 | R179: 1.005825e-05 | S179: 1.006765185 | T179: 0.1359866119 | U179: 9.626139967 | V179: -127.7873264 | W179: 52.21267364 | Y179: 1000000000 | Z179: 101168393.1 | AB179: 13.72793706 | AC179: -38.24168321 | AE179: -4.101797092 | AF179: -89.54621944 | AG179: 9.626139967 | AH179: -127.7879027 | AI179: 0 | AJ179: 0
A180: 10116.5 | B180: 10.1165 | C180: 7.871871944 | D180: 1.443417558 | E180: 1.000126253 | F180: 0.01588962362 | G180: 1 | H180: 0 | I180: 68.08422126 | J180: 1.556108108 | K180: 1.667872826 | L180: 0.9278374869 | M180: 1.000673664 | N180: 0.03669566952 | O180: 1 | P180: 1.01165e-05 | Q180: 1 | R180: 1.01165e-05 | S180: 1.006843541 | T180: 0.1367683688 | U180: 9.55797993 | V180: -127.7267586 | W180: 52.27324143 | Y180: 1000000000 | Z180: 102343572.2 | AB180: 13.70978357 | AC180: -38.099762 | AE180: -4.151803644 | AF180: -89.62757621 | AG180: 9.55797993 | AH180: -127.7273382 | AI180: 0 | AJ180: 0
A181: 10174.75 | B181: 10.17475 | C181: 7.91646816 | D181: 1.444139 | E181: 1.000127711 | F181: 0.01598109927 | G181: 1 | H181: 0 | I181: 68.47616045 | J181: 1.556192185 | K181: 1.674030393 | L181: 0.9305902534 | M181: 1.000681442 | N181: 0.03690676899 | O181: 1 | P181: 1.017475e-05 | Q181: 1 | R181: 1.017475e-05 | S181: 1.006922343 | T181: 0.1375500267 | U181: 9.490325906 | V181: -127.6668258 | W181: 52.33317417 | Y181: 1000000000 | Z181: 103525537.6 | AB181: 13.69186565 | AC181: -37.95895249 | AE181: -4.201539747 | AF181: -89.70845631 | AG181: 9.490325906 | AH181: -127.6674088 | AI181: 0 | AJ181: 0
A182: 10233 | B182: 10.233 | C182: 7.96106845 | D182: 1.444852359 | E182: 1.000129178 | F182: 0.01607257465 | G182: 1 | H182: 0 | I182: 68.86810011 | J182: 1.556275306 | K182: 1.680200553 | L182: 0.9333228226 | M182: 1.000689264 | N182: 0.03711786517 | O182: 1 | P182: 1.0233e-05 | Q182: 1 | R182: 1.0233e-05 | S182: 1.007001592 | T182: 0.138331585 | U182: 9.423171049 | V182: -127.6075265 | W182: 52.39247353 | Y182: 1000000000 | Z182: 104714289 | AB182: 13.67417943 | AC182: -37.81924517 | AE182: -4.251008377 | AF182: -89.7888676 | AG182: 9.423171049 | AH182: -127.6081128 | AI182: 0 | AJ182: 0
A183: 10292.5 | B183: 10.2925 | C183: 8.006629963 | D183: 1.445572821 | E183: 1.000130684 | F183: 0.01616601275 | G183: 1 | H183: 0 | I183: 69.26845098 | J183: 1.556359239 | K183: 1.686515977 | L183: 0.9360933669 | M183: 1.0006973 | N183: 0.03733348789 | O183: 1 | P183: 1.02925e-05 | Q183: 1 | R183: 1.02925e-05 | S183: 1.007083004 | T183: 0.1391298116 | U183: 9.355083458 | V183: -127.5476066 | W183: 52.45239335 | Y183: 1000000000 | Z183: 105935556.2 | AB183: 13.65634893 | AC183: -37.67766796 | AE183: -4.301265469 | AF183: -89.87052841 | AG183: 9.355083458 | AH183: -127.5481964 | AI183: 0 | AJ183: 0
A184: 10352 | B184: 10.352 | C184: 8.052195585 | D184: 1.446285129 | E184: 1.000132199 | F184: 0.01625945057 | G184: 1 | H184: 0 | I184: 69.66880234 | J184: 1.556442207 | K184: 1.692844249 | L184: 0.9388432182 | M184: 1.000705382 | N184: 0.03754910714 | O184: 1 | P184: 1.0352e-05 | Q184: 1 | R184: 1.0352e-05 | S184: 1.007164882 | T184: 0.1399279331 | U184: 9.287502635 | V184: -127.4883438 | W184: 52.51165618 | Y184: 1000000000 | Z184: 107163904 | AB184: 13.63875225 | AC184: -37.53722089 | AE184: -4.351249616 | AF184: -89.95171605 | AG184: 9.287502635 | AH184: -127.4889369 | AI184: 0 | AJ184: 0
A185: 10411.5 | B185: 10.4115 | C185: 8.097765247 | D185: 1.44698942 | E185: 1.000133723 | F185: 0.0163528881 | G185: 1 | H185: 0 | I185: 70.06915417 | J185: 1.556524227 | K185: 1.699185227 | L185: 0.9415725664 | M185: 1.000713511 | N185: 0.0377647229 | O185: 1 | P185: 1.04115e-05 | Q185: 1 | R185: 1.04115e-05 | S185: 1.007247226 | T185: 0.1407259491 | U185: 9.22042167 | V185: -127.4297359 | W185: 52.57026414 | Y185: 1000000000 | Z185: 108399332.2 | AB185: 13.62138551 | AC185: -37.39789405 | AE185: -4.40096384 | AF185: -90.03243834 | AG185: 9.22042167 | AH185: -127.4303324 | AI185: 0 | AJ185: 0
A186: 10471 | B186: 10.471 | C186: 8.143338881 | D186: 1.447685829 | E186: 1.000135256 | F186: 0.01644632535 | G186: 1 | H186: 0 | I186: 70.46950646 | J186: 1.556605315 | K186: 1.705538769 | L186: 0.9442815997 | M186: 1.000721687 | N186: 0.03798033515 | O186: 1 | P186: 1.0471e-05 | Q186: 1 | R186: 1.0471e-05 | S186: 1.007330036 | T186: 0.1415238588 | U186: 9.153833778 | V186: -127.3717805 | W186: 52.62821946 | Y186: 1000000000 | Z186: 109641841 | AB186: 13.60424489 | AC186: -37.25967756 | AE186: -4.450411116 | AF186: -90.11270292 | AG186: 9.153833778 | AH186: -127.3723805 | AI186: 0 | AJ186: 0
A187: 10532 | B187: 10.532 | C187: 8.190065483 | D187: 1.448391748 | E187: 1.000136836 | F187: 0.01654211786 | G187: 1 | H187: 0 | I187: 70.87995215 | J187: 1.556687497 | K187: 1.71206538 | L187: 0.9470380337 | M187: 1.000730117 | N187: 0.03820137933 | O187: 1 | P187: 1.0532e-05 | Q187: 1 | R187: 1.0532e-05 | S187: 1.007415417 | T187: 0.1423417731 | U187: 9.086072102 | V187: -127.3130393 | W187: 52.68696073 | Y187: 1000000000 | Z187: 110923024 | AB187: 13.586903 | AC187: -37.11911908 | AE187: -4.500830898 | AF187: -90.19452363 | AG187: 9.086072102 | AH187: -127.3136427 | AI187: 0 | AJ187: 0
A188: 10593 | B188: 10.593 | C188: 8.236796121 | D188: 1.449089657 | E188: 1.000138426 | F188: 0.01663791007 | G188: 1 | H188: 0 | I188: 71.29039831 | J188: 1.556768732 | K188: 1.7186049 | L188: 0.9497735112 | M188: 1.000738595 | N188: 0.03842241977 | O188: 1 | P188: 1.0593e-05 | Q188: 1 | R188: 1.0593e-05 | S188: 1.007501288 | T188: 0.1431595745 | U188: 9.018814623 | V188: -127.2549789 | W188: 52.74502107 | Y188: 1000000000 | Z188: 112211649 | AB188: 13.56979091 | AC188: -36.97970689 | AE188: -4.550976283 | AF188: -90.27587898 | AG188: 9.018814623 | AH188: -127.2555859 | AI188: 0 | AJ188: 0
A189: 10654 | B189: 10.654 | C189: 8.283530725 | D189: 1.449779692 | E189: 1.000140025 | F189: 0.01673370197 | G189: 1 | H189: 0 | I189: 71.70084493 | J189: 1.556849038 | K189: 1.725157183 | L189: 0.9524882298 | M189: 1.000747123 | N189: 0.03864345646 | O189: 1 | P189: 1.0654e-05 | Q189: 1 | R189: 1.0654e-05 | S189: 1.007587649 | T189: 0.1439772625 | U189: 8.952054421 | V189: -127.1975968 | W189: 52.80240318 | Y189: 1000000000 | Z189: 113507716 | AB189: 13.55290474 | AC189: -36.84143059 | AE189: -4.600850324 | AF189: -90.35677665 | AG189: 8.952054421 | AH189: -127.1982072 | AI189: 0 | AJ189: 0
A190: 10715 | B190: 10.715 | C190: 8.330269229 | D190: 1.450461984 | E190: 1.000141633 | F190: 0.01682949356 | G190: 1 | H190: 0 | I190: 72.11129201 | J190: 1.556928429 | K190: 1.731722084 | L190: 0.9551823853 | M190: 1.0007557 | N190: 0.03886448937 | O190: 1 | P190: 1.0715e-05 | Q190: 1 | R190: 1.0715e-05 | S190: 1.007674499 | T190: 0.1447948364 | U190: 8.885784703 | V190: -127.1408901 | W190: 52.85910986 | Y190: 1000000000 | Z190: 114811225 | AB190: 13.53624073 | AC190: -36.70427988 | AE190: -4.650456024 | AF190: -90.43722418 | AG190: 8.885784703 | AH190: -127.1415041 | AI190: 0 | AJ190: 0
A191: 10777.5 | B191: 10.7775 | C191: 8.378161017 | D191: 1.451153157 | E191: 1.00014329 | F191: 0.01692764036 | G191: 1 | H191: 0 | I191: 72.53183252 | J191: 1.55700884 | K191: 1.738461353 | L191: 0.9579216657 | M191: 1.000764538 | N191: 0.03909095358 | O191: 1 | P191: 1.07775e-05 | Q191: 1 | R191: 1.07775e-05 | S191: 1.007763993 | T191: 0.1456323957 | U191: 8.818387151 | V191: -127.0834866 | W191: 52.91651343 | Y191: 1000000000 | Z191: 116154506.2 | AB191: 13.51939346 | AC191: -36.56491335 | AE191: -4.701006308 | AF191: -90.51919073 | AG191: 8.818387151 | AH191: -127.0841041 | AI191: 0 | AJ191: 0
A192: 10840 | B192: 10.84 | C192: 8.426056762 | D192: 1.451836474 | E192: 1.000144956 | F192: 0.01702578684 | G192: 1 | H192: 0 | I192: 72.95237349 | J192: 1.557088324 | K192: 1.745213567 | L192: 0.9606397698 | M192: 1.000773428 | N192: 0.03931741377 | O192: 1 | P192: 1.084e-05 | Q192: 1 | R192: 1.084e-05 | S192: 1.007854 | T192: 0.1464698339 | U192: 8.751490458 | V192: -127.0267859 | W192: 52.97321414 | Y192: 1000000000 | Z192: 117505600 | AB192: 13.50277158 | AC192: -36.42670678 | AE192: -4.751281123 | AF192: -90.60070017 | AG192: 8.751490458 | AH192: -127.027407 | AI192: 0 | AJ192: 0
A193: 10902.5 | B193: 10.9025 | C193: 8.473956397 | D193: 1.452512065 | E193: 1.000146632 | F193: 0.01712393299 | G193: 1 | H193: 0 | I193: 73.37291492 | J193: 1.557166897 | K193: 1.751978575 | L193: 0.9633369026 | M193: 1.000782369 | N193: 0.03954386993 | O193: 1 | P193: 1.09025e-05 | Q193: 1 | R193: 1.09025e-05 | S193: 1.00794452 | T193: 0.1473071504 | U193: 8.685087711 | V193: -126.9707847 | W193: 53.02921526 | Y193: 1000000000 | Z193: 118864506.2 | AB193: 13.48637126 | AC193: -36.28964934 | AE193: -4.801283547 | AF193: -90.68176007 | AG193: 8.685087711 | AH193: -126.9714094 | AI193: 0 | AJ193: 0
A194: 10965 | B194: 10.965 | C194: 8.521859856 | D194: 1.453180062 | E194: 1.000148318 | F194: 0.01722207881 | G194: 1 | H194: 0 | I194: 73.7934568 | J194: 1.557244575 | K194: 1.75875623 | L194: 0.9660132671 | M194: 1.000791361 | N194: 0.03977032203 | O194: 1 | P194: 1.0965e-05 | Q194: 1 | R194: 1.0965e-05 | S194: 1.008035554 | T194: 0.1481443445 | U194: 8.619172124 | V194: -126.9154799 | W194: 53.08452014 | Y194: 1000000000 | Z194: 120231225 | AB194: 13.47018873 | AC194: -36.1537303 | AE194: -4.851016606 | AF194: -90.76237781 | AG194: 8.619172124 | AH194: -126.9161081 | AI194: 0 | AJ194: 0
A195: 11028.75 | B195: 11.02875 | C195: 8.570725258 | D195: 1.453853726 | E195: 1.000150048 | F195: 0.01732218721 | G195: 1 | H195: 0 | I195: 74.22240996 | J195: 1.557322899 | K195: 1.765682316 | L195: 0.9687219719 | M195: 1.000800586 | N195: 0.04000129897 | O195: 1 | P195: 1.102875e-05 | Q195: 1 | R195: 1.102875e-05 | S195: 1.008128938 | T195: 0.1489981558 | U195: 8.55243319 | V195: -126.8597826 | W195: 53.1402174 | Y195: 1000000000 | Z195: 121633326.6 | AB195: 13.45390311 | AC195: -36.01625461 | AE195: -4.901469915 | AF195: -90.84415989 | AG195: 8.55243319 | AH195: -126.8604145 | AI195: 0 | AJ195: 0
A196: 11092.5 | B196: 11.0925 | C196: 8.619594505 | D196: 1.454519751 | E196: 1.000151787 | F196: 0.01742229525 | G196: 1 | H196: 0 | I196: 74.65136358 | J196: 1.557400324 | K196: 1.772621255 | L196: 0.9714094897 | M196: 1.000809864 | N196: 0.04023227164 | O196: 1 | P196: 1.10925e-05 | Q196: 1 | R196: 1.10925e-05 | S196: 1.008222855 | T196: 0.1498518384 | U196: 8.486187228 | V196: -126.8048024 | W196: 53.19519757 | Y196: 1000000000 | Z196: 123043556.2 | AB196: 13.43783642 | AC196: -35.87994102 | AE196: -4.951649187 | AF196: -90.92549696 | AG196: 8.486187228 | AH196: -126.805438 | AI196: 0 | AJ196: 0
A197: 11156.25 | B197: 11.15625 | C197: 8.668467533 | D197: 1.455178266 | E197: 1.000153537 | F197: 0.01752240295 | G197: 1 | H197: 0 | I197: 75.08031764 | J197: 1.557476863 | K197: 1.779572898 | L197: 0.9740760299 | M197: 1.000819196 | N197: 0.04046324002 | O197: 1 | P197: 1.115625e-05 | Q197: 1 | R197: 1.115625e-05 | S197: 1.008317306 | T197: 0.1507053915 | U197: 8.420427429 | V197: -126.7505356 | W197: 53.24946442 | Y197: 1000000000 | Z197: 124461914.1 | AB197: 13.42198491 | AC197: -35.74477843 | AE197: -5.00155748 | AF197: -91.00639636 | AG197: 8.420427429 | AH197: -126.7511748 | AI197: 0 | AJ197: 0
A198: 11220 | B198: 11.22 | C198: 8.717344277 | D198: 1.455829398 | E198: 1.000155297 | F198: 0.0176225103 | G198: 1 | H198: 0 | I198: 75.50927213 | J198: 1.557552533 | K198: 1.786537095 | L198: 0.9767217996 | M198: 1.000828581 | N198: 0.04069420407 | O198: 1 | P198: 1.122e-05 | Q198: 1 | R198: 1.122e-05 | S198: 1.00841229 | T198: 0.1515588146 | U198: 8.355147107 | V198: -126.6969782 | W198: 53.30302179 | Y198: 1000000000 | Z198: 125888400 | AB198: 13.40634491 | AC198: -35.61075582 | AE198: -5.051197803 | AF198: -91.08686525 | AG198: 8.355147107 | AH198: -126.6976211 | AI198: 0 | AJ198: 0
A199: 11285.5 | B199: 11.2855 | C199: 8.767566542 | D199: 1.456490842 | E199: 1.000157115 | F199: 0.01772536532 | G199: 1 | H199: 0 | I199: 75.95000229 | J199: 1.55762939 | K199: 1.79370539 | L199: 0.9794187802 | M199: 1.000838279 | N199: 0.04093150379 | O199: 1 | P199: 1.12855e-05 | Q199: 1 | R199: 1.12855e-05 | S199: 1.008510438 | T199: 0.1524355288 | U199: 8.288567283 | V199: -126.6426855 | W199: 53.35731451 | Y199: 1000000000 | Z199: 127362510.2 | AB199: 13.39049209 | AC199: -35.47423005 | AE199: -5.10192481 | AF199: -91.16910205 | AG199: 8.288567283 | AH199: -126.6433321 | AI199: 0 | AJ199: 0
A200: 11351 | B200: 11.351 | C200: 8.817792599 | D200: 1.45714475 | E200: 1.000158944 | F200: 0.01782821997 | G200: 1 | H200: 0 | I200: 76.3907329 | J200: 1.55770536 | K200: 1.800886628 | L200: 0.9820942712 | M200: 1.000848034 | N200: 0.0411687989 | O200: 1 | P200: 1.1351e-05 | Q200: 1 | R200: 1.1351e-05 | S200: 1.008609148 | T200: 0.1533121041 | U200: 8.22247971 | V200: -126.5891333 | W200: 53.41086668 | Y200: 1000000000 | Z200: 128845201 | AB200: 13.37485493 | AC200: -35.33888448 | AE200: -5.15237522 | AF200: -91.2508992 | AG200: 8.22247971 | AH200: -126.5897837 | AI200: 0 | AJ200: 0
A201: 11416.5 | B201: 11.4165 | C201: 8.868022384 | D201: 1.457791252 | E201: 1.000160783 | F201: 0.01793107424 | G201: 1 | H201: 0 | I201: 76.83146394 | J201: 1.557780458 | K201: 1.808080654 | L201: 0.9847484905 | M201: 1.000857845 | N201: 0.04140608936 | O201: 1 | P201: 1.14165e-05 | Q201: 1 | R201: 1.14165e-05 | S201: 1.008708422 | T201: 0.1541885399 | U201: 8.156877535 | V201: -126.5363173 | W201: 53.46368267 | Y201: 1000000000 | Z201: 130336472.2 | AB201: 13.35942968 | AC201: -35.20470748 | AE201: -5.202552141 | AF201: -91.33226396 | AG201: 8.156877535 | AH201: -126.5369714 | AI201: 0 | AJ201: 0
A202: 11482 | B202: 11.482 | C202: 8.918255834 | D202: 1.458430471 | E202: 1.000162633 | F202: 0.01803392814 | G202: 1 | H202: 0 | I202: 77.2721954 | J202: 1.5578547 | K202: 1.815287317 | L202: 0.9873816538 | M202: 1.000867712 | N202: 0.04164337517 | O202: 1 | P202: 1.1482e-05 | Q202: 1 | R202: 1.1482e-05 | S202: 1.008808258 | T202: 0.1550648353 | U202: 8.091754032 | V202: -126.4842331 | W202: 53.51576688 | Y202: 1000000000 | Z202: 131836324 | AB202: 13.34421266 | AC202: -35.07168755 | AE202: -5.25245863 | AF202: -91.41320344 | AG202: 8.091754032 | AH202: -126.484891 | AI202: 0 | AJ202: 0
... 433 more rows

Sheet Bode Plot Management (hidden)
A2: =CHOOSE(BODE_PLOT_TYPE, "BODE_PLOT_Ch1", "BODE_PLOT_Ch2") -> BODE_PLOT_Ch1
F6: =INDIRECT(A2) -> 0

Sheet Efficiency Calculations (hidden)
A1: BUCK CONTROLLER POWER DESIGN TOOL | AO1: =Ext_VCC -> 1
H2: =AV19 -> 0.8870249669 | I2: 10% load
H3: =AV59 -> 0.9402217309 | I3: 50% load | AN3: =IF(MODE=1, (Qg_Q1+Qg_Q2)*Fsw*Vin, (Qg_Q1+Qg_Q2+Qg_Q3+Qg_Q4)*Fsw*Vin) -> 0.12192
H4: =AV109 -> 0.9276795712 | I4: 100% load | U4: 3 | AG4: 1 | AK4: 2 | AM4: I_VCC | AN4: =(Qg_Q1+Qg_Q2)*Fsw*1000 -> 5.08 | AO4: mA | AP4: =AN4*5/1000 -> 0.0254
AP5: =VCC -> 3.3
A6: Enter the values of your design and MOSFET datasheet specifications below. Note that thermal resistance (θJA) will change when components are placed on the PCB
G7: Operating Point Condtions | R7: Filter Inductor | V7: Cout | Y7: Cin | AB7: High-side BUCK "Control" MOSFET Losses | AH7: Low-side BUCK "Sync" MOSFET Losses | AL7: Diode/FET | AM7: "Controller" Losses | AT7: RESULTS | AZ7: Consolidated Buck Efficiency & Losses
A8: Input Parameters | G8: Step | H8: Vin | I8: Mode | J8: Iout | K8: Iout/ phase | L8: Iin | M8: Duty Cycle BUCK Leg | N8: Ripple Current pk-pk | O8: Peak Inductor Current | P8: Valley Inductor Current | Q8: SW node voltage at Q1 turn-on | R8: Irms Lf | S8: DCR Loss | T8: Core Loss | U8: Total Inductor Loss | V8: Irms Cout | W8: Cout ESR Loss | X8: Total Cout Loss | Y8: Irms Cin | Z8: Cin ESR Loss | AA8: Total Cin Loss | AB8: Irms | AC8: RDS(on) Loss | AD8: Transition Loss (not including capacitive loss) | AE8: MOSFET Output Capacitance Loss | AF8: Dead Time Loss | AG8: Total Control MOSFET Loss | AH8: Irms | AI8: RDS(on) Loss | AJ8: Deadtime Loss | AK8: Total Sync MOSFET Loss | AL8: Reverse Recovery Loss | AM8: IQ Loss | AN8: Switching Current Loss | AO8: Switching Current Diss from VCC | AP8: LDO Loss Saved from Gate Drive Current (ext VCC = Vout) | AQ8: Total "Control" Loss | AR8: Total Loss (not considering total loss) | AS8: Total Loss (considering total loss) | AT8: Total Loss | AU8: Pout | AV8: EFF, h | AW8: =IF(Vin>Vout, "Buck ''CONTROL'' MOSFET Temp Rise", "Boost ''CONTROL'' MOSFET Temp Rise") -> Buck ''CONTROL'' MOSFET Temp Rise | AX8: =IF(Vin>Vout, "Buck ''SYNC'' MOSFET Temp Rise", "Boost ''SYNC'' MOSFET Temp Rise") -> Buck ''SYNC'' MOSFET Temp Rise | AZ8: h | BA8: Inductor Cu & Core Loss | BB8: Total MOSFET Loss | BC8: Control MOSFET Loss | BD8: SYNC MOSFET Loss | BE8: IC Power Loss
A9: Design | B9: Input Value | C9: Units | D9: Description | G9: 0 | H9: =Vin -> 24 | I9: =MODE -> 1 | J9: 0 | K9: =Iout*G9/100/Number_of_Phases -> 0 | L9: =Vout*K9/(Vin*Efficiency) -> 0 | M9: =(Vout+(Rdson2+Rs+Rdcr)*K9)/(Vin+(Rs+Rdson2-Rdson1)*K9) -> 0.2083333333 | N9: =(Vin-(Rdson1+Rdcr)*K9-Vout)*M9/(Fsw*Lf) -> 1.455269608 | O9: =K9+N9/2 -> 0.7276348039 | P9: =K9-N9/2 -> -0.7276348039 | Q9: =IF(MIN(Vin, -P9/(Coss_Q1+Coss_Q2)*0.00000002)<0, 0, MIN(Vin, -P9/(Coss_Q1+Coss_Q2)*0.00000002)) -> 14.00644473 | R9: =SQRT(K9^2+(N9^2)/12) -> 0.4201001499 | S9: =R9^2*Rdcr -> 0.004765071671 | T9: =Core_Loss -> 0.1 | U9: =(T9+S9*(1+Ltc*(Ta-25)))/(1-S9*Ltc*ThetaCa) -> 0.1048082514 | V9: =N9/SQRT(12) -> 0.4201001499 | W9: =RCoutEsr*V9^2 -> 0.0003529682719 | X9: =W9 -> 0.0003529682719 | Y9: =SQRT(M9*(1-M9))*SQRT(K9^2+(N9^2)/12) -> 0.1706095736 | Z9: =RCinEsr*Y9^2 -> 5.821525318e-05 | AA9: =Z9 -> 5.821525318e-05 | AB9: =SQRT(M9)*SQRT(K9^2+(N9^2)/12) -> 0.1917486071 | AC9: =Rdson1*AB9^2 -> 0.002720797096 | AD9: =(Vin*K9/2)*Fsw*(Tr_buck+Tf_buck) -> 0 | AE9: =(0.5*Coss_Q1*(Vin-Q9)^2-0.5*Coss_Q2*(Vin-Q9)^2+(Qoss_Q2*(Vin-Q9)/Vin)*Vin)*Fsw -> 0.02792172291 | AF9: =IF(K9>N9/2,0,ABS(K9-N9/2)*Vsd_Q1*Deadtime*Fsw) -> 0.001629901961 | AG9: =(AF9+AE9+AD9+AC9*(1+RdsonTC*(Ta-25))/(1-AC9*RdsonTC*ThetaJA_Q1)) -> 0.03227310319 | AH9: =SQRT((1-M9))*SQRT(K9^2+(N9^2)/12) -> 0.3737868479 | AI9: =Rdson2*AH9^2 -> 0.004331214837 | AJ9: =IF(K9<N9/2,Deadtime*Fsw*Vsd_Q2*(K9+N9/2),2*Deadtime*Fsw*Vsd_Q2*K9) -> 0.001629901961 | AK9: =(AJ9+AI9*(1+RdsonTC*(Ta-25)))/(1-AI9*RdsonTC*ThetaJA_Q2) -> 0.005963493081 | AL9: =Qrr_Q2*K9/Iout*Fsw*Vin -> 0 | AM9: =Iq*Vin -> 0.00084 | AN9: =IF(Ext_VCC=1, (Qg_Q1+Qg_Q2)*Fsw*Vout, (Qg_Q1+Qg_Q2)*Fsw*Vin) -> 0.0254 | AO9: =(Vin-VCC)*Fsw*(Qg_Q1+Qg_Q2) -> 0.105156 | AP9: =(Qg_Q1+Qg_Q2)*Fsw*(Vin-Vout) -> 0.09652 | AQ9: =SUM(AM9:AN9) -> 0.02624 | AR9: =SUM(S9,T9,AC9,AD9,AE9,AF9,AI9,AJ9,AQ9, AL9) -> 0.1692386104 | AS9: =U9 + ((AF9+AE9+AD9+AC9*(1+RdsonTC*(Ta-25))) + (AJ9+AI9*(1+RdsonTC*(Ta-25))) + AQ9 + AL9) / (1-AC9*RdsonTC*ThetaJA_Q1 -AI9*RdsonTC*ThetaJA_Q2) -> 0.1693236468 | AT9: =AS9 -> 0.1693236468 | AU9: =Vout*K9 -> 0 | AV9: =AU9/(AU9+AT9) -> 0 | AW9: =ThetaJA_Q1*BC9 -> 0.7422813733 | AX9: =ThetaJA_Q2*BD9 -> 0.1371603409 | AZ9: =AV9*100 -> 0 | BA9: =U9 -> 0.1048082514 | BB9: =AG9+AK9+AL9 -> 0.03823659627 | BC9: =AG9+AL9*0.66 -> 0.03227310319 | BD9: =AK9+AL9*0.33 -> 0.005963493081 | BE9: =AS9-BA9 -> 0.06451539539
G10: 1 | H10: 24 | I10: 1 | J10: =Iout*G10/100 -> 0.035 | K10: 0.035 | L10: 0.008101851852 | M10: 0.2084425313 | N10: 1.455761489 | O10: =K10+N10/2 -> 0.7628807445 | P10: =K10-N10/2 -> -0.6928807445 | Q10: 13.33745418 | R10: =SQRT(K10^2+(N10^2)/12) -> 0.4216971181 | S10: 0.004801368404 | T10: 0.1 | U10: 0.1048448923 | V10: =N10/SQRT(12) -> 0.4202421438 | W10: 0.0003532069188 | X10: =W10 -> 0.0003532069188 | Y10: =SQRT(M10*(1-M10))*SQRT(K10^2+(N10^2)/12) -> 0.1712911905 | Z10: 5.868134389e-05 | AA10: =Z10 -> 5.868134389e-05 | AB10: =SQRT(M10)*SQRT(K10^2+(N10^2)/12) -> 0.192527957 | AC10: 0.002742959052 | AD10: 0.0003898024763 | AE10: 0.02982082361 | AF10: 0.001552052868 | AG10: =(AF10+AE10+AD10+AC10*(1+RdsonTopTc*Ta-RdsonTopTc*25))/(1-AC10*RdsonTopTc*ThetaJA_Q1) -> 0.03451434778 | AH10: 0.3751818828 | AI10: 0.004363604801 | AJ10: 0.001708852868 | AK10: =(AJ10+AI10*(1+RdsonBotTc*Ta-RdsonBotTc*25))/(1-AI10*RdsonBotTc*ThetaJA_Q2) -> 0.006074896446 | AL10: 0.002208 | AM10: 0.00084 | AN10: 0.0254 | AO10: 0.105156 | AP10: 0.09652 | AQ10: 0.02624 | AR10: =SUM(S10,T10,AC10,AD10,AE10,AF10,AI10,AJ10,AQ10, AL10) -> 0.1738274641 | AS10: 0.173916147 | AT10: =AS10 -> 0.173916147 | AU10: 0.175 | AV10: =AU10/(AU10+AT10) -> 0.5015531712 | AW10: 0.827347439 | AX10: 0.1564813383 | AZ10: =AV10*100 -> 50.15531712 | BA10: 0.1048448923 | BB10: 0.04279724423 | BC10: 0.03597162778 | BD10: 0.006803536446 | BE10: =AS10-BA10 -> 0.06907125473
A11: Vin | B11: =Vin -> 24 | C11: V | D11: Vin | G11: 2 | H11: 24 | I11: 1 | J11: 0.07 | K11: 0.07 | L11: 0.0162037037 | M11: 0.2085517398 | N11: 1.45625316 | O11: 0.7981265799 | P11: -0.6581265799 | Q11: 12.6684616 | R11: 0.4261722329 | S11: 0.004903814848 | T11: 0.1 | U11: 0.1049483112 | V11: 0.4203840769 | W11: 0.0003534455443 | X11: 0.0003534455443 | Y11: 0.1731423561 | Z11: 5.995655094e-05 | AA11: 5.995655094e-05 | AB11: 0.1946220571 | AC11: 0.002802953138 | AD11: 0.0007796049526 | AE11: 0.03172368949 | AF11: 0.001474203539 | AG11: 0.0367899382 | AH11: 0.379137214 | AI11: 0.004456095838 | AJ11: 0.001787803539 | AK11: 0.006246460181 | AL11: 0.004416 | AM11: 0.00084 | AN11: 0.0254 | AO11: 0.105156 | AP11: 0.09652 | AQ11: 0.02624 | AR11: 0.1785841653 | AS11: 0.1786779007 | AT11: 0.1786779007 | AU11: 0.35 | AV11: 0.6620288072 | AW11: 0.9132034587 | AX11: 0.1771860242 | AZ11: 66.20288072 | BA11: 0.1049483112 | BB11: 0.04745239838 | BC11: 0.0397044982 | BD11: 0.007703740181 | BE11: 0.07372958951
A12: Vout | B12: =Vout -> 5 | C12: V | D12: Vout | G12: 3 | H12: 24 | I12: 1 | J12: 0.105 | K12: 0.105 | L12: 0.02430555556 | M12: 0.2086609588 | N12: 1.45674462 | O12: 0.8333723101 | P12: -0.6233723101 | Q12: 11.99946699 | R12: 0.4334363552 | S12: 0.005072410999 | T12: 0.1 | U12: 0.1051185118 | V12: 0.4205259493 | W12: 0.0003536841481 | X12: 0.0003536841481 | Y12: 0.1761275246 | Z12: 6.204180982e-05 | AA12: 6.204180982e-05 | AB12: 0.1979912215 | AC12: 0.00290083876 | AD12: 0.001169407429 | AE12: 0.03363032057 | AF12: 0.001396353975 | AG12: 0.0391073576 | AH12: 0.3855730155 | AI12: 0.004608663058 | AJ12: 0.001866753975 | AK12: 0.006478163754 | AL12: 0.006624 | AM12: 0.00084 | AN12: 0.0254 | AO12: 0.105156 | AP12: 0.09652 | AQ12: 0.02624 | AR12: 0.1835087488 | AS12: 0.1836090767 | AT12: 0.1836090767 | AU12: 0.525 | AV12: 0.7408880541 | AW12: 1.000021545 | AX12: 0.1992739264 | AZ12: 74.08880541 | BA12: 0.1051185118 | BB12: 0.05220952135 | BC12: 0.0434791976 | BD12: 0.008664083754 | BE12: 0.07849056487
A13: Fsw | B13: =Fsw/1000 -> 400 | C13: kHz | D13: Switching Frequency | G13: 4 | H13: 24 | I13: 1 | J13: 0.14 | K13: 0.14 | L13: 0.03240740741 | M13: 0.2087701883 | N13: 1.45723587 | O13: 0.868617935 | P13: -0.588617935 | Q13: 11.33047036 | R13: 0.4433524163 | S13: 0.005307156857 | T13: 0.1 | U13: 0.1053554999 | V13: 0.4206677609 | W13: 0.0003539227302 | X13: 0.0003539227302 | Y13: 0.1801916418 | Z13: 6.493805553e-05 | AA13: 6.493805553e-05 | AB13: 0.2025738216 | AC13: 0.003036675336 | AD13: 0.001559209905 | AE13: 0.0355407169 | AF13: 0.001318504174 | AG13: 0.04146669104 | AH13: 0.3943668494 | AI13: 0.004821281568 | AJ13: 0.001945704174 | AK13: 0.006769988625 | AL13: 0.008832 | AM13: 0.00084 | AN13: 0.0254 | AO13: 0.105156 | AP13: 0.09652 | AQ13: 0.02624 | AR13: 0.1886012489 | AS13: 0.1887098515 | AT13: 0.1887098515 | AU13: 0.7 | AV13: 0.7876586479 | AW13: 1.087803654 | AX13: 0.2227446184 | AZ13: 78.76586479 | BA13: 0.1053554999 | BB13: 0.05706867966 | BC13: 0.04729581104 | BD13: 0.009684548625 | BE13: 0.08335435159
A14: Iout | B14: =Iout -> 3.5 | C14: A | D14: Max Output Current | G14: 5 | H14: 24 | I14: 1 | J14: 0.175 | K14: 0.175 | L14: 0.04050925926 | M14: 0.2088794283 | N14: 1.457726909 | O14: 0.9038634547 | P14: -0.5538634547 | Q14: 10.6614717 | R14: 0.455747348 | S14: 0.00560805242 | T14: 0.1 | U14: 0.1056592837 | V14: 0.4208095118 | W14: 0.0003541612904 | X14: 0.0003541612904 | Y14: 0.1852649758 | Z14: 6.864622252e-05 | AA14: 6.864622252e-05 | AB14: 0.2082917099 | AC14: 0.003210522295 | AD14: 0.001949012382 | AE14: 0.03745487851 | AF14: 0.001240654138 | AG14: 0.04386802453 | AH14: 0.4053642914 | AI14: 0.005093926472 | AJ14: 0.002024654138 | AK14: 0.007121918235 | AL14: 0.01104 | AM14: 0.00084 | AN14: 0.0254 | AO14: 0.105156 | AP14: 0.09652 | AQ14: 0.02624 | AR14: 0.1938617004 | AS14: 0.1939804098 | AT14: 0.1939804098 | AU14: 0.875 | AV14: 0.8185369835 | AW14: 1.176551764 | AX14: 0.2475977194 | AZ14: 81.85369835 | BA14: 0.1056592837 | BB14: 0.06202994277 | BC14: 0.05115442453 | BD14: 0.01076511823 | BE14: 0.08832112609
A15: Ta | B15: =Ta -> 25 | C15: °C | D15: Ambient Temperature | G15: 6 | H15: 24 | I15: 1 | J15: 0.21 | K15: 0.21 | L15: 0.04861111111 | M15: 0.2089886788 | N15: 1.458217738 | O15: 0.939108869 | P15: -0.519108869 | Q15: 9.992471011 | R15: 0.4704252484 | S15: 0.005975097686 | T15: 0.1 | U15: 0.1060298735 | V15: 0.4209512018 | W15: 0.0003543998286 | X15: 0.0003543998286 | Y15: 0.1912684563 | Z15: 7.316724475e-05 | AA15: 7.316724475e-05 | AB15: 0.2150562176 | AC15: 0.003422439077 | AD15: 0.002338814858 | AE15: 0.03937280542 | AF15: 0.001162803867 | AG15: 0.04631144505 | AH15: 0.4183906519 | AI15: 0.005426572865 | AJ15: 0.002103603867 | AK15: 0.007533938011 | AL15: 0.013248 | AM15: 0.00084 | AN15: 0.0254 | AO15: 0.105156 | AP15: 0.09652 | AQ15: 0.02624 | AR15: 0.1992901376 | AS15: 0.1994209439 | AT15: 0.1994209439 | AU15: 1.05 | AV15: 0.840389306 | AW15: 1.266267876 | AX15: 0.2738328942 | AZ15: 84.0389306 | BA15: 0.1060298735 | BB15: 0.06709338306 | BC15: 0.05505512505 | BD15: 0.01190577801 | BE15: 0.09339107048
A16: Vcc | B16: =VCC -> 3.3 | C16: V | D16: Subregulated VCC Voltage | G16: 7 | H16: 24 | I16: 1 | J16: 0.245 | K16: 0.245 | L16: 0.05671296296 | M16: 0.2090979399 | N16: 1.458708356 | O16: 0.9743541781 | P16: -0.4843541781 | Q16: 9.323468299 | R16: 0.4871798152 | S16: 0.006408292654 | T16: 0.1 | U16: 0.106467282 | V16: 0.4210928311 | W16: 0.0003546383448 | X16: 0.0003546383448 | Y16: 0.1981187215 | Z16: 7.850205563e-05 | AA16: 7.850205563e-05 | AB16: 0.2227738259 | AC16: 0.003672485134 | AD16: 0.002728617334 | AE16: 0.04129449769 | AF16: 0.001084953359 | AG16: 0.04879704051 | AH16: 0.4332620395 | AI16: 0.005819195842 | AJ16: 0.002182553359 | AK16: 0.00800603536 | AL16: 0.015456 | AM16: 0.00084 | AN16: 0.0254 | AO16: 0.105156 | AP16: 0.09652 | AQ16: 0.02624 | AR16: 0.2048865954 | AS16: 0.2050316546 | AT16: 0.2050316546 | AU16: 1.225 | AV16: 0.8566243944 | AW16: 1.356954012 | AX16: 0.3014498533 | AZ16: 85.66243944 | BA16: 0.106467282 | BB16: 0.07225907587 | BC16: 0.05899800051 | BD16: 0.01310651536 | BE16: 0.09856437254
A17: Components | B17: Input Value | C17: Units | D17: Description | G17: 8 | H17: 24 | I17: 1 | J17: 0.28 | K17: 0.28 | L17: 0.06481481481 | M17: 0.2092072114 | N17: 1.459198764 | O17: 1.009599382 | P17: -0.4495993819 | Q17: 8.654463559 | R17: 0.5058047245 | S17: 0.006907637322 | T17: 0.1 | U17: 0.1069715244 | V17: 0.4212343995 | W17: 0.0003548768387 | X17: 0.0003548768387 | Y17: 0.2057323359 | Z17: 8.465158805e-05 | AA17: 8.465158805e-05 | AB17: 0.2313509073 | AC17: 0.00396071993 | AD17: 0.00311841981 | AE17: 0.04321995534 | AF17: 0.001007102615 | AG17: 0.05132489978 | AH17: 0.4497945943 | AI17: 0.006271770489 | AJ17: 0.002261502615 | AK17: 0.00853819967 | AL17: 0.017664 | AM17: 0.00084 | AN17: 0.0254 | AO17: 0.105156 | AP17: 0.09652 | AQ17: 0.02624 | AR17: 0.2106511081 | AS17: 0.2108127502 | AT17: 0.2108127502 | AU17: 1.4 | AV17: 0.8691264704 | AW17: 1.448612215 | AX17: 0.3304483524 | AZ17: 86.91264704 | BA17: 0.1069715244 | BB17: 0.07752709945 | BC17: 0.06298313978 | BD17: 0.01436731967 | BE17: 0.1038412258
A18: L | B18: =Lf*1000000 -> 6.8 | C18: uH | D18: Filter Inductance | G18: 9 | H18: 24 | I18: 1 | J18: 0.315 | K18: 0.315 | L18: 0.07291666667 | M18: 0.2093164935 | N18: 1.459688961 | O18: 1.04484448 | P18: -0.4148444803 | Q18: 7.985456792 | R18: 0.5261013735 | S18: 0.007473131689 | T18: 0.1 | U18: 0.1075426179 | V18: 0.4213759072 | W18: 0.0003551153103 | X18: 0.0003551153103 | Y18: 0.2140289401 | Z18: 9.16167744e-05 | AA18: 9.16167744e-05 | AB18: 0.2406972681 | AC18: 0.004287202939 | AD18: 0.003508222287 | AE18: 0.0451491784 | AF18: 0.0009292516359 | AG18: 0.05389511272 | AH18: 0.4678113726 | AI18: 0.00678427189 | AJ18: 0.002340451636 | AK18: 0.009130422306 | AL18: 0.019872 | AM18: 0.00084 | AN18: 0.0254 | AO18: 0.105156 | AP18: 0.09652 | AQ18: 0.02624 | AR18: 0.2165837105 | AS18: 0.2167644474 | AT18: 0.2167644474 | AU18: 1.575 | AV18: 0.8790217946 | AW18: 1.541244553 | AX18: 0.360828193 | AZ18: 87.90217946 | BA18: 0.1075426179 | BB18: 0.08289753503 | BC18: 0.06701063272 | BD18: 0.01568818231 | BE18: 0.1092218295
A19: Rdcr | B19: =Rdcr*1000 -> 27 | C19: mW | D19: Inductor DCR at 25°C | G19: 10 | H19: 24 | I19: 1 | J19: 0.35 | K19: 0.35 | L19: 0.08101851852 | M19: 0.2094257862 | N19: 1.460178947 | O19: 1.080089473 | P19: -0.3800894734 | Q19: 7.316447997 | R19: 0.5478840021 | S19: 0.008104775753 | T19: 0.1 | U19: 0.1081805821 | V19: 0.421517354 | W19: 0.0003553537595 | X19: 0.0003553537595 | Y19: 0.2229333381 | Z19: 9.939854651e-05 | AA19: 9.939854651e-05 | AB19: 0.2507284966 | AC19: 0.004651993648 | AD19: 0.003898024763 | AE19: 0.04708216692 | AF19: 0.0008514004205 | AG19: 0.05650777014 | AH19: 0.4871468985 | AI19: 0.007356675122 | AJ19: 0.00241940042 | AK19: 0.00978269661 | AL19: 0.02208 | AM19: 0.00084 | AN19: 0.0254 | AO19: 0.105156 | AP19: 0.09652 | AQ19: 0.02624 | AR19: 0.2226844371 | AS19: 0.2228869707 | AT19: 0.2228869707 | AU19: 1.75 | AV19: 0.8870249669 | AW19: 1.634853113 | AX19: 0.392589222 | AZ19: 88.70249669 | BA19: 0.1081805821 | BB19: 0.08837046675 | BC19: 0.07108057014 | BD19: 0.01706909661 | BE19: 0.1147063886
A20: LTc | B20: 3930 | C20: ppm | D20: Inductor Series Resistance Temp Co | G20: 11 | H20: 24 | I20: 1 | J20: 0.385 | K20: 0.385 | L20: 0.08912037037 | M20: 0.2095350893 | N20: 1.460668722 | O20: 1.115334361 | P20: -0.3453343612 | Q20: 6.647437174 | R20: 0.5709825681 | S20: 0.008802569512 | T20: 0.1 | U20: 0.108885439 | V20: 0.42165874 | W20: 0.0003555921861 | X20: 0.0003555921861 | Y20: 0.2323766724 | Z20: 0.0001079978357 | AA20: 0.0001079978357 | AB20: 0.2613672873 | AC20: 0.005055151555 | AD20: 0.004287827239 | AE20: 0.04901892093 | AF20: 0.0007735489691 | AG20: 0.05916296385 | AH20: 0.507649716 | AI20: 0.00798895526 | AJ20: 0.002498348969 | AK20: 0.0104950179 | AL20: 0.024288 | AM20: 0.00084 | AN20: 0.0254 | AO20: 0.105156 | AP20: 0.09652 | AQ20: 0.02624 | AR20: 0.2289533224 | AS20: 0.229180553 | AT20: 0.229180553 | AU20: 1.925 | AV20: 0.8936112608 | AW20: 1.729440008 | AX20: 0.4257313317 | AZ20: 89.36112608 | BA20: 0.108885439 | BB20: 0.09394598175 | BC20: 0.07519304385 | BD20: 0.0185100579 | BE20: 0.120295114
A21: ThetaCa | B21: =ThetaCa -> 22 | C21: °C/W | D21: Core to Ambient Thermal Resistance | G21: 12 | H21: 24 | I21: 1 | J21: 0.42 | K21: 0.42 | L21: 0.09722222222 | M21: 0.209644403 | N21: 1.461158287 | O21: 1.150579144 | P21: -0.3105791436 | Q21: 5.978424323 | R21: 0.5952438954 | S21: 0.009566512965 | T21: 0.1 | U21: 0.1096572127 | V21: 0.4218000652 | W21: 0.00035583059 | X21: 0.00035583059 | Y21: 0.2422968973 | Z21: 0.0001174155729 | AA21: 0.0001174155729 | AB21: 0.2725439753 | AC21: 0.005496736168 | AD21: 0.004677629716 | AE21: 0.05095944046 | AF21: 0.0006956972816 | AG21: 0.06186078661 | AH21: 0.5291834054 | AI21: 0.008681087372 | AJ21: 0.002577297282 | AK21: 0.01126738346 | AL21: 0.026496 | AM21: 0.00084 | AN21: 0.0254 | AO21: 0.105156 | AP21: 0.09652 | AQ21: 0.02624 | AR21: 0.2353904012 | AS21: 0.235645435 | AT21: 0.235645435 | AU21: 2.1 | AV21: 0.8991090722 | AW21: 1.825007372 | AX21: 0.4602544596 | AZ21: 89.91090722 | BA21: 0.1096572127 | BB21: 0.09962417007 | BC21: 0.07934814661 | BD21: 0.02001106346 | BE21: 0.1259882222
A22: Cin | B22: =Cin*1000000 -> 47 | C22: μF | D22: Input Capacitance | G22: 13 | H22: 24 | I22: 1 | J22: 0.455 | K22: 0.455 | L22: 0.1053240741 | M22: 0.2097537272 | N22: 1.461647641 | O22: 1.185823821 | P22: -0.2758238206 | Q22: 5.309409443 | R22: 0.6205316153 | S22: 0.01039660611 | T22: 0.1 | U22: 0.1104959299 | V22: 0.4219413295 | W22: 0.0003560689711 | X22: 0.0003560689711 | Y22: 0.252638762 | Z22: 0.0001276526882 | AA22: 0.0001276526882 | AB22: 0.2841965205 | AC22: 0.005976807009 | AD22: 0.005067432192 | AE22: 0.05290372555 | AF22: 0.000617845358 | AG22: 0.0646013322 | AH22: 0.5516265252 | AI22: 0.009433046522 | AJ22: 0.002656245358 | AK22: 0.01209979257 | AL22: 0.028704 | AM22: 0.00084 | AN22: 0.0254 | AO22: 0.105156 | AP22: 0.09652 | AQ22: 0.02624 | AR22: 0.2419957081 | AS22: 0.2422818656 | AT22: 0.2422818656 | AU22: 2.275 | AV22: 0.9037525877 | AW22: 1.921557361 | AX22: 0.496158589 | AZ22: 90.37525877 | BA22: 0.1104959299 | BB22: 0.1054051248 | BC22: 0.0835459722 | BD22: 0.02157211257 | BE22: 0.1317859358
A23: RCinEsr | B23: =RCinEsr*1000 -> 2 | C23: mW | D23: Input Capacitor ESR | G23: 14 | H23: 24 | I23: 1 | J23: 0.49 | K23: 0.49 | L23: 0.1134259259 | M23: 0.2098630619 | N23: 1.462136784 | O23: 1.221068392 | P23: -0.2410683921 | Q23: 4.640392534 | R23: 0.6467253394 | S23: 0.01129284895 | T23: 0.1 | U23: 0.1114016192 | V23: 0.422082533 | W23: 0.0003563073293 | X23: 0.0003563073293 | Y23: 0.2633534805 | Z23: 0.0001387101114 | AA23: 0.0001387101114 | AB23: 0.2962701381 | AC23: 0.006495423609 | AD23: 0.005457234668 | AE23: 0.05485177623 | AF23: 0.0005399931984 | AG23: 0.06738469538 | AH23: 0.5748718726 | AI23: 0.01024480777 | AJ23: 0.002735193198 | AK23: 0.01299224645 | AL23: 0.030912 | AM23: 0.00084 | AN23: 0.0254 | AO23: 0.105156 | AP23: 0.09652 | AQ23: 0.02624 | AR23: 0.2487692776 | AS23: 0.2490901021 | AT23: 0.2490901021 | AU23: 2.45 | AV23: 0.9077133061 | AW23: 2.019092154 | AX23: 0.5334437483 | AZ23: 90.77133061 | BA23: 0.1114016192 | BB23: 0.1112889418 | BC23: 0.08778661538 | BD23: 0.02319320645 | BE23: 0.1376884829
A24: Cout | B24: =Cout*1000000 -> 125 | C24: μF | D24: Output Capcitance | G24: 15 | H24: 24 | I24: 1 | J24: 0.525 | K24: 0.525 | L24: 0.1215277778 | M24: 0.2099724072 | N24: 1.462625717 | O24: 1.256312858 | P24: -0.2063128583 | Q24: 3.971373596 | R24: 0.6737194017 | S24: 0.01225524147 | T24: 0.1 | U24: 0.112374312 | V24: 0.4222236756 | W24: 0.0003565456645 | X24: 0.0003565456645 | Y24: 0.2743982251 | Z24: 0.0001505887718 | AA24: 0.0001505887718 | AB24: 0.3087167317 | AC24: 0.007052645513 | AD24: 0.005847037145 | AE24: 0.05680359254 | AF24: 0.0004621408026 | AG24: 0.07021097193 | AH24: 0.59882536 | AI24: 0.01111634617 | AJ24: 0.002814140803 | AK24: 0.01394474832 | AL24: 0.03312 | AM24: 0.00084 | AN24: 0.0254 | AO24: 0.105156 | AP24: 0.09652 | AQ24: 0.02624 | AR24: 0.2557111444 | AS24: 0.2560704097 | AT24: 0.2560704097 | AU24: 2.625 | AV24: 0.9111196974 | AW24: 2.117613954 | AX24: 0.5721100113 | AZ24: 91.11196974 | BA24: 0.112374312 | BB24: 0.1172757202 | BC24: 0.09207017193 | BD24: 0.02487434832 | BE24: 0.1436960978
A25: RCoutEsr | B25: =Cout_ESR*1000 -> 2 | C25: mW | D25: Output Capacitor ESR | G25: 16 | H25: 24 | I25: 1 | J25: 0.56 | K25: 0.56 | L25: 0.1296296296 | M25: 0.210081763 | N25: 1.463114438 | O25: 1.291557219 | P25: -0.1715572191 | Q25: 3.302352629 | R25: 0.7014214056 | S25: 0.01328378368 | T25: 0.1 | U25: 0.1134140415 | V25: 0.4223647574 | W25: 0.0003567839765 | X25: 0.0003567839765 | Y25: 0.2857355404 | Z25: 0.0001632895981 | AA25: 0.0001632895981 | AB25: 0.3214942367 | AC25: 0.007648532275 | AD25: 0.006236839621 | AE25: 0.05875917451 | AF25: 0.0003842881707 | AG25: 0.0730802586 | AH25: 0.6234047193 | AI25: 0.01204763676 | AJ25: 0.002893088171 | AK25: 0.01495730335 | AL25: 0.035328 | AM25: 0.00084 | AN25: 0.0254 | AO25: 0.105156 | AP25: 0.09652 | AQ25: 0.02624 | AR25: 0.2628213432 | AS25: 0.2632230621 | AT25: 0.2632230621 | AU25: 2.8 | AV25: 0.9140699006 | AW25: 2.217124988 | AX25: 0.612157497 | AZ25: 91.40699006 | BA25: 0.1134140415 | BB25: 0.1233655619 | BC25: 0.0963967386 | BD25: 0.02661554335 | BE25: 0.1498090206
A26: Top Driver | B26: Input Value | C26: Units | D26: Description | G26: 17 | H26: 24 | I26: 1 | J26: 0.595 | K26: 0.595 | L26: 0.1377314815 | M26: 0.2101911293 | N26: 1.463602949 | O26: 1.326801474 | P26: -0.1368014744 | Q26: 2.633329631 | R26: 0.7297507332 | S26: 0.01437847558 | T26: 0.1 | U26: 0.1145208437 | V26: 0.4225057782 | W26: 0.0003570222652 | X26: 0.0003570222652 | Y26: 0.2973327416 | Z26: 0.0001768135185 | AA26: 0.0001768135185 | AB26: 0.3345659443 | AC26: 0.008283143461 | AD26: 0.006626642097 | AE26: 0.06071852219 | AF26: 0.0003064353026 | AG26: 0.07599265319 | AH26: 0.6485381728 | AI26: 0.01303865461 | AJ26: 0.002972035303 | AK26: 0.0160299187 | AL26: 0.037536 | AM26: 0.00084 | AN26: 0.0254 | AO26: 0.105156 | AP26: 0.09652 | AQ26: 0.02624 | AR26: 0.2700999085 | AS26: 0.270548341 | AT26: 0.270548341 | AU26: 2.975 | AV26: 0.9166401752 | AW26: 2.317627503 | AX26: 0.6535863701 | AZ26: 91.66401752 | BA26: 0.1145208437 | BB26: 0.1295585719 | BC26: 0.1007664132 | BD26: 0.0284167987 | BE26: 0.1560274973
A27: RdsonDRT | B27: 1 | C27: W | D27: Drain to Source Resistance of pullup Top FET Driver | G27: 18 | H27: 24 | I27: 1 | J27: 0.63 | K27: 0.63 | L27: 0.1458333333 | M27: 0.2103005061 | N27: 1.464091248 | O27: 1.362045624 | P27: -0.1020456242 | Q27: 1.964304604 | R27: 0.7586371104 | S27: 0.01553931716 | T27: 0.1 | U27: 0.1156947565 | V27: 0.4226467382 | W27: 0.0003572605306 | X27: 0.0003572605306 | Y27: 0.3091613337 | Z27: 0.0001911614605 | AA27: 0.0001911614605 | AB27: 0.3478998507 | AC27: 0.008956538651 | AD27: 0.007016444574 | AE27: 0.06268163559 | AF27: 0.0002285821982 | AG27: 0.0789482545 | AH27: 0.6741631547 | AI27: 0.01408937474 | AJ27: 0.003050982198 | AK27: 0.01716260349 | AL27: 0.039744 | AM27: 0.00084 | AN27: 0.0254 | AO27: 0.105156 | AP27: 0.09652 | AQ27: 0.02624 | AR27: 0.2775468751 | AS27: 0.2780465366 | AT27: 0.2780465366 | AU27: 3.15 | AV27: 0.9188906762 | AW27: 2.419123773 | AX27: 0.6963968402 | AZ27: 91.88906762 | BA27: 0.1156947565 | BB27: 0.135854858 | BC27: 0.1051792945 | BD27: 0.03027812349 | BE27: 0.1623517801
A28: RdsonDRT2 | B28: 1 | C28: W | D28: Drain to Source Resistance of pulldown Top FET Driver | G28: 19 | H28: 24 | I28: 1 | J28: 0.665 | K28: 0.665 | L28: 0.1539351852 | M28: 0.2104098935 | N28: 1.464579337 | O28: 1.397289669 | P28: -0.06728966854 | Q28: 1.295277547 | R28: 0.7880192804 | S28: 0.01676630843 | T28: 0.1 | U28: 0.1169358204 | V28: 0.4227876373 | W28: 0.0003574987724 | X28: 0.0003574987724 | Y28: 0.3211964752 | Z28: 0.0002063343514 | AA28: 0.0002063343514 | AB28: 0.3614680546 | AC28: 0.009668777433 | AD28: 0.00740624705 | AE28: 0.06464851476 | AF28: 0.0001507288575 | AG28: 0.08194716236 | AH28: 0.7002251293 | AI28: 0.01519977218 | AJ28: 0.003129928858 | AK28: 0.0183553688 | AL28: 0.041952 | AM28: 0.00084 | AN28: 0.0254 | AO28: 0.105156 | AP28: 0.09652 | AQ28: 0.02624 | AR28: 0.2851622776 | AS28: 0.2857179472 | AT28: 0.2857179472 | AU28: 3.325 | AV28: 0.9208694915 | AW28: 2.521616094 | AX28: 0.7405891625 | AZ28: 92.08694915 | BA28: 0.1169358204 | BB28: 0.1422545312 | BC28: 0.1096354824 | BD28: 0.0321995288 | BE28: 0.1687821269
A29: Bottom Driver | B29: Input Value | C29: Units | D29: Description | G29: 20 | H29: 24 | I29: 1 | J29: 0.7 | K29: 0.7 | L29: 0.162037037 | M29: 0.2105192915 | N29: 1.465067215 | O29: 1.432533607 | P29: -0.03253360741 | Q29: 0.6262484583 | R29: 0.8178438086 | S29: 0.01805944937 | T29: 0.1 | U29: 0.118244078 | V29: 0.4229284754 | W29: 0.0003577369907 | X29: 0.0003577369907 | Y29: 0.3334164946 | Z29: 0.0002223331178 | AA29: 0.0002223331178 | AB29: 0.3752462148 | AC29: 0.01041991941 | AD29: 0.007796049526 | AE29: 0.06661915974 | AF29: 7.287528059e-05 | AG29: 0.08498947764 | AH29: 0.7266765261 | AI29: 0.01636982198 | AJ29: 0.003208875281 | AK29: 0.01960822772 | AL29: 0.04416 | AM29: 0.00084 | AN29: 0.0254 | AO29: 0.105156 | AP29: 0.09652 | AQ29: 0.02624 | AR29: 0.2929461506 | AS29: 0.2935628798 | AT29: 0.2935628798 | AU29: 3.5 | AV29: 0.9226155229 | AW29: 2.625106786 | AX29: 0.7861636375 | AZ29: 92.26155229 | BA29: 0.118244078 | BB29: 0.1487577054 | BC29: 0.1141350776 | BD29: 0.03418102772 | BE29: 0.1753188018
A30: RdsonDRB | B30: 1 | C30: W | D30: Drain to Source Resistance of pullup Bottom FET Driver | G30: 21 | H30: 24 | I30: 1 | J30: 0.735 | K30: 0.735 | L30: 0.1701388889 | M30: 0.2106287 | N30: 1.465554882 | O30: 1.467777441 | P30: 0.002222559235 | Q30: 0 | R30: 0.8480640262 | S30: 0.01941874 | T30: 0.1 | U30: 0.1196195746 | V30: 0.4230692527 | W30: 0.0003579751851 | X30: 0.0003579751851 | Y30: 0.3458024621 | Z30: 0.0002391586856 | AA30: 0.0002391586856 | AB30: 0.3892130694 | AC30: 0.01121002419 | AD30: 0.008185852002 | AE30: 0.0684672 | AF30: 0 | AG30: 0.08795378488 | AH30: 0.7534757987 | AI30: 0.01759949916 | AJ30: 0.0032928 | AK30: 0.02092618186 | AL30: 0.046368 | AM30: 0.00084 | AN30: 0.0254 | AO30: 0.105156 | AP30: 0.09652 | AQ30: 0.02624 | AR30: 0.3007821153 | AS30: 0.3014649267 | AT30: 0.3014649267 | AU30: 3.675 | AV30: 0.9241877064 | AW30: 2.726803292 | AX30: 0.8332353029 | AZ30: 92.41877064 | BA30: 0.1196195746 | BB30: 0.1552479667 | BC30: 0.1185566649 | BD30: 0.03622762186 | BE30: 0.1818453521
A31: RdsonDRB2 | B31: 1 | C31: W | D31: Drain to Source Resistance of pulldown Bottom FET Driver | G31: 22 | H31: 24 | I31: 1 | J31: 0.77 | K31: 0.77 | L31: 0.1782407407 | M31: 0.210738119 | N31: 1.466042337 | O31: 1.503021169 | P31: 0.0369788314 | Q31: 0 | R31: 0.8786391056 | S31: 0.0208441803 | T31: 0.1 | U31: 0.1210623574 | V31: 0.423209969 | W31: 0.0003582133557 | X31: 0.0003582133557 | Y31: 0.3583378159 | Z31: 0.0002568119805 | AA31: 0.0002568119805 | AB31: 0.4033500157 | AC31: 0.0120391514 | AD31: 0.008575654479 | AE31: 0.0684672 | AF31: 0 | AG31: 0.08918078269 | AH31: 0.7805866017 | AI31: 0.01888877872 | AJ31: 0.0034496 | AK31: 0.02237726521 | AL31: 0.048576 | AM31: 0.00084 | AN31: 0.0254 | AO31: 0.105156 | AP31: 0.09652 | AQ31: 0.02624 | AR31: 0.3070805649 | AS31: 0.3078301655 | AT31: 0.3078301655 | AU31: 3.85 | AV31: 0.9259637471 | AW31: 2.788541682 | AX31: 0.8833689399 | AZ31: 92.59637471 | BA31: 0.1210623574 | BB31: 0.1601340479 | BC31: 0.1212409427 | BD31: 0.03840734521 | BE31: 0.186767808
A32: Deadtime | B32: Input Value | C32: Units | D32: Description | G32: 23 | H32: 24 | I32: 1 | J32: 0.805 | K32: 0.805 | L32: 0.1863425926 | M32: 0.2108475485 | N32: 1.466529582 | O32: 1.538264791 | P32: 0.07173520911 | Q32: 0 | R32: 0.9095332601 | S32: 0.02233577028 | T32: 0.1 | U32: 0.1225724762 | V32: 0.4233506244 | W32: 0.0003584515024 | X32: 0.0003584515024 | Y32: 0.3710080373 | Z32: 0.0002752939276 | AA32: 0.0002752939276 | AB32: 0.4176407462 | AC32: 0.01290736068 | AD32: 0.008965456955 | AE32: 0.0684672 | AF32: 0 | AG32: 0.09044742188 | AH32: 0.8079770778 | AI32: 0.02023763571 | AJ32: 0.0036064 | AK32: 0.02388851283 | AL32: 0.050784 | AM32: 0.00084 | AN32: 0.0254 | AO32: 0.105156 | AP32: 0.09652 | AQ32: 0.02624 | AR32: 0.3135438236 | AS32: 0.3143653712 | AT32: 0.3143653712 | AU32: 4.025 | AV32: 0.9275549892 | AW32: 2.851191823 | AX32: 0.9348863551 | AZ32: 92.75549892 | BA32: 0.1225724762 | BB32: 0.1651199347 | BC32: 0.1239648619 | BD32: 0.04064723283 | BE32: 0.191792895
A33: Deadtime | B33: 15 | C33: ns | D33: Total Deadtime | G33: 24 | H33: 24 | I33: 1 | J33: 0.84 | K33: 0.84 | L33: 0.1944444444 | M33: 0.2109569887 | N33: 1.467016615 | O33: 1.573508308 | P33: 0.1064916924 | Q33: 0 | R33: 0.9407150538 | S33: 0.02389350994 | T33: 0.1 | U33: 0.1241499831 | V33: 0.4234912189 | W33: 0.0003586896249 | X33: 0.0003586896249 | Y33: 0.383800372 | Z33: 0.0002946054511 | AA33: 0.0002946054511 | AB33: 0.4320709349 | AC33: 0.01381471166 | AD33: 0.009355259431 | AE33: 0.0684672 | AF33: 0 | AG33: 0.09175378589 | AH33: 0.8356192433 | AI33: 0.02164604511 | AJ33: 0.0037632 | AK33: 0.02545994697 | AL33: 0.052992 | AM33: 0.00084 | AN33: 0.0254 | AO33: 0.105156 | AP33: 0.09652 | AQ33: 0.02624 | AR33: 0.3201719261 | AS33: 0.3210708318 | AT33: 0.3210708318 | AU33: 4.2 | AV33: 0.9289834546 | AW33: 2.914755635 | AX33: 0.9877880603 | AZ33: 92.89834546 | BA33: 0.1241499831 | BB33: 0.1702057329 | BC33: 0.1267285059 | BD33: 0.04294730697 | BE33: 0.1969208487
A34: IQ | B34: Input Value | C34: Units | D34: Description | G34: 25 | H34: 24 | I34: 1 | J34: 0.875 | K34: 0.875 | L34: 0.2025462963 | M34: 0.2110664393 | N34: 1.467503438 | O34: 1.608751719 | P34: 0.1412482812 | Q34: 0 | R34: 0.9721568092 | S34: 0.02551739926 | T34: 0.1 | U34: 0.1257949324 | V34: 0.4236317524 | W34: 0.0003589277232 | X34: 0.0003589277232 | Y34: 0.3967035892 | Z34: 0.0003147474753 | AA34: 0.0003147474753 | AB34: 0.4466279669 | AC34: 0.01476126402 | AD34: 0.009745061908 | AE34: 0.0684672 | AF34: 0 | AG34: 0.09309995905 | AH34: 0.8634884601 | AI34: 0.02311398194 | AJ34: 0.00392 | AK34: 0.02709159184 | AL34: 0.0552 | AM34: 0.00084 | AN34: 0.0254 | AO34: 0.105156 | AP34: 0.09652 | AQ34: 0.02624 | AR34: 0.3269649071 | AS34: 0.3279468431 | AT34: 0.3279468431 | AU34: 4.375 | AV34: 0.9302677972 | AW34: 2.979235058 | AX34: 1.042074612 | AZ34: 93.02677972 | BA34: 0.1257949324 | BB34: 0.1753915509 | BC34: 0.1295319591 | BD34: 0.04530759184 | BE34: 0.2021519108
A35: IQ | B35: =Iq*1000 -> 0.035 | C35: mA | D35: Quiescent Current Of Controller (Not Switching!) | G35: 26 | H35: 24 | I35: 1 | J35: 0.91 | K35: 0.91 | L35: 0.2106481481 | M35: 0.2111759005 | N35: 1.467990049 | O35: 1.643995024 | P35: 0.1760049756 | Q35: 0 | R35: 1.003834099 | S35: 0.02720743826 | T35: 0.1 | U35: 0.1275073809 | V35: 0.4237722249 | W35: 0.0003591657972 | X35: 0.0003591657972 | Y35: 0.409707776 | Z35: 0.0003357209234 | AA35: 0.0003357209234 | AB35: 0.4613007084 | AC35: 0.01574707742 | AD35: 0.01013486438 | AE35: 0.0684672 | AF35: 0 | AG35: 0.09448602665 | AH35: 0.8915629844 | AI35: 0.02464142121 | AJ35: 0.0040768 | AK35: 0.02878347365 | AL35: 0.057408 | AM35: 0.00084 | AN35: 0.0254 | AO35: 0.105156 | AP35: 0.09652 | AQ35: 0.02624 | AR35: 0.3339228013 | AS35: 0.3349937096 | AT35: 0.3349937096 | AU35: 4.55 | AV35: 0.931423922 | AW35: 3.044632053 | AX35: 1.097746614 | AZ35: 93.1423922 | BA35: 0.1275073809 | BB35: 0.1806775003 | BC35: 0.1323753067 | BD35: 0.04772811365 | BE35: 0.2074863287
A36: High-side FET | B36: Input Value | C36: Units | D36: Description | G36: 27 | H36: 24 | I36: 1 | J36: 0.945 | K36: 0.945 | L36: 0.21875 | M36: 0.2112853723 | N36: 1.468476449 | O36: 1.679238224 | P36: 0.2107617756 | Q36: 0 | R36: 1.035725313 | S36: 0.02896362693 | T36: 0.1 | U36: 0.1292873878 | V36: 0.4239126365 | W36: 0.0003594038468 | X36: 0.0003594038468 | Y36: 0.4228041618 | Z36: 0.0003575267185 | AA36: 0.0003575267185 | AB36: 0.4760793078 | AC36: 0.01677221154 | AD36: 0.01052466686 | AE36: 0.0684672 | AF36: 0 | AG36: 0.0959120749 | AH36: 0.9198235788 | AI36: 0.0262283379 | AJ36: 0.0042336 | AK36: 0.03053562057 | AL36: 0.059616 | AM36: 0.00084 | AN36: 0.0254 | AO36: 0.105156 | AP36: 0.09652 | AQ36: 0.02624 | AR36: 0.3410456432 | AS36: 0.3422117436 | AT36: 0.3422117436 | AU36: 4.725 | AV36: 0.9324654739 | AW36: 3.110948603 | AX36: 1.154804713 | AZ36: 93.24654739 | BA36: 0.1292873878 | BB36: 0.1860636955 | BC36: 0.1352586349 | BD36: 0.05020890057 | BE36: 0.2129243558
A37: RdsonTop | B37: =Rdson1*1000 -> 74 | C37: mW | D37: Drain-Source Resistance of Top FET | G37: 28 | H37: 24 | I37: 1 | J37: 0.98 | K37: 0.98 | L37: 0.2268518519 | M37: 0.2113948546 | N37: 1.468962638 | O37: 1.714481319 | P37: 0.2455186812 | Q37: 0 | R37: 1.067811283 | S37: 0.03078596527 | T37: 0.1 | U37: 0.1311350145 | V37: 0.4240529871 | W37: 0.0003596418717 | X37: 0.0003596418717 | Y37: 0.4359849669 | Z37: 0.0003801657828 | AA37: 0.0003801657828 | AB37: 0.4909550274 | AC37: 0.01783672608 | AD37: 0.01091446934 | AE37: 0.0684672 | AF37: 0 | AG37: 0.09737819096 | AH37: 0.9482531819 | AI37: 0.02787470701 | AJ37: 0.0043904 | AK37: 0.03234806274 | AL37: 0.061824 | AM37: 0.00084 | AN37: 0.0254 | AO37: 0.105156 | AP37: 0.09652 | AQ37: 0.02624 | AR37: 0.3483334677 | AS37: 0.3496012662 | AT37: 0.3496012662 | AU37: 4.9 | AV37: 0.9334042247 | AW37: 3.178186712 | AX37: 1.213249603 | AZ37: 93.34042247 | BA37: 0.1311350145 | BB37: 0.1915502537 | BC37: 0.138182031 | BD37: 0.05274998274 | BE37: 0.2184662517
A38: RdsonTopTc | B38: =RdsonTopTc*1000000 -> 4000 | C38: ppm | D38: Drain to Source Resistance Temp Co | G38: 29 | H38: 24 | I38: 1 | J38: 1.015 | K38: 1.015 | L38: 0.2349537037 | M38: 0.2115043474 | N38: 1.469448615 | O38: 1.749724308 | P38: 0.2802756925 | Q38: 0 | R38: 1.100074968 | S38: 0.03267445327 | T38: 0.1 | U38: 0.1330503249 | V38: 0.4241932767 | W38: 0.000359879872 | X38: 0.000359879872 | Y38: 0.4492432739 | Z38: 0.0004036390383 | AA38: 0.0004036390383 | AB38: 0.5059200975 | AC38: 0.01894068073 | AD38: 0.01130427181 | AE38: 0.0684672 | AF38: 0 | AG38: 0.09888446294 | AH38: 0.9768366245 | AI38: 0.02958050352 | AJ38: 0.0045472 | AK38: 0.03422083231 | AL38: 0.064032 | AM38: 0.00084 | AN38: 0.0254 | AO38: 0.105156 | AP38: 0.09652 | AQ38: 0.02624 | AR38: 0.3557863093 | AS38: 0.3571626067 | AT38: 0.3571626067 | AU38: 5.075 | AV38: 0.9342503838 | AW38: 3.246348408 | AX38: 1.273082023 | AZ38: 93.42503838 | BA38: 0.1330503249 | BB38: 0.1971372952 | BC38: 0.1411455829 | BD38: 0.05535139231 | BE38: 0.2241122819
A39: QgTop | B39: =Qg_Q1*1000000000 -> 4.1 | C39: nC | D39: Gate Charge Of Top FET | G39: 30 | H39: 24 | I39: 1 | J39: 1.05 | K39: 1.05 | L39: 0.2430555556 | M39: 0.2116138508 | N39: 1.469934381 | O39: 1.784967191 | P39: 0.3150328094 | Q39: 0 | R39: 1.13250118 | S39: 0.03462909094 | T39: 0.1 | U39: 0.1350333851 | V39: 0.4243335053 | W39: 0.0003601178475 | X39: 0.0003601178475 | Y39: 0.4625729165 | Z39: 0.0004279474062 | AA39: 0.0004279474062 | AB39: 0.5209675928 | AC39: 0.02008413523 | AD39: 0.01169407429 | AE39: 0.0684672 | AF39: 0 | AG39: 0.1004309799 | AH39: 1.005560387 | AI39: 0.03134570242 | AJ39: 0.004704 | AK39: 0.03615396339 | AL39: 0.06624 | AM39: 0.00084 | AN39: 0.0254 | AO39: 0.105156 | AP39: 0.09652 | AQ39: 0.02624 | AR39: 0.3634042029 | AS39: 0.3648961029 | AT39: 0.3648961029 | AU39: 5.25 | AV39: 0.9350128486 | AW39: 3.315435738 | AX39: 1.334302758 | AZ39: 93.50128486 | BA39: 0.1350333851 | BB39: 0.2028249433 | BC39: 0.1441493799 | BD39: 0.05801316339 | BE39: 0.2298627177
A40: QgdTop | B40: =Qgd_Q1*1000000000 -> 1.7 | C40: nC | D40: Gate to Drain Charge | G40: 31 | H40: 24 | I40: 1 | J40: 1.085 | K40: 1.085 | L40: 0.2511574074 | M40: 0.2117233648 | N40: 1.470419936 | O40: 1.820209968 | P40: 0.349790032 | Q40: 0 | R40: 1.165076349 | S40: 0.03664987827 | T40: 0.1 | U40: 0.1370842638 | V40: 0.424473673 | W40: 0.0003603557981 | X40: 0.0003603557981 | Y40: 0.4759683852 | Z40: 0.0004530918074 | AA40: 0.0004530918074 | AB40: 0.5360913254 | AC40: 0.02126714928 | AD40: 0.01208387677 | AE40: 0.0684672 | AF40: 0 | AG40: 0.1020178319 | AH40: 1.034412389 | AI40: 0.03317027869 | AJ40: 0.0048608 | AK40: 0.03814749208 | AL40: 0.068448 | AM40: 0.00084 | AN40: 0.0254 | AO40: 0.105156 | AP40: 0.09652 | AQ40: 0.02624 | AR40: 0.371187183 | AS40: 0.3728021009 | AT40: 0.3728021009 | AU40: 5.425 | AV40: 0.9356994091 | AW40: 3.385450773 | AX40: 1.396912638 | AZ40: 93.56994091 | BA40: 0.1370842638 | BB40: 0.2086133239 | BC40: 0.1471935119 | BD40: 0.06073533208 | BE40: 0.235717837
A41: QgsTop | B41: =Qgs_Q1*1000000000 -> 2.39 | C41: nC | G41: 32 | H41: =Vin -> 24 | I41: =MODE -> 1 | J41: 1.12 | K41: =Iout*G41/100/Number_of_Phases -> 1.12 | L41: =Vout*K41/(Vin*Efficiency) -> 0.2592592593 | M41: =(Vout+(Rdson2+Rs+Rdcr)*K41)/(Vin+(Rs+Rdson2-Rdson1)*K41) -> 0.2118328893 | N41: =(Vin-(Rdson1+Rdcr)*K41-Vout)*M41/(Fsw*Lf) -> 1.47090528 | O41: 1.85545264 | P41: 0.3845473602 | Q41: =IF(MIN(Vin, -P41/(Coss_Q1+Coss_Q2)*0.00000002)<0, 0, MIN(Vin, -P41/(Coss_Q1+Coss_Q2)*0.00000002)) -> 0 | R41: 1.197788321 | S41: =R41^2*Rdcr -> 0.03873681527 | T41: =Core_Loss -> 0.1 | U41: =(T41+S41*(1+Ltc*(Ta-25)))/(1-S41*Ltc*ThetaCa) -> 0.139203032 | V41: 0.4246137796 | W41: 0.0003605937236 | X41: 0.0003605937236 | Y41: 0.489424745 | Z41: 0.0004790731621 | AA41: 0.0004790731621 | AB41: 0.5512857531 | AC41: =Rdson1*AB41^2 -> 0.02248978263 | AD41: =(Vin*K41/2)*Fsw*(Tr_buck+Tf_buck) -> 0.01247367924 | AE41: =(0.5*Coss_Q1*(Vin-Q41)^2-0.5*Coss_Q2*(Vin-Q41)^2+(Qoss_Q2*(Vin-Q41)/Vin)*Vin)*Fsw -> 0.0684672 | AF41: =IF(K41>N41/2,0,ABS(K41-N41/2)*Vsd_Q1*Deadtime*Fsw) -> 0 | AG41: =(AF41+AE41+AD41+AC41*(1+RdsonTopTc*Ta-RdsonTopTc*25))/(1-AC41*RdsonTopTc*ThetaJA_Q1) -> 0.1036451098 | AH41: =SQRT((1-M41))*SQRT(K41^2+(N41^2)/12) -> 1.063381813 | AI41: =Rdson2*AH41^2 -> 0.03505420729 | AJ41: =IF(K41<N41/2,Deadtime*Fsw*Vsd_Q2*(K41+N41/2),2*Deadtime*Fsw*Vsd_Q2*K41) -> 0.0050176 | AK41: =(AJ41+AI41*(1+RdsonBotTc*Ta-RdsonBotTc*25))/(1-AI41*RdsonBotTc*ThetaJA_Q2) -> 0.04020145647 | AL41: =Qrr_Q2*K41/Iout*Fsw*Vin -> 0.070656 | AM41: =Iq*Vin -> 0.00084 | AN41: =IF(Ext_VCC=1, (Qg_Q1+Qg_Q2)*Fsw*Vout, (Qg_Q1+Qg_Q2)*Fsw*Vin) -> 0.0254 | AO41: =(Vin-VCC)*Fsw*(Qg_Q1+Qg_Q2) -> 0.105156 | AP41: =(Qg_Q1+Qg_Q2)*Fsw*(Vin-Vout) -> 0.09652 | AQ41: =SUM(AM41:AN41) -> 0.02624 | AR41: 0.3791352844 | AS41: =U41 + ((AF41+AE41+AD41+AC41*(1+RdsonTC*(Ta-25))) + (AJ41+AI41*(1+RdsonTC*(Ta-25))) + AQ41 + AL41) / (1-AC41*RdsonTC*ThetaJA_Q1 -AI41*RdsonTC*ThetaJA_Q2) -> 0.3808809554 | AT41: 0.3808809554 | AU41: =Vout*K41 -> 5.6 | AV41: 0.9363169141 | AW41: =ThetaJA_Q1*BC41 -> 3.456395606 | AX41: =ThetaJA_Q2*BD41 -> 1.460912539 | AZ41: 93.63169141 | BA41: =U41 -> 0.139203032 | BB41: =AG41+AK41+AL41 -> 0.2145025663 | BC41: =AG41+AL41*0.66 -> 0.1502780698 | BD41: =AK41+AL41*0.33 -> 0.06351793647 | BE41: 0.2416779235
A42: RGateTop | B42: =Rgate1 -> 0.158 | C42: W | D42: Gate Resistance | G42: 33 | H42: 24 | I42: 1 | J42: =Iout*G42/100 -> 1.155 | K42: 1.155 | L42: 0.2673611111 | M42: 0.2119424244 | N42: 1.471390412 | O42: 1.890695206 | P42: 0.4193047941 | Q42: 0 | R42: 1.230626187 | S42: 0.04088990192 | T42: 0.1 | U42: 0.1413897629 | V42: 0.4247538252 | W42: 0.000360831624 | X42: 0.000360831624 | Y42: 0.5029375657 | Z42: 0.0005058923901 | AA42: 0.0005058923901 | AB42: 0.5665459004 | AC42: 0.02375209504 | AD42: 0.01286348172 | AE42: 0.0684672 | AF42: 0 | AG42: 0.1053129058 | AH42: 1.092458949 | AI42: 0.0369974632 | AJ42: 0.0051744 | AK42: 0.04231589663 | AL42: 0.072864 | AM42: 0.00084 | AN42: 0.0254 | AO42: 0.105156 | AP42: 0.09652 | AQ42: 0.02624 | AR42: 0.3872485419 | AS42: 0.3891330299 | AT42: 0.3891330299 | AU42: 5.775 | AV42: 0.9368714095 | AW42: 3.528272352 | AX42: 1.526303383 | AZ42: 93.68714095 | BA42: 0.1413897629 | BB42: 0.2204928024 | BC42: 0.1534031458 | BD42: 0.06636101663 | BE42: 0.247743267
A43: GfsTop | B43: =Gfs_Q1 -> 100 | C43: S | D43: Transconductance of Top FET | G43: 34 | H43: 24 | I43: 1 | J43: 1.19 | K43: 1.19 | L43: 0.275462963 | M43: 0.21205197 | N43: 1.471875333 | O43: 1.925937666 | P43: 0.4540623337 | Q43: 0 | R43: 1.263580132 | S43: 0.04310913824 | T43: 0.1 | U43: 0.1436445325 | V43: 0.4248938097 | W43: 0.0003610694991 | X43: 0.0003610694991 | Y43: 0.5165028608 | Z43: 0.0005335504105 | AA43: 0.0005335504105 | AB43: 0.5818672908 | AC43: 0.02505414626 | AD43: 0.01325328419 | AE43: 0.0684672 | AF43: 0 | AG43: 0.1070213126 | AH43: 1.121635059 | AI43: 0.03900002137 | AJ43: 0.0053312 | AK43: 0.04449085464 | AL43: 0.075072 | AM43: 0.00084 | AN43: 0.0254 | AO43: 0.105156 | AP43: 0.09652 | AQ43: 0.02624 | AR43: 0.3955269901 | AS43: 0.3975586962 | AT43: 0.3975586962 | AU43: 5.95 | AV43: 0.9373682521 | AW43: 3.60108315 | AX43: 1.593086137 | AZ43: 93.73682521 | BA43: 0.1436445325 | BB43: 0.2265841672 | BC43: 0.1565688326 | BD43: 0.06926461464 | BE43: 0.2539141638
A44: VthTop | B44: =Vth_Q1 -> 1.5 | C44: V | D44: Threshold Voltage of Top FET | G44: 35 | H44: 24 | I44: 1 | J44: 1.225 | K44: 1.225 | L44: 0.2835648148 | M44: 0.2121615262 | N44: 1.472360042 | O44: 1.961180021 | P44: 0.4888199791 | Q44: 0 | R44: 1.296641305 | S44: 0.04539452421 | T44: 0.1 | U44: 0.1459674187 | V44: 0.4250337332 | W44: 0.0003613073488 | X44: 0.0003613073488 | Y44: 0.5301170352 | Z44: 0.0005620481421 | AA44: 0.0005620481421 | AB44: 0.597245887 | AC44: 0.02639599607 | AD44: 0.01364308667 | AE44: 0.0684672 | AF44: 0 | AG44: 0.1087704243 | AH44: 1.150902266 | AI44: 0.04106185677 | AJ44: 0.005488 | AK44: 0.04672637457 | AL44: 0.07728 | AM44: 0.00084 | AN44: 0.0254 | AO44: 0.105156 | AP44: 0.09652 | AQ44: 0.02624 | AR44: 0.4039706637 | AS44: 0.4061583349 | AT44: 0.4061583349 | AU44: 6.125 | AV44: 0.9378122051 | AW44: 3.674830158 | AX44: 1.661261815 | AZ44: 93.78122051 | BA44: 0.1459674187 | BB44: 0.2327767988 | BC44: 0.1597752243 | BD44: 0.07222877457 | BE44: 0.2601909162
A45: VspTop | B45: =Vsp_Q1 -> 1.535 | C45: V | G45: 36 | H45: 24 | I45: 1 | J45: 1.26 | K45: 1.26 | L45: 0.2916666667 | M45: 0.212271093 | N45: 1.47284454 | O45: 1.99642227 | P45: 0.5235777302 | Q45: 0 | R45: 1.329801709 | S45: 0.04774605984 | T45: 0.1 | U45: 0.1483585022 | V45: 0.4251735957 | W45: 0.000361545173 | X45: 0.000361545173 | Y45: 0.5437768398 | Z45: 0.0005913865029 | AA45: 0.0005913865029 | AB45: 0.6126780409 | AC45: 0.02777770425 | AD45: 0.01403288915 | AE45: 0.0684672 | AF45: 0 | AG45: 0.1105603357 | AH45: 1.180253449 | AI45: 0.04318294435 | AJ45: 0.0056448 | AK45: 0.04902250246 | AL45: 0.079488 | AM45: 0.00084 | AN45: 0.0254 | AO45: 0.105156 | AP45: 0.09652 | AQ45: 0.02624 | AR45: 0.4125795976 | AS45: 0.4149323351 | AT45: 0.4149323351 | AU45: 6.3 | AV45: 0.938207518 | AW45: 3.749515562 | AX45: 1.730831477 | AZ45: 93.8207518 | BA45: 0.1483585022 | BB45: 0.2390708382 | BC45: 0.1630224157 | BD45: 0.07525354246 | BE45: 0.2665738329
A46: VsdTop | B46: =Vsd_Q1 -> 0.7 | C46: V | G46: 37 | H46: 24 | I46: 1 | J46: 1.295 | K46: 1.295 | L46: 0.2997685185 | M46: 0.2123806703 | N46: 1.473328826 | O46: 2.031664413 | P46: 0.558335587 | Q46: 0 | R46: 1.363054102 | S46: 0.05016374512 | T46: 0.1 | U46: 0.1508178659 | V46: 0.4253133971 | W46: 0.0003617829716 | X46: 0.0003617829716 | Y46: 0.5574793318 | Z46: 0.0006215664107 | AA46: 0.0006215664107 | AB46: 0.6281604482 | AC46: 0.0291993306 | AD46: 0.01442269162 | AE46: 0.0684672 | AF46: 0 | AG46: 0.1123911429 | AH46: 1.209682164 | AI46: 0.04536325905 | AJ46: 0.0058016 | AK46: 0.05137928638 | AL46: 0.081696 | AM46: 0.00084 | AN46: 0.0254 | AO46: 0.105156 | AP46: 0.09652 | AQ46: 0.02624 | AR46: 0.4213538264 | AS46: 0.423881095 | AT46: 0.423881095 | AU46: 6.475 | AV46: 0.9385579938 | AW46: 3.825141566 | AX46: 1.801796227 | AZ46: 93.85579938 | BA46: 0.1508178659 | BB46: 0.2454664293 | BC46: 0.1663105029 | BD46: 0.07833896638 | BE46: 0.273063229
A47: θJATop | B47: =ThetaJA_Q1 -> 23 | C47: °C/W | D47: Junction to Ambient Resistance | G47: 38 | H47: 24 | I47: 1 | J47: 1.33 | K47: 1.33 | L47: 0.3078703704 | M47: 0.2124902582 | N47: 1.473812901 | O47: 2.06690645 | P47: 0.5930935496 | Q47: 0 | R47: 1.396391912 | S47: 0.05264758005 | T47: 0.1 | U47: 0.1533455954 | V47: 0.4254531375 | W47: 0.0003620207444 | X47: 0.0003620207444 | Y47: 0.5712218406 | Z47: 0.0006525887824 | AA47: 0.0006525887824 | AB47: 0.6436901106 | AC47: 0.03066093493 | AD47: 0.0148124941 | AE47: 0.0684672 | AF47: 0 | AG47: 0.1142629426 | AH47: 1.239182559 | AI47: 0.04760277582 | AJ47: 0.0059584 | AK47: 0.05379677641 | AL47: 0.083904 | AM47: 0.00084 | AN47: 0.0254 | AO47: 0.105156 | AP47: 0.09652 | AQ47: 0.02624 | AR47: 0.4302933849 | AS47: 0.4330050212 | AT47: 0.4330050212 | AU47: 6.65 | AV47: 0.9388670459 | AW47: 3.9017104 | AX47: 1.874157217 | AZ47: 93.88670459 | BA47: 0.1533455954 | BB47: 0.251963719 | BC47: 0.1696395826 | BD47: 0.08148509641 | BE47: 0.2796594258
A48: Low-side FET | B48: Input Value | C48: Units | D48: Description | G48: 39 | H48: 24 | I48: 1 | J48: 1.365 | K48: 1.365 | L48: 0.3159722222 | M48: 0.2125998567 | N48: 1.474296764 | O48: 2.102148382 | P48: 0.627851618 | Q48: 0 | R48: 1.429809164 | S48: 0.05519756463 | T48: 0.1 | U48: 0.1559417783 | V48: 0.4255928168 | W48: 0.0003622584913 | X48: 0.0003622584913 | Y48: 0.5850019379 | Z48: 0.0006844545346 | AA48: 0.0006844545346 | AB48: 0.6592643018 | AC48: 0.03216257705 | AD48: 0.01520229658 | AE48: 0.0684672 | AF48: 0 | AG48: 0.1161758329 | AH48: 1.268749316 | AI48: 0.04990146961 | AJ48: 0.0061152 | AK48: 0.0562750246 | AL48: 0.086112 | AM48: 0.00084 | AN48: 0.0254 | AO48: 0.105156 | AP48: 0.09652 | AQ48: 0.02624 | AR48: 0.4393983079 | AS48: 0.4423045294 | AT48: 0.4423045294 | AU48: 6.825 | AV48: 0.9391377466 | AW48: 3.979224317 | AX48: 1.947915646 | AZ48: 93.91377466 | BA48: 0.1559417783 | BB48: 0.2585628575 | BC48: 0.1730097529 | BD48: 0.0846919846 | BE48: 0.2863627512
A49: RdsonBot | B49: =Rdson2*1000 -> 31 | C49: mW | D49: Drain-Source Resistance of Low-side FET | G49: 40 | H49: 24 | I49: 1 | J49: 1.4 | K49: 1.4 | L49: 0.3240740741 | M49: 0.2127094657 | N49: 1.474780416 | O49: 2.137390208 | P49: 0.6626097922 | Q49: 0 | R49: 1.463300416 | S49: 0.05781369887 | T49: 0.1 | U49: 0.158606505 | V49: 0.425732435 | W49: 0.0003624962123 | X49: 0.0003624962123 | Y49: 0.598817411 | Z49: 0.0007171645834 | AA49: 0.0007171645834 | AB49: 0.6748805381 | AC49: 0.03370431681 | AD49: 0.01559209905 | AE49: 0.0684672 | AF49: 0 | AG49: 0.1181299128 | AH49: 1.29837759 | AI49: 0.05225931533 | AJ49: 0.006272 | AK49: 0.05881408504 | AL49: 0.08832 | AM49: 0.00084 | AN49: 0.0254 | AO49: 0.105156 | AP49: 0.09652 | AQ49: 0.02624 | AR49: 0.4486686301 | AS49: 0.4517800443 | AT49: 0.4517800443 | AU49: 7 | AV49: 0.9393728691 | AW49: 4.057685593 | AX49: 2.023072756 | AZ49: 93.93728691 | BA49: 0.158606505 | BB49: 0.2652639978 | BC49: 0.1764211128 | BD49: 0.08795968504 | BE49: 0.2931735393
A50: RdsonBotTc | B50: =RdsonBotTc*1000000 -> 4000 | C50: ppm | D50: Drain To Source Resitance Temp Co | G50: 41 | H50: 24 | I50: 1 | J50: 1.435 | K50: 1.435 | L50: 0.3321759259 | M50: 0.2128190853 | N50: 1.475263856 | O50: 2.172631928 | P50: 0.6973680722 | Q50: 0 | R50: 1.496860699 | S50: 0.06049598275 | T50: 0.1 | U50: 0.1613398681 | V50: 0.4258719921 | W50: 0.0003627339072 | X50: 0.0003627339072 | Y50: 0.6126662404 | Z50: 0.0007507198442 | AA50: 0.0007507198442 | AB50: 0.6905365524 | AC50: 0.03528621403 | AD50: 0.01598190153 | AE50: 0.0684672 | AF50: 0 | AG50: 0.1201252821 | AH50: 1.328062959 | AI50: 0.05467628793 | AJ50: 0.0064288 | AK50: 0.06141401384 | AL50: 0.090528 | AM50: 0.00084 | AN50: 0.0254 | AO50: 0.105156 | AP50: 0.09652 | AQ50: 0.02624 | AR50: 0.4581043862 | AS50: 0.4614319992 | AT50: 0.4614319992 | AU50: 7.175 | AV50: 0.939574922 | AW50: 4.137096528 | AX50: 2.099629838 | AZ50: 93.9574922 | BA50: 0.1613398681 | BB50: 0.2720672959 | BC50: 0.1798737621 | BD50: 0.09128825384 | BE50: 0.3000921311
A51: QgBot | B51: =Qg_Q2*1000000000 -> 8.6 | C51: nC | D51: Gate Charge Of Top FET | G51: 42 | H51: 24 | I51: 1 | J51: 1.47 | K51: 1.47 | L51: 0.3402777778 | M51: 0.2129287155 | N51: 1.475747084 | O51: 2.207873542 | P51: 0.7321264581 | Q51: 0 | R51: 1.530485475 | S51: 0.06324441627 | T51: 0.1 | U51: 0.164141963 | V51: 0.4260114881 | W51: 0.0003629715759 | X51: 0.0003629715759 | Y51: 0.6265465793 | Z51: 0.000785121232 | AA51: 0.000785121232 | AB51: 0.706230272 | AC51: 0.03690832858 | AD51: 0.016371704 | AE51: 0.0684672 | AF51: 0 | AG51: 0.1221620419 | AH51: 1.357801381 | AI51: 0.05715236232 | AJ51: 0.0065856 | AK51: 0.06407486909 | AL51: 0.092736 | AM51: 0.00084 | AN51: 0.0254 | AO51: 0.105156 | AP51: 0.09652 | AQ51: 0.02624 | AR51: 0.4677056112 | AS51: 0.4712608367 | AT51: 0.4712608367 | AU51: 7.35 | AV51: 0.9397461808 | AW51: 4.217459443 | AX51: 2.177588229 | AZ51: 93.97461808 | BA51: 0.164141963 | BB51: 0.278972911 | BC51: 0.1833678019 | BD51: 0.09467774909 | BE51: 0.3071188737
A52: RGateBot | B52: =Rgate2 -> 0.24 | C52: W | D52: Gate Resistance | G52: 43 | H52: 24 | I52: 1 | J52: 1.505 | K52: 1.505 | L52: 0.3483796296 | M52: 0.2130383562 | N52: 1.476230101 | O52: 2.24311505 | P52: 0.7668849497 | Q52: 0 | R52: 1.564170582 | S52: 0.06605899945 | T52: 0.1 | U52: 0.1670128871 | V52: 0.426150923 | W52: 0.0003632092183 | X52: 0.0003632092183 | Y52: 0.6404567359 | Z52: 0.0008203696612 | AA52: 0.0008203696612 | AB52: 0.7219597982 | AC52: 0.03857072032 | AD52: 0.01676150648 | AE52: 0.0684672 | AF52: 0 | AG52: 0.1242402943 | AH52: 1.387589153 | AI52: 0.05968751342 | AJ52: 0.0067424 | AK52: 0.06679671095 | AL52: 0.094944 | AM52: 0.00084 | AN52: 0.0254 | AO52: 0.105156 | AP52: 0.09652 | AQ52: 0.02624 | AR52: 0.4774723397 | AS52: 0.4812670083 | AT52: 0.4812670083 | AU52: 7.525 | AV52: 0.9398887137 | AW52: 4.298776688 | AX52: 2.256949312 | AZ52: 93.98887137 | BA52: 0.1670128871 | BB52: 0.2859810052 | BC52: 0.1869033343 | BD52: 0.09812823095 | BE52: 0.3142541213
A53: VsdBot | B53: =Vsd_Q2 -> 0.7 | C53: V | D53: Diode Forward Voltage of Bottom FET Body Diode | G53: 44 | H53: 24 | I53: 1 | J53: 1.54 | K53: 1.54 | L53: 0.3564814815 | M53: 0.2131480076 | N53: 1.476712905 | O53: 2.278356453 | P53: 0.8016435473 | Q53: 0 | R53: 1.597912206 | S53: 0.06893973226 | T53: 0.1 | U53: 0.1699527405 | V53: 0.4262902967 | W53: 0.0003634468342 | X53: 0.0003634468342 | Y53: 0.654395158 | Z53: 0.0008564660457 | AA53: 0.0008564660457 | AB53: 0.7377233892 | AC53: 0.04027344913 | AD53: 0.01715130896 | AE53: 0.0684672 | AF53: 0 | AG53: 0.1263601423 | AH53: 1.417422879 | AI53: 0.06228171616 | AJ53: 0.0068992 | AK53: 0.06957960156 | AL53: 0.097152 | AM53: 0.00084 | AN53: 0.0254 | AO53: 0.105156 | AP53: 0.09652 | AQ53: 0.02624 | AR53: 0.4874046065 | AS53: 0.4914509748 | AT53: 0.4914509748 | AU53: 7.7 | AV53: 0.940004405 | AW53: 4.381050633 | AX53: 2.337714516 | AZ53: 94.0004405 | BA53: 0.1699527405 | BB53: 0.2930917439 | BC53: 0.1904804623 | BD53: 0.1016397616 | BE53: 0.3214982343
A54: QrrBot | B54: =Qrr_Q2*1000000000 -> 23 | C54: nC | D54: Reverse Recovery Charge of Body Diode | G54: 45 | H54: 24 | I54: 1 | J54: 1.575 | K54: 1.575 | L54: 0.3645833333 | M54: 0.2132576695 | N54: 1.477195499 | O54: 2.313597749 | P54: 0.8364022507 | Q54: 0 | R54: 1.63170684 | S54: 0.07188661472 | T54: 0.1 | U54: 0.172961626 | V54: 0.4264296094 | W54: 0.0003636844235 | X54: 0.0003636844235 | Y54: 0.6683604188 | Z54: 0.0008934112987 | AA54: 0.0008934112987 | AB54: 0.7535194441 | AC54: 0.04201657489 | AD54: 0.01754111143 | AE54: 0.0684672 | AF54: 0 | AG54: 0.1285216901 | AH54: 1.447299437 | AI54: 0.06493494543 | AJ54: 0.007056 | AK54: 0.07242360514 | AL54: 0.09936 | AM54: 0.00084 | AN54: 0.0254 | AO54: 0.105156 | AP54: 0.09652 | AQ54: 0.02624 | AR54: 0.4975024465 | AS54: 0.501813206 | AT54: 0.501813206 | AU54: 7.875 | AV54: 0.9400949748 | AW54: 4.464283673 | AX54: 2.419885318 | AZ54: 94.00949748 | BA54: 0.172961626 | BB54: 0.3003052953 | BC54: 0.1940992901 | BD54: 0.1052124051 | BE54: 0.32885158
A55: TrrBot | B55: =Trr_Q2*1000000000 -> 40 | C55: ns | D55: Reverse Recovery Time of Body Diode | G55: 46 | H55: 24 | I55: 1 | J55: 1.61 | K55: 1.61 | L55: 0.3726851852 | M55: 0.213367342 | N55: 1.47767788 | O55: 2.34883894 | P55: 0.87116106 | Q55: 0 | R55: 1.665551258 | S55: 0.07489964681 | T55: 0.1 | U55: 0.1760396485 | V55: 0.4265688609 | W55: 0.0003639219862 | X55: 0.0003639219862 | Y55: 0.6823512048 | Z55: 0.0009312063333 | AA55: 0.0009312063333 | AB55: 0.7693464892 | AC55: 0.04380015752 | AD55: 0.01793091391 | AE55: 0.0684672 | AF55: 0 | AG55: 0.130725043 | AH55: 1.477215953 | AI55: 0.06764717615 | AJ55: 0.0072128 | AK55: 0.07532878789 | AL55: 0.101568 | AM55: 0.00084 | AN55: 0.0254 | AO55: 0.105156 | AP55: 0.09652 | AQ55: 0.02624 | AR55: 0.5077658944 | AS55: 0.512354181 | AT55: 0.512354181 | AU55: 8.05 | AV55: 0.9401619963 | AW55: 4.548478228 | AX55: 2.503463241 | AZ55: 94.01619963 | BA55: 0.1760396485 | BB55: 0.3076218308 | BC55: 0.197759923 | BD55: 0.1088462279 | BE55: 0.3363145325
A56: θJABot | B56: =ThetaJA_Q2 -> 23 | C56: °C/W | D56: Junction to Ambient Resistance | G56: 47 | H56: 24 | I56: 1 | J56: 1.645 | K56: 1.645 | L56: 0.380787037 | M56: 0.213477025 | N56: 1.47816005 | O56: 2.384080025 | P56: 0.9059199752 | Q56: 0 | R56: 1.699442485 | S56: 0.07797882855 | T56: 0.1 | U56: 0.1791869156 | V56: 0.4267080513 | W56: 0.000364159522 | X56: 0.000364159522 | Y56: 0.696366305 | Z56: 0.0009698520615 | AA56: 0.0009698520615 | AB56: 0.7852031663 | AC56: 0.04562425691 | AD56: 0.01832071639 | AE56: 0.0684672 | AF56: 0 | AG56: 0.1329703071 | AH56: 1.507169781 | AI56: 0.07041838321 | AJ56: 0.0073696 | AK56: 0.0782952181 | AL56: 0.103776 | AM56: 0.00084 | AN56: 0.0254 | AO56: 0.105156 | AP56: 0.09652 | AQ56: 0.02624 | AR56: 0.5181949851 | AS56: 0.5230743883 | AT56: 0.5230743883 | AU56: 8.225 | AV56: 0.9402069113 | AW56: 4.633636743 | AX56: 2.588449856 | AZ56: 94.02069113 | BA56: 0.1791869156 | BB56: 0.3150415252 | BC56: 0.2014624671 | BD56: 0.1125412981 | BE56: 0.3438874726
G57: 48 | H57: 24 | I57: 1 | J57: 1.68 | K57: 1.68 | L57: 0.3888888889 | M57: 0.2135867187 | N57: 1.478642007 | O57: 2.419321004 | P57: 0.9406789963 | Q57: 0 | R57: 1.733377776 | S57: 0.08112415992 | T57: 0.1 | U57: 0.1824035374 | V57: 0.4268471805 | W57: 0.000364397031 | X57: 0.000364397031 | Y57: 0.7104046014 | Z57: 0.001009349395 | AA57: 0.001009349395 | AB57: 0.801088221 | AC57: 0.047488933 | AD57: 0.01871051886 | AE57: 0.0684672 | AF57: 0 | AG57: 0.1352575898 | AH57: 1.537158475 | AI57: 0.07324854151 | AJ57: 0.0075264 | AK57: 0.08132296606 | AL57: 0.105984 | AM57: 0.00084 | AN57: 0.0254 | AO57: 0.105156 | AP57: 0.09652 | AQ57: 0.02624 | AR57: 0.5287897533 | AS57: 0.5339743255 | AT57: 0.5339743255 | AU57: 8.4 | AV57: 0.9402310432 | AW57: 4.719761686 | AX57: 2.674846779 | AZ57: 94.02310432 | BA57: 0.1824035374 | BB57: 0.3225645559 | BC57: 0.2052070298 | BD57: 0.1162976861 | BE57: 0.3515707881
G58: 49 | H58: 24 | I58: 1 | J58: 1.715 | K58: 1.715 | L58: 0.3969907407 | M58: 0.2136964229 | N58: 1.479123753 | O58: 2.454561877 | P58: 0.9754381234 | Q58: 0 | R58: 1.767354593 | S58: 0.08433564092 | T58: 0.1 | U58: 0.1856896265 | V58: 0.4269862485 | W58: 0.0003646345129 | X58: 0.0003646345129 | Y58: 0.7244650598 | Z58: 0.001049699246 | AA58: 0.001049699246 | AB58: 0.8170004938 | AC58: 0.04939424571 | AD58: 0.01910032134 | AE58: 0.0684672 | AF58: 0 | AG58: 0.1375869996 | AH58: 1.567179776 | AI58: 0.07613762594 | AJ58: 0.0076832 | AK58: 0.08441210416 | AL58: 0.108192 | AM58: 0.00084 | AN58: 0.0254 | AO58: 0.105156 | AP58: 0.09652 | AQ58: 0.02624 | AR58: 0.5395502339 | AS58: 0.5450545 | AT58: 0.5450545 | AU58: 8.575 | AV58: 0.9402356093 | AW58: 4.806855551 | AX58: 2.762655676 | AZ58: 94.02356093 | BA58: 0.1856896265 | BB58: 0.3301911038 | BC58: 0.2089937196 | BD58: 0.1201154642 | BE58: 0.3593648735
G59: 50 | H59: 24 | I59: 1 | J59: 1.75 | K59: 1.75 | L59: 0.4050925926 | M59: 0.2138061377 | N59: 1.479605287 | O59: 2.489802644 | P59: 1.010197356 | Q59: 0 | R59: 1.801370585 | S59: 0.08761327156 | T59: 0.1 | U59: 0.1890452979 | V59: 0.4271252554 | W59: 0.0003648719677 | X59: 0.0003648719677 | Y59: 0.7385467228 | Z59: 0.001090902524 | AA59: 0.001090902524 | AB59: 0.8329389112 | AC59: 0.051340255 | AD59: 0.01949012382 | AE59: 0.0684672 | AF59: 0 | AG59: 0.139958646 | AH59: 1.597231591 | AI59: 0.07908561138 | AJ59: 0.00784 | AK59: 0.0875627068 | AL59: 0.1104 | AM59: 0.00084 | AN59: 0.0254 | AO59: 0.105156 | AP59: 0.09652 | AQ59: 0.02624 | AR59: 0.5504764618 | AS59: 0.5563154284 | AT59: 0.5563154284 | AU59: 8.75 | AV59: 0.9402217309 | AW59: 4.894920857 | AX59: 2.851878256 | AZ59: 94.02217309 | BA59: 0.1890452979 | BB59: 0.3379213528 | BC59: 0.212822646 | BD59: 0.1239947068 | BE59: 0.3672701305
G60: 51 | H60: 24 | I60: 1 | J60: 1.785 | K60: 1.785 | L60: 0.4131944444 | M60: 0.2139158631 | N60: 1.480086609 | O60: 2.525043305 | P60: 1.044956695 | Q60: 0 | R60: 1.835423574 | S60: 0.09095705183 | T60: 0.1 | U60: 0.1924706694 | V60: 0.4272642011 | W60: 0.0003651093951 | X60: 0.0003651093951 | Y60: 0.7526487025 | Z60: 0.001132960139 | AA60: 0.001132960139 | AB60: 0.8489024776 | AC60: 0.05332702082 | AD60: 0.01987992629 | AE60: 0.0684672 | AF60: 0 | AG60: 0.1423726395 | AH60: 1.62731198 | AI60: 0.08209247271 | AJ60: 0.0079968 | AK60: 0.09077485045 | AL60: 0.112608 | AM60: 0.00084 | AN60: 0.0254 | AO60: 0.105156 | AP60: 0.09652 | AQ60: 0.02624 | AR60: 0.5615684717 | AS60: 0.567757637 | AT60: 0.567757637 | AU60: 8.925 | AV60: 0.9401904422 | AW60: 4.983960149 | AX60: 2.94251628 | AZ60: 94.01904422 | BA60: 0.1924706694 | BB60: 0.34575549 | BC60: 0.2166939195 | BD60: 0.1279354905 | BE60: 0.3752869676
A61: Controller | B61: Input Value | C61: Units | D61: Std Units | G61: 52 | H61: 24 | I61: 1 | J61: 1.82 | K61: 1.82 | L61: 0.4212962963 | M61: 0.2140255991 | N61: 1.480567719 | O61: 2.56028386 | P61: 1.07971614 | Q61: 0 | R61: 1.86951154 | S61: 0.09436698174 | T61: 0.1 | U61: 0.1959658612 | V61: 0.4274030857 | W61: 0.0003653467952 | X61: 0.0003653467952 | Y61: 0.7667701746 | Z61: 0.001175873001 | AA61: 0.001175873001 | AB61: 0.8648902692 | AC61: 0.05535460315 | AD61: 0.02026972877 | AE61: 0.0684672 | AF61: 0 | AG61: 0.144829092 | AH61: 1.657419144 | AI61: 0.08515818482 | AJ61: 0.0081536 | AK61: 0.09404861367 | AL61: 0.114816 | AM61: 0.00084 | AN61: 0.0254 | AO61: 0.105156 | AP61: 0.09652 | AQ61: 0.02624 | AR61: 0.5728262985 | AS61: 0.5793816616 | AT61: 0.5793816616 | AU61: 9.1 | AV61: 0.940142699 | AW61: 5.073975995 | AX61: 3.034571554 | AZ61: 94.0142699 | BA61: 0.1959658612 | BB61: 0.3536937056 | BC61: 0.220607652 | BD61: 0.1319378937 | BE61: 0.3834158005
A62: θJA | B62: 23 | C62: °C/W | D62: Junction to Ambient Resistance | G62: 53 | H62: 24 | I62: 1 | J62: 1.855 | K62: 1.855 | L62: 0.4293981481 | M62: 0.2141353456 | N62: 1.481048617 | O62: 2.595524309 | P62: 1.114475691 | Q62: 0 | R62: 1.903632602 | S62: 0.09784306127 | T62: 0.1 | U62: 0.1995309959 | V62: 0.427541909 | W62: 0.0003655841679 | X62: 0.0003655841679 | Y62: 0.7809103726 | Z62: 0.00121964202 | AA62: 0.00121964202 | AB62: 0.8809014268 | AC62: 0.05742306196 | AD62: 0.02065953124 | AE62: 0.0684672 | AF62: 0 | AG62: 0.1473281161 | AH62: 1.68755141 | AI62: 0.08828272256 | AJ62: 0.0083104 | AK62: 0.09738407706 | AL62: 0.117024 | AM62: 0.00084 | AN62: 0.0254 | AO62: 0.105156 | AP62: 0.09652 | AQ62: 0.02624 | AR62: 0.584249977 | AS62: 0.5911880479 | AT62: 0.5911880479 | AU62: 9.275 | AV62: 0.9400793858 | AW62: 5.16497099 | AX62: 3.128045932 | AZ62: 94.00793858 | BA62: 0.1995309959 | BB62: 0.3617361932 | BC62: 0.2245639561 | BD62: 0.1360019971 | BE62: 0.391657052
A63: Theta JC | B63: 2 | C63: °C/W | D63: Junction to Ambient Resistance | G63: 54 | H63: 24 | I63: 1 | J63: 1.89 | K63: 1.89 | L63: 0.4375 | M63: 0.2142451028 | N63: 1.481529303 | O63: 2.630764652 | P63: 1.149235348 | Q63: 0 | R63: 1.937785013 | S63: 0.1013852904 | T63: 0.1 | U63: 0.203166199 | V63: 0.4276806711 | W63: 0.0003658215128 | X63: 0.0003658215128 | Y63: 0.795068583 | Z63: 0.001264268103 | AA63: 0.001264268103 | AB63: 0.8969351512 | AC63: 0.05953245725 | AD63: 0.02104933372 | AE63: 0.0684672 | AF63: 0 | AG63: 0.1498698259 | AH63: 1.717707219 | AI63: 0.09146606082 | AJ63: 0.0084672 | AK63: 0.1007813233 | AL63: 0.119232 | AM63: 0.00084 | AN63: 0.0254 | AO63: 0.105156 | AP63: 0.09652 | AQ63: 0.02624 | AR63: 0.5958395422 | AS63: 0.6031773512 | AT63: 0.6031773512 | AU63: 9.45 | AV63: 0.940001322 | AW63: 5.256947756 | AX63: 3.222941316 | AZ63: 94.0001322 | BA63: 0.203166199 | BB63: 0.3698831492 | BC63: 0.2285629459 | BD63: 0.1401278833 | BE63: 0.4000111522
G64: 55 | H64: 24 | I64: 1 | J64: 1.925 | K64: 1.925 | L64: 0.4456018519 | M64: 0.2143548705 | N64: 1.482009777 | O64: 2.666004889 | P64: 1.183995111 | Q64: 0 | R64: 1.971967143 | S64: 0.1049936692 | T64: 0.1 | U64: 0.2068715984 | V64: 0.427819372 | W64: 0.0003660588301 | X64: 0.0003660588301 | Y64: 0.809244141 | Z64: 0.001309752159 | AA64: 0.001309752159 | AB64: 0.9129906975 | AC64: 0.06168284902 | AD64: 0.0214391362 | AE64: 0.0684672 | AF64: 0 | AG64: 0.1524543365 | AH64: 1.747885122 | AI64: 0.09470817444 | AJ64: 0.008624 | AK64: 0.1042404372 | AL64: 0.12144 | AM64: 0.00084 | AN64: 0.0254 | AO64: 0.105156 | AP64: 0.09652 | AQ64: 0.02624 | AR64: 0.6075950289 | AS64: 0.6153501367 | AT64: 0.6153501367 | AU64: 9.625 | AV64: 0.9399092679 | AW64: 5.349908938 | AX64: 3.319259656 | AZ64: 93.99092679 | BA64: 0.2068715984 | BB64: 0.3781347737 | BC64: 0.2326047365 | BD64: 0.1443156372 | BE64: 0.4084785383
G65: 56 | H65: 24 | I65: 1 | J65: 1.96 | K65: 1.96 | L65: 0.4537037037 | M65: 0.2144646489 | N65: 1.482490039 | O65: 2.70124502 | P65: 1.21875498 | Q65: 0 | R65: 2.006177475 | S65: 0.1086681976 | T65: 0.1 | U65: 0.2106473245 | V65: 0.4279580117 | W65: 0.0003662961195 | X65: 0.0003662961195 | Y65: 0.8234364261 | Z65: 0.001356095096 | AA65: 0.001356095096 | AB65: 0.9290673708 | AC65: 0.06387429728 | AD65: 0.02182893867 | AE65: 0.0684672 | AF65: 0 | AG65: 0.1550817639 | AH65: 1.778083766 | AI65: 0.09800903829 | AJ65: 0.0087808 | AK65: 0.1077615056 | AL65: 0.123648 | AM65: 0.00084 | AN65: 0.0254 | AO65: 0.105156 | AP65: 0.09652 | AQ65: 0.02624 | AR65: 0.6195164719 | AS65: 0.6277069795 | AT65: 0.6277069795 | AU65: 9.8 | AV65: 0.93980393 | AW65: 5.44385721 | AX65: 3.417002949 | AZ65: 93.980393 | BA65: 0.2106473245 | BB65: 0.3864912695 | BC65: 0.2366894439 | BD65: 0.1485653456 | BE65: 0.417059655
A66: Outputs | G66: 57 | H66: 24 | I66: 1 | J66: 1.995 | K66: 1.995 | L66: 0.4618055556 | M66: 0.2145744378 | N66: 1.482970089 | O66: 2.736485045 | P66: 1.253514955 | Q66: 0 | R66: 2.040414588 | S66: 0.1124088756 | T66: 0.1 | U66: 0.2144935105 | V66: 0.4280965901 | W66: 0.0003665333809 | X66: 0.0003665333809 | Y66: 0.8376448589 | Z66: 0.001403297819 | AA66: 0.001403297819 | AB66: 0.9451645222 | AC66: 0.06610686208 | AD66: 0.02221874115 | AE66: 0.0684672 | AF66: 0 | AG66: 0.1577522257 | AH66: 1.808301888 | AI66: 0.1013686272 | AJ66: 0.0089376 | AK66: 0.1113446175 | AL66: 0.125856 | AM66: 0.00084 | AN66: 0.0254 | AO66: 0.105156 | AP66: 0.09652 | AQ66: 0.02624 | AR66: 0.6316039061 | AS66: 0.6402484647 | AT66: 0.6402484647 | AU66: 9.975 | AV66: 0.9396859653 | AW66: 5.53879527 | AX66: 3.516173243 | AZ66: 93.96859653 | BA66: 0.2144935105 | BB66: 0.3949528432 | BC66: 0.2408171857 | BD66: 0.1528770975 | BE66: 0.4257549542
A67: Design | B67: Value | C67: Units | G67: 58 | H67: 24 | I67: 1 | J67: 2.03 | K67: 2.03 | L67: 0.4699074074 | M67: 0.2146842374 | N67: 1.483449927 | O67: 2.771724963 | P67: 1.288275037 | Q67: 0 | R67: 2.074677157 | S67: 0.1162157033 | T67: 0.1 | U67: 0.218410292 | V67: 0.4282351073 | W67: 0.0003667706142 | X67: 0.0003667706142 | Y67: 0.8518688972 | Z67: 0.001451361236 | AA67: 0.001451361236 | AB67: 0.9612815449 | AC67: 0.06838060344 | AD67: 0.02260854363 | AE67: 0.0684672 | AF67: 0 | AG67: 0.1604658402 | AH67: 1.838538305 | AI67: 0.1047869161 | AJ67: 0.0090944 | AK67: 0.1149898639 | AL67: 0.128064 | AM67: 0.00084 | AN67: 0.0254 | AO67: 0.105156 | AP67: 0.09652 | AQ67: 0.02624 | AR67: 0.6438573664 | AS67: 0.6529751874 | AT67: 0.6529751874 | AU67: 10.15 | AV67: 0.9395559856 | AW67: 5.634725844 | AX67: 3.61677263 | AZ67: 93.95559856 | BA67: 0.218410292 | BB67: 0.4035197041 | BC67: 0.2449880802 | BD67: 0.1572509839 | BE67: 0.4345648954
A68: Dmax | B68: =D1_Vinmin -> 0.2777777778 | C68: index | G68: 59 | H68: 24 | I68: 1 | J68: 2.065 | K68: 2.065 | L68: 0.4780092593 | M68: 0.2147940475 | N68: 1.483929552 | O68: 2.806964776 | P68: 1.323035224 | Q68: 0 | R68: 2.108963942 | S68: 0.1200886806 | T68: 0.1 | U68: 0.2223978075 | V68: 0.4283735632 | W68: 0.0003670078194 | X68: 0.0003670078194 | Y68: 0.8661080338 | Z68: 0.001500286252 | AA68: 0.001500286252 | AB68: 0.9774178711 | AC68: 0.07069558141 | AD68: 0.0229983461 | AE68: 0.0684672 | AF68: 0 | AG68: 0.1632227271 | AH68: 1.868791913 | AI68: 0.1082638797 | AJ68: 0.0092512 | AK68: 0.118697338 | AL68: 0.130272 | AM68: 0.00084 | AN68: 0.0254 | AO68: 0.105156 | AP68: 0.09652 | AQ68: 0.02624 | AR68: 0.6562768877 | AS68: 0.6658877531 | AT68: 0.6658877531 | AU68: 10.325 | AV68: 0.9394145616 | AW68: 5.731651683 | AX68: 3.718803254 | AZ68: 93.94145616 | BA68: 0.2223978075 | BB68: 0.4121920651 | BC68: 0.2492022471 | BD68: 0.161687098 | BE68: 0.4434899456
A69: Dprime | B69: =1-B68 -> 0.7222222222 | C69: index | G69: 60 | H69: 24 | I69: 1 | J69: 2.1 | K69: 2.1 | L69: 0.4861111111 | M69: 0.2149038683 | N69: 1.484408966 | O69: 2.842204483 | P69: 1.357795517 | Q69: 0 | R69: 2.14327378 | S69: 0.1240278074 | T69: 0.1 | U69: 0.2264561979 | V69: 0.4285119579 | W69: 0.0003672449962 | X69: 0.0003672449962 | Y69: 0.8803617931 | Z69: 0.001550073773 | AA69: 0.001550073773 | AB69: 0.9935729687 | AC69: 0.07305185607 | AD69: 0.02338814858 | AE69: 0.0684672 | AF69: 0 | AG69: 0.1660230072 | AH69: 1.899061677 | AI69: 0.1117994929 | AJ69: 0.009408 | AK69: 0.1224671351 | AL69: 0.13248 | AM69: 0.00084 | AN69: 0.0254 | AO69: 0.105156 | AP69: 0.09652 | AQ69: 0.02624 | AR69: 0.668862505 | AS69: 0.6789867771 | AT69: 0.6789867771 | AU69: 10.5 | AV69: 0.9392622256 | AW69: 5.829575566 | AX69: 3.822267308 | AZ69: 93.92622256 | BA69: 0.2264561979 | BB69: 0.4209701423 | BC69: 0.2534598072 | BD69: 0.1661855351 | BE69: 0.4525305792
A70: Ipp | B70: =Iripple_Vinnom -> 1.495556996 | C70: A | G70: 61 | H70: 24 | I70: 1 | J70: 2.135 | K70: 2.135 | L70: 0.494212963 | M70: 0.2150136996 | N70: 1.484888167 | O70: 2.877444083 | P70: 1.392555917 | Q70: 0 | R70: 2.177605582 | S70: 0.128033084 | T70: 0.1 | U70: 0.2305856068 | V70: 0.4286502913 | W70: 0.0003674821445 | X70: 0.0003674821445 | Y70: 0.8946297289 | Z70: 0.001600724704 | AA70: 0.001600724704 | AB70: 1.009746339 | AC70: 0.07544948747 | AD70: 0.02377795105 | AE70: 0.0684672 | AF70: 0 | AG70: 0.1688668026 | AH70: 1.929346626 | AI70: 0.1153937305 | AJ70: 0.0095648 | AK70: 0.1262993526 | AL70: 0.134688 | AM70: 0.00084 | AN70: 0.0254 | AO70: 0.105156 | AP70: 0.09652 | AQ70: 0.02624 | AR70: 0.681614253 | AS70: 0.6922728853 | AT70: 0.6922728853 | AU70: 10.675 | AV70: 0.9390994751 | AW70: 5.9285003 | AX70: 3.927167031 | AZ70: 93.90994751 | BA70: 0.2305856068 | BB70: 0.4298541552 | BC70: 0.2577608826 | BD70: 0.1707463926 | BE70: 0.4616872785
A71: Top FET | B71: Value | C71: Units | G71: 62 | H71: 24 | I71: 1 | J71: 2.17 | K71: 2.17 | L71: 0.5023148148 | M71: 0.2151235415 | N71: 1.485367155 | O71: 2.912683578 | P71: 1.427316422 | Q71: 0 | R71: 2.211958325 | S71: 0.1321045101 | T71: 0.1 | U71: 0.2347861805 | V71: 0.4287885635 | W71: 0.0003677192644 | X71: 0.0003677192644 | Y71: 0.9089114225 | Z71: 0.001652239948 | AA71: 0.001652239948 | AB71: 1.025937513 | AC71: 0.07788853572 | AD71: 0.02416775353 | AE71: 0.0684672 | AF71: 0 | AG71: 0.1717542364 | AH71: 1.959645849 | AI71: 0.1190465674 | AJ71: 0.0097216 | AK71: 0.1301940901 | AL71: 0.136896 | AM71: 0.00084 | AN71: 0.0254 | AO71: 0.105156 | AP71: 0.09652 | AQ71: 0.02624 | AR71: 0.6945321667 | AS71: 0.705746714 | AT71: 0.705746714 | AU71: 10.85 | AV71: 0.9389267754 | AW71: 6.028428716 | AX71: 4.033504712 | AZ71: 93.89267754 | BA71: 0.2347861805 | BB71: 0.4388443265 | BC71: 0.2621055964 | BD71: 0.1753697701 | BE71: 0.4709605335
A72: Tr | B72: =(Qgd_Q1+Qgs_Q1/2)*(RdsonDRT+Rgate1)/(VCC-Vsp_Q1)*1000000000 -> 1.079269122 | C72: ns | D72: Turn on of MOSFET -> Rise time of current | G72: 63 | H72: 24 | I72: 1 | J72: 2.205 | K72: 2.205 | L72: 0.5104166667 | M72: 0.2152333941 | N72: 1.485845932 | O72: 2.947922966 | P72: 1.462077034 | Q72: 0 | R72: 2.246331048 | S72: 0.1362420858 | T72: 0.1 | U72: 0.2390580681 | V72: 0.4289267743 | W72: 0.0003679563555 | X72: 0.0003679563555 | Y72: 0.9232064799 | Z72: 0.001704620409 | AA72: 0.001704620409 | AB72: 1.04214605 | AC72: 0.0803690609 | AD72: 0.02455755601 | AE72: 0.0684672 | AF72: 0 | AG72: 0.1746854329 | AH72: 1.989958489 | AI72: 0.1227579784 | AJ72: 0.0098784 | AK72: 0.1341514492 | AL72: 0.139104 | AM72: 0.00084 | AN72: 0.0254 | AO72: 0.105156 | AP72: 0.09652 | AQ72: 0.02624 | AR72: 0.7076162811 | AS72: 0.7194089099 | AT72: 0.7194089099 | AU72: 11.025 | AV72: 0.9387445622 | AW72: 6.129363676 | AX72: 4.141282691 | AZ72: 93.87445622 | BA72: 0.2390580681 | BB72: 0.4479408821 | BC72: 0.2664940729 | BD72: 0.1800557692 | BE72: 0.4803508418
A73: Tf | B73: =(Qgd_Q1+Qgs_Q1/2)*(RdsonDRT2+Rgate1)/(Vsp_Q1)*1000000000 -> 1.240983713 | C73: ns | D73: Turn off of MOSFET -> Fall time of current | G73: 64 | H73: =Vin -> 24 | I73: =MODE -> 1 | J73: 2.24 | K73: =Iout*G73/100/Number_of_Phases -> 2.24 | L73: =Vout*K73/(Vin*Efficiency) -> 0.5185185185 | M73: =(Vout+(Rdson2+Rs+Rdcr)*K73)/(Vin+(Rs+Rdson2-Rdson1)*K73) -> 0.2153432572 | N73: =(Vin-(Rdson1+Rdcr)*K73-Vout)*M73/(Fsw*Lf) -> 1.486324496 | O73: 2.983162248 | P73: 1.496837752 | Q73: =IF(MIN(Vin, -P73/(Coss_Q1+Coss_Q2)*0.00000002)<0, 0, MIN(Vin, -P73/(Coss_Q1+Coss_Q2)*0.00000002)) -> 0 | R73: 2.280722848 | S73: =R73^2*Rdcr -> 0.1404458111 | T73: =Core_Loss -> 0.1 | U73: =(T73+S73*(1+Ltc*(Ta-25)))/(1-S73*Ltc*ThetaCa) -> 0.2434014212 | V73: 0.4290649239 | W73: 0.0003681934179 | X73: 0.0003681934179 | Y73: 0.9375145309 | Z73: 0.001757866991 | AA73: 0.001757866991 | AB73: 1.058371538 | AC73: =Rdson1*AB73^2 -> 0.08289112312 | AD73: =(Vin*K73/2)*Fsw*(Tr_buck+Tf_buck) -> 0.02494735848 | AE73: =(0.5*Coss_Q1*(Vin-Q73)^2-0.5*Coss_Q2*(Vin-Q73)^2+(Qoss_Q2*(Vin-Q73)/Vin)*Vin)*Fsw -> 0.0684672 | AF73: =IF(K73>N73/2,0,ABS(K73-N73/2)*Vsd_Q1*Deadtime*Fsw) -> 0 | AG73: =(AF73+AE73+AD73+AC73*(1+RdsonTopTc*Ta-RdsonTopTc*25))/(1-AC73*RdsonTopTc*ThetaJA_Q1) -> 0.1776605178 | AH73: =SQRT((1-M73))*SQRT(K73^2+(N73^2)/12) -> 2.020283742 | AI73: =Rdson2*AH73^2 -> 0.1265279383 | AJ73: =IF(K73<N73/2,Deadtime*Fsw*Vsd_Q2*(K73+N73/2),2*Deadtime*Fsw*Vsd_Q2*K73) -> 0.0100352 | AK73: =(AJ73+AI73*(1+RdsonBotTc*Ta-RdsonBotTc*25))/(1-AI73*RdsonBotTc*ThetaJA_Q2) -> 0.1381715337 | AL73: =Qrr_Q2*K73/Iout*Fsw*Vin -> 0.141312 | AM73: =Iq*Vin -> 0.00084 | AN73: =IF(Ext_VCC=1, (Qg_Q1+Qg_Q2)*Fsw*Vout, (Qg_Q1+Qg_Q2)*Fsw*Vin) -> 0.0254 | AO73: =(Vin-VCC)*Fsw*(Qg_Q1+Qg_Q2) -> 0.105156 | AP73: =(Qg_Q1+Qg_Q2)*Fsw*(Vin-Vout) -> 0.09652 | AQ73: 0.02624 | AR73: 0.720866631 | AS73: =U73 + ((AF73+AE73+AD73+AC73*(1+RdsonTC*(Ta-25))) + (AJ73+AI73*(1+RdsonTC*(Ta-25))) + AQ73 + AL73) / (1-AC73*RdsonTC*ThetaJA_Q1 -AI73*RdsonTC*ThetaJA_Q2) -> 0.7332601302 | AT73: 0.7332601302 | AU73: =Vout*K73 -> 11.2 | AV73: 0.9385532434 | AW73: =ThetaJA_Q1*BC73 -> 6.231308068 | AX73: =ThetaJA_Q2*BD73 -> 4.250503356 | AZ73: 93.85532434 | BA73: =U73 -> 0.2434014212 | BB73: =AG73+AK73+AL73 -> 0.4571440515 | BC73: =AG73+AL73*0.66 -> 0.2709264378 | BD73: =AK73+AL73*0.33 -> 0.1848044937 | BE73: 0.489858709
A74: Part Power | B74: Value | C74: Units | G74: 65 | H74: 24 | I74: 1 | J74: =Iout*G74/100 -> 2.275 | K74: 2.275 | L74: 0.5266203704 | M74: 0.215453131 | N74: 1.486802848 | O74: =K74+N74/2 -> 3.018401424 | P74: =K74-N74/2 -> 1.531598576 | Q74: 0 | R74: =SQRT(K74^2+(N74^2)/12) -> 2.315132874 | S74: 0.1447156861 | T74: 0.1 | U74: 0.2478163941 | V74: =N74/SQRT(12) -> 0.4292030122 | W74: =RCoutEsr*V74^2 -> 0.0003684304513 | X74: =W74 -> 0.0003684304513 | Y74: =SQRT(M74*(1-M74))*SQRT(K74^2+(N74^2)/12) -> 0.9518352263 | Z74: =RCinEsr*Y74^2 -> 0.001811980596 | AA74: =Z74 -> 0.001811980596 | AB74: =SQRT(M74)*SQRT(K74^2+(N74^2)/12) -> 1.074613586 | AC74: 0.08545478251 | AD74: 0.02533716096 | AE74: 0.0684672 | AF74: 0 | AG74: 0.1806796177 | AH74: 2.050620849 | AI74: 0.1303564219 | AJ74: 0.010192 | AK74: 0.1422544497 | AL74: 0.14352 | AM74: 0.00084 | AN74: 0.0254 | AO74: 0.105156 | AP74: 0.09652 | AQ74: 0.02624 | AR74: =SUM(S74,T74,AC74,AD74,AE74,AF74,AI74,AJ74,AQ74, AL74) -> 0.7342832515 | AS74: 0.7473010428 | AT74: =AS74 -> 0.7473010428 | AU74: 11.375 | AV74: =AU74/(AU74+AT74) -> 0.9383532021 | AW74: 6.334264807 | AX74: 4.361169144 | AZ74: =AV74*100 -> 93.83532021 | BA74: 0.2478163941 | BB74: 0.4664540675 | BC74: 0.2754028177 | BD74: 0.1896160497 | BE74: =AS74-BA74 -> 0.4994846487
A75: Power Dis | B75: =AQ9 -> 0.02624 | C75: W | G75: 66 | H75: 24 | I75: 1 | J75: 2.31 | K75: 2.31 | L75: 0.5347222222 | M75: 0.2155630154 | N75: 1.487280987 | O75: 3.053640494 | P75: 1.566359506 | Q75: 0 | R75: 2.349560327 | S75: 0.1490517107 | T75: 0.1 | U75: 0.252303144 | V75: 0.4293410391 | W75: 0.0003686674557 | X75: 0.0003686674557 | Y75: 0.9661682375 | Z75: 0.001866962126 | AA75: 0.001866962126 | AB75: 1.090871826 | AC75: 0.0880600992 | AD75: 0.02572696344 | AE75: 0.0684672 | AF75: 0 | AG75: 0.1837428608 | AH75: 2.080969098 | AI75: 0.134243404 | AJ75: 0.0103488 | AK75: 0.1464003053 | AL75: 0.145728 | AM75: 0.00084 | AN75: 0.0254 | AO75: 0.105156 | AP75: 0.09652 | AQ75: =SUM(AM75:AN75) -> 0.02624 | AR75: 0.7478661773 | AS75: 0.7615323263 | AT75: 0.7615323263 | AU75: 11.55 | AV75: 0.9381447974 | AW75: 6.438236838 | AX75: 4.473282543 | AZ75: 93.81447974 | BA75: 0.252303144 | BB75: 0.4758711661 | BC75: 0.2799233408 | BD75: 0.1944905453 | BE75: 0.5092291823
A76: Temp rise | B76: =B75*B62 -> 0.60352 | C76: °C | G76: 67 | H76: 24 | I76: 1 | J76: 2.345 | K76: 2.345 | L76: 0.5428240741 | M76: 0.2156729103 | N76: 1.487758914 | O76: 3.088879457 | P76: 1.601120543 | Q76: 0 | R76: 2.38400445 | S76: 0.1534538848 | T76: 0.1 | U76: 0.2568618307 | V76: 0.4294790047 | W76: 0.000368904431 | X76: 0.000368904431 | Y76: 0.9805132542 | Z76: 0.001922812484 | AA76: 0.001922812484 | AB76: 1.107145913 | AC76: 0.09070713332 | AD76: 0.02611676591 | AE76: 0.0684672 | AF76: 0 | AG76: 0.1868503761 | AH76: 2.111327815 | AI76: 0.1381888595 | AJ76: 0.0105056 | AK76: 0.1506092108 | AL76: 0.147936 | AM76: 0.00084 | AN76: 0.0254 | AO76: 0.105156 | AP76: 0.09652 | AQ76: 0.02624 | AR76: 0.7616154435 | AS76: 0.7759546703 | AT76: 0.7759546703 | AU76: 11.725 | AV76: 0.937928367 | AW76: 6.543227131 | AX76: 4.586846089 | AZ76: 93.7928367 | BA76: 0.2568618307 | BB76: 0.485395587 | BC76: 0.2844881361 | BD76: 0.1994280908 | BE76: 0.5190928396
A77: Current (switching) | B77: =(Qg_Q1+Qg_Q2)*Fsw+Iq -> 0.005115 | C77: A | G77: 68 | H77: 24 | I77: 1 | J77: 2.38 | K77: 2.38 | L77: 0.5509259259 | M77: 0.2157828159 | N77: 1.488236628 | O77: 3.124118314 | P77: 1.635881686 | Q77: 0 | R77: 2.418464531 | S77: 0.1579222086 | T77: 0.1 | U77: 0.2614926168 | V77: 0.429616909 | W77: 0.000369141377 | X77: 0.000369141377 | Y77: 0.9948699835 | Z77: 0.001979532568 | AA77: 0.001979532568 | AB77: 1.123435519 | AC77: 0.09339594504 | AD77: 0.02650656839 | AE77: 0.0684672 | AF77: 0 | AG77: 0.1900022943 | AH77: 2.141696366 | AI77: 0.142192763 | AJ77: 0.0106624 | AK77: 0.1548812787 | AL77: 0.150144 | AM77: 0.00084 | AN77: 0.0254 | AO77: 0.105156 | AP77: 0.09652 | AQ77: 0.02624 | AR77: 0.775531085 | AS77: 0.7905687752 | AT77: 0.7905687752 | AU77: 11.9 | AV77: 0.9377042283 | AW77: 6.649238688 | AX77: 4.701862371 | AZ77: 93.77042283 | BA77: 0.2614926168 | BB77: 0.495027573 | BC77: 0.2890973343 | BD77: 0.2044287987 | BE77: 0.5290761584
A78: Qrr Current | B78: =Qrr_Q2*Fsw -> 0.0092 | C78: A | G78: 69 | H78: 24 | I78: 1 | J78: 2.415 | K78: 2.415 | L78: 0.5590277778 | M78: 0.2158927321 | N78: 1.48871413 | O78: 3.159357065 | P78: 1.670642935 | Q78: 0 | R78: 2.452939899 | S78: 0.162456682 | T78: 0.1 | U78: 0.2661956676 | V78: 0.429754752 | W78: 0.0003693782937 | X78: 0.0003693782937 | Y78: 1.009238149 | Z78: 0.002037123281 | AA78: 0.002037123281 | AB78: 1.139740336 | AC78: 0.09612659453 | AD78: 0.02689637087 | AE78: 0.0684672 | AF78: 0 | AG78: 0.1931987469 | AH78: 2.17207415 | AI78: 0.1462550895 | AJ78: 0.0108192 | AK78: 0.1592166237 | AL78: 0.152352 | AM78: 0.00084 | AN78: 0.0254 | AO78: 0.105156 | AP78: 0.09652 | AQ78: 0.02624 | AR78: 0.7896131369 | AS78: 0.8053753522 | AT78: 0.8053753522 | AU78: 12.075 | AV78: 0.9374726799 | AW78: 6.756274538 | AX78: 4.818334025 | AZ78: 93.74726799 | BA78: 0.2661956676 | BB78: 0.5047673706 | BC78: 0.2937510669 | BD78: 0.2094927837 | BE78: 0.5391796846
A79: Diode Current | B79: =Deadtime*Fsw*(Iripple_Vinnom/2)*(Vsd_Q2)/Vin -> 6.979265982e-05 | G79: 70 | H79: 24 | I79: 1 | J79: 2.45 | K79: 2.45 | L79: 0.5671296296 | M79: 0.216002659 | N79: 1.48919142 | O79: 3.19459571 | P79: 1.70540429 | Q79: 0 | R79: 2.487429917 | S79: 0.1670573049 | T79: 0.1 | U79: 0.2709711512 | V79: 0.4298925336 | W79: 0.0003696151809 | X79: 0.0003696151809 | Y79: 1.023617488 | Z79: 0.002095585522 | AA79: 0.002095585522 | AB79: 1.156060073 | AC79: 0.09889914196 | AD79: 0.02728617334 | AE79: 0.0684672 | AF79: 0 | AG79: 0.1964398669 | AH79: 2.202460601 | AI79: 0.1503758137 | AJ79: 0.010976 | AK79: 0.1636153627 | AL79: 0.15456 | AM79: 0.00084 | AN79: 0.0254 | AO79: 0.105156 | AP79: 0.09652 | AQ79: 0.02624 | AR79: 0.8038616339 | AS79: 0.820375124 | AT79: 0.820375124 | AU79: 12.25 | AV79: 0.9372340031 | AW79: 6.864337738 | AX79: 4.936263741 | AZ79: 93.72340031 | BA79: 0.2709711512 | BB79: 0.5146152295 | BC79: 0.2984494669 | BD79: 0.2146201627 | BE79: 0.5494039729
A80: Total | B80: =SUM(B77:B79) -> 0.01438479266 | C80: A | G80: 71 | H80: 24 | I80: 1 | J80: 2.485 | K80: 2.485 | L80: 0.5752314815 | M80: 0.2161125964 | N80: 1.489668497 | O80: 3.229834248 | P80: 1.740165752 | Q80: 0 | R80: 2.521933984 | S80: 0.1717240775 | T80: 0.1 | U80: 0.2758192385 | V80: 0.4300302538 | W80: 0.0003698520384 | X80: 0.0003698520384 | Y80: 1.038007753 | Z80: 0.002154920191 | AA80: 0.002154920191 | AB80: 1.172394452 | AC80: 0.1017136475 | AD80: 0.02767597582 | AE80: 0.0684672 | AF80: 0 | AG80: 0.1997257885 | AH80: 2.232855183 | AI80: 0.1545549103 | AJ80: 0.0111328 | AK80: 0.1680776146 | AL80: 0.156768 | AM80: 0.00084 | AN80: 0.0254 | AO80: 0.105156 | AP80: 0.09652 | AQ80: 0.02624 | AR80: 0.8182766112 | AS80: 0.8355688243 | AT80: 0.8355688243 | AU80: 12.425 | AV80: 0.9369884629 | AW80: 6.973431375 | AX80: 5.055654257 | AZ80: 93.69884629 | BA80: 0.2758192385 | BB80: 0.5245714031 | BC80: 0.3031926685 | BD80: 0.2198110546 | BE80: 0.5597495858
G81: 72 | H81: 24 | I81: 1 | J81: 2.52 | K81: 2.52 | L81: 0.5833333333 | M81: 0.2162225444 | N81: 1.490145361 | O81: 3.265072681 | P81: 1.774927319 | Q81: 0 | R81: 2.556451532 | S81: 0.1764569997 | T81: 0.1 | U81: 0.2807401033 | V81: 0.4301679127 | W81: 0.0003700888663 | X81: 0.0003700888663 | Y81: 1.05240871 | Z81: 0.002215128186 | AA81: 0.002215128186 | AB81: 1.188743212 | AC81: 0.1045701714 | AD81: 0.02806577829 | AE81: 0.0684672 | AF81: 0 | AG81: 0.2030566472 | AH81: 2.263257389 | AI81: 0.1587923543 | AJ81: 0.0112896 | AK81: 0.172603501 | AL81: 0.158976 | AM81: 0.00084 | AN81: 0.0254 | AO81: 0.105156 | AP81: 0.09652 | AQ81: 0.02624 | AR81: 0.8328581037 | AS81: 0.8509571982 | AT81: 0.8509571982 | AU81: 12.6 | AV81: 0.9367363091 | AW81: 7.083558566 | AX81: 5.176508362 | AZ81: 93.67363091 | BA81: 0.2807401033 | BB81: 0.5346361482 | BC81: 0.3079808072 | BD81: 0.225065581 | BE81: 0.5702170949
G82: 73 | H82: 24 | I82: 1 | J82: 2.555 | K82: 2.555 | L82: 0.5914351852 | M82: 0.2163325031 | N82: 1.490622013 | O82: 3.300311006 | P82: 1.809688994 | Q82: 0 | R82: 2.590982021 | S82: 0.1812560715 | T82: 0.1 | U82: 0.285733922 | V82: 0.4303055102 | W82: 0.0003703256643 | X82: 0.0003703256643 | Y82: 1.066820136 | Z82: 0.002276210405 | AA82: 0.002276210405 | AB82: 1.205106106 | AC82: 0.1074687738 | AD82: 0.02845558077 | AE82: 0.0684672 | AF82: 0 | AG82: 0.2064325798 | AH82: 2.293666738 | AI82: 0.1630881202 | AJ82: 0.0114464 | AK82: 0.1771931452 | AL82: 0.161184 | AM82: 0.00084 | AN82: 0.0254 | AO82: 0.105156 | AP82: 0.09652 | AQ82: 0.02624 | AR82: 0.8476061463 | AS82: 0.866541002 | AT82: 0.866541002 | AU82: 12.775 | AV82: 0.9364777776 | AW82: 7.194722455 | AX82: 5.298828899 | AZ82: 93.64777776 | BA82: 0.285733922 | BB82: 0.544809725 | BC82: 0.3128140198 | BD82: 0.2303838652 | BE82: 0.5808070799
G83: 74 | H83: 24 | I83: 1 | J83: 2.59 | K83: 2.59 | L83: 0.599537037 | M83: 0.2164424724 | N83: 1.491098452 | O83: 3.335549226 | P83: 1.844450774 | Q83: 0 | R83: 2.625524941 | S83: 0.1861212928 | T83: 0.1 | U83: 0.2908008742 | V83: 0.4304430463 | W83: 0.0003705624323 | X83: 0.0003705624323 | Y83: 1.08124182 | Z83: 0.002338167747 | AA83: 0.002338167747 | AB83: 1.221482899 | AC83: 0.1104095151 | AD83: 0.02884538325 | AE83: 0.0684672 | AF83: 0 | AG83: 0.2098537243 | AH83: 2.324082774 | AI83: 0.167442183 | AJ83: 0.0116032 | AK83: 0.181846673 | AL83: 0.163392 | AM83: 0.00084 | AN83: 0.0254 | AO83: 0.105156 | AP83: 0.09652 | AQ83: 0.02624 | AR83: 0.8625207742 | AS83: 0.8823210037 | AT83: 0.8823210037 | AU83: 12.95 | AV83: 0.9362130908 | AW83: 7.306926219 | AX83: 5.422618758 | AZ83: 93.62130908 | BA83: 0.2908008742 | BB83: 0.5550923973 | BC83: 0.3176924443 | BD83: 0.235766033 | BE83: 0.5915201296
G84: 75 | H84: 24 | I84: 1 | J84: 2.625 | K84: 2.625 | L84: 0.6076388889 | M84: 0.2165524523 | N84: 1.491574679 | O84: 3.370787339 | P84: 1.879212661 | Q84: 0 | R84: 2.660079808 | S84: 0.1910526638 | T84: 0.1 | U84: 0.2959411419 | V84: 0.4305805211 | W84: 0.0003707991703 | X84: 0.0003707991703 | Y84: 1.095673562 | Z84: 0.002401001108 | AA84: 0.002401001108 | AB84: 1.237873369 | AC84: 0.1133924553 | AD84: 0.02923518572 | AE84: 0.0684672 | AF84: 0 | AG84: 0.2133202201 | AH84: 2.354505067 | AI84: 0.1718545174 | AJ84: 0.01176 | AK84: 0.1865642124 | AL84: 0.1656 | AM84: 0.00084 | AN84: 0.0254 | AO84: 0.105156 | AP84: 0.09652 | AQ84: 0.02624 | AR84: 0.8776020222 | AS84: 0.8982979831 | AT84: 0.8982979831 | AU84: 13.125 | AV84: 0.9359424592 | AW84: 7.420173063 | AX84: 5.547880885 | AZ84: 93.59424592 | BA84: 0.2959411419 | BB84: 0.5654844325 | BC84: 0.3226162201 | BD84: 0.2412122124 | BE84: 0.6023568412
G85: 76 | H85: 24 | I85: 1 | J85: 2.66 | K85: 2.66 | L85: 0.6157407407 | M85: 0.2166624429 | N85: 1.492050692 | O85: 3.406025346 | P85: 1.913974654 | Q85: 0 | R85: 2.694646162 | S85: 0.1960501844 | T85: 0.1 | U85: 0.3011549103 | V85: 0.4307179344 | W85: 0.000371035878 | X85: 0.000371035878 | Y85: 1.110115171 | Z85: 0.002464711386 | AA85: 0.002464711386 | AB85: 1.254277302 | AC85: 0.1164176548 | AD85: 0.0296249882 | AE85: 0.0684672 | AF85: 0 | AG85: 0.2168322079 | AH85: 2.384933204 | AI85: 0.176325098 | AJ85: 0.0119168 | AK85: 0.1913458937 | AL85: 0.167808 | AM85: 0.00084 | AN85: 0.0254 | AO85: 0.105156 | AP85: 0.09652 | AQ85: 0.02624 | AR85: 0.8928499253 | AS85: 0.9144727313 | AT85: 0.9144727313 | AU85: 13.3 | AV85: 0.9356660814 | AW85: 7.534466221 | AX85: 5.674618275 | AZ85: 93.56660814 | BA85: 0.3011549103 | BB85: 0.5759861016 | BC85: 0.3275854879 | BD85: 0.2467225337 | BE85: 0.6133178209
G86: 77 | H86: 24 | I86: 1 | J86: 2.695 | K86: 2.695 | L86: 0.6238425926 | M86: 0.2167724441 | N86: 1.492526493 | O86: 3.441263247 | P86: 1.948736753 | Q86: 0 | R86: 2.729223567 | S86: 0.2011138545 | T86: 0.1 | U86: 0.3064423675 | V86: 0.4308552863 | W86: 0.0003712725555 | X86: 0.0003712725555 | Y86: 1.124566467 | Z86: 0.002529299476 | AA86: 0.002529299476 | AB86: 1.270694499 | AC86: 0.1194851737 | AD86: 0.03001479068 | AE86: 0.0684672 | AF86: 0 | AG86: 0.2203898296 | AH86: 2.415366798 | AI86: 0.1808538998 | AJ86: 0.0120736 | AK86: 0.1961918494 | AL86: 0.170016 | AM86: 0.00084 | AN86: 0.0254 | AO86: 0.105156 | AP86: 0.09652 | AQ86: 0.02624 | AR86: 0.9082645187 | AS86: 0.9308460515 | AT86: 0.9308460515 | AU86: 13.475 | AV86: 0.9353841456 | AW86: 7.649808961 | AX86: 5.802833977 | AZ86: 93.53841456 | BA86: 0.3064423675 | BB86: 0.586597679 | BC86: 0.3326003896 | BD86: 0.2522971294 | BE86: 0.624403684
G87: 78 | H87: 24 | I87: 1 | J87: 2.73 | K87: 2.73 | L87: 0.6319444444 | M87: 0.2168824559 | N87: 1.493002081 | O87: 3.476501041 | P87: 1.983498959 | Q87: 0 | R87: 2.763811607 | S87: 0.2062436742 | T87: 0.1 | U87: 0.3118037043 | V87: 0.4309925768 | W87: 0.0003715092026 | X87: 0.0003715092026 | Y87: 1.139027277 | Z87: 0.002594766274 | AA87: 0.002594766274 | AB87: 1.287124768 | AC87: 0.1225950725 | AD87: 0.03040459315 | AE87: 0.0684672 | AF87: 0 | AG87: 0.2239932286 | AH87: 2.445805477 | AI87: 0.1854408974 | AJ87: 0.0122304 | AK87: 0.2011022143 | AL87: 0.172224 | AM87: 0.00084 | AN87: 0.0254 | AO87: 0.105156 | AP87: 0.09652 | AQ87: 0.02624 | AR87: 0.9238458373 | AS87: 0.9474187589 | AT87: 0.9474187589 | AU87: 13.65 | AV87: 0.9350968295 | AW87: 7.766204577 | AX87: 5.932531089 | AZ87: 93.50968295 | BA87: 0.3118037043 | BB87: 0.5973194429 | BC87: 0.3376610686 | BD87: 0.2579361343 | BE87: 0.6356150547
G88: 79 | H88: 24 | I88: 1 | J88: 2.765 | K88: 2.765 | L88: 0.6400462963 | M88: 0.2169924783 | N88: 1.493477457 | O88: 3.511738728 | P88: 2.018261272 | Q88: 0 | R88: 2.798409889 | S88: 0.2114396436 | T88: 0.1 | U88: 0.3172391145 | V88: 0.4311298059 | W88: 0.0003717458191 | X88: 0.0003717458191 | Y88: 1.153497437 | Z88: 0.002661112674 | AA88: 0.002661112674 | AB88: 1.303567928 | AC88: 0.1257474114 | AD88: 0.03079439563 | AE88: 0.0684672 | AF88: 0 | AG88: 0.2276425495 | AH88: 2.47624889 | AI88: 0.1900860656 | AJ88: 0.0123872 | AK88: 0.2060771254 | AL88: 0.174432 | AM88: 0.00084 | AN88: 0.0254 | AO88: 0.105156 | AP88: 0.09652 | AQ88: 0.02624 | AR88: 0.9395939161 | AS88: 0.9641916807 | AT88: 0.9641916807 | AU88: 13.825 | AV88: 0.9348043016 | AW88: 7.883656397 | AX88: 6.063712765 | AZ88: 93.48043016 | BA88: 0.3172391145 | BB88: 0.6081516749 | BC88: 0.3427676695 | BD88: 0.2636396854 | BE88: 0.6469525662
G89: 80 | H89: 24 | I89: 1 | J89: 2.8 | K89: 2.8 | L89: 0.6481481481 | M89: 0.2171025113 | N89: 1.49395262 | O89: 3.54697631 | P89: 2.05302369 | Q89: 0 | R89: 2.833018038 | S89: 0.2167017625 | T89: 0.1 | U89: 0.322748795 | V89: 0.4312669735 | W89: 0.0003719824049 | X89: 0.0003719824049 | Y89: 1.167976792 | Z89: 0.002728339572 | AA89: 0.002728339572 | AB89: 1.320023805 | AC89: 0.1289422506 | AD89: 0.0311841981 | AE89: 0.0684672 | AF89: 0 | AG89: 0.2313379383 | AH89: 2.506696702 | AI89: 0.194789379 | AJ89: 0.012544 | AK89: 0.2111167222 | AL89: 0.17664 | AM89: 0.00084 | AN89: 0.0254 | AO89: 0.105156 | AP89: 0.09652 | AQ89: 0.02624 | AR89: 0.9555087902 | AS89: 0.9811656562 | AT89: 0.9811656562 | AU89: 14 | AV89: 0.9345067214 | AW89: 8.00216778 | AX89: 6.196382211 | AZ89: 93.45067214 | BA89: 0.322748795 | BB89: 0.6190946605 | BC89: 0.3479203383 | BD89: 0.2694079222 | BE89: 0.6584168612
G90: 81 | H90: 24 | I90: 1 | J90: 2.835 | K90: 2.835 | L90: 0.65625 | M90: 0.217212555 | N90: 1.494427569 | O90: 3.582213785 | P90: 2.087786215 | Q90: 0 | R90: 2.867635695 | S90: 0.222030031 | T90: 0.1 | U90: 0.3283329454 | V90: 0.4314040797 | W90: 0.00037221896 | X90: 0.00037221896 | Y90: 1.182465192 | Z90: 0.002796447862 | AA90: 0.002796447862 | AB90: 1.336492235 | AC90: 0.1321796505 | AD90: 0.03157400058 | AE90: 0.0684672 | AF90: 0 | AG90: 0.2350795424 | AH90: 2.537148594 | AI90: 0.1995508126 | AJ90: 0.0127008 | AK90: 0.2162211463 | AL90: 0.178848 | AM90: 0.00084 | AN90: 0.0254 | AO90: 0.105156 | AP90: 0.09652 | AQ90: 0.02624 | AR90: 0.9715904946 | AS90: 0.998341537 | AT90: 0.998341537 | AU90: 14.175 | AV90: 0.9342042401 | AW90: 8.121742115 | AX90: 6.330542685 | AZ90: 93.42042401 | BA90: 0.3283329454 | BB90: 0.6301486887 | BC90: 0.3531192224 | BD90: 0.2752409863 | BE90: 0.6700085916
G91: 82 | H91: 24 | I91: 1 | J91: 2.87 | K91: 2.87 | L91: 0.6643518519 | M91: 0.2173226093 | N91: 1.494902306 | O91: 3.617451153 | P91: 2.122548847 | Q91: 0 | R91: 2.902262521 | S91: 0.227424449 | T91: 0.1 | U91: 0.3339917685 | V91: 0.4315411244 | W91: 0.0003724554842 | X91: 0.0003724554842 | Y91: 1.196962497 | Z91: 0.002865438436 | AA91: 0.002865438436 | AB91: 1.35297306 | AC91: 0.1354596714 | AD91: 0.03196380306 | AE91: 0.0684672 | AF91: 0 | AG91: 0.2388675106 | AH91: 2.567604261 | AI91: 0.2043703409 | AJ91: 0.0128576 | AK91: 0.2213905417 | AL91: 0.181056 | AM91: 0.00084 | AN91: 0.0254 | AO91: 0.105156 | AP91: 0.09652 | AQ91: 0.02624 | AR91: 0.9878390644 | AS91: 1.015720187 | AT91: 1.015720187 | AU91: 14.35 | AV91: 0.9338970009 | AW91: 8.242382823 | AX91: 6.466197499 | AZ91: 93.38970009 | BA91: 0.3339917685 | BB91: 0.6413140522 | BC91: 0.3583644706 | BD91: 0.2811390217 | BE91: 0.6817284188
G92: 83 | H92: 24 | I92: 1 | J92: 2.905 | K92: 2.905 | L92: 0.6724537037 | M92: 0.2174326743 | N92: 1.49537683 | O92: 3.652688415 | P92: 2.157311585 | Q92: 0 | R92: 2.936898192 | S92: 0.2328850167 | T92: 0.1 | U92: 0.3397254701 | V92: 0.4316781077 | W92: 0.0003726919774 | X92: 0.0003726919774 | Y92: 1.211468569 | Z92: 0.002935312188 | AA92: 0.002935312188 | AB92: 1.36946613 | AC92: 0.1387823736 | AD92: 0.03235360553 | AE92: 0.0684672 | AF92: 0 | AG92: 0.2427019929 | AH92: 2.598063415 | AI92: 0.2092479387 | AJ92: 0.0130144 | AK92: 0.2266250547 | AL92: 0.183264 | AM92: 0.00084 | AN92: 0.0254 | AO92: 0.105156 | AP92: 0.09652 | AQ92: 0.02624 | AR92: 1.004254535 | AS92: 1.033302484 | AT92: 1.033302484 | AU92: 14.525 | AV92: 0.9335851398 | AW92: 8.364093357 | AX92: 6.603350018 | AZ92: 93.35851398 | BA92: 0.3397254701 | BB92: 0.6525910476 | BC92: 0.3636562329 | BD92: 0.2871021747 | BE92: 0.6935770137
G93: 84 | H93: 24 | I93: 1 | J93: 2.94 | K93: 2.94 | L93: 0.6805555556 | M93: 0.2175427499 | N93: 1.495851141 | O93: 3.687925571 | P93: 2.192074429 | Q93: 0 | R93: 2.971542397 | S93: 0.2384117339 | T93: 0.1 | U93: 0.3455342587 | V93: 0.4318150295 | W93: 0.0003729284394 | X93: 0.0003729284394 | Y93: 1.225983281 | Z93: 0.00300607001 | AA93: 0.00300607001 | AB93: 1.385971303 | AC93: 0.1421478175 | AD93: 0.03274340801 | AE93: 0.0684672 | AF93: 0 | AG93: 0.246583141 | AH93: 2.628525778 | AI93: 0.2141835808 | AJ93: 0.0131712 | AK93: 0.231924834 | AL93: 0.185472 | AM93: 0.00084 | AN93: 0.0254 | AO93: 0.105156 | AP93: 0.09652 | AQ93: 0.02624 | AR93: 1.02083694 | AS93: 1.051089316 | AT93: 1.051089316 | AU93: 14.7 | AV93: 0.9332687858 | AW93: 8.486877202 | AX93: 6.742003662 | AZ93: 93.32687858 | BA93: 0.3455342587 | BB93: 0.663979975 | BC93: 0.368994661 | BD93: 0.293130594 | BE93: 0.7055550569
G94: 85 | H94: 24 | I94: 1 | J94: 2.975 | K94: 2.975 | L94: 0.6886574074 | M94: 0.2176528361 | N94: 1.496325239 | O94: 3.72316262 | P94: 2.22683738 | Q94: 0 | R94: 3.006194843 | S94: 0.2440046007 | T94: 0.1 | U94: 0.3514183463 | V94: 0.4319518898 | W94: 0.0003731648702 | X94: 0.0003731648702 | Y94: 1.240506508 | Z94: 0.003077712793 | AA94: 0.003077712793 | AB94: 1.402488442 | AC94: 0.1455560633 | AD94: 0.03313321049 | AE94: 0.0684672 | AF94: 0 | AG94: 0.2505111076 | AH94: 2.658991088 | AI94: 0.2191772418 | AJ94: 0.013328 | AK94: 0.2372900306 | AL94: 0.18768 | AM94: 0.00084 | AN94: 0.0254 | AO94: 0.105156 | AP94: 0.09652 | AQ94: 0.02624 | AR94: 1.037586316 | AS94: 1.069081585 | AT94: 1.069081585 | AU94: 14.875 | AV94: 0.9329480611 | AW94: 8.610737875 | AX94: 6.882161905 | AZ94: 93.29480611 | BA94: 0.3514183463 | BB94: 0.6754811382 | BC94: 0.3743799076 | BD94: 0.2992244306 | BE94: 0.7176632386
G95: 86 | H95: 24 | I95: 1 | J95: 3.01 | K95: 3.01 | L95: 0.6967592593 | M95: 0.217762933 | N95: 1.496799124 | O95: 3.758399562 | P95: 2.261600438 | Q95: 0 | R95: 3.040855247 | S95: 0.2496636171 | T95: 0.1 | U95: 0.3573779476 | V95: 0.4320886886 | W95: 0.0003734012697 | X95: 0.0003734012697 | Y95: 1.255038133 | Z95: 0.003150241429 | AA95: 0.003150241429 | AB95: 1.419017416 | AC95: 0.1490071716 | AD95: 0.03352301296 | AE95: 0.0684672 | AF95: 0 | AG95: 0.2544860472 | AH95: 2.689459092 | AI95: 0.2242288964 | AJ95: 0.0134848 | AK95: 0.242720798 | AL95: 0.189888 | AM95: 0.00084 | AN95: 0.0254 | AO95: 0.105156 | AP95: 0.09652 | AQ95: 0.02624 | AR95: 1.054502698 | AS95: 1.087280207 | AT95: 1.087280207 | AU95: 15.05 | AV95: 0.9326230819 | AW95: 8.735678926 | AX95: 7.023828273 | AZ95: 93.26230819 | BA95: 0.3573779476 | BB95: 0.6870948452 | BC95: 0.3798121272 | BD95: 0.305383838 | BE95: 0.7299022591
G96: 87 | H96: 24 | I96: 1 | J96: 3.045 | K96: 3.045 | L96: 0.7048611111 | M96: 0.2178730405 | N96: 1.497272796 | O96: 3.793636398 | P96: 2.296363602 | Q96: 0 | R96: 3.075523341 | S96: 0.2553887831 | T96: 0.1 | U96: 0.3634132806 | V96: 0.432225426 | W96: 0.0003736376377 | X96: 0.0003736376377 | Y96: 1.269578042 | Z96: 0.003223656809 | AA96: 0.003223656809 | AB96: 1.435558101 | AC96: 0.1525012026 | AD96: 0.03391281544 | AE96: 0.0684672 | AF96: 0 | AG96: 0.2585081155 | AH96: 2.71992955 | AI96: 0.2293385194 | AJ96: 0.0136416 | AK96: 0.2482172918 | AL96: 0.192096 | AM96: 0.00084 | AN96: 0.0254 | AO96: 0.105156 | AP96: 0.09652 | AQ96: 0.02624 | AR96: 1.071586121 | AS96: 1.105686109 | AT96: 1.105686109 | AU96: 15.225 | AV96: 0.9322939586 | AW96: 8.861703937 | AX96: 7.167006351 | AZ96: 93.22939586 | BA96: 0.3634132806 | BB96: 0.6988214073 | BC96: 0.3852914755 | BD96: 0.3116089718 | BE96: 0.7422728286
G97: 88 | H97: 24 | I97: 1 | J97: 3.08 | K97: 3.08 | L97: 0.712962963 | M97: 0.2179831587 | N97: 1.497746255 | O97: 3.828873128 | P97: 2.331126872 | Q97: 0 | R97: 3.110198866 | S97: 0.2611800987 | T97: 0.1 | U97: 0.3695245662 | V97: 0.4323621018 | W97: 0.0003738739741 | X97: 0.0003738739741 | Y97: 1.284126127 | Z97: 0.003297959822 | AA97: 0.003297959822 | AB97: 1.452110379 | AC97: 0.1560382168 | AD97: 0.03430261792 | AE97: 0.0684672 | AF97: 0 | AG97: 0.2625774698 | AH97: 2.750402232 | AI97: 0.2345060855 | AJ97: 0.0137984 | AK97: 0.2537796702 | AL97: 0.194304 | AM97: 0.00084 | AN97: 0.0254 | AO97: 0.105156 | AP97: 0.09652 | AQ97: 0.02624 | AR97: 1.088836619 | AS97: 1.124300233 | AT97: 1.124300233 | AU97: 15.4 | AV97: 0.9319607961 | AW97: 8.988816525 | AX97: 7.311699774 | AZ97: 93.19607961 | BA97: 0.3695245662 | BB97: 0.71066114 | BC97: 0.3908181098 | BD97: 0.3178999902 | BE97: 0.7547756672
G98: 89 | H98: 24 | I98: 1 | J98: 3.115 | K98: 3.115 | L98: 0.7210648148 | M98: 0.2180932875 | N98: 1.498219501 | O98: 3.86410975 | P98: 2.36589025 | Q98: 0 | R98: 3.144881578 | S98: 0.2670375638 | T98: 0.1 | U98: 0.3757120285 | V98: 0.4324987161 | W98: 0.0003741102788 | X98: 0.0003741102788 | Y98: 1.298682286 | Z98: 0.003373151359 | AA98: 0.003373151359 | AB98: 1.468674133 | AC98: 0.1596182745 | AD98: 0.03469242039 | AE98: 0.0684672 | AF98: 0 | AG98: 0.2666942686 | AH98: 2.780876917 | AI98: 0.2397315693 | AJ98: 0.0139552 | AK98: 0.2594080938 | AL98: 0.196512 | AM98: 0.00084 | AN98: 0.0254 | AO98: 0.105156 | AP98: 0.09652 | AQ98: 0.02624 | AR98: 1.106254228 | AS98: 1.143123534 | AT98: 1.143123534 | AU98: 15.575 | AV98: 0.9316236938 | AW98: 9.117020337 | AX98: 7.457912237 | AZ98: 93.16236938 | BA98: 0.3757120285 | BB98: 0.7226143624 | BC98: 0.3963921886 | BD98: 0.3242570538 | BE98: 0.7674115054
G99: 90 | H99: 24 | I99: 1 | J99: 3.15 | K99: 3.15 | L99: 0.7291666667 | M99: 0.2182034269 | N99: 1.498692534 | O99: 3.899346267 | P99: 2.400653733 | Q99: 0 | R99: 3.179571241 | S99: 0.2729611784 | T99: 0.1 | U99: 0.3819758949 | V99: 0.4326352688 | W99: 0.0003743465517 | X99: 0.0003743465517 | Y99: 1.313246418 | Z99: 0.003449232308 | AA99: 0.003449232308 | AB99: 1.485249256 | AC99: 0.1632414362 | AD99: 0.03508222287 | AE99: 0.0684672 | AF99: 0 | AG99: 0.270858672 | AH99: 2.811353397 | AI99: 0.2450149456 | AJ99: 0.014112 | AK99: 0.2651027255 | AL99: 0.19872 | AM99: 0.00084 | AN99: 0.0254 | AO99: 0.105156 | AP99: 0.09652 | AQ99: 0.02624 | AR99: 1.123838983 | AS99: 1.162156979 | AT99: 1.162156979 | AU99: 15.75 | AV99: 0.9312827465 | AW99: 9.246319057 | AX99: 7.605647487 | AZ99: 93.12827465 | BA99: 0.3819758949 | BB99: 0.7346813976 | BC99: 0.402013872 | BD99: 0.3306803255 | BE99: 0.780181084
G100: 91 | H100: 24 | I100: 1 | J100: 3.185 | K100: 3.185 | L100: 0.7372685185 | M100: 0.218313577 | N100: 1.499165353 | O100: 3.934582677 | P100: 2.435417323 | Q100: 0 | R100: 3.21426763 | S100: 0.2789509427 | T100: 0.1 | U100: 0.3883163958 | V100: 0.4327717601 | W100: 0.0003745827926 | X100: 0.0003745827926 | Y100: 1.327818428 | Z100: 0.003526203558 | AA100: 0.003526203558 | AB100: 1.501835644 | AC100: 0.1669077622 | AD100: 0.03547202534 | AE100: 0.0684672 | AF100: 0 | AG100: 0.2750708418 | AH100: 2.841831469 | AI100: 0.250356189 | AJ100: 0.0142688 | AK100: 0.2708637308 | AL100: 0.200928 | AM100: 0.00084 | AN100: 0.0254 | AO100: 0.105156 | AP100: 0.09652 | AQ100: 0.02624 | AR100: 1.141590919 | AS100: 1.18140155 | AT100: 1.18140155 | AU100: 15.925 | AV100: 0.9309380441 | AW100: 9.376716401 | AX100: 7.754909329 | AZ100: 93.09380441 | BA100: 0.3883163958 | BB100: 0.7468625726 | BC100: 0.4076833218 | BD100: 0.3371699708 | BE100: 0.7930851543
G101: 92 | H101: 24 | I101: 1 | J101: 3.22 | K101: 3.22 | L101: 0.7453703704 | M101: 0.2184237378 | N101: 1.499637959 | O101: 3.96981898 | P101: 2.47018102 | Q101: 0 | R101: 3.248970529 | S101: 0.2850068565 | T101: 0.1 | U101: 0.3947337647 | V101: 0.4329081898 | W101: 0.0003748190015 | X101: 0.0003748190015 | Y101: 1.342398226 | Z101: 0.003604065996 | AA101: 0.003604065996 | AB101: 1.518433195 | AC101: 0.1706173131 | AD101: 0.03586182782 | AE101: 0.0684672 | AF101: 0 | AG101: 0.2793309408 | AH101: 2.87231094 | AI101: 0.2557552742 | AJ101: 0.0144256 | AK101: 0.2766912775 | AL101: 0.203136 | AM101: 0.00084 | AN101: 0.0254 | AO101: 0.105156 | AP101: 0.09652 | AQ101: 0.02624 | AR101: 1.159510072 | AS101: 1.200858243 | AT101: 1.200858243 | AU101: 16.1 | AV101: 0.9305896722 | AW101: 9.508216119 | AX101: 7.905701622 | AZ101: 93.05896722 | BA101: 0.3947337647 | BB101: 0.7591582183 | BC101: 0.4134007008 | BD101: 0.3437261575 | BE101: 0.806124478
G102: 93 | H102: 24 | I102: 1 | J102: 3.255 | K102: 3.255 | L102: 0.7534722222 | M102: 0.2185339092 | N102: 1.500110352 | O102: 4.005055176 | P102: 2.504944824 | Q102: 0 | R102: 3.283679733 | S102: 0.2911289199 | T102: 0.1 | U102: 0.4012282385 | V102: 0.4330445579 | W102: 0.0003750551783 | X102: 0.0003750551783 | Y102: 1.356985724 | Z102: 0.00368282051 | AA102: 0.00368282051 | AB102: 1.535041813 | AC102: 0.1743701492 | AD102: 0.0362516303 | AE102: 0.0684672 | AF102: 0 | AG102: 0.2836391338 | AH102: 2.902791626 | AI102: 0.2612121759 | AJ102: 0.0145824 | AK102: 0.2825855359 | AL102: 0.205344 | AM102: 0.00084 | AN102: 0.0254 | AO102: 0.105156 | AP102: 0.09652 | AQ102: 0.02624 | AR102: 1.177596475 | AS102: 1.220528066 | AT102: 1.220528066 | AU102: 16.275 | AV102: 0.9302377121 | AW102: 9.640821996 | AX102: 8.058028285 | AZ102: 93.02377121 | BA102: 0.4012282385 | BB102: 0.7715686696 | BC102: 0.4191661738 | BD102: 0.3503490559 | BE102: 0.8192998276
G103: 94 | H103: 24 | I103: 1 | J103: 3.29 | K103: 3.29 | L103: 0.7615740741 | M103: 0.2186440912 | N103: 1.500582532 | O103: 4.040291266 | P103: 2.539708734 | Q103: 0 | R103: 3.318395043 | S103: 0.2973171329 | T103: 0.1 | U103: 0.4078000572 | V103: 0.4331808645 | W103: 0.0003752913227 | X103: 0.0003752913227 | Y103: 1.371580837 | Z103: 0.003762467988 | AA103: 0.003762467988 | AB103: 1.551661407 | AC103: 0.1781663311 | AD103: 0.03664143277 | AE103: 0.0684672 | AF103: 0 | AG103: 0.2879955866 | AH103: 2.933273349 | AI103: 0.2667268687 | AJ103: 0.0147392 | AK103: 0.2885466787 | AL103: 0.207552 | AM103: 0.00084 | AN103: 0.0254 | AO103: 0.105156 | AP103: 0.09652 | AQ103: 0.02624 | AR103: 1.195850165 | AS103: 1.240412043 | AT103: 1.240412043 | AU103: 16.45 | AV103: 0.9298822413 | AW103: 9.774537852 | AX103: 8.21189329 | AZ103: 92.98822413 | BA103: 0.4078000572 | BB103: 0.7840942653 | BC103: 0.4249799066 | BD103: 0.3570388387 | BE103: 0.8326119863
G104: 95 | H104: 24 | I104: 1 | J104: 3.325 | K104: 3.325 | L104: 0.7696759259 | M104: 0.2187542839 | N104: 1.501054499 | O104: 4.075527249 | P104: 2.574472751 | Q104: 0 | R104: 3.35311627 | S104: 0.3035714954 | T104: 0.1 | U104: 0.414449464 | V104: 0.4333171095 | W104: 0.0003755274348 | X104: 0.0003755274348 | Y104: 1.386183486 | Z104: 0.003843009314 | AA104: 0.003843009314 | AB104: 1.568291889 | AC104: 0.1820059191 | AD104: 0.03703123525 | AE104: 0.0684672 | AF104: 0 | AG104: 0.292400467 | AH104: 2.96375594 | AI104: 0.2722993274 | AJ104: 0.014896 | AK104: 0.2945748812 | AL104: 0.20976 | AM104: 0.00084 | AN104: 0.0254 | AO104: 0.105156 | AP104: 0.09652 | AQ104: 0.02624 | AR104: 1.214271177 | AS104: 1.260511213 | AT104: 1.260511213 | AU104: 16.625 | AV104: 0.9295233333 | AW104: 9.909367541 | AX104: 8.367300668 | AZ104: 92.95233333 | BA104: 0.414449464 | BB104: 0.7967353482 | BC104: 0.430842067 | BD104: 0.3637956812 | BE104: 0.8460617485
G105: 96 | H105: 24 | I105: 1 | J105: 3.36 | K105: 3.36 | L105: =Vout*K105/(Vin*Efficiency) -> 0.7777777778 | M105: 0.2188644873 | N105: =(Vin-(Rdson1+Rdcr)*K105-Vout)*M105/(Fsw*Lf) -> 1.501526252 | O105: 4.110763126 | P105: 2.609236874 | Q105: =IF(MIN(Vin, -P105/(Coss_Q1+Coss_Q2)*0.00000002)<0, 0, MIN(Vin, -P105/(Coss_Q1+Coss_Q2)*0.00000002)) -> 0 | R105: 3.387843231 | S105: =R105^2*Rdcr -> 0.3098920074 | T105: 0.1 | U105: =(T105+S105*(1+Ltc*(Ta-25)))/(1-S105*Ltc*ThetaCa) -> 0.4211767057 | V105: 0.4334532929 | W105: 0.0003757635143 | X105: 0.0003757635143 | Y105: 1.400793592 | Z105: 0.003924445375 | AA105: 0.003924445375 | AB105: 1.584933172 | AC105: =Rdson1*AB105^2 -> 0.1858889738 | AD105: 0.03742103773 | AE105: 0.0684672 | AF105: 0 | AG105: =(AF105+AE105+AD105+AC105*(1+RdsonTopTc*Ta-RdsonTopTc*25))/(1-AC105*RdsonTopTc*ThetaJA_Q1) -> 0.2968539441 | AH105: 2.994239235 | AI105: =Rdson2*AH105^2 -> 0.2779295265 | AJ105: 0.0150528 | AK105: =(AJ105+AI105*(1+RdsonBotTc*Ta-RdsonBotTc*25))/(1-AI105*RdsonBotTc*ThetaJA_Q2) -> 0.3006703212 | AL105: 0.211968 | AM105: 0.00084 | AN105: 0.0254 | AO105: 0.105156 | AP105: 0.09652 | AQ105: 0.02624 | AR105: 1.232859546 | AS105: 1.280826625 | AT105: 1.280826625 | AU105: 16.8 | AV105: 0.9291610582 | AW105: 10.04531495 | AX105: 8.524254508 | AZ105: 92.91610582 | BA105: 0.4211767057 | BB105: 0.8094922653 | BC105: 0.4367528241 | BD105: 0.3706197612 | BE105: 0.8596499194
G106: 97 | H106: 24 | I106: 1 | J106: 3.395 | K106: 3.395 | L106: 0.7858796296 | M106: 0.2189747013 | N106: 1.501997792 | O106: 4.145998896 | P106: 2.644001104 | Q106: 0 | R106: 3.422575752 | S106: 0.3162786691 | T106: 0.1 | U106: 0.4279820319 | V106: 0.4335894147 | W106: 0.0003759995612 | X106: 0.0003759995612 | Y106: 1.415411081 | Z106: 0.004006777057 | AA106: 0.004006777057 | AB106: 1.601585176 | AC106: 0.1898155557 | AD106: 0.0378108402 | AE106: 0.0684672 | AF106: 0 | AG106: 0.3013561884 | AH106: 3.024723079 | AI106: 0.2836174408 | AJ106: 0.0152096 | AK106: 0.306833179 | AL106: 0.214176 | AM106: 0.00084 | AN106: 0.0254 | AO106: 0.105156 | AP106: 0.09652 | AQ106: 0.02624 | AR106: 1.251615306 | AS106: 1.301359347 | AT106: 1.301359347 | AU106: 16.975 | AV106: 0.9287954826 | AW106: 10.18238401 | AX106: 8.682758957 | AZ106: 92.87954826 | BA106: 0.4279820319 | BB106: 0.8223653674 | BC106: 0.4427123484 | BD106: 0.377511259 | BE106: 0.8733773156
G107: 98 | H107: 24 | I107: 1 | J107: 3.43 | K107: 3.43 | L107: 0.7939814815 | M107: 0.2190849259 | N107: 1.502469118 | O107: 4.181234559 | P107: 2.678765441 | Q107: 0 | R107: 3.457313666 | S107: 0.3227314803 | T107: 0.1 | U107: 0.434865696 | V107: 0.433725475 | W107: 0.0003762355753 | X107: 0.0003762355753 | Y107: 1.430035881 | Z107: 0.004090005243 | AA107: 0.004090005243 | AB107: 1.618247823 | AC107: 0.1937857252 | AD107: 0.03820064268 | AE107: 0.0684672 | AF107: 0 | AG107: 0.3059073723 | AH107: 3.05520732 | AI107: 0.2893630449 | AJ107: 0.0153664 | AK107: 0.3130636372 | AL107: 0.216384 | AM107: 0.00084 | AN107: 0.0254 | AO107: 0.105156 | AP107: 0.09652 | AQ107: 0.02624 | AR107: 1.270538493 | AS107: 1.322110461 | AT107: 1.322110461 | AU107: 17.15 | AV107: 0.9284266698 | AW107: 10.32057868 | AX107: 8.842818217 | AZ107: 92.84266698 | BA107: 0.434865696 | BB107: 0.8353550095 | BC107: 0.4487208123 | BD107: 0.3844703572 | BE107: 0.8872447648
G108: 99 | H108: 24 | I108: 1 | J108: 3.465 | K108: 3.465 | L108: 0.8020833333 | M108: 0.2191951613 | N108: 1.502940232 | O108: 4.216470116 | P108: 2.713529884 | Q108: 0 | R108: 3.492056812 | S108: 0.329250441 | T108: 0.1 | U108: 0.4418279544 | V108: 0.4338614736 | W108: 0.0003764715566 | X108: 0.0003764715566 | Y108: 1.444667923 | Z108: 0.004174130818 | AA108: 0.004174130818 | AB108: 1.634921037 | AC108: 0.197799543 | AD108: 0.03859044515 | AE108: 0.0684672 | AF108: 0 | AG108: 0.3105076694 | AH108: 3.085691816 | AI108: 0.2951663134 | AJ108: 0.0155232 | AK108: 0.3193618814 | AL108: 0.218592 | AM108: 0.00084 | AN108: 0.0254 | AO108: 0.105156 | AP108: 0.09652 | AQ108: 0.02624 | AR108: 1.289629143 | AS108: 1.343081061 | AT108: 1.343081061 | AU108: 17.325 | AV108: 0.9280546803 | AW108: 10.45990296 | AX108: 9.004436552 | AZ108: 92.80546803 | BA108: 0.4418279544 | BB108: 0.8484615508 | BC108: 0.4547783894 | BD108: 0.3914972414 | BE108: 0.9012531064
G109: 100 | H109: 24 | I109: 1 | J109: 3.5 | K109: 3.5 | L109: 0.8101851852 | M109: 0.2193054073 | N109: 1.503411131 | O109: 4.251705566 | P109: 2.748294434 | Q109: 0 | R109: 3.526805035 | S109: 0.3358355513 | T109: 0.1 | U109: 0.448869067 | V109: 0.4339974106 | W109: 0.0003767075049 | X109: 0.0003767075049 | Y109: 1.459307141 | Z109: 0.004259154665 | AA109: 0.004259154665 | AB109: 1.651604746 | AC109: 0.2018570694 | AD109: 0.03898024763 | AE109: 0.0684672 | AF109: 0 | AG109: 0.3151572553 | AH109: 3.116176426 | AI109: 0.301027221 | AJ109: 0.01568 | AK109: 0.3257280993 | AL109: 0.2208 | AM109: 0.00084 | AN109: 0.0254 | AO109: 0.105156 | AP109: 0.09652 | AQ109: 0.02624 | AR109: 1.308887289 | AS109: 1.364272258 | AT109: 1.364272258 | AU109: 17.5 | AV109: 0.9276795712 | AW109: 10.60036087 | AX109: 9.167618284 | AZ109: 92.76795712 | BA109: 0.448869067 | BB109: 0.8616853546 | BC109: 0.4608852553 | BD109: 0.3985920993 | BE109: 0.9154031914

Sheet Efficiency Plot Management (hidden)
A2: ="EFF_Ch1" -> EFF_Ch1
A3: ="EFF_Ch2" -> EFF_Ch2

Sheet Standard Value Calculator (hidden)
A2: Capacitors | B2: Css | C2: Cc1ea | D2: Cc2ea | E2: Cout | F2: Cin | G2: Css
A3: Inputs | B3: =Css -> 2.2e-08 | C3: =Cc1ea -> 4.179498835e-11 | D3: =Cc2ea -> 5.732941106e-13 | E3: =Cout -> 0.000125 | F3: =Cin -> 4.7e-05 | G3: =Css -> 2.2e-08 | J3: Resistors | K3: inputs | L3: Standard Result
A4: Standard Result | B4: =SUM(B6:B158)/1000000000000 -> 2.2e-08 | C4: =IF(C3="OPEN","OPEN",SUM(C6:C158)/1000000000000) -> 3.9e-11 | D4: =SUM(D6:D158)/1000000000000 -> 5.6e-13 | E4: =SUM(E6:E158)/1000000000000 -> 0.00012 | F4: =SUM(F6:F158)/1000000000000 -> 4.7e-05 | G4: =SUM(G6:G158)/1000000000000 -> 2.2e-08 | J4: Rt | K4: =Rfadj -> 100 | L4: =IF(K4>(INT(0.5+100*POWER(10,IF(96*(LOG(K4)-INT(LOG(K4)))-ROUND(96*(LOG(K4)-INT(LOG(K4))),0)<0,ROUND(96*(LOG(K4)-INT(LOG(K4))),0)-1,ROUND(96*(LOG(K4)-INT(LOG(K4))),0))/96))*POWER(10,INT(LOG(K4))-2)+INT(0.5+100*POWER(10,(IF(96*(LOG(K4)-INT(LOG(K4)))-ROUND(96*(LOG(K4)-INT(LOG(K4))),0)<0,ROUND(96*(LOG(K4)-INT(LOG(K4))),0)-1,ROUND(96*(LOG(K4)-INT(LOG(K4))),0))+1)/96))*POWER(10,INT(LOG(K4))-2))/2,INT(0.5+100*POWER(10,(IF(96*(LOG(K4)-INT(LOG(K4)))-ROUND(96*(LOG(K4)-INT(LOG(K4))),0)<0,ROUND(96*(LOG(K4)-INT(LOG(K4))),0)-1,ROUND(96*(LOG(K4)-INT(LOG(K4))),0))+1)/96))*POWER(10,INT(LOG(K4))-2),INT(0.5+100*POWER(10,IF(96*(LOG(K4)-INT(LOG(K4)))-ROUND(96*(LOG(K4)-INT(LOG(K4))),0)<0,ROUND(96*(LOG(K4)-INT(LOG(K4))),0)-1,ROUND(96*(LOG(K4)-INT(LOG(K4))),0))/96))*POWER(10,INT(LOG(K4))-2)) -> 100 | M4: Ω
A5: (pF)
A6: 0.47 | B6: =IF(IF((B$3*10^12-$A7)*(B$3*10^12-$A6)*-1<0,0,1)*IF(ABS(B$3*10^12-$A7)>(B$3*10^12-$A6),$A6,$A7)=B7,0,IF((B$3*10^12-$A7)*(B$3*10^12-$A6)*-1<0,0,1)*IF(ABS(B$3*10^12-$A7)>(B$3*10^12-$A6),$A6,$A7)) -> 0 | C6: 0 | D6: 0 | E6: 0 | F6: 0 | G6: 0
A7: 0.56 | B7: =IF(IF((B$3*10^12-$A8)*(B$3*10^12-$A7)*-1<0,0,1)*IF(ABS(B$3*10^12-$A8)>(B$3*10^12-$A7),$A7,$A8)=B8,0,IF((B$3*10^12-$A8)*(B$3*10^12-$A7)*-1<0,0,1)*IF(ABS(B$3*10^12-$A8)>(B$3*10^12-$A7),$A7,$A8)) -> 0 | C7: =IF(IF((C$3*10^12-$A8)*(C$3*10^12-$A7)*-1<0,0,1)*IF(ABS(C$3*10^12-$A8)>(C$3*10^12-$A7),$A7,$A8)=C8,0,IF((C$3*10^12-$A8)*(C$3*10^12-$A7)*-1<0,0,1)*IF(ABS(C$3*10^12-$A8)>(C$3*10^12-$A7),$A7,$A8)) -> 0 | D7: =IF(IF((D$3*10^12-$A8)*(D$3*10^12-$A7)*-1<0,0,1)*IF(ABS(D$3*10^12-$A8)>(D$3*10^12-$A7),$A7,$A8)=D8,0,IF((D$3*10^12-$A8)*(D$3*10^12-$A7)*-1<0,0,1)*IF(ABS(D$3*10^12-$A8)>(D$3*10^12-$A7),$A7,$A8)) -> 0.56 | E7: =IF(IF((E$3*10^12-$A8)*(E$3*10^12-$A7)*-1<0,0,1)*IF(ABS(E$3*10^12-$A8)>(E$3*10^12-$A7),$A7,$A8)=E8,0,IF((E$3*10^12-$A8)*(E$3*10^12-$A7)*-1<0,0,1)*IF(ABS(E$3*10^12-$A8)>(E$3*10^12-$A7),$A7,$A8)) -> 0 | F7: =IF(IF((F$3*10^12-$A8)*(F$3*10^12-$A7)*-1<0,0,1)*IF(ABS(F$3*10^12-$A8)>(F$3*10^12-$A7),$A7,$A8)=F8,0,IF((F$3*10^12-$A8)*(F$3*10^12-$A7)*-1<0,0,1)*IF(ABS(F$3*10^12-$A8)>(F$3*10^12-$A7),$A7,$A8)) -> 0 | G7: =IF(IF((G$3*10^12-$A8)*(G$3*10^12-$A7)*-1<0,0,1)*IF(ABS(G$3*10^12-$A8)>(G$3*10^12-$A7),$A7,$A8)=G8,0,IF((G$3*10^12-$A8)*(G$3*10^12-$A7)*-1<0,0,1)*IF(ABS(G$3*10^12-$A8)>(G$3*10^12-$A7),$A7,$A8)) -> 0 | J7: Rent | K7: =Rent -> 885221.6749 | L7: 887000 | M7: Ω
A8: 0.68 | B8: 0 | C8: 0 | D8: 0 | E8: 0 | F8: 0 | G8: 0 | J8: Rc1ea | K8: =Rcea2 -> 0 | L8: =IF(K8>(INT(0.5+100*POWER(10,IF(96*(LOG(K8)-INT(LOG(K8)))-ROUND(96*(LOG(K8)-INT(LOG(K8))),0)<0,ROUND(96*(LOG(K8)-INT(LOG(K8))),0)-1,ROUND(96*(LOG(K8)-INT(LOG(K8))),0))/96))*POWER(10,INT(LOG(K8))-2)+INT(0.5+100*POWER(10,(IF(96*(LOG(K8)-INT(LOG(K8)))-ROUND(96*(LOG(K8)-INT(LOG(K8))),0)<0,ROUND(96*(LOG(K8)-INT(LOG(K8))),0)-1,ROUND(96*(LOG(K8)-INT(LOG(K8))),0))+1)/96))*POWER(10,INT(LOG(K8))-2))/2,INT(0.5+100*POWER(10,(IF(96*(LOG(K8)-INT(LOG(K8)))-ROUND(96*(LOG(K8)-INT(LOG(K8))),0)<0,ROUND(96*(LOG(K8)-INT(LOG(K8))),0)-1,ROUND(96*(LOG(K8)-INT(LOG(K8))),0))+1)/96))*POWER(10,INT(LOG(K8))-2),INT(0.5+100*POWER(10,IF(96*(LOG(K8)-INT(LOG(K8)))-ROUND(96*(LOG(K8)-INT(LOG(K8))),0)<0,ROUND(96*(LOG(K8)-INT(LOG(K8))),0)-1,ROUND(96*(LOG(K8)-INT(LOG(K8))),0))/96))*POWER(10,INT(LOG(K8))-2)) ->  | M8: Ω
A9: 0.82 | B9: 0 | C9: 0 | D9: 0 | E9: 0 | F9: 0 | G9: 0
A10: 1 | B10: 0 | C10: 0 | D10: 0 | E10: 0 | F10: 0 | G10: 0 | J10: Rfb1 | K10: =Rfb1_ -> 100000 | L10: =IF(K10>(INT(0.5+100*POWER(10,IF(96*(LOG(K10)-INT(LOG(K10)))-ROUND(96*(LOG(K10)-INT(LOG(K10))),0)<0,ROUND(96*(LOG(K10)-INT(LOG(K10))),0)-1,ROUND(96*(LOG(K10)-INT(LOG(K10))),0))/96))*POWER(10,INT(LOG(K10))-2)+INT(0.5+100*POWER(10,(IF(96*(LOG(K10)-INT(LOG(K10)))-ROUND(96*(LOG(K10)-INT(LOG(K10))),0)<0,ROUND(96*(LOG(K10)-INT(LOG(K10))),0)-1,ROUND(96*(LOG(K10)-INT(LOG(K10))),0))+1)/96))*POWER(10,INT(LOG(K10))-2))/2,INT(0.5+100*POWER(10,(IF(96*(LOG(K10)-INT(LOG(K10)))-ROUND(96*(LOG(K10)-INT(LOG(K10))),0)<0,ROUND(96*(LOG(K10)-INT(LOG(K10))),0)-1,ROUND(96*(LOG(K10)-INT(LOG(K10))),0))+1)/96))*POWER(10,INT(LOG(K10))-2),INT(0.5+100*POWER(10,IF(96*(LOG(K10)-INT(LOG(K10)))-ROUND(96*(LOG(K10)-INT(LOG(K10))),0)<0,ROUND(96*(LOG(K10)-INT(LOG(K10))),0)-1,ROUND(96*(LOG(K10)-INT(LOG(K10))),0))/96))*POWER(10,INT(LOG(K10))-2)) -> 100000 | M10: Ω
A11: 1.2 | B11: 0 | C11: 0 | D11: 0 | E11: 0 | F11: 0 | G11: 0 | J11: Rfb2 | K11: =Rfb2_ -> 25000 | L11: =IF(K11="OPEN","OPEN",IF(K11>(INT(0.5+100*POWER(10,IF(96*(LOG(K11)-INT(LOG(K11)))-ROUND(96*(LOG(K11)-INT(LOG(K11))),0)<0,ROUND(96*(LOG(K11)-INT(LOG(K11))),0)-1,ROUND(96*(LOG(K11)-INT(LOG(K11))),0))/96))*POWER(10,INT(LOG(K11))-2)+INT(0.5+100*POWER(10,(IF(96*(LOG(K11)-INT(LOG(K11)))-ROUND(96*(LOG(K11)-INT(LOG(K11))),0)<0,ROUND(96*(LOG(K11)-INT(LOG(K11))),0)-1,ROUND(96*(LOG(K11)-INT(LOG(K11))),0))+1)/96))*POWER(10,INT(LOG(K11))-2))/2,INT(0.5+100*POWER(10,(IF(96*(LOG(K11)-INT(LOG(K11)))-ROUND(96*(LOG(K11)-INT(LOG(K11))),0)<0,ROUND(96*(LOG(K11)-INT(LOG(K11))),0)-1,ROUND(96*(LOG(K11)-INT(LOG(K11))),0))+1)/96))*POWER(10,INT(LOG(K11))-2),INT(0.5+100*POWER(10,IF(96*(LOG(K11)-INT(LOG(K11)))-ROUND(96*(LOG(K11)-INT(LOG(K11))),0)<0,ROUND(96*(LOG(K11)-INT(LOG(K11))),0)-1,ROUND(96*(LOG(K11)-INT(LOG(K11))),0))/96))*POWER(10,INT(LOG(K11))-2))) -> 24900 | M11: Ω
A12: 1.5 | B12: 0 | C12: 0 | D12: 0 | E12: 0 | F12: 0 | G12: 0 | J12: Rt1 | K12: ='Variable Management'!B25*1000 -> 99566.98732 | L12: =IF(K12>(INT(0.5+100*POWER(10,IF(96*(LOG(K12)-INT(LOG(K12)))-ROUND(96*(LOG(K12)-INT(LOG(K12))),0)<0,ROUND(96*(LOG(K12)-INT(LOG(K12))),0)-1,ROUND(96*(LOG(K12)-INT(LOG(K12))),0))/96))*POWER(10,INT(LOG(K12))-2)+INT(0.5+100*POWER(10,(IF(96*(LOG(K12)-INT(LOG(K12)))-ROUND(96*(LOG(K12)-INT(LOG(K12))),0)<0,ROUND(96*(LOG(K12)-INT(LOG(K12))),0)-1,ROUND(96*(LOG(K12)-INT(LOG(K12))),0))+1)/96))*POWER(10,INT(LOG(K12))-2))/2,INT(0.5+100*POWER(10,(IF(96*(LOG(K12)-INT(LOG(K12)))-ROUND(96*(LOG(K12)-INT(LOG(K12))),0)<0,ROUND(96*(LOG(K12)-INT(LOG(K12))),0)-1,ROUND(96*(LOG(K12)-INT(LOG(K12))),0))+1)/96))*POWER(10,INT(LOG(K12))-2),INT(0.5+100*POWER(10,IF(96*(LOG(K12)-INT(LOG(K12)))-ROUND(96*(LOG(K12)-INT(LOG(K12))),0)<0,ROUND(96*(LOG(K12)-INT(LOG(K12))),0)-1,ROUND(96*(LOG(K12)-INT(LOG(K12))),0))/96))*POWER(10,INT(LOG(K12))-2)) -> 100000 | M12: Ω
A13: 1.8 | B13: 0 | C13: 0 | D13: 0 | E13: 0 | F13: 0 | G13: 0
A14: 2.2 | B14: =IF(IF((B$3*10^12-$A15)*(B$3*10^12-$A14)*-1<0,0,1)*IF(ABS(B$3*10^12-$A15)>(B$3*10^12-$A14),$A14,$A15)=B15,0,IF((B$3*10^12-$A15)*(B$3*10^12-$A14)*-1<0,0,1)*IF(ABS(B$3*10^12-$A15)>(B$3*10^12-$A14),$A14,$A15)) -> 0 | C14: 0 | D14: 0 | E14: 0 | F14: 0 | G14: 0
A15: 2.7 | B15: 0 | C15: 0 | D15: 0 | E15: 0 | F15: 0 | G15: 0
A16: 3.3 | B16: 0 | C16: 0 | D16: 0 | E16: 0 | F16: 0 | G16: 0 | J16: Rs | K16: =Rs_ideal*1000 ->  | L16: =IF(K16=0,0,IF(K16>(INT(0.5+100*POWER(10,IF(96*(LOG(K16)-INT(LOG(K16)))-ROUND(96*(LOG(K16)-INT(LOG(K16))),0)<0,ROUND(96*(LOG(K16)-INT(LOG(K16))),0)-1,ROUND(96*(LOG(K16)-INT(LOG(K16))),0))/96))*POWER(10,INT(LOG(K16))-2)+INT(0.5+100*POWER(10,(IF(96*(LOG(K16)-INT(LOG(K16)))-ROUND(96*(LOG(K16)-INT(LOG(K16))),0)<0,ROUND(96*(LOG(K16)-INT(LOG(K16))),0)-1,ROUND(96*(LOG(K16)-INT(LOG(K16))),0))+1)/96))*POWER(10,INT(LOG(K16))-2))/2,INT(0.5+100*POWER(10,(IF(96*(LOG(K16)-INT(LOG(K16)))-ROUND(96*(LOG(K16)-INT(LOG(K16))),0)<0,ROUND(96*(LOG(K16)-INT(LOG(K16))),0)-1,ROUND(96*(LOG(K16)-INT(LOG(K16))),0))+1)/96))*POWER(10,INT(LOG(K16))-2),INT(0.5+100*POWER(10,IF(96*(LOG(K16)-INT(LOG(K16)))-ROUND(96*(LOG(K16)-INT(LOG(K16))),0)<0,ROUND(96*(LOG(K16)-INT(LOG(K16))),0)-1,ROUND(96*(LOG(K16)-INT(LOG(K16))),0))/96))*POWER(10,INT(LOG(K16))-2))) ->  | M16: mΩ
A17: 3.9 | B17: 0 | C17: 0 | D17: 0 | E17: 0 | F17: 0 | G17: 0 | J17: Cres | K17: =Cres ->  | L17: =G4*1000000000000 -> 22000 | M17: pF
A18: 4.7 | B18: 0 | C18: 0 | D18: 0 | E18: 0 | F18: 0 | G18: 0
A19: 5.6 | B19: 0 | C19: 0 | D19: 0 | E19: 0 | F19: 0 | G19: 0
A20: 6.8 | B20: 0 | C20: 0 | D20: 0 | E20: 0 | F20: 0 | G20: 0
A21: 8.2 | B21: 0 | C21: 0 | D21: 0 | E21: 0 | F21: 0 | G21: 0
A22: 10 | B22: 0 | C22: 0 | D22: 0 | E22: 0 | F22: 0 | G22: 0 | J22: Css | K22: =Css -> 2.2e-08 | L22: =G4 -> 2.2e-08
A23: 12 | B23: 0 | C23: 0 | D23: 0 | E23: 0 | F23: 0 | G23: 0
A24: 15 | B24: 0 | C24: 0 | D24: 0 | E24: 0 | F24: 0 | G24: 0
A25: 18 | B25: 0 | C25: 0 | D25: 0 | E25: 0 | F25: 0 | G25: 0
A26: 22 | B26: 0 | C26: 0 | D26: 0 | E26: 0 | F26: 0 | G26: 0
A27: 27 | B27: 0 | C27: 0 | D27: 0 | E27: 0 | F27: 0 | G27: 0
A28: 33 | B28: 0 | C28: 0 | D28: 0 | E28: 0 | F28: 0 | G28: 0
A29: 39 | B29: 0 | C29: 39 | D29: 0 | E29: 0 | F29: 0 | G29: 0
A30: 47 | B30: 0 | C30: 0 | D30: 0 | E30: 0 | F30: 0 | G30: 0 | J30: Rc1 | K30: =L7/1000&" kΩ" -> 887 kΩ | L30: =L7/1000 -> 887 | M30: kΩ
A31: 56 | B31: 0 | C31: 0 | D31: 0 | E31: 0 | F31: 0 | G31: 0 | J31: Cc1 | K31: =C4*1000000000&" nF" -> 0.039 nF | L31: =C4*1000000000 -> 0.039 | M31: nF
A32: 68 | B32: 0 | C32: 0 | D32: 0 | E32: 0 | F32: 0 | G32: 0 | J32: Cc2 | K32: =D4*1000000000000&" pF" -> 0.56 pF | L32: =D4*1000000000000 -> 0.56 | M32: pF
A33: 82 | B33: 0 | C33: 0 | D33: 0 | E33: 0 | F33: 0 | G33: 0
A34: =A22*10 -> 100 | B34: 0 | C34: 0 | D34: 0 | E34: 0 | F34: 0 | G34: 0
A35: =A23*10 -> 120 | B35: 0 | C35: 0 | D35: 0 | E35: 0 | F35: 0 | G35: 0
A36: 150 | B36: 0 | C36: 0 | D36: 0 | E36: 0 | F36: 0 | G36: 0
A37: 180 | B37: 0 | C37: 0 | D37: 0 | E37: 0 | F37: 0 | G37: 0
A38: 220 | B38: 0 | C38: 0 | D38: 0 | E38: 0 | F38: 0 | G38: 0
A39: 270 | B39: 0 | C39: =IF(IF((C$3*10^12-$A40)*(C$3*10^12-$A39)*-1<0,0,1)*IF(ABS(C$3*10^12-$A40)>(C$3*10^12-$A39),$A39,$A40)=C40,0,IF((C$3*10^12-$A40)*(C$3*10^12-$A39)*-1<0,0,1)*IF(ABS(C$3*10^12-$A40)>(C$3*10^12-$A39),$A39,$A40)) -> 0 | D39: 0 | E39: 0 | F39: 0 | G39: 0
A40: 330 | B40: 0 | C40: 0 | D40: 0 | E40: 0 | F40: 0 | G40: 0
A41: 390 | B41: 0 | C41: 0 | D41: 0 | E41: 0 | F41: 0 | G41: 0
A42: 470 | B42: 0 | C42: 0 | D42: 0 | E42: 0 | F42: 0 | G42: 0
A43: 560 | B43: 0 | C43: 0 | D43: 0 | E43: 0 | F43: 0 | G43: 0
A44: 680 | B44: 0 | C44: 0 | D44: 0 | E44: 0 | F44: 0 | G44: 0
A45: =A33*10 -> 820 | B45: 0 | C45: 0 | D45: 0 | E45: 0 | F45: 0 | G45: 0
A46: 1000 | B46: 0 | C46: 0 | D46: 0 | E46: 0 | F46: 0 | G46: 0
A47: 1200 | B47: 0 | C47: 0 | D47: 0 | E47: 0 | F47: 0 | G47: 0
A48: 1500 | B48: 0 | C48: 0 | D48: 0 | E48: 0 | F48: 0 | G48: 0
A49: 1800 | B49: 0 | C49: 0 | D49: 0 | E49: 0 | F49: 0 | G49: 0
A50: 2200 | B50: 0 | C50: 0 | D50: 0 | E50: 0 | F50: 0 | G50: 0
A51: 2700 | B51: 0 | C51: 0 | D51: 0 | E51: 0 | F51: 0 | G51: 0
A52: 3300 | B52: 0 | C52: 0 | D52: 0 | E52: 0 | F52: 0 | G52: 0
A53: 3900 | B53: 0 | C53: 0 | D53: 0 | E53: 0 | F53: 0 | G53: 0
A54: 4700 | B54: 0 | C54: 0 | D54: 0 | E54: 0 | F54: 0 | G54: 0
A55: 5600 | B55: 0 | C55: 0 | D55: 0 | E55: 0 | F55: 0 | G55: 0
A56: 6800 | B56: 0 | C56: 0 | D56: 0 | E56: 0 | F56: 0 | G56: 0
A57: 8200 | B57: 0 | C57: 0 | D57: 0 | E57: 0 | F57: 0 | G57: 0
A58: 10000 | B58: 0 | C58: 0 | D58: 0 | E58: 0 | F58: 0 | G58: 0
A59: 12000 | B59: 0 | C59: 0 | D59: 0 | E59: 0 | F59: 0 | G59: 0
A60: 15000 | B60: 0 | C60: 0 | D60: 0 | E60: 0 | F60: 0 | G60: 0
A61: 18000 | B61: 0 | C61: 0 | D61: 0 | E61: 0 | F61: 0 | G61: 0
A62: 22000 | B62: 22000 | C62: 0 | D62: 0 | E62: 0 | F62: 0 | G62: 22000
A63: 27000 | B63: 0 | C63: 0 | D63: 0 | E63: 0 | F63: 0 | G63: 0
A64: 33000 | B64: 0 | C64: 0 | D64: 0 | E64: 0 | F64: 0 | G64: 0
A65: 39000 | B65: 0 | C65: 0 | D65: 0 | E65: 0 | F65: 0 | G65: 0
A66: 47000 | B66: 0 | C66: 0 | D66: 0 | E66: 0 | F66: 0 | G66: 0
A67: 56000 | B67: 0 | C67: 0 | D67: 0 | E67: 0 | F67: 0 | G67: 0
A68: 68000 | B68: 0 | C68: 0 | D68: 0 | E68: 0 | F68: 0 | G68: 0
A69: 82000 | B69: 0 | C69: 0 | D69: 0 | E69: 0 | F69: 0 | G69: 0
A70: 100000 | B70: 0 | C70: 0 | D70: =IF(IF((D$3*10^12-$A71)*(D$3*10^12-$A70)*-1<0,0,1)*IF(ABS(D$3*10^12-$A71)>(D$3*10^12-$A70),$A70,$A71)=D71,0,IF((D$3*10^12-$A71)*(D$3*10^12-$A70)*-1<0,0,1)*IF(ABS(D$3*10^12-$A71)>(D$3*10^12-$A70),$A70,$A71)) -> 0 | E70: 0 | F70: 0 | G70: 0
A71: 120000 | B71: =IF(IF((B$3*10^12-$A72)*(B$3*10^12-$A71)*-1<0,0,1)*IF(ABS(B$3*10^12-$A72)>(B$3*10^12-$A71),$A71,$A72)=B72,0,IF((B$3*10^12-$A72)*(B$3*10^12-$A71)*-1<0,0,1)*IF(ABS(B$3*10^12-$A72)>(B$3*10^12-$A71),$A71,$A72)) -> 0 | C71: =IF(IF((C$3*10^12-$A72)*(C$3*10^12-$A71)*-1<0,0,1)*IF(ABS(C$3*10^12-$A72)>(C$3*10^12-$A71),$A71,$A72)=C72,0,IF((C$3*10^12-$A72)*(C$3*10^12-$A71)*-1<0,0,1)*IF(ABS(C$3*10^12-$A72)>(C$3*10^12-$A71),$A71,$A72)) -> 0 | D71: 0 | E71: 0 | F71: =IF(IF((F$3*10^12-$A72)*(F$3*10^12-$A71)*-1<0,0,1)*IF(ABS(F$3*10^12-$A72)>(F$3*10^12-$A71),$A71,$A72)=F72,0,IF((F$3*10^12-$A72)*(F$3*10^12-$A71)*-1<0,0,1)*IF(ABS(F$3*10^12-$A72)>(F$3*10^12-$A71),$A71,$A72)) -> 0 | G71: =IF(IF((G$3*10^12-$A72)*(G$3*10^12-$A71)*-1<0,0,1)*IF(ABS(G$3*10^12-$A72)>(G$3*10^12-$A71),$A71,$A72)=G72,0,IF((G$3*10^12-$A72)*(G$3*10^12-$A71)*-1<0,0,1)*IF(ABS(G$3*10^12-$A72)>(G$3*10^12-$A71),$A71,$A72)) -> 0
A72: 150000 | B72: 0 | C72: 0 | D72: 0 | E72: 0 | F72: 0 | G72: 0
A73: 180000 | B73: 0 | C73: 0 | D73: 0 | E73: 0 | F73: 0 | G73: 0
A74: 220000 | B74: 0 | C74: 0 | D74: 0 | E74: 0 | F74: 0 | G74: 0
A75: 270000 | B75: 0 | C75: 0 | D75: 0 | E75: 0 | F75: 0 | G75: 0
A76: 330000 | B76: 0 | C76: 0 | D76: 0 | E76: 0 | F76: 0 | G76: 0
A77: 390000 | B77: 0 | C77: 0 | D77: 0 | E77: 0 | F77: 0 | G77: 0
A78: 470000 | B78: 0 | C78: 0 | D78: 0 | E78: 0 | F78: 0 | G78: 0
A79: 560000 | B79: 0 | C79: 0 | D79: 0 | E79: 0 | F79: 0 | G79: 0
A80: 680000 | B80: 0 | C80: 0 | D80: 0 | E80: 0 | F80: 0 | G80: 0
A81: 820000 | B81: 0 | C81: 0 | D81: 0 | E81: 0 | F81: 0 | G81: 0
A82: 1000000 | B82: 0 | C82: 0 | D82: 0 | E82: 0 | F82: 0 | G82: 0
A83: 1200000 | B83: 0 | C83: 0 | D83: 0 | E83: 0 | F83: 0 | G83: 0
A84: 1500000 | B84: 0 | C84: 0 | D84: 0 | E84: 0 | F84: 0 | G84: 0
A85: 1800000 | B85: 0 | C85: 0 | D85: 0 | E85: 0 | F85: 0 | G85: 0
A86: 2200000 | B86: 0 | C86: 0 | D86: 0 | E86: 0 | F86: 0 | G86: 0
A87: 2700000 | B87: 0 | C87: 0 | D87: 0 | E87: 0 | F87: 0 | G87: 0
A88: 3300000 | B88: 0 | C88: 0 | D88: 0 | E88: 0 | F88: 0 | G88: 0
A89: 3900000 | B89: 0 | C89: 0 | D89: 0 | E89: 0 | F89: 0 | G89: 0
A90: 4700000 | B90: 0 | C90: 0 | D90: 0 | E90: 0 | F90: 0 | G90: 0
A91: 5600000 | B91: 0 | C91: 0 | D91: 0 | E91: 0 | F91: 0 | G91: 0
A92: 6800000 | B92: 0 | C92: 0 | D92: 0 | E92: 0 | F92: 0 | G92: 0
A93: 8200000 | B93: 0 | C93: 0 | D93: 0 | E93: 0 | F93: 0 | G93: 0
A94: 10000000 | B94: 0 | C94: 0 | D94: 0 | E94: 0 | F94: 0 | G94: 0
A95: 12000000 | B95: 0 | C95: 0 | D95: 0 | E95: 0 | F95: 0 | G95: 0
A96: 15000000 | B96: 0 | C96: 0 | D96: 0 | E96: 0 | F96: 0 | G96: 0
A97: 18000000 | B97: 0 | C97: 0 | D97: 0 | E97: 0 | F97: 0 | G97: 0
A98: 22000000 | B98: 0 | C98: 0 | D98: 0 | E98: 0 | F98: 0 | G98: 0
A99: =A87*10 -> 27000000 | B99: 0 | C99: 0 | D99: 0 | E99: 0 | F99: 0 | G99: 0
A100: 33000000 | B100: 0 | C100: 0 | D100: 0 | E100: 0 | F100: 0 | G100: 0
A101: 39000000 | B101: 0 | C101: 0 | D101: 0 | E101: 0 | F101: 0 | G101: 0
A102: 47000000 | B102: 0 | C102: 0 | D102: 0 | E102: 0 | F102: 47000000 | G102: 0
A103: 56000000 | B103: 0 | C103: 0 | D103: 0 | E103: 0 | F103: =IF(IF((F$3*10^12-$A104)*(F$3*10^12-$A103)*-1<0,0,1)*IF(ABS(F$3*10^12-$A104)>(F$3*10^12-$A103),$A103,$A104)=F104,0,IF((F$3*10^12-$A104)*(F$3*10^12-$A103)*-1<0,0,1)*IF(ABS(F$3*10^12-$A104)>(F$3*10^12-$A103),$A103,$A104)) -> 0 | G103: =IF(IF((G$3*10^12-$A104)*(G$3*10^12-$A103)*-1<0,0,1)*IF(ABS(G$3*10^12-$A104)>(G$3*10^12-$A103),$A103,$A104)=G104,0,IF((G$3*10^12-$A104)*(G$3*10^12-$A103)*-1<0,0,1)*IF(ABS(G$3*10^12-$A104)>(G$3*10^12-$A103),$A103,$A104)) -> 0
A104: 68000000 | B104: 0 | C104: 0 | D104: 0 | E104: 0 | F104: 0 | G104: 0
A105: 82000000 | B105: 0 | C105: 0 | D105: 0 | E105: 0 | F105: 0 | G105: 0
A106: 100000000 | B106: 0 | C106: 0 | D106: 0 | E106: 0 | F106: 0 | G106: 0
A107: 120000000 | B107: 0 | C107: 0 | D107: 0 | E107: 120000000 | F107: 0 | G107: 0
A108: 150000000 | B108: 0 | C108: 0 | D108: 0 | E108: 0 | F108: 0 | G108: 0
A109: 180000000 | B109: 0 | C109: 0 | D109: 0 | E109: 0 | F109: 0 | G109: 0
A110: 220000000 | B110: 0 | C110: 0 | D110: 0 | E110: 0 | F110: 0 | G110: 0
A111: 270000000 | B111: 0 | C111: 0 | D111: 0 | E111: 0 | F111: 0 | G111: 0
A112: 330000000 | B112: 0 | C112: 0 | D112: 0 | E112: 0 | F112: 0 | G112: 0
A113: 390000000 | B113: 0 | C113: 0 | D113: 0 | E113: 0 | F113: 0 | G113: 0
A114: 470000000 | B114: 0 | C114: 0 | D114: 0 | E114: 0 | F114: 0 | G114: 0
A115: 560000000 | B115: 0 | C115: 0 | D115: 0 | E115: 0 | F115: 0 | G115: 0
A116: 680000000 | B116: 0 | C116: 0 | D116: 0 | E116: 0 | F116: 0 | G116: 0
A117: 820000000 | B117: 0 | C117: 0 | D117: 0 | E117: 0 | F117: 0 | G117: 0
A118: 1000000000 | B118: 0 | C118: 0 | D118: 0 | E118: 0 | F118: 0 | G118: 0
A119: 1200000000 | B119: 0 | C119: 0 | D119: 0 | E119: 0 | F119: 0 | G119: 0
A120: 1500000000 | B120: 0 | C120: 0 | D120: 0 | E120: 0 | F120: 0 | G120: 0
A121: 1800000000 | B121: 0 | C121: 0 | D121: 0 | E121: 0 | F121: 0 | G121: 0
A122: 2200000000 | B122: 0 | C122: 0 | D122: 0 | E122: 0 | F122: 0 | G122: 0
A123: 2700000000 | B123: 0 | C123: 0 | D123: 0 | E123: 0 | F123: 0 | G123: 0
A124: 3300000000 | B124: 0 | C124: 0 | D124: 0 | E124: 0 | F124: 0 | G124: 0
A125: 3900000000 | B125: 0 | C125: 0 | D125: 0 | E125: 0 | F125: 0 | G125: 0
A126: 4700000000 | B126: 0 | C126: 0 | D126: 0 | E126: 0 | F126: 0 | G126: 0
A127: 5600000000 | B127: 0 | C127: 0 | D127: 0 | E127: 0 | F127: 0 | G127: 0
A128: 6800000000 | B128: 0 | C128: 0 | D128: 0 | E128: 0 | F128: 0 | G128: 0
A129: 8200000000 | B129: 0 | C129: 0 | D129: 0 | E129: 0 | F129: 0 | G129: 0
A130: 10000000000 | B130: 0 | C130: 0 | D130: 0 | E130: 0 | F130: 0 | G130: 0
A131: 12000000000 | B131: 0 | C131: 0 | D131: 0 | E131: 0 | F131: 0 | G131: 0
A132: 15000000000 | B132: 0 | C132: 0 | D132: 0 | E132: 0 | F132: 0 | G132: 0
A133: 18000000000 | B133: 0 | C133: 0 | D133: 0 | E133: 0 | F133: 0 | G133: 0
A134: 22000000000 | B134: 0 | C134: 0 | D134: 0 | E134: =IF(IF((E$3*10^12-$A135)*(E$3*10^12-$A134)*-1<0,0,1)*IF(ABS(E$3*10^12-$A135)>(E$3*10^12-$A134),$A134,$A135)=E135,0,IF((E$3*10^12-$A135)*(E$3*10^12-$A134)*-1<0,0,1)*IF(ABS(E$3*10^12-$A135)>(E$3*10^12-$A134),$A134,$A135)) -> 0 | F134: 0 | G134: 0
A135: 27000000000 | B135: =IF(IF((B$3*10^12-$A136)*(B$3*10^12-$A135)*-1<0,0,1)*IF(ABS(B$3*10^12-$A136)>(B$3*10^12-$A135),$A135,$A136)=B136,0,IF((B$3*10^12-$A136)*(B$3*10^12-$A135)*-1<0,0,1)*IF(ABS(B$3*10^12-$A136)>(B$3*10^12-$A135),$A135,$A136)) -> 0 | C135: =IF(IF((C$3*10^12-$A136)*(C$3*10^12-$A135)*-1<0,0,1)*IF(ABS(C$3*10^12-$A136)>(C$3*10^12-$A135),$A135,$A136)=C136,0,IF((C$3*10^12-$A136)*(C$3*10^12-$A135)*-1<0,0,1)*IF(ABS(C$3*10^12-$A136)>(C$3*10^12-$A135),$A135,$A136)) -> 0 | D135: 0 | E135: 0 | F135: 0 | G135: 0
A136: 33000000000 | B136: 0 | C136: 0 | D136: 0 | E136: 0 | F136: 0 | G136: 0
A137: 39000000000 | B137: 0 | C137: 0 | D137: 0 | E137: 0 | F137: 0 | G137: 0
A138: 47000000000 | B138: 0 | C138: 0 | D138: 0 | E138: 0 | F138: 0 | G138: 0
A139: 56000000000 | B139: 0 | C139: 0 | D139: 0 | E139: 0 | F139: 0 | G139: 0
A140: 68000000000 | B140: 0 | C140: 0 | D140: 0 | E140: 0 | F140: 0 | G140: 0
A141: 82000000000 | B141: 0 | C141: 0 | D141: 0 | E141: 0 | F141: 0 | G141: 0
A142: 100000000000 | B142: 0 | C142: 0 | D142: 0 | E142: 0 | F142: 0 | G142: 0
A143: 120000000000 | B143: 0 | C143: 0 | D143: 0 | E143: 0 | F143: 0 | G143: 0
A144: 150000000000 | B144: 0 | C144: 0 | D144: 0 | E144: 0 | F144: 0 | G144: 0
A145: 180000000000 | B145: 0 | C145: 0 | D145: 0 | E145: 0 | F145: 0 | G145: 0
A146: 220000000000 | B146: 0 | C146: 0 | D146: 0 | E146: 0 | F146: 0 | G146: 0
A147: 270000000000 | B147: 0 | C147: 0 | D147: 0 | E147: 0 | F147: 0 | G147: 0
A148: 330000000000 | B148: 0 | C148: 0 | D148: 0 | E148: 0 | F148: 0 | G148: 0
A149: 390000000000 | B149: 0 | C149: 0 | D149: 0 | E149: 0 | F149: 0 | G149: 0
A150: 470000000000 | B150: 0 | C150: 0 | D150: 0 | E150: 0 | F150: 0 | G150: 0
A151: 560000000000 | B151: 0 | C151: 0 | D151: 0 | E151: 0 | F151: 0 | G151: 0
A152: 680000000000 | B152: 0 | C152: 0 | D152: 0 | E152: 0 | F152: 0 | G152: 0
A153: 820000000000 | B153: 0 | C153: 0 | D153: 0 | E153: 0 | F153: 0 | G153: 0
A154: 1000000000000 | B154: 0 | C154: 0 | D154: 0 | E154: 0 | F154: 0 | G154: 0
A155: 1200000000000 | B155: 0 | C155: 0 | D155: 0 | E155: 0 | F155: 0 | G155: 0
A156: 1500000000000 | B156: 0 | C156: 0 | D156: 0 | E156: 0 | F156: 0 | G156: 0
A157: 1800000000000 | B157: 0 | C157: 0 | D157: 0 | E157: 0 | F157: 0 | G157: 0
A158: 2200000000000 | B158: 0 | C158: 0 | D158: 0 | E158: 0 | F158: 0 | G158: 0
A159: 2700000000000 | B159: 2700000000000 | C159: 2700000000000 | D159: 2700000000000 | E159: 2700000000000 | F159: 2700000000000 | G159: 2700000000000

Sheet Snubber (hidden)
C1: UNITS | D1: STD UNITS
A2: Frequency of Ringing | B2: 85 | C2: MHz | D2: =B2*1000000 -> 85000000 | E2: Hz
A3: SW capacitance | B3: 3000 | C3: pF | D3: =B3*0.000000000001 -> 3e-09 | E3: F
A4: Lpar | B4: =1000000000*1/((D2*2*3.14159)^2*D3) -> 1.168643077 | C4: nH | D4: =B4/1000000000 -> 1.168643077e-09 | E4: H
A5: Csnub | B5: =4*B3 -> 12000 | C5: pF | D5: =B5*0.000000000001 -> 1.2e-08 | E5: F
A6: Rsnub | B6: =SQRT(D4/D3) -> 0.6241375589 | C6: Ω | D6: =B6 -> 0.6241375589 | E6: Ω

Sheet Parallel Output Caps (hidden)
A4: Fsw | B4: =Fsw -> 400000
A6: C1 | B6: 20 | C6: uF | D6: =B6/1000000 -> 2e-05 | E6: F
A7: R1 | B7: 0.5 | C7: mOhms | D7: =B7/1000 -> 0.0005 | E7: Ohms
A9: C2 | B9: 68 | C9: uF | D9: =B9/1000000 -> 6.8e-05 | E9: F
A10: R2 | B10: 20 | C10: mOhms | D10: =B10/1000 -> 0.02 | E10: Ohms
A13: I1 | B13: =(D6/(D6+D9))*SQRT((D10*D9*B4)^2+1)/SQRT((((D7+D10)*D6*D9/(D9+D6))*B4)^2+1) -> 0.256672574 | C13: %
A14: I2 | B14: =1-B13 -> 0.743327426 | C14: %
A16: I1 | B16: =B13*(Iripple1/(2*SQRT(3))) ->  | C16: A
A17: I2 | B17: =B14*(Iripple1/(2*SQRT(3))) ->  | C17: A
